Workbook

Sheet Cover Page
B5: Water Service Corporation of Kentucky
B7: Rate Case Exhibits
B8: Base Period: September 30, 2022
B9: Forecast Period: December 31, 2023

Sheet Input Schedules >> (hidden)

Sheet Allocation Table (hidden)
A1: Account | B1: Account Name (vlookup) | C1: Account Name | D1: Method | E1: Type
A2: 1020 | B2: ORGANIZATION | C2: ORGANIZATION | D2: Actual | E2: Water
A3: 1025 | B3: FRANCHISES | C3: FRANCHISES | D3: Actual | E3: Water
A4: 1030 | B4: LAND & LAND RIGHTS PUMP | C4: LAND & LAND RIGHTS PUMP | D4: Actual | E4: Water
A5: 1035 | B5: LAND & LAND RIGHTS WTR TRT | C5: LAND & LAND RIGHTS WTR TR | D5: Actual | E5: Water
A6: 1040 | B6: LAND & LAND RIGHTS TRANS DIST | C6: LAND & LAND RIGHTS TRANS | D6: Actual | E6: Water
A7: 1045 | B7: LAND & LAND RIGHTS GEN PLT | C7: LAND & LAND RIGHTS GEN PL | D7: Actual | E7: Water
A8: 1050 | B8: STRUCT & IMPRV SRC SUPPLY | C8: STRUCT & IMPRV SRC SUPPLY | D8: Actual | E8: Water
A9: 1055 | B9: STRUCT & IMPRV WTR TRT PLT | C9: STRUCT & IMPRV WTR TRT PL | D9: Actual | E9: Water
A10: 1060 | B10: STRUCT & IMPRV TRANS DIST PLT | C10: STRUCT & IMPRV TRANS DIST | D10: Actual | E10: Water
A11: 1065 | B11: STRUCT & IMPRV GEN PLT | C11: STRUCT & IMPRV GEN PLT | D11: Actual | E11: Water
A12: 1080 | B12: WELLS & SPRINGS | C12: WELLS & SPRINGS | D12: Actual | E12: Water
A13: 1085 | B13: INFILTRATION GALLERY | C13: INFILTRATION GALLERY | D13: Actual | E13: Water
A14: 1090 | B14: SUPPLY MAINS | C14: SUPPLY MAINS | D14: Actual | E14: Water
A15: 1095 | B15: POWER GENERATION EQUIP | C15: POWER GENERATION EQUIP | D15: Actual | E15: Water
A16: 1100 | B16: ELECTRIC PUMP EQUIP SRC PUMP | C16: ELECTRIC PUMP EQUIP SRC P | D16: Actual | E16: Water
A17: 1105 | B17: ELECTRIC PUMP EQUIP WTP | C17: ELECTRIC PUMP EQUIP WTP | D17: Actual | E17: Water
A18: 1110 | B18: ELECTRIC PUMP EQUIP TRANS DIST | C18: ELECTRIC PUMP EQUIP TRANS | D18: Actual | E18: Water
A19: 1115 | B19: WATER TREATMENT EQPT | C19: WATER TREATMENT EQPT | D19: Actual | E19: Water
A20: 1120 | B20: DIST RESV & STANDPIPES | C20: DIST RESV & STANDPIPES | D20: Actual | E20: Water
A21: 1125 | B21: TRANS & DISTR MAINS | C21: TRANS & DISTR MAINS | D21: Actual | E21: Water
A22: 1130 | B22: SERVICE LINES | C22: SERVICE LINES | D22: Actual | E22: Water
A23: 1135 | B23: METERS | C23: METERS | D23: Actual | E23: Water
A24: 1140 | B24: METER INSTALLATIONS | C24: METER INSTALLATIONS | D24: Actual | E24: Water
A25: 1145 | B25: HYDRANTS | C25: HYDRANTS | D25: Actual | E25: Water
A26: 1150 | B26: BACKFLOW PREVENTION DEVICES | C26: BACKFLOW PREVENTION DEVIC | D26: Actual | E26: Water
A27: 1160 | B27: OTH PLT&MISC EQUIP SRC SUPPLY | C27: OTH PLT&MISC EQUIP SRC SU | D27: Actual | E27: Water
A28: 1165 | B28: OTH PLT&MISC EQUIP WTP | C28: OTH PLT&MISC EQUIP WTP | D28: Actual | E28: Water
A29: 1175 | B29: OFFICE STRUCT & IMPRV | C29: OFFICE STRUCT & IMPRV | D29: Actual | E29: Water
A30: 1180 | B30: OFFICE FURN & EQPT | C30: OFFICE FURN & EQPT | D30: Actual | E30: Water
A31: 1185 | B31: STORES EQUIPMENT | C31: STORES EQUIPMENT | D31: Actual | E31: Water
A32: 1190 | B32: TOOL SHOP & MISC EQPT | C32: TOOL SHOP & MISC EQPT | D32: Actual | E32: Water
A33: 1195 | B33: LABORATORY EQUIPMENT | C33: LABORATORY EQUIPMENT | D33: Actual | E33: Water
A34: 1200 | B34: POWER OPERATED EQUIP | C34: POWER OPERATED EQUIP | D34: Actual | E34: Water
A35: 1205 | B35: COMMUNICATION EQPT | C35: COMMUNICATION EQPT | D35: Actual | E35: Water
A36: 1210 | B36: MISC EQUIPMENT | C36: MISC EQUIPMENT | D36: Actual | E36: Water
A37: 1215 | B37: WATER PLANT ALLOCATED | C37: WATER PLANT ALLOCATED | D37: Actual | E37: Water
A38: 1220 | B38: OTHER TANGIBLE PLT WATER | C38: OTHER TANGIBLE PLT WATER | D38: Actual | E38: Water
A39: 1245 | B39: ORGANIZATION | C39: ORGANIZATION | D39: Actual | E39: Sewer
A40: 1250 | B40: FRANCHISES INTANG PLT | C40: FRANCHISES INTANG PLT | D40: Actual | E40: Sewer
A41: 1275 | B41: LAND & LAND RIGHTS RECLAIM WTP | C41: LAND & LAND RIGHTS RECLAI | D41: Actual | E41: Sewer
A42: 1285 | B42: LAND & LAND RIGHTS GEN PLT | C42: LAND & LAND RIGHTS GEN PL | D42: Actual | E42: Sewer
A43: 1290 | B43: STRUCT/IMPRV COLL PLT | C43: STRUCT/IMPRV COLL PLT | D43: Actual | E43: Sewer
A44: 1295 | B44: STRUCT/IMPRV PUMP PLT LS | C44: STRUCT/IMPRV PUMP PLT LS | D44: Actual | E44: Sewer
A45: 1300 | B45: STRUCT/IMPRV TREAT PLT | C45: STRUCT/IMPRV TREAT PLT | D45: Actual | E45: Sewer
A46: 1305 | B46: STRUCT/IMPRV RECLAIM WTP | C46: STRUCT/IMPRV RECLAIM WTP | D46: Actual | E46: Sewer
A47: 1310 | B47: STRUCT/IMPRV RECLAIM WTR DIST PLT | C47: STRUCT/IMPRV RECLAIM WTR | D47: Actual | E47: Sewer
A48: 1315 | B48: STRUCT/IMPRV GEN PLT | C48: STRUCT/IMPRV GEN PLT | D48: Actual | E48: Sewer
A49: 1320 | B49: POWER GEN EQUIP COLL PLT | C49: POWER GEN EQUIP COLL PLT | D49: Actual | E49: Sewer
A50: 1325 | B50: POWER GEN EQUIP PUMP PLT | C50: POWER GEN EQUIP PUMP PLT | D50: Actual | E50: Sewer
A51: 1330 | B51: POWER GEN EQUIP TREAT PLT | C51: POWER GEN EQUIP TREAT PLT | D51: Actual | E51: Sewer
A52: 1345 | B52: SEWER FORCE MAIN/SRVC LINES | C52: SEWER FORCE MAIN | D52: Actual | E52: Sewer
A53: 1350 | B53: SEWER GRAVITY MAIN/MANHOLES | C53: SEWER GRAVITY MAIN | D53: Actual | E53: Sewer
A54: 1353 | B54: MANHOLES | C54: MANHOLES | D54: Actual | E54: Sewer
A55: 1355 | B55: SPECIAL COLL STRUCTURES | C55: SPECIAL COLL STRUCTURES | D55: Actual | E55: Sewer
A56: 1360 | B56: SERVICES TO CUSTOMERS | C56: SERVICES TO CUSTOMERS | D56: Actual | E56: Sewer
A57: 1365 | B57: FLOW MEASURE DEVICES | C57: FLOW MEASURE DEVICES | D57: Actual | E57: Sewer
A58: 1370 | B58: FLOW MEASURE INSTALL | C58: FLOW MEASURE INSTALL | D58: Actual | E58: Sewer
A59: 1375 | B59: RECEIVING WELLS | C59: RECEIVING WELLS | D59: Actual | E59: Sewer
A60: 1380 | B60: PUMPING EQUIPMENT PUMP PLT | C60: PUMPING EQUIPMENT PUMP PL | D60: Actual | E60: Sewer
A61: 1385 | B61: PUMPING EQUIPMENT RECLAIM WTP | C61: PUMPING EQUIPMENT RECLAIM | D61: Actual | E61: Sewer
A62: 1390 | B62: PUMPING EQUIPMENT RCL WTR DIST | C62: PUMPING EQUIPMENT RCL WTR | D62: Actual | E62: Sewer
A63: 1395 | B63: TREAT/DISP EQUIP LAGOON | C63: TREAT/DISP EQUIP LAGOON | D63: Actual | E63: Sewer
A64: 1400 | B64: TREAT/DISP EQUIP TRT PLT | C64: TREAT/DISP EQUIP TRT PLT | D64: Actual | E64: Sewer
A65: 1405 | B65: TREAT/DISP EQUIP RCL WTP | C65: TREAT/DISP EQUIP RCL WTP | D65: Actual | E65: Sewer
A66: 1410 | B66: PLANT SEWERS TRTMT PLT | C66: PLANT SEWERS TRTMT PLT | D66: Actual | E66: Sewer
A67: 1415 | B67: PLANT SEWERS RECLAIM WTP | C67: PLANT SEWERS RECLAIM WTP | D67: Actual | E67: Sewer
A68: 1420 | B68: OUTFALL LINES | C68: OUTFALL LINES | D68: Actual | E68: Sewer
A69: 1425 | B69: OTHER PLT TANGIBLE | C69: OTHER PLT TANGIBLE | D69: Actual | E69: Sewer
A70: 1430 | B70: OTHER PLT COLLECTION | C70: OTHER PLT COLLECTION | D70: Actual | E70: Sewer
A71: 1435 | B71: OTHER PLT PUMP | C71: OTHER PLT PUMP | D71: Actual | E71: Sewer
A72: 1440 | B72: OTHER PLT TREATMENT | C72: OTHER PLT TREATMENT | D72: Actual | E72: Sewer
A73: 1445 | B73: OTHER PLT RECLAIM WTR TRT | C73: OTHER PLT RECLAIM WTR TRT | D73: Actual | E73: Sewer
A74: 1450 | B74: OTHER PLT RECLAIM WTR DIST | C74: OTHER PLT RECLAIM WTR DIS | D74: Actual | E74: Sewer
A75: 1455 | B75: OFFICE STRUCT & IMPRV | C75: OFFICE STRUCT & IMPRV | D75: Actual | E75: Sewer
A76: 1460 | B76: OFFICE FURN & EQPT | C76: OFFICE FURN & EQPT | D76: Actual | E76: Sewer
A77: 1465 | B77: STORES EQUIPMENT | C77: STORES EQUIPMENT | D77: Actual | E77: Sewer
A78: 1470 | B78: TOOL SHOP & MISC EQPT | C78: TOOL SHOP & MISC EQPT | D78: Actual | E78: Sewer
A79: 1475 | B79: LABORATORY EQPT | C79: LABORATORY EQPT | D79: Actual | E79: Sewer
A80: 1480 | B80: POWER OPERATED EQUIP | C80: POWER OPERATED EQUIP | D80: Actual | E80: Sewer
A81: 1485 | B81: COMMUNICATION EQPT | C81: COMMUNICATION EQPT | D81: Actual | E81: Sewer
A82: 1490 | B82: MISC EQUIP SEWER | C82: MISC EQUIP SEWER | D82: Actual | E82: Sewer
A83: 1495 | B83: SEWER PLANT ALLOCATED | C83: SEWER PLANT ALLOCATED | D83: Actual | E83: Sewer
A84: 1500 | B84: OTHER TANGIBLE PLT SEWER | C84: OTHER TANGIBLE PLT SEWER | D84: Actual | E84: Sewer
A85: 1535 | B85: REUSE DIST RESERVOIRS | C85: REUSE DIST RESERVOIRS | D85: Actual | E85: Sewer
A86: 1540 | B86: REUSE TRANMISSION & DIST SYS | C86: REUSE TRANMISSION & DIST | D86: Actual | E86: Sewer
A87: 1555 | B87: TRANSPORTATION EQPT WTR | C87: TRANSPORTATION EQPT WTR | D87: Actual | E87: Water
A88: 1580 | B88: MAINFRAME COMPUTER WTR | C88: MAINFRAME COMPUTER WTR | D88: Actual | E88: Water
A89: 1585 | B89: MINI COMPUTERS WTR | C89: MINI COMPUTERS WTR | D89: Actual | E89: Water
A90: 1590 | B90: COMP SYS COST WTR | C90: COMP SYS COST WTR | D90: Actual | E90: Water
A91: 1595 | B91: MICRO SYS COST WTR | C91: MICRO SYS COST WTR | D91: Actual | E91: Water
A92: 1699 | B92: WIP - TRANSFER TO FIXED ASSETS | C92: WATER PLANT IN PROCESS | D92: Actual | E92: Water
A93: 1706 | B93: WIP - INTEREST DURING CONSTR | C93: WIP - INTEREST DURING CONSTR | D93: Actual | E93: Water
A94: 1708 | B94: WIP - LABOR/INSTALLATION | C94: WIP - LABOR/INSTALLATION | D94: Actual | E94: Water
A95: 1739 | B95: WIP - TRANSFER TO FIXED ASSETS | C95: SEWER PLANT IN PROCESS | D95: Actual | E95: Sewer
A96: 1769 | B96: WIP - TRANSFER TO FIXED ASSETS | C96: OTHER PLANT IN PROCESS | D96: customers | E96: Water
A97: 1799 | B97: WIP - TRANSFER TO FIXED ASSETS | C97: DEFERRED PLANT IN PROCESS | D97: customers | E97: Water
A98: 1805 | B98: PLT HELD FUTURE USE-WTR | C98: PLT HELD FUTURE USE-WTR | D98: Actual | E98: Water
A99: 1810 | B99: PLT HELD FUTURE USE-SWR | C99: PLT HELD FUTURE USE-SWR | D99: Actual | E99: Sewer
A100: 1835 | B100: ACC DEPR-ORGANIZATION | C100: ACC DEPR-ORGANIZATION | D100: Actual | E100: Water
A101: 1840 | B101: ACC DEPR-FRANCHISES | C101: ACC DEPR-FRANCHISES | D101: Actual | E101: Water
A102: 1845 | B102: ACC DEPR-STRUCT&IMPRV SRC SPLY | C102: ACC DEPR-STRUCT&IMPRV SRC | D102: Actual | E102: Water
A103: 1850 | B103: ACC DEPR-STRUCT&IMPRV WTP | C103: ACC DEPR-STRUCT&IMPRV WTP | D103: Actual | E103: Water
A104: 1855 | B104: ACC DEPR-STRUCT&IMPRV TRNS DST | C104: ACC DEPR-STRUCT&IMPRV TRN | D104: Actual | E104: Water
A105: 1860 | B105: ACC DEPR-STRUCT&IMPRV GEN PLT | C105: ACC DEPR-STRUCT&IMPRV GEN | D105: Actual | E105: Water
A106: 1875 | B106: ACC DEPR-WELLS & SPRINGS | C106: ACC DEPR-WELLS & SPRINGS | D106: Actual | E106: Water
A107: 1880 | B107: ACC DEPR-INFILTRATION GALLERY | C107: ACC DEPR-INFILTRATION GAL | D107: Actual | E107: Water
A108: 1885 | B108: ACC DEPR-SUPPLY MAINS | C108: ACC DEPR-SUPPLY MAINS | D108: Actual | E108: Water
A109: 1890 | B109: ACC DEPR-POWER GENERATION EQUP | C109: ACC DEPR-POWER GENERATION | D109: Actual | E109: Water
A110: 1895 | B110: ACC DEPR-ELECT PUMP EQUIP SRC PUMP | C110: ACC DEPR-ELECT PUMP EQUIP | D110: Actual | E110: Water
A111: 1900 | B111: ACC DEPR-ELECT PUMP EQUIP WTP | C111: ACC DEPR-ELECT PUMP EQUIP | D111: Actual | E111: Water
A112: 1905 | B112: ACC DEPR-ELECT PUMP EQUIP TRAN | C112: ACC DEPR-ELECT PUMP EQUIP | D112: Actual | E112: Water
A113: 1910 | B113: ACC DEPR-WATER TREATMENT EQPT | C113: ACC DEPR-WATER TREATMENT | D113: Actual | E113: Water
A114: 1915 | B114: ACC DEPR-DIST RESV & STANDPIPE | C114: ACC DEPR-DIST RESV & STAN | D114: Actual | E114: Water
A115: 1920 | B115: ACC DEPR-TRANS & DISTR MAINS | C115: ACC DEPR-TRANS & DISTR MA | D115: Actual | E115: Water
A116: 1925 | B116: ACC DEPR-SERVICE LINES | C116: ACC DEPR-SERVICE LINES | D116: Actual | E116: Water
A117: 1930 | B117: ACC DEPR-METERS | C117: ACC DEPR-METERS | D117: Actual | E117: Water
A118: 1935 | B118: ACC DEPR-METER INSTALLS | C118: ACC DEPR-METER INSTALLS | D118: Actual | E118: Water
A119: 1940 | B119: ACC DEPR-HYDRANTS | C119: ACC DEPR-HYDRANTS | D119: Actual | E119: Water
A120: 1945 | B120: ACC DEPR-BACKFLOW PREVENT DEVC | C120: ACC DEPR-BACKFLOW PREVENT | D120: Actual | E120: Water
A121: 1955 | B121: ACC DEPR-OTH PLANT&MISC SRC | C121: ACC DEPR-OTH PLANT&MISC S | D121: Actual | E121: Water
A122: 1960 | B122: ACC DEPR-OTH PLANT&MISC WTP | C122: ACC DEPR-OTH PLANT&MISC W | D122: Actual | E122: Water
A123: 1970 | B123: ACC DEPR-OFFICE STRUCTURE | C123: ACC DEPR-OFFICE STRUCTURE | D123: Actual | E123: Water
A124: 1975 | B124: ACC DEPR-OFFICE FURN/EQPT | C124: ACC DEPR-OFFICE FURN/EQPT | D124: Actual | E124: Water
A125: 1980 | B125: ACC DEPR-STORES EQUIPMENT | C125: ACC DEPR-STORES EQUIPMENT | D125: Actual | E125: Water
A126: 1985 | B126: ACC DEPR-TOOL SHOP & MISC EQPT | C126: ACC DEPR-TOOL SHOP & MISC | D126: Actual | E126: Water
A127: 1990 | B127: ACC DEPR-LABORATORY EQUIPMENT | C127: ACC DEPR-LABORATORY EQUIP | D127: Actual | E127: Water
A128: 1995 | B128: ACC DEPR-POWER OPERATED EQUIP | C128: ACC DEPR-POWER OPERATED E | D128: Actual | E128: Water
A129: 2000 | B129: ACC DEPR-COMMUNICATION EQPT | C129: ACC DEPR-COMMUNICATION EQ | D129: Actual | E129: Water
A130: 2005 | B130: ACC DEPR-MISC EQUIPMENT | C130: ACC DEPR-MISC EQUIPMENT | D130: Actual | E130: Water
A131: 2010 | B131: ACC DEPR-OTHER TANG PLT WATER | C131: ACC DEPR-OTHER TANG PLT W | D131: Actual | E131: Water
A132: 2030 | B132: ACC DEPR-ORGANIZATION | C132: ACC DEPR-ORGANIZATION | D132: Actual | E132: Sewer
A133: 2040 | B133: ACC DEPR FRANCHISES INTANG PLT | C133: ACC DEPR FRANCHISES INTAN | D133: Actual | E133: Sewer
A134: 2050 | B134: ACC DEPR-STRUCT/IMPRV COLL PLT | C134: ACC DEPR-STRUCT/IMPRV COL | D134: Actual | E134: Sewer
A135: 2055 | B135: ACC DEPR-STRUCT/IMPRV PUMP PLT LS | C135: ACC DEPR-STRUCT/IMPRV PUM | D135: Actual | E135: Sewer
A136: 2060 | B136: ACC DEPR-STRUCT/IMPRV TREAT PLT | C136: ACC DEPR-STRUCT/IMPRV TRE | D136: Actual | E136: Sewer
A137: 2065 | B137: ACC DEPR-STRUCT/IMPRV RCLM WTP | C137: ACC DEPR-STRUCT/IMPRV RCL | D137: Actual | E137: Sewer
A138: 2070 | B138: ACC DEPR-STRUCT/IMPRV RCLM DST | C138: ACC DEPR-STRUCT/IMPRV RCL | D138: Actual | E138: Sewer
A139: 2075 | B139: ACC DEPR-STRUCT/IMPRV GEN PLT | C139: ACC DEPR-STRUCT/IMPRV GEN | D139: Actual | E139: Sewer
A140: 2080 | B140: ACC DEPR-PWR GEN EQP COLL PLT | C140: ACC DEPR-PWR GEN EQP COLL | D140: Actual | E140: Sewer
A141: 2085 | B141: ACC DEPR-PWR GEN EQP PUMP PLT | C141: ACC DEPR-PWR GEN EQP PUMP | D141: Actual | E141: Sewer
A142: 2090 | B142: ACC DEPR-PWR GEN EQP TRT PLT | C142: ACC DEPR-PWR GEN EQP TRT | D142: Actual | E142: Sewer
A143: 2105 | B143: ACC DEPR-SEWER FORCE MAIN/SRVC LINES | C143: ACC DEPR-SEWER FORCE MAIN | D143: Actual | E143: Sewer
A144: 2110 | B144: ACC DEPR-SEWER GRVTY MAIN/MAN | C144: ACC DEPR-SEWER GRAVITY MA | D144: Actual | E144: Sewer
A145: 2113 | B145: ACC DEPR-MANHOLES | C145: ACC DEPR-MANHOLES | D145: Actual | E145: Sewer
A146: 2115 | B146: ACC DEPR-SPECIAL COLL STRCTR | C146: ACC DEPR-SPECIAL COLL STR | D146: Actual | E146: Sewer
A147: 2120 | B147: ACC DEPR-SERVICES TO CUSTOMERS | C147: ACC DEPR-SERVICES TO CUST | D147: Actual | E147: Sewer
A148: 2125 | B148: ACC DEPR-FLOW MEASURE DEVICES | C148: ACC DEPR-FLOW MEASURE DEV | D148: Actual | E148: Sewer
A149: 2130 | B149: ACC DEPR-FLOW MEASURE INSTALL | C149: ACC DEPR-FLOW MEASURE INS | D149: Actual | E149: Sewer
A150: 2135 | B150: ACC DEPR-RECEIVING WELLS | C150: ACC DEPR-RECEIVING WELLS | D150: Actual | E150: Sewer
A151: 2140 | B151: ACC DEPR-PUMP EQP PUMP PLT | C151: ACC DEPR-PUMP EQP PUMP PL | D151: Actual | E151: Sewer
A152: 2145 | B152: ACC DEPR-PUMP EQP RCLM WTP | C152: ACC DEPR-PUMP EQP RCLM WT | D152: Actual | E152: Sewer
A153: 2150 | B153: ACC DEPR-PUMP EQP RCLM DIST | C153: ACC DEPR-PUMP EQP RCLM DI | D153: Actual | E153: Sewer
A154: 2155 | B154: ACC DEPR-TREAT/DISP EQP LAGOON | C154: ACC DEPR-TREAT/DISP EQP L | D154: Actual | E154: Sewer
A155: 2160 | B155: ACC DEPR-TREAT/DISP EQP TRT PLT | C155: ACC DEPR-TREAT/DISP EQP T | D155: Actual | E155: Sewer
A156: 2165 | B156: ACC DEPR-TREAT/DISP EQP RWTP | C156: ACC DEPR-TREAT/DISP EQP R | D156: Actual | E156: Sewer
A157: 2170 | B157: ACC DEPR-PLANT SEWERS TRT PLT | C157: ACC DEPR-PLANT SEWERS TRT | D157: Actual | E157: Sewer
A158: 2175 | B158: ACC DEPR-PLANT SEWERS RECLAIM | C158: ACC DEPR-PLANT SEWERS REC | D158: Actual | E158: Sewer
A159: 2180 | B159: ACC DEPR-OUTFALL LINES | C159: ACC DEPR-OUTFALL LINES | D159: Actual | E159: Sewer
A160: 2185 | B160: ACC DEPR-OTHER PLT TANGIBLE | C160: ACC DEPR-OTHER PLT TANGIB | D160: Actual | E160: Sewer
A161: 2190 | B161: ACC DEPR-OTHER PLT COLLECTION | C161: ACC DEPR-OTHER PLT COLLEC | D161: Actual | E161: Sewer
A162: 2195 | B162: ACC DEPR-OTHER PLT PUMP | C162: ACC DEPR-OTHER PLT PUMP | D162: Actual | E162: Sewer
A163: 2200 | B163: ACC DEPR-OTHER PLT TREATMENT | C163: ACC DEPR-OTHER PLT TREATM | D163: Actual | E163: Sewer
A164: 2205 | B164: ACC DEPR-OTHER PLT RCLM WTP | C164: ACC DEPR-OTHER PLT RCLM W | D164: Actual | E164: Sewer
A165: 2210 | B165: ACC DEPR-OTHER PLT RCLM DIST | C165: ACC DEPR-OTHER PLT RCLM D | D165: Actual | E165: Sewer
A166: 2215 | B166: ACC DEPR-OFFICE STRUCTURE | C166: ACC DEPR-OFFICE STRUCTURE | D166: Actual | E166: Sewer
A167: 2220 | B167: ACC DEPR-OFFICE FURN/EQPT | C167: ACC DEPR-OFFICE FURN/EQPT | D167: Actual | E167: Sewer
A168: 2225 | B168: ACC DEPR-STORES EQUIPMENT | C168: ACC DEPR-STORES EQUIPMENT | D168: Actual | E168: Sewer
A169: 2230 | B169: ACC DEPR-TOOL SHOP & MISC EQPT | C169: ACC DEPR-TOOL SHOP & MISC | D169: Actual | E169: Sewer
A170: 2235 | B170: ACC DEPR-LABORATORY EQPT | C170: ACC DEPR-LABORATORY EQPT | D170: Actual | E170: Sewer
A171: 2240 | B171: ACC DEPR-POWER OPERATED EQUIP | C171: ACC DEPR-POWER OPERATED E | D171: Actual | E171: Sewer
A172: 2245 | B172: ACC DEPR-COMMUNICATION EQPT | C172: ACC DEPR-COMMUNICATION EQ | D172: Actual | E172: Sewer
A173: 2250 | B173: ACC DEPR-MISC EQUIP SEWER | C173: ACC DEPR-MISC EQUIP SEWER | D173: Actual | E173: Sewer
A174: 2255 | B174: ACC DEPR-OTHER TANG PLT SEWER | C174: ACC DEPR-OTHER TANG PLT S | D174: Actual | E174: Sewer
A175: 2280 | B175: ACC DEPR-REUSE DIST RESERVOIRS | C175: ACC DEPR-REUSE DIST RESER | D175: Actual | E175: Sewer
A176: 2285 | B176: ACC DEPR-REUSE TRANS/DIST SYS | C176: ACC DEPR-REUSE TRANS/DIST | D176: Actual | E176: Sewer
A177: 2300 | B177: ACC DEPR-TRANSPORTATION WTR | C177: ACC DEPR-TRANSPORTATION WTR | D177: Actual
A178: 2320 | B178: ACC DEPR-MAINFRAME COMP WTR | C178: ACC DEPR-MAINFRAME COMP WTR | D178: Actual
A179: 2325 | B179: ACC DEPR-MINI COMP WTR | C179: ACC DEPR-MINI COMP WTR | D179: Actual
A180: 2330 | B180: COMP SYS AMORTIZATION WTR | C180: COMP SYS AMORTIZATION WTR | D180: Actual
A181: 2335 | B181: MICRO SYS AMORTIZATION WTR | C181: MICRO SYS AMORTIZATION WTR | D181: Actual | E181: Water
A182: 2400 | B182: UTILITY PAA WTR PLANT AMORT | C182: UTILITY PAA WTR PLANT AMOR | D182: Actual | E182: Water
A183: 2410 | B183: UTILITY PAA SWR PLANT AMORT | C183: UTILITY PAA SWR PLANT AMOR | D183: Actual | E183: Sewer
A184: 2420 | B184: ACC AMORT UTIL PAA-WATER | C184: ACC AMORT UTIL PAA-WATER | D184: Actual | E184: Water
A185: 2425 | B185: ACC AMORT UTIL PAA-SEWER | C185: ACC AMORT UTIL PAA-SEWER | D185: Actual | E185: Sewer
A186: 2640 | B186: CASH-CHASE-WSC DISBURSEMENT | C186: CASH-CHASE-WSC DISBURSEME | D186: Customers | E186: Water
A187: 2650 | B187: CASH-WSC PETTY CASH-CHASE | C187: CASH-WSC PETTY CASH-CHASE | D187: Customers | E187: Water
A188: 2665 | B188: CASH UNAPPLIED | C188: CASH UNAPPLIED | D188: Customers | E188: Water
A189: 2675 | B189: A/R-CUSTOMER TRADE CC&B | C189: A/R-CUSTOMER TRADE CC&B | D189: Customers | E189: Water
A190: 2680 | B190: A/R-CUSTOMER ACCRUAL | C190: A/R-CUSTOMER ACCRUAL | D190: Customers | E190: Water
A191: 2685 | B191: A/R-CUSTOMER REFUNDS | C191: A/R-CUSTOMER REFUNDS | D191: Customers | E191: Water
A192: 2690 | B192: ACCUM PROV UNCOLLECT ACCTS | C192: ACCUM PROV UNCOLLECT ACCTS | D192: Customers | E192: Water
A193: 2710 | B193: A/R ASSOC COS | C193: A/R ASSOC COS | D193: Customers | E193: Water
A194: 2755 | B194: INVENTORY | C194: INVENTORY | D194: Customers | E194: Water
A195: 2775 | B195: SPECIAL DEPOSITS | C195: SPECIAL DEPOSITS | D195: Customers | E195: Water
A196: 2856 | B196: PRELIMINARY SURVEY | C196: PRELIMINARY SURVEY | D196: Customers | E196: Water
A197: 2906 | B197: RCIP - ATTORNEY FEES | C197: RCIP - ATTORNEY FEES | D197: Customers | E197: Water
A198: 2907 | B198: RCIP - CAPITALIZED TIME | C198: RCIP - CAPITALIZED TIME | D198: Customers | E198: Water
A199: 2914 | B199: RCIP - TRANSFER TO DEF RC | C199: RATE CASE IN PROGRESS | D199: Customers | E199: Water
A200: 2915 | B200: REG EXP BEING AMORT | C200: REG EXP BEING AMORT | D200: Customers | E200: Water
... 406 more rows

Sheet Fusion Chart of Accounts (hidden)
C1: 100000 | I1: Assets | J1: Asset
D2: 110000 | I2: Current Assets | J2: Asset
E3: 111000 | I3: Total Cash and Cash Equivalents | J3: Asset
F4: 111100 | I4: Cash and Cash Equivalents - CAD | J4: Asset
H5: 111101 | I5: HSBC - 270-049673-001 - Corix Infrastructure Inc. | J5: Asset
H6: 111102 | I6: HSBC - 270-049673-550 - Corix Infrastructure Inc. | J6: Asset
H7: 111103 | I7: HSBC - 270-049622-001 - Corix Utilities Inc. | J7: Asset
H8: 111104 | I8: HSBC - 270-049657-001 - Corix Multi-Utility Services Inc. | J8: Asset
H9: 111105 | I9: HSBC - 270-049630-001 - Corix Customer Care Inc. | J9: Asset
H10: 111106 | I10: HSBC - 270-649875-001 - West Shore Environmental Services LP | J10: Asset
H11: 111107 | I11: HSBC - 270-049592-001 - West Shore Environmental Services Inc. (Dormant) | J11: Asset
H12: 111108 | I12: HSBC - 270-049568-001 - Corix Utilities (Foothills Water) Inc. | J12: Asset
H13: 111109 | I13: HSBC - 270-049576-001 - Corix Utilities (Foothills Wastewater) Inc. | J13: Asset
H14: 111110 | I14: HSBC - 270-253653-001 - Corix Utilities (CKP) Inc. | J14: Asset
H15: 111111 | I15: HSBC - 270-058613-001 - Corix Water Services Inc. | J15: Asset
H16: 111112 | I16: HSBC - 270-253831-001 - Corix Energy Inc. | J16: Asset
H17: 111113 | I17: HSBC - 270-049541-001 - Corix Water Systems Inc. | J17: Asset
H18: 111114 | I18: HSBC - 270-193944-001 - Chatham-Kent Corix Water Services Company | J18: Asset
H19: 111150 | I19: TD - 9400-5336319 - Corix Infrastructure (US) Inc. | J19: Asset
H20: 111160 | I20: Cash Consolidation - CAD | J20: Asset
H21: 111170 | I21: Cash Clearing Account - CAD | J21: Asset
H22: 111180 | I22: Dormant Bank Account - CAD | J22: Asset
H23: 111190 | I23: Short Term Investment - GIC - CAD | J23: Asset
F24: 111200 | I24: Cash and Cash Equivalents - USD | J24: Asset
H25: 111201 | I25: HSBC - 270-049673-070 - Corix Infrastructure Inc. | J25: Asset
H26: 111202 | I26: HSBC - 270-049665-070 - Inland Pacific Resources Inc. | J26: Asset
H27: 111203 | I27: HSBC - 270-049622-070 - Corix Utilities Inc. | J27: Asset
H28: 111204 | I28: HSBC - 270-058613-070 - Corix Water Services Inc. | J28: Asset
H29: 111205 | I29: HSBC - 270-049541-070 - Corix Water Systems Inc. | J29: Asset
H30: 111220 | I30: TD - 9400-7336860 - Corix Infrastructure (US) Inc. | J30: Asset
H31: 111221 | I31: TD - 9400-7337158 - Tribus Services, Inc. | J31: Asset
H32: 111222 | I32: TD - 9400-7337166 - Corix Utilities (Oklahoma) Inc. | J32: Asset
H33: 111223 | I33: TD - 9400-7338707 - Inland Pacific Resources Inc. | J33: Asset
H34: 111224 | I34: TD - 9400-7338790 - Corix Utilities (Texas) Inc. | J34: Asset
H35: 111225 | I35: TD - 9400-7339711 - Corix Utilities (Illinois) LLC | J35: Asset
H36: 111226 | I36: TD - 9400-7341139 - Corix Infrastructure Services (US) Inc. | J36: Asset
H37: 111227 | I37: TD - 9400-7344324 - Corix Utility Systems (Georgia) Inc. | J37: Asset
H38: 111228 | I38: TD - 9400-7347226 - Corix NewHoldCo Inc. | J38: Asset
H39: 111229 | I39: TD - 9400-7350510 - Cleveland Thermal, LLC | J39: Asset
H40: 111230 | I40: TD - 9400-7356713 - Corix Contract Utilities (US) | J40: Asset
H41: 111240 | I41: TDNA - 2426601587 - Corix Utilities (Oklahoma) Inc. | J41: Asset
H42: 111241 | I42: TDNA - 2426601636 - Tribus Services, Inc. | J42: Asset
H43: 111242 | I43: TDNA - 2426822349 - Corix Utilities (Texas) Inc. | J43: Asset
H44: 111243 | I44: TDNA - 2426824824 - Corix Infrastructure (US) Inc. | J44: Asset
H45: 111244 | I45: TDNA - 2427139701 - Corix Infrastructure Services (US) Inc. | J45: Asset
H46: 111245 | I46: TDNA - 2427943532 - Corix Utilities (Cleveland) Inc. | J46: Asset
H47: 111246 | I47: TDNA - 2427943607 - Corix Utility Systems (Georgia) Inc. | J47: Asset
H48: 111260 | I48: PNC - 4228255526 - Cleveland Thermal, LLC | J48: Asset
H49: 111261 | I49: JP Morgan - 100074351 - Water Services Corp (Lower 48) | J49: Asset
H50: 111262 | I50: JP Morgan - 989034290 - Water Services Corp (Lower 48) | J50: Asset
H51: 111263 | I51: FNBA - XXXX1187 - Fairbanks Sewer & Water Inc. (Repurchase/Master) | J51: Asset
H52: 111264 | I52: FNBA - XXXX6047 - Fairbanks Sewer & Water Inc. (Conduit) | J52: Asset
H53: 111265 | I53: FNBA - XXXX7391 - Fairbanks Sewer & Water Inc. (Petty) | J53: Asset
H54: 111266 | I54: Denali - 1046481 - College Utilities Corporation (FSW) | J54: Asset
H55: 111267 | I55: Doyon - US bank account | J55: Asset
H56: 111270 | I56: Cash Consolidation - USD | J56: Asset
H57: 111271 | I57: Cash Clearing Account - USD | J57: Asset
H58: 111272 | I58: Cash - Chase - WSCIL - Small PR | J58: Asset
H59: 111273 | I59: Cash - Depository (TX) | J59: Asset
H60: 111274 | I60: Cash - Checking - CUTX | J60: Asset
H61: 111275 | I61: Cash - Chase - Credit Card | J61: Asset
H62: 111276 | I62: Cash - Chase - Flex Services | J62: Asset
H63: 111277 | I63: Cash - BoA - SC | J63: Asset
H64: 111278 | I64: Cash - BoA - GA | J64: Asset
H65: 111279 | I65: Cash - BoA - NV | J65: Asset
H66: 111280 | I66: Cash - Commercial Bank - KY | J66: Asset
H67: 111281 | I67: Cash - BoA - FL | J67: Asset
H68: 111282 | I68: Cash - BoA - NC | J68: Asset
H69: 111283 | I69: Cash - 1st Community Bank - KY | J69: Asset
H70: 111284 | I70: Cash - Bank of New York M | J70: Asset
H71: 111285 | I71: Cash - Wire /Payroll Transfer Clearing | J71: Asset
H72: 111286 | I72: Dormant Bank Account - USD | J72: Asset
H73: 111287 | I73: Short Term Investment - GIC - USD | J73: Asset
H74: 111288 | I74: FNBA - XXXX6955 - Fairbanks Sewer & Water Inc. (Payroll) | J74: Asset
H75: 111289 | I75: FNBA - XXXX0702 - Fairbanks Sewer & Water Inc. (Repurchase) | J75: Asset
H76: 111299 | I76: Disbursement Cash Clearing | J76: Asset
F77: 111300 | I77: Petty Cash | J77: Asset
H78: 111301 | I78: Petty Cash - CAD | J78: Asset
H79: 111302 | I79: Petty Cash - USD | J79: Asset
H80: 111303 | I80: Petty Cash CWS- BoA 51223360 | J80: Asset
H81: 111304 | I81: Petty Cash CNC - BoA 1651884 | J81: Asset
H82: 111305 | I82: Petty Cash MD - BoA 8666588498 | J82: Asset
H83: 111306 | I83: Petty Cash FL - BoA 1280073899 | J83: Asset
H84: 111307 | I84: Petty Cash GA - BoA 3263029870 | J84: Asset
H85: 111308 | I85: Petty Cash LA - Citizens Bank 4018400 | J85: Asset
H86: 111309 | I86: Petty Cash AZ- Chase 27032774 | J86: Asset
H87: 111310 | I87: Petty Cash AL - Wells Fargo 7547443593 | J87: Asset
F88: 111400 | I88: Restricted Cash | J88: Asset
H89: 111401 | I89: Restricted Cash - CAD | J89: Asset
H90: 111402 | I90: Restricted Cash - USD | J90: Asset
H91: 111403 | I91: HSBC - 270-049657-002 - Sun Rivers | J91: Asset
H92: 111404 | I92: HSBC - 270-049657-005 - Panorama Water - DCTF | J92: Asset
H93: 111405 | I93: HSBC - 270-049657-007 - Lindell Beach (CMUS) | J93: Asset
H94: 111406 | I94: HSBC - 270-049657-008 - Cultus Country (CMUS) | J94: Asset
H95: 111430 | I95: Scotiabank - 71686761 - Cultus Lake Water (CMUS) - DCTF | J95: Asset
H96: 111431 | I96: Scotiabank - 71731132 - Cultus Lake Water (CMUS) - Construction Reserve Fund | J96: Asset
H97: 111432 | I97: Scotiabank - 77671195 - Canadian Lakeview Estates Water (CMUS) - RRTF | J97: Asset
H98: 111433 | I98: Scotiabank - 88460419 - Okanagan Landing Utility (CMUS) - RRTF | J98: Asset
H99: 111450 | I99: Cash - Chase - Betterment Fees | J99: Asset
H100: 111451 | I100: Cash - Chase - PLT CAP FUND NV | J100: Asset
H101: 111452 | I101: Cash - Chase - Water Storage CAP | J101: Asset
H102: 111453 | I102: Cash - Chase - Water RTS PRO FUND | J102: Asset
H103: 111460 | I103: Cash - BoA - Colchester | J103: Asset
H104: 111470 | I104: Cash - BB&T | J104: Asset
E105: 112000 | I105: Total Accounts Receivable | J105: Asset
F106: 112100 | I106: Accounts Receivable, Gross | J106: Asset
H107: 112101 | I107: Accounts Receivable - CAD | J107: Asset
H108: 112102 | I108: Accounts Receivable - USD | J108: Asset
H109: 112103 | I109: Accounts Receivable - Interest | J109: Asset
H110: 112104 | I110: Accounts Receivable - Other | J110: Asset
H111: 112105 | I111: Accounts Receivable - Clearing | J111: Asset
H112: 112106 | I112: Accounts Receivable - Unapplied/Unidentified Receipt | J112: Asset
H113: 112110 | I113: Customer Refunds | J113: Asset
F114: 112200 | I114: Allowance for Doubtful Accounts | J114: Asset
H115: 112201 | I115: Allowance for Doubtful Accounts - CAD | J115: Asset
H116: 112202 | I116: Allowance for Doubtful Accounts - USD | J116: Asset
H117: 112203 | I117: Allowance for Finance Charges | J117: Asset
F118: 112300 | I118: Unbilled Receivables | J118: Asset
H119: 112301 | I119: Unbilled Revenue | J119: Asset
H120: 112302 | I120: Accrued Revenue | J120: Asset
H121: 112303 | I121: Accrued RCC Charges | J121: Asset
H122: 112304 | I122: Accrued PRISM Charges | J122: Asset
E123: 113000 | I123: Other Current Assets | J123: Asset
F124: 113100 | I124: Materials and Supplies | J124: Asset
H125: 113101 | I125: Materials and Supplies | J125: Asset
H126: 113102 | I126: Inventory | J126: Asset
H127: 113103 | I127: Inventory Clearing - Freights Charges | J127: Asset
H128: 113110 | I128: Inventory Write Off Provision | J128: Asset
F129: 113200 | I129: Prepaid Expenses and Deposits | J129: Asset
H130: 113201 | I130: Prepaid Advertising | J130: Asset
H131: 113202 | I131: Prepaid Software | J131: Asset
H132: 113203 | I132: Prepaid Maintenance | J132: Asset
H133: 113204 | I133: Prepaid Franchise Fee | J133: Asset
H134: 113205 | I134: Prepaid Chemicals - Steam | J134: Asset
H135: 113206 | I135: Prepaid Insurance | J135: Asset
H136: 113207 | I136: Prepaid Reimbursements | J136: Asset
H137: 113208 | I137: Prepaid Tariff Funds | J137: Asset
H138: 113209 | I138: Prepaid Other | J138: Asset
H139: 113210 | I139: Prepaid Interest | J139: Asset
H140: 113211 | I140: Deposits | J140: Asset
F141: 113300 | I141: Miscellaneous Receivable | J141: Asset
H142: 113301 | I142: Misc Receivable | J142: Asset
H143: 113302 | I143: Rebate Receivable | J143: Asset
H144: 113350 | I144: HST Receivable - Purchases | J144: Asset
H145: 113351 | I145: HST Receivable - Purchase Restricted | J145: Asset
H146: 113355 | I146: GST Receivable - Purchases | J146: Asset
H147: 113356 | I147: GST Receivable - Clearing | J147: Asset
H148: 113365 | I148: Energy Rebate - Residential | J148: Asset
H149: 113370 | I149: Fuel Tax from Customer | J149: Asset
H150: 113371 | I150: Fuel Tax from Vendor | J150: Asset
F151: 113400 | I151: Income Tax Receivable | J151: Asset
H152: 113401 | I152: Income Taxes Receivable | J152: Asset
F153: 113500 | I153: Intercompany Receivable - Trade | J153: Asset
H154: 113501 | I154: Intercompany Trade Accounts Receivable - CAD | J154: Asset
H155: 113502 | I155: Intercompany Trade Accounts Receivable - USD | J155: Asset
H156: 113503 | I156: Intercompany Trade Accounts Receivable - Non-Fusion | J156: Asset
F157: 113600 | I157: Intercompany Receivable - Non-Trade | J157: Asset
H158: 113601 | I158: Intercompany Non-Trade Accounts Receivable | J158: Asset
H159: 113602 | I159: Intercompany Non-Trade Accounts Receivable - Non-Fusion | J159: Asset
H160: 113603 | I160: Intercompany Automatic Account | J160: Asset
H161: 113604 | I161: Intercompany Automatic Balancing - Asset | J161: Asset
F162: 113700 | I162: Other Current Assets | J162: Asset
H163: 113701 | I163: Employee Purchases | J163: Asset
H164: 113702 | I164: Payroll Clearing | J164: Asset
H165: 113703 | I165: Flex Services | J165: Asset
H166: 113704 | I166: 401K Clearing | J166: Asset
H167: 113705 | I167: Interco Resource/Job Clearing | J167: Asset
H168: 113706 | I168: Visa Payment Clearing | J168: Asset
H169: 113707 | I169: Due from Employee | J169: Asset
H170: 113708 | I170: Alloc Fuel Charge Reserve | J170: Asset
H171: 113709 | I171: Work In Progress | J171: Asset
H172: 113710 | I172: Notes Receivable | J172: Asset
H173: 113711 | I173: Misc Other Current Assets | J173: Asset
H174: 113712 | I174: Preliminary Survey and Investigation Accrued | J174: Asset
H175: 113713 | I175: Util Plant Acquired/Disposed | J175: Asset
H176: 113799 | I176: HCM Clearing | J176: Asset
D177: 120000 | I177: Non-Current Assets | J177: Asset
E178: 130000 | I178: Investment In Subsidiaries | J178: Asset
F179: 131000 | I179: Investment in Subsidiaries and affiliates - CA companies | J179: Asset
H180: 131001 | I180: Investment in Subsidiaries and affiliates - CA companies | J180: Asset
F181: 132000 | I181: Investment in Subsidiaries and affiliates - US companies | J181: Asset
H182: 132001 | I182: Investment in Subsidiaries and affiliates - US companies | J182: Asset
F183: 133000 | I183: Investment - Cost Method | J183: Asset
H184: 133001 | I184: Investment - Cost Method | J184: Asset
E185: 140000 | I185: Property, Plant and Equipment , Net | J185: Asset
F186: 141000 | I186: Property, Plant and Equipment - Cost | J186: Asset
G187: 141100 | I187: Land and Rights | J187: Asset
H188: 141101 | I188: Land and Rights General | J188: Asset
H189: 141102 | I189: Land and Rights Pump | J189: Asset
H190: 141103 | I190: Land and Rights Water | J190: Asset
H191: 141104 | I191: Land and Rights Trans | J191: Asset
H192: 141105 | I192: Land and Rights Intangible | J192: Asset
H193: 141106 | I193: Land and Rights Collections | J193: Asset
H194: 141107 | I194: Land and Rights Treatment | J194: Asset
H195: 141108 | I195: Land and Rights Reclaim | J195: Asset
H196: 141199 | I196: Land Clearing | J196: Asset
G197: 141200 | I197: Utility Plant in Service | J197: Asset
H198: 141201 | I198: Organization | J198: Asset
H199: 141202 | I199: Franchises | J199: Asset
H200: 141203 | I200: Struct and Improv General Plant | J200: Asset
... 1579 more rows

Sheet Index
A1: Schedule Description | B1: Schedule | C1: Page Number
A2: Input Schedules:
A3: Trial Balance - Direct & Allocated Ledger
A4: Linked Trial Balance
A6: Lead Financial Schedules:
A7: Statement of Rate Base and Return | B7: Exhibit 28
A8: Statement of Net Operating Income | B8: Exhibit 29
A9: Statement of Income, Historic Years | B9: Exhibit C
A10: Income Statement, Test Year ended April 30, 2022 | B10: Exhibit D
A11: Statement of Financial Position - Balance Sheet, Historic Years | B11: Exhibit E-1
A12: Statement of Financial Position - Balance Sheet, Base Year | B12: Exhibit E-2
A15: Rate Base Supporting Schedules:
A16: Plant in Service | B16: Exhibit 28.1
A17: Accumulated Depreciation | B17: Exhibit 28.2
A18: Cash Working Capital | B18: Exhibit 28.3
A19: Contribution-In-Aid- Construction (CIAC) | B19: Exhibit 28.4
A20: Consolidated Tax Adjustment | B20: Exhibit 28
A21: Accumulated Deferred Income Tax | B21: Exhibit 28.5
A22: Customer Deposits | B22: Exhibit 28
A23: Inventory | B23: Exhibit 28
A24: Plant Acquisition Adjustment (PAA) | B24: Exhibit 28.6
A25: Oracle Fusion Asset | B25: Exhibit 28.7
A26: Excess Book Value | B26: Schedule A-11
A27: Cost Free Capital | B27: Schedule A-12
A28: Average Tax Accruals | B28: Schedule A-13
A29: Excess Deferred Taxes | B29: Schedule A-14
A30: Deferred Charges | B30: Exhibit 28.8
A31: Pro-Forma Plant | B31: Exhibit 28
A33: Net Operating Income Supporting Schedules:
A34: Revenues | B34: Exhibit 29.1
A35: Uncollectibles | B35: Exhibit 29.2
A36: Forfieted Discounts | B36: Schedule B-3
A37: Salaries & Wages | B37: Exhibit 29.3
A38: Salary Captime | B38: Exhibit 29.4
A39: Purchase Power | B39: Exhibit 29.5
A40: Purchased Water & Sewer | B40: Exhibit 29.6
A41: Maintenance & Repair | B41: Exhibit 29.7
A42: Maintenance Testing | B42: Exhibit 29.8
A43: Meter Reading | B43: Exhibit 29
A44: Chemicals | B44: Exhibit 29.9
A45: Transportation Expense | B45: Exhibit 29.10
A46: Outside Service | B46: Exhibit 29.11
A47: Office Supplies & Other Expenses | B47: Exhibit 29.12
A48: Regulatory Commission Expense | B48: Exhibit 29.13
A49: Pension & Other Benefits | B49: Exhibit 29.14
A50: Rent | B50: Exhibit 29.15
A51: Insurance | B51: Exhibit 29.16
A52: Office Utilities | B52: Exhibit 29.17
A53: Miscellaneous Expense | B53: Exhibit 29.18
A54: Depreciation Expense | B54: Exhibit 29.19
A55: Plant Acquisition Amortization Expense | B55: Exhibit 29.20
A56: Contribtion-In-Aid-Construction Amortization | B56: Exhibit 29.21
A57: Investment Tax Credit Amortization | B57: Exhibit 29.5
A58: TOTI | B58: Exhibit 29.22
A59: Income Taxes | B59: Exhibit 29.23
A61: Revenue Requirement Calculation:
A62: Retention Factors | B62: Exhibit 34
A63: Required Return & Capital Structure | B63: Exhibit 35
A64: Gross Revenue Requirement | B64: Exhibit 36
A65: Service Revenue Requirement | B65: Exhibit 37

Sheet Trial Balance Schedules >>

Sheet Fusion TB Drop
C1: Direct | G1: Allocated | K1: Total
C2: G/L | D2: G/L | E2: G/L | G2: G/L | H2: G/L | I2: G/L | K2: G/L | L2: G/L | M2: G/L
A3: Account | B3: Account Description | C3: Water | D3: Sewer | E3: Total | G3: Water | H3: Sewer | I3: Total | K3: Water | L3: Sewer | M3: Total | O3: Check | Q3: =SUMIFS(M:M,A:A,"<400000") -> 0
A4: 111280 | B4: Cash - Commercial Bank - KY | C4: 296104.93 | D4: 0 | E4: =SUM(C4:D4) -> 296104.93 | I4: =SUM(G4:H4) -> 0 | K4: =SUM(C4,G4) -> 296104.93 | L4: =SUM(D4,H4) -> 0 | M4: =SUM(K4:L4) -> 296104.93 | O4: =MATCH(A4,'Linked TB'!A:A,0) ->  | Q4: =SUMIFS(M:M,A:A,">400000") -> 0
A5: 000000 | B5: =VLOOKUP(VALUE(A5),'Linked TB'!A:B,2,FALSE) -> 0 | C5: 0 | D5: 0 | E5: =SUM(C5:D5) -> 0 | I5: =SUM(G5:H5) -> 0 | K5: =SUM(C5,G5) -> 0 | L5: =SUM(D5,H5) -> 0 | M5: =SUM(K5:L5) -> 0 | O5: =MATCH(A5,'Linked TB'!A:A,0) -> 
A6: 111280 | B6: =VLOOKUP(VALUE(A6),'Linked TB'!A:B,2,FALSE) -> Cash - Commercial Bank - KY | C6: 296104.93 | D6: 0 | E6: 296104.93 | I6: 0 | K6: 296104.93 | L6: 0 | M6: 296104.93 | O6: =MATCH(A6,'Linked TB'!A:A,0) -> 
A7: 111283 | B7: =VLOOKUP(VALUE(A7),'Linked TB'!A:B,2,FALSE) -> Cash - 1st Community Bank - KY | C7: 12969.82 | D7: 0 | E7: 12969.82 | I7: 0 | K7: 12969.82 | L7: 0 | M7: 12969.82 | O7: =MATCH(A7,'Linked TB'!A:A,0) -> 
A8: 112102 | B8: =VLOOKUP(VALUE(A8),'Linked TB'!A:B,2,FALSE) -> Accounts Receivable - USD | C8: 800702.44 | D8: 0 | E8: 800702.44 | I8: 0 | K8: 800702.44 | L8: 0 | M8: 800702.44 | O8: =MATCH(A8,'Linked TB'!A:A,0) -> 
A9: 112202 | B9: =VLOOKUP(VALUE(A9),'Linked TB'!A:B,2,FALSE) -> Allowance for Doubtful Accounts - USD | C9: -168221.5 | D9: 0 | E9: -168221.5 | I9: 0 | K9: -168221.5 | L9: 0 | M9: -168221.5 | O9: =MATCH(A9,'Linked TB'!A:A,0) -> 
A10: 112301 | B10: =VLOOKUP(VALUE(A10),'Linked TB'!A:B,2,FALSE) -> Unbilled Revenue | C10: 222296.52 | D10: 0 | E10: 222296.52 | I10: 0 | K10: 222296.52 | L10: 0 | M10: 222296.52 | O10: =MATCH(A10,'Linked TB'!A:A,0) -> 
A11: 113102 | B11: =VLOOKUP(VALUE(A11),'Linked TB'!A:B,2,FALSE) -> Inventory | C11: 8536.08 | D11: 0 | E11: 8536.08 | I11: 0 | K11: 8536.08 | L11: 0 | M11: 8536.08 | O11: =MATCH(A11,'Linked TB'!A:A,0) -> 
A12: 113211 | B12: =VLOOKUP(VALUE(A12),'Linked TB'!A:B,2,FALSE) -> Deposits | C12: 6100 | D12: 0 | E12: 6100 | I12: 0 | K12: 6100 | L12: 0 | M12: 6100 | O12: =MATCH(A12,'Linked TB'!A:A,0) -> 
A13: 113301 | B13: =VLOOKUP(VALUE(A13),'Linked TB'!A:B,2,FALSE) -> Misc Receivable | C13: 10500 | D13: 0 | E13: 10500 | I13: 0 | K13: 10500 | L13: 0 | M13: 10500 | O13: =MATCH(A13,'Linked TB'!A:A,0) -> 
A14: 113603 | B14: =VLOOKUP(VALUE(A14),'Linked TB'!A:B,2,FALSE) -> Intercompany Automatic Account | C14: -60594.33 | D14: 0 | E14: -60594.33 | I14: 0 | K14: -60594.33 | L14: 0 | M14: -60594.33 | O14: =MATCH(A14,'Linked TB'!A:A,0) -> 
A15: 113712 | B15: =VLOOKUP(VALUE(A15),'Linked TB'!A:B,2,FALSE) -> Preliminary Survey and Investigation Accrued | C15: 3500 | D15: 0 | E15: 3500 | I15: 0 | K15: 3500 | L15: 0 | M15: 3500 | O15: =MATCH(A15,'Linked TB'!A:A,0) -> 
A16: 141101 | B16: =VLOOKUP(VALUE(A16),'Linked TB'!A:B,2,FALSE) -> Land and Rights General | C16: 20044.05 | D16: 0 | E16: 20044.05 | I16: 0 | K16: 20044.05 | L16: 0 | M16: 20044.05 | O16: =MATCH(A16,'Linked TB'!A:A,0) -> 
A17: 141199 | B17: =VLOOKUP(VALUE(A17),'Linked TB'!A:B,2,FALSE) -> Land Clearing | C17: 0 | D17: 0 | E17: 0 | I17: 0 | K17: 0 | L17: 0 | M17: 0 | O17: =MATCH(A17,'Linked TB'!A:A,0) -> 
A18: 141201 | B18: =VLOOKUP(VALUE(A18),'Linked TB'!A:B,2,FALSE) -> Organization | C18: 164394.1 | D18: 0 | E18: 164394.1 | I18: 0 | K18: 164394.1 | L18: 0 | M18: 164394.1 | O18: =MATCH(A18,'Linked TB'!A:A,0) -> 
A19: 141203 | B19: =VLOOKUP(VALUE(A19),'Linked TB'!A:B,2,FALSE) -> Struct and Improv General Plant | C19: 131781.43 | D19: 0 | E19: 131781.43 | I19: 0 | K19: 131781.43 | L19: 0 | M19: 131781.43 | O19: =MATCH(A19,'Linked TB'!A:A,0) -> 
A20: 141204 | B20: =VLOOKUP(VALUE(A20),'Linked TB'!A:B,2,FALSE) -> Struct and Improv Service Supplies | C20: 0 | D20: 0 | E20: 0 | I20: 0 | K20: 0 | L20: 0 | M20: 0 | O20: =MATCH(A20,'Linked TB'!A:A,0) -> 
A21: 141205 | B21: =VLOOKUP(VALUE(A21),'Linked TB'!A:B,2,FALSE) -> Struct and Improv Water Treat Plt | C21: 540320.81 | D21: 0 | E21: 540320.81 | I21: 0 | K21: 540320.81 | L21: 0 | M21: 540320.81 | O21: =MATCH(A21,'Linked TB'!A:A,0) -> 
A22: 141206 | B22: =VLOOKUP(VALUE(A22),'Linked TB'!A:B,2,FALSE) -> Struct and Improv Trans Dist Plt | C22: 3097.42 | D22: 0 | E22: 3097.42 | I22: 0 | K22: 3097.42 | L22: 0 | M22: 3097.42 | O22: =MATCH(A22,'Linked TB'!A:A,0) -> 
A23: 141211 | B23: =VLOOKUP(VALUE(A23),'Linked TB'!A:B,2,FALSE) -> Struct and Improv Reclaim Wtr Dist | C23: 128345.7 | D23: 0 | E23: 128345.7 | I23: 0 | K23: 128345.7 | L23: 0 | M23: 128345.7 | O23: =MATCH(A23,'Linked TB'!A:A,0) -> 
A24: 141220 | B24: =VLOOKUP(VALUE(A24),'Linked TB'!A:B,2,FALSE) -> Struct and Improv Office | C24: 158388.17 | D24: 0 | E24: 158388.17 | I24: 0 | K24: 158388.17 | L24: 0 | M24: 158388.17 | O24: =MATCH(A24,'Linked TB'!A:A,0) -> 
A25: 141223 | B25: =VLOOKUP(VALUE(A25),'Linked TB'!A:B,2,FALSE) -> Wells and Springs | C25: 477485.13 | D25: 0 | E25: 477485.13 | I25: 0 | K25: 477485.13 | L25: 0 | M25: 477485.13 | O25: =MATCH(A25,'Linked TB'!A:A,0) -> 
A26: 141225 | B26: =VLOOKUP(VALUE(A26),'Linked TB'!A:B,2,FALSE) -> Supply Mains | C26: 23207.33 | D26: 0 | E26: 23207.33 | I26: 0 | K26: 23207.33 | L26: 0 | M26: 23207.33 | O26: =MATCH(A26,'Linked TB'!A:A,0) -> 
A27: 141227 | B27: =VLOOKUP(VALUE(A27),'Linked TB'!A:B,2,FALSE) -> Electric Pump Equip Src Pump | C27: 44565.44 | D27: 0 | E27: 44565.44 | I27: 0 | K27: 44565.44 | L27: 0 | M27: 44565.44 | O27: =MATCH(A27,'Linked TB'!A:A,0) -> 
A28: 141228 | B28: =VLOOKUP(VALUE(A28),'Linked TB'!A:B,2,FALSE) -> Electric Pump Equip WTP | C28: 835583.34 | D28: 0 | E28: 835583.34 | I28: 0 | K28: 835583.34 | L28: 0 | M28: 835583.34 | O28: =MATCH(A28,'Linked TB'!A:A,0) -> 
A29: 141229 | B29: =VLOOKUP(VALUE(A29),'Linked TB'!A:B,2,FALSE) -> Electric Pump Equip Trans Dist | C29: 17225.49 | D29: 0 | E29: 17225.49 | I29: 0 | K29: 17225.49 | L29: 0 | M29: 17225.49 | O29: =MATCH(A29,'Linked TB'!A:A,0) -> 
A30: 141230 | B30: =VLOOKUP(VALUE(A30),'Linked TB'!A:B,2,FALSE) -> Water Treatment Equipment | C30: 1186653.11 | D30: 0 | E30: 1186653.11 | I30: 0 | K30: 1186653.11 | L30: 0 | M30: 1186653.11 | O30: =MATCH(A30,'Linked TB'!A:A,0) -> 
A31: 141231 | B31: =VLOOKUP(VALUE(A31),'Linked TB'!A:B,2,FALSE) -> Dist Resv and Standpipes | C31: 545326.33 | D31: 0 | E31: 545326.33 | I31: 0 | K31: 545326.33 | L31: 0 | M31: 545326.33 | O31: =MATCH(A31,'Linked TB'!A:A,0) -> 
A32: 141232 | B32: =VLOOKUP(VALUE(A32),'Linked TB'!A:B,2,FALSE) -> Trans and Distr Mains | C32: 3710694.08 | D32: 0 | E32: 3710694.08 | I32: 0 | K32: 3710694.08 | L32: 0 | M32: 3710694.08 | O32: =MATCH(A32,'Linked TB'!A:A,0) -> 
A33: 141233 | B33: =VLOOKUP(VALUE(A33),'Linked TB'!A:B,2,FALSE) -> Service Lines | C33: 1177976.67 | D33: 0 | E33: 1177976.67 | I33: 0 | K33: 1177976.67 | L33: 0 | M33: 1177976.67 | O33: =MATCH(A33,'Linked TB'!A:A,0) -> 
A34: 141234 | B34: =VLOOKUP(VALUE(A34),'Linked TB'!A:B,2,FALSE) -> Meters | C34: 784681.16 | D34: 0 | E34: 784681.16 | I34: 0 | K34: 784681.16 | L34: 0 | M34: 784681.16 | O34: =MATCH(A34,'Linked TB'!A:A,0) -> 
A35: 141235 | B35: =VLOOKUP(VALUE(A35),'Linked TB'!A:B,2,FALSE) -> Meter Installations | C35: 703273.95 | D35: 0 | E35: 703273.95 | I35: 0 | K35: 703273.95 | L35: 0 | M35: 703273.95 | O35: =MATCH(A35,'Linked TB'!A:A,0) -> 
A36: 141236 | B36: =VLOOKUP(VALUE(A36),'Linked TB'!A:B,2,FALSE) -> Hydrants | C36: 498712.33 | D36: 0 | E36: 498712.33 | I36: 0 | K36: 498712.33 | L36: 0 | M36: 498712.33 | O36: =MATCH(A36,'Linked TB'!A:A,0) -> 
A37: 141237 | B37: =VLOOKUP(VALUE(A37),'Linked TB'!A:B,2,FALSE) -> Backflow Prevention Devices | C37: 418.33 | D37: 0 | E37: 418.33 | I37: 0 | K37: 418.33 | L37: 0 | M37: 418.33 | O37: =MATCH(A37,'Linked TB'!A:A,0) -> 
A38: 141269 | B38: =VLOOKUP(VALUE(A38),'Linked TB'!A:B,2,FALSE) -> Other and Misc Equip WTP | C38: 233.19 | D38: 0 | E38: 233.19 | I38: 0 | K38: 233.19 | L38: 0 | M38: 233.19 | O38: =MATCH(A38,'Linked TB'!A:A,0) -> 
A39: 141274 | B39: =VLOOKUP(VALUE(A39),'Linked TB'!A:B,2,FALSE) -> Other Plant Treatment | C39: 82.6 | D39: 0 | E39: 82.6 | I39: 0 | K39: 82.6 | L39: 0 | M39: 82.6 | O39: =MATCH(A39,'Linked TB'!A:A,0) -> 
A40: 141278 | B40: =VLOOKUP(VALUE(A40),'Linked TB'!A:B,2,FALSE) -> Plant Alloc | C40: 69976 | D40: 0 | E40: 69976 | I40: 0 | K40: 69976 | L40: 0 | M40: 69976 | O40: =MATCH(A40,'Linked TB'!A:A,0) -> 
A41: 141299 | B41: =VLOOKUP(VALUE(A41),'Linked TB'!A:B,2,FALSE) -> Utility Plant Clearing | C41: 0 | D41: 0 | E41: 0 | I41: 0 | K41: 0 | L41: 0 | M41: 0 | O41: =MATCH(A41,'Linked TB'!A:A,0) -> 
A42: 141303 | B42: =VLOOKUP(VALUE(A42),'Linked TB'!A:B,2,FALSE) -> Office Furniture | C42: 125510.68 | D42: 0 | E42: 125510.68 | I42: 0 | K42: 125510.68 | L42: 0 | M42: 125510.68 | O42: =MATCH(A42,'Linked TB'!A:A,0) -> 
A43: 141305 | B43: =VLOOKUP(VALUE(A43),'Linked TB'!A:B,2,FALSE) -> Stores Equipment | C43: 1855.14 | D43: 0 | E43: 1855.14 | I43: 0 | K43: 1855.14 | L43: 0 | M43: 1855.14 | O43: =MATCH(A43,'Linked TB'!A:A,0) -> 
A44: 141306 | B44: =VLOOKUP(VALUE(A44),'Linked TB'!A:B,2,FALSE) -> Lab Equipment | C44: 110637.17 | D44: 0 | E44: 110637.17 | I44: 0 | K44: 110637.17 | L44: 0 | M44: 110637.17 | O44: =MATCH(A44,'Linked TB'!A:A,0) -> 
A45: 141308 | B45: =VLOOKUP(VALUE(A45),'Linked TB'!A:B,2,FALSE) -> Tool Shop Equipment | C45: 346951.66 | D45: 0 | E45: 346951.66 | I45: 0 | K45: 346951.66 | L45: 0 | M45: 346951.66 | O45: =MATCH(A45,'Linked TB'!A:A,0) -> 
A46: 141309 | B46: =VLOOKUP(VALUE(A46),'Linked TB'!A:B,2,FALSE) -> Power Operated Equipment | C46: 75102.73 | D46: 0 | E46: 75102.73 | I46: 0 | K46: 75102.73 | L46: 0 | M46: 75102.73 | O46: =MATCH(A46,'Linked TB'!A:A,0) -> 
A47: 141310 | B47: =VLOOKUP(VALUE(A47),'Linked TB'!A:B,2,FALSE) -> Communications Equipment | C47: 110946.8 | D47: 0 | E47: 110946.8 | I47: 0 | K47: 110946.8 | L47: 0 | M47: 110946.8 | O47: =MATCH(A47,'Linked TB'!A:A,0) -> 
A48: 141399 | B48: =VLOOKUP(VALUE(A48),'Linked TB'!A:B,2,FALSE) -> Building and Equipment Clearing | C48: 0 | D48: 0 | E48: 0 | I48: 0 | K48: 0 | L48: 0 | M48: 0 | O48: =MATCH(A48,'Linked TB'!A:A,0) -> 
A49: 141401 | B49: =VLOOKUP(VALUE(A49),'Linked TB'!A:B,2,FALSE) -> Vehicles | C49: 467040.6 | D49: 0 | E49: 467040.6 | I49: 0 | K49: 467040.6 | L49: 0 | M49: 467040.6 | O49: =MATCH(A49,'Linked TB'!A:A,0) -> 
A50: 141499 | B50: =VLOOKUP(VALUE(A50),'Linked TB'!A:B,2,FALSE) -> Vehicles Clearing | C50: 0 | D50: 0 | E50: 0 | I50: 0 | K50: 0 | L50: 0 | M50: 0 | O50: =MATCH(A50,'Linked TB'!A:A,0) -> 
A51: 141501 | B51: =VLOOKUP(VALUE(A51),'Linked TB'!A:B,2,FALSE) -> Computer Hardware | C51: 158.92 | D51: 0 | E51: 158.92 | I51: 0 | K51: 158.92 | L51: 0 | M51: 158.92 | O51: =MATCH(A51,'Linked TB'!A:A,0) -> 
A52: 141502 | B52: =VLOOKUP(VALUE(A52),'Linked TB'!A:B,2,FALSE) -> Desktop/Laptop Computers | C52: 12958.54 | D52: 0 | E52: 12958.54 | I52: 0 | K52: 12958.54 | L52: 0 | M52: 12958.54 | O52: =MATCH(A52,'Linked TB'!A:A,0) -> 
A53: 141503 | B53: =VLOOKUP(VALUE(A53),'Linked TB'!A:B,2,FALSE) -> Mainframe Computers | C53: 24283.33 | D53: 0 | E53: 24283.33 | I53: 0 | K53: 24283.33 | L53: 0 | M53: 24283.33 | O53: =MATCH(A53,'Linked TB'!A:A,0) -> 
A54: 141504 | B54: =VLOOKUP(VALUE(A54),'Linked TB'!A:B,2,FALSE) -> Mini Comp Wtr | C54: 274885.83 | D54: 0 | E54: 274885.83 | I54: 0 | K54: 274885.83 | L54: 0 | M54: 274885.83 | O54: =MATCH(A54,'Linked TB'!A:A,0) -> 
A55: 141601 | B55: =VLOOKUP(VALUE(A55),'Linked TB'!A:B,2,FALSE) -> Computer Software | C55: 26903.73 | D55: 0 | E55: 26903.73 | I55: 0 | K55: 26903.73 | L55: 0 | M55: 26903.73 | O55: =MATCH(A55,'Linked TB'!A:A,0) -> 
A56: 141602 | B56: =VLOOKUP(VALUE(A56),'Linked TB'!A:B,2,FALSE) -> Comp Systems | C56: 768784.82 | D56: 0 | E56: 768784.82 | I56: 0 | K56: 768784.82 | L56: 0 | M56: 768784.82 | O56: =MATCH(A56,'Linked TB'!A:A,0) -> 
A57: 141603 | B57: =VLOOKUP(VALUE(A57),'Linked TB'!A:B,2,FALSE) -> Micro Systems | C57: 15800.26 | D57: 0 | E57: 15800.26 | I57: 0 | K57: 15800.26 | L57: 0 | M57: 15800.26 | O57: =MATCH(A57,'Linked TB'!A:A,0) -> 
A58: 141699 | B58: =VLOOKUP(VALUE(A58),'Linked TB'!A:B,2,FALSE) -> Computer Clearing | C58: 0 | D58: 0 | E58: 0 | I58: 0 | K58: 0 | L58: 0 | M58: 0 | O58: =MATCH(A58,'Linked TB'!A:A,0) -> 
A59: 141702 | B59: =VLOOKUP(VALUE(A59),'Linked TB'!A:B,2,FALSE) -> CWIP - Captime | C59: 229265.4 | D59: 0 | E59: 229265.4 | I59: 0 | K59: 229265.4 | L59: 0 | M59: 229265.4 | O59: =MATCH(A59,'Linked TB'!A:A,0) -> 
A60: 141703 | B60: =VLOOKUP(VALUE(A60),'Linked TB'!A:B,2,FALSE) -> CWIP - Interest During Construction | C60: 21330.32 | D60: 0 | E60: 21330.32 | I60: 0 | K60: 21330.32 | L60: 0 | M60: 21330.32 | O60: =MATCH(A60,'Linked TB'!A:A,0) -> 
A61: 141704 | B61: =VLOOKUP(VALUE(A61),'Linked TB'!A:B,2,FALSE) -> CWIP - Engineering | C61: 25063.24 | D61: 0 | E61: 25063.24 | I61: 0 | K61: 25063.24 | L61: 0 | M61: 25063.24 | O61: =MATCH(A61,'Linked TB'!A:A,0) -> 
A62: 141705 | B62: =VLOOKUP(VALUE(A62),'Linked TB'!A:B,2,FALSE) -> CWIP - Labor/Installation | C62: 365830.26 | D62: 0 | E62: 365830.26 | I62: 0 | K62: 365830.26 | L62: 0 | M62: 365830.26 | O62: =MATCH(A62,'Linked TB'!A:A,0) -> 
A63: 141706 | B63: =VLOOKUP(VALUE(A63),'Linked TB'!A:B,2,FALSE) -> CWIP - Equipment | C63: 204363.17 | D63: 0 | E63: 204363.17 | I63: 0 | K63: 204363.17 | L63: 0 | M63: 204363.17 | O63: =MATCH(A63,'Linked TB'!A:A,0) -> 
A64: 141707 | B64: =VLOOKUP(VALUE(A64),'Linked TB'!A:B,2,FALSE) -> CWIP - Material | C64: 260785.58 | D64: 0 | E64: 260785.58 | I64: 0 | K64: 260785.58 | L64: 0 | M64: 260785.58 | O64: =MATCH(A64,'Linked TB'!A:A,0) -> 
A65: 141709 | B65: =VLOOKUP(VALUE(A65),'Linked TB'!A:B,2,FALSE) -> CWIP - Piping | C65: 193298.13 | D65: 0 | E65: 193298.13 | I65: 0 | K65: 193298.13 | L65: 0 | M65: 193298.13 | O65: =MATCH(A65,'Linked TB'!A:A,0) -> 
A66: 141710 | B66: =VLOOKUP(VALUE(A66),'Linked TB'!A:B,2,FALSE) -> CWIP - Site Work | C66: 1410 | D66: 0 | E66: 1410 | I66: 0 | K66: 1410 | L66: 0 | M66: 1410 | O66: =MATCH(A66,'Linked TB'!A:A,0) -> 
A67: 141720 | B67: =VLOOKUP(VALUE(A67),'Linked TB'!A:B,2,FALSE) -> CWIP - Pumps/Equipment | C67: 331861.62 | D67: 0 | E67: 331861.62 | I67: 0 | K67: 331861.62 | L67: 0 | M67: 331861.62 | O67: =MATCH(A67,'Linked TB'!A:A,0) -> 
A68: 141732 | B68: =VLOOKUP(VALUE(A68),'Linked TB'!A:B,2,FALSE) -> CWIP - Transfer to Fixed Assets | C68: -1830772.96 | D68: 0 | E68: -1830772.96 | I68: 0 | K68: -1830772.96 | L68: 0 | M68: -1830772.96 | O68: =MATCH(A68,'Linked TB'!A:A,0) -> 
A69: 141748 | B69: =VLOOKUP(VALUE(A69),'Linked TB'!A:B,2,FALSE) -> CWIP - Contractor/Labour | C69: 198835.58 | D69: 0 | E69: =SUM(C69:D69) -> 198835.58 | I69: =SUM(G69:H69) -> 0 | K69: =SUM(C69,G69) -> 198835.58 | L69: =SUM(D69,H69) -> 0 | M69: =SUM(K69:L69) -> 198835.58 | O69: =MATCH(A69,'Linked TB'!A:A,0) -> 
A70: 141753 | B70: =VLOOKUP(VALUE(A70),'Linked TB'!A:B,2,FALSE) -> CWIP - Modification/Con | C70: 113840 | D70: 0 | E70: 113840 | I70: 0 | K70: 113840 | L70: 0 | M70: 113840 | O70: =MATCH(A70,'Linked TB'!A:A,0) -> 
A71: 141761 | B71: =VLOOKUP(VALUE(A71),'Linked TB'!A:B,2,FALSE) -> CWIP - Construction | C71: 36666 | D71: 0 | E71: 36666 | I71: 0 | K71: 36666 | L71: 0 | M71: 36666 | O71: =MATCH(A71,'Linked TB'!A:A,0) -> 
A72: 141798 | B72: =VLOOKUP(VALUE(A72),'Linked TB'!A:B,2,FALSE) -> CWIP Clearing-Fixed Asset | C72: -11700.58 | D72: 0 | E72: -11700.58 | I72: 0 | K72: -11700.58 | L72: 0 | M72: -11700.58 | O72: =MATCH(A72,'Linked TB'!A:A,0) -> 
A73: 141799 | B73: =VLOOKUP(VALUE(A73),'Linked TB'!A:B,2,FALSE) -> CWIP Clearing | C73: 0 | D73: 0 | E73: 0 | I73: 0 | K73: 0 | L73: 0 | M73: 0 | O73: =MATCH(A73,'Linked TB'!A:A,0) -> 
A74: 141899 | B74: =VLOOKUP(VALUE(A74),'Linked TB'!A:B,2,FALSE) -> CIAC-Clearing | C74: 0 | D74: 0 | E74: 0 | I74: 0 | K74: 0 | L74: 0 | M74: 0 | O74: =MATCH(A74,'Linked TB'!A:A,0) -> 
A75: 141901 | B75: =VLOOKUP(VALUE(A75),'Linked TB'!A:B,2,FALSE) -> Purchase Acquisition Adjustments | C75: -183024.56 | D75: 0 | E75: -183024.56 | I75: 0 | K75: -183024.56 | L75: 0 | M75: -183024.56 | O75: =MATCH(A75,'Linked TB'!A:A,0) -> 
A76: 141999 | B76: =VLOOKUP(VALUE(A76),'Linked TB'!A:B,2,FALSE) -> PAA Clearing | C76: 0 | D76: 0 | E76: 0 | I76: 0 | K76: 0 | L76: 0 | M76: 0 | O76: =MATCH(A76,'Linked TB'!A:A,0) -> 
A77: 142201 | B77: =VLOOKUP(VALUE(A77),'Linked TB'!A:B,2,FALSE) -> Acc Dep - Organization | C77: -47660.9 | D77: 0 | E77: -47660.9 | I77: 0 | K77: -47660.9 | L77: 0 | M77: -47660.9 | O77: =MATCH(A77,'Linked TB'!A:A,0) -> 
A78: 142203 | B78: =VLOOKUP(VALUE(A78),'Linked TB'!A:B,2,FALSE) -> Acc Dep - Struct and Improv General Plant | C78: -41304.46 | D78: 0 | E78: -41304.46 | I78: 0 | K78: -41304.46 | L78: 0 | M78: -41304.46 | O78: =MATCH(A78,'Linked TB'!A:A,0) -> 
A79: 142204 | B79: =VLOOKUP(VALUE(A79),'Linked TB'!A:B,2,FALSE) -> Acc Dep - Struct and Improv Service Supplies | C79: 0 | D79: 0 | E79: 0 | I79: 0 | K79: 0 | L79: 0 | M79: 0 | O79: =MATCH(A79,'Linked TB'!A:A,0) -> 
A80: 142205 | B80: =VLOOKUP(VALUE(A80),'Linked TB'!A:B,2,FALSE) -> Acc Dep - Struct and Improv Water Treat Plt | C80: -259679.03 | D80: 0 | E80: -259679.03 | I80: 0 | K80: -259679.03 | L80: 0 | M80: -259679.03 | O80: =MATCH(A80,'Linked TB'!A:A,0) -> 
A81: 142206 | B81: =VLOOKUP(VALUE(A81),'Linked TB'!A:B,2,FALSE) -> Acc Dep - Struct and Improv Trans Dist Plt | C81: 92.82 | D81: 0 | E81: 92.82 | I81: 0 | K81: 92.82 | L81: 0 | M81: 92.82 | O81: =MATCH(A81,'Linked TB'!A:A,0) -> 
A82: 142211 | B82: =VLOOKUP(VALUE(A82),'Linked TB'!A:B,2,FALSE) -> Acc Dep - Struct and Improv Reclaim Wtr Dist | C82: -52504.14 | D82: 0 | E82: -52504.14 | I82: 0 | K82: -52504.14 | L82: 0 | M82: -52504.14 | O82: =MATCH(A82,'Linked TB'!A:A,0) -> 
A83: 142220 | B83: =VLOOKUP(VALUE(A83),'Linked TB'!A:B,2,FALSE) -> Acc Dep - Struct and Improv Office | C83: -49894.21 | D83: 0 | E83: -49894.21 | I83: 0 | K83: -49894.21 | L83: 0 | M83: -49894.21 | O83: =MATCH(A83,'Linked TB'!A:A,0) -> 
A84: 142223 | B84: =VLOOKUP(VALUE(A84),'Linked TB'!A:B,2,FALSE) -> Acc Dep - Wells and Springs | C84: -203670.81 | D84: 0 | E84: -203670.81 | I84: 0 | K84: -203670.81 | L84: 0 | M84: -203670.81 | O84: =MATCH(A84,'Linked TB'!A:A,0) -> 
A85: 142225 | B85: =VLOOKUP(VALUE(A85),'Linked TB'!A:B,2,FALSE) -> Acc Dep - Supply Mains | C85: -2118.18 | D85: 0 | E85: -2118.18 | I85: 0 | K85: -2118.18 | L85: 0 | M85: -2118.18 | O85: =MATCH(A85,'Linked TB'!A:A,0) -> 
A86: 142227 | B86: =VLOOKUP(VALUE(A86),'Linked TB'!A:B,2,FALSE) -> Acc Dep - Electric Pump Equip Src Pump | C86: -4575.99 | D86: 0 | E86: -4575.99 | I86: 0 | K86: -4575.99 | L86: 0 | M86: -4575.99 | O86: =MATCH(A86,'Linked TB'!A:A,0) -> 
A87: 142228 | B87: =VLOOKUP(VALUE(A87),'Linked TB'!A:B,2,FALSE) -> Acc Dep - Electric Pump Equip WTP | C87: -305138.66 | D87: 0 | E87: -305138.66 | I87: 0 | K87: -305138.66 | L87: 0 | M87: -305138.66 | O87: =MATCH(A87,'Linked TB'!A:A,0) -> 
A88: 142229 | B88: =VLOOKUP(VALUE(A88),'Linked TB'!A:B,2,FALSE) -> Acc Dep - Electric Pump Equip Trans Dist | C88: -1150.22 | D88: 0 | E88: -1150.22 | I88: 0 | K88: -1150.22 | L88: 0 | M88: -1150.22 | O88: =MATCH(A88,'Linked TB'!A:A,0) -> 
A89: 142230 | B89: =VLOOKUP(VALUE(A89),'Linked TB'!A:B,2,FALSE) -> Acc Dep - Water Treatment Equipment | C89: -456196.11 | D89: 0 | E89: -456196.11 | I89: 0 | K89: -456196.11 | L89: 0 | M89: -456196.11 | O89: =MATCH(A89,'Linked TB'!A:A,0) -> 
A90: 142231 | B90: =VLOOKUP(VALUE(A90),'Linked TB'!A:B,2,FALSE) -> Acc Dep - Dist Resv and Standpipes | C90: -354949.58 | D90: 0 | E90: -354949.58 | I90: 0 | K90: -354949.58 | L90: 0 | M90: -354949.58 | O90: =MATCH(A90,'Linked TB'!A:A,0) -> 
A91: 142232 | B91: =VLOOKUP(VALUE(A91),'Linked TB'!A:B,2,FALSE) -> Acc Dep - Trans and Distr Mains | C91: -1547954.7 | D91: 0 | E91: -1547954.7 | I91: 0 | K91: -1547954.7 | L91: 0 | M91: -1547954.7 | O91: =MATCH(A91,'Linked TB'!A:A,0) -> 
A92: 142233 | B92: =VLOOKUP(VALUE(A92),'Linked TB'!A:B,2,FALSE) -> Acc Dep - Service Lines | C92: -801601.91 | D92: 0 | E92: -801601.91 | I92: 0 | K92: -801601.91 | L92: 0 | M92: -801601.91 | O92: =MATCH(A92,'Linked TB'!A:A,0) -> 
A93: 142234 | B93: =VLOOKUP(VALUE(A93),'Linked TB'!A:B,2,FALSE) -> Acc Dep - Meters | C93: -545065.34 | D93: 0 | E93: -545065.34 | I93: 0 | K93: -545065.34 | L93: 0 | M93: -545065.34 | O93: =MATCH(A93,'Linked TB'!A:A,0) -> 
A94: 142235 | B94: =VLOOKUP(VALUE(A94),'Linked TB'!A:B,2,FALSE) -> Acc Dep - Meter Installations | C94: -308591.41 | D94: 0 | E94: -308591.41 | I94: 0 | K94: -308591.41 | L94: 0 | M94: -308591.41 | O94: =MATCH(A94,'Linked TB'!A:A,0) -> 
A95: 142236 | B95: =VLOOKUP(VALUE(A95),'Linked TB'!A:B,2,FALSE) -> Acc Dep - Hydrants | C95: -142784.19 | D95: 0 | E95: -142784.19 | I95: 0 | K95: -142784.19 | L95: 0 | M95: -142784.19 | O95: =MATCH(A95,'Linked TB'!A:A,0) -> 
A96: 142237 | B96: =VLOOKUP(VALUE(A96),'Linked TB'!A:B,2,FALSE) -> Acc Dep - Backflow Prevention Devices | C96: 96.33 | D96: 0 | E96: 96.33 | I96: 0 | K96: 96.33 | L96: 0 | M96: 96.33 | O96: =MATCH(A96,'Linked TB'!A:A,0) -> 
A97: 142269 | B97: =VLOOKUP(VALUE(A97),'Linked TB'!A:B,2,FALSE) -> Acc Dep - Other and Misc Equip WTP | C97: -7.32 | D97: 0 | E97: -7.32 | I97: 0 | K97: -7.32 | L97: 0 | M97: -7.32 | O97: =MATCH(A97,'Linked TB'!A:A,0) -> 
A98: 142271 | B98: =VLOOKUP(VALUE(A98),'Linked TB'!A:B,2,FALSE) -> Acc Dep - Other Tangible Plant | C98: 0 | D98: 0 | E98: 0 | I98: 0 | K98: 0 | L98: 0 | M98: 0 | O98: =MATCH(A98,'Linked TB'!A:A,0) -> 
A99: 142274 | B99: =VLOOKUP(VALUE(A99),'Linked TB'!A:B,2,FALSE) -> Acc Dep - Other Plant Treatment | C99: -9.29 | D99: 0 | E99: -9.29 | I99: 0 | K99: -9.29 | L99: 0 | M99: -9.29 | O99: =MATCH(A99,'Linked TB'!A:A,0) -> 
A100: 142278 | B100: =VLOOKUP(VALUE(A100),'Linked TB'!A:B,2,FALSE) -> Acc Dep - Plant Alloc | C100: -27488.49 | D100: 0 | E100: -27488.49 | I100: 0 | K100: -27488.49 | L100: 0 | M100: -27488.49 | O100: =MATCH(A100,'Linked TB'!A:A,0) -> 
A101: 142303 | B101: =VLOOKUP(VALUE(A101),'Linked TB'!A:B,2,FALSE) -> Acc Dep - Office Furniture | C101: -106976.86 | D101: 0 | E101: -106976.86 | I101: 0 | K101: -106976.86 | L101: 0 | M101: -106976.86 | O101: =MATCH(A101,'Linked TB'!A:A,0) -> 
A102: 142305 | B102: =VLOOKUP(VALUE(A102),'Linked TB'!A:B,2,FALSE) -> Acc Dep - Stores Equipment | C102: -323.51 | D102: 0 | E102: -323.51 | I102: 0 | K102: -323.51 | L102: 0 | M102: -323.51 | O102: =MATCH(A102,'Linked TB'!A:A,0) -> 
A103: 142306 | B103: =VLOOKUP(VALUE(A103),'Linked TB'!A:B,2,FALSE) -> Acc Dep - Lab Equipment | C103: -31804.37 | D103: 0 | E103: =SUM(C103:D103) -> -31804.37 | I103: =SUM(G103:H103) -> 0 | K103: =SUM(C103,G103) -> -31804.37 | L103: =SUM(D103,H103) -> 0 | M103: =SUM(K103:L103) -> -31804.37 | O103: =MATCH(A103,'Linked TB'!A:A,0) -> 
A104: 142308 | B104: =VLOOKUP(VALUE(A104),'Linked TB'!A:B,2,FALSE) -> Acc Dep - Tool Shop Equipment | C104: -204202.64 | D104: 0 | E104: -204202.64 | I104: 0 | K104: -204202.64 | L104: 0 | M104: -204202.64 | O104: =MATCH(A104,'Linked TB'!A:A,0) -> 
A105: 142309 | B105: =VLOOKUP(VALUE(A105),'Linked TB'!A:B,2,FALSE) -> Acc Dep - Power Operated Equipment | C105: 2688.23 | D105: 0 | E105: 2688.23 | I105: 0 | K105: 2688.23 | L105: 0 | M105: 2688.23 | O105: =MATCH(A105,'Linked TB'!A:A,0) -> 
A106: 142310 | B106: =VLOOKUP(VALUE(A106),'Linked TB'!A:B,2,FALSE) -> Acc Dep - Communications Equipment | C106: -69658.49 | D106: 0 | E106: -69658.49 | I106: 0 | K106: -69658.49 | L106: 0 | M106: -69658.49 | O106: =MATCH(A106,'Linked TB'!A:A,0) -> 
A107: 142401 | B107: =VLOOKUP(VALUE(A107),'Linked TB'!A:B,2,FALSE) -> Acc Dep - Vehicles | C107: -432824.62 | D107: 0 | E107: -432824.62 | I107: 0 | K107: -432824.62 | L107: 0 | M107: -432824.62 | O107: =MATCH(A107,'Linked TB'!A:A,0) -> 
A108: 142501 | B108: =VLOOKUP(VALUE(A108),'Linked TB'!A:B,2,FALSE) -> Acc Dep - Computer Hardware | C108: -55.76 | D108: 0 | E108: -55.76 | I108: 0 | K108: -55.76 | L108: 0 | M108: -55.76 | O108: =MATCH(A108,'Linked TB'!A:A,0) -> 
A109: 142502 | B109: =VLOOKUP(VALUE(A109),'Linked TB'!A:B,2,FALSE) -> Acc Dep - Desktop/Laptop Computers | C109: -1424.5 | D109: 0 | E109: -1424.5 | I109: 0 | K109: -1424.5 | L109: 0 | M109: -1424.5 | O109: =MATCH(A109,'Linked TB'!A:A,0) -> 
A110: 142503 | B110: =VLOOKUP(VALUE(A110),'Linked TB'!A:B,2,FALSE) -> Acc Dep - Mainframe Computers | C110: -24283.33 | D110: 0 | E110: -24283.33 | I110: 0 | K110: -24283.33 | L110: 0 | M110: -24283.33 | O110: =MATCH(A110,'Linked TB'!A:A,0) -> 
A111: 142504 | B111: =VLOOKUP(VALUE(A111),'Linked TB'!A:B,2,FALSE) -> Acc Dep - Mini Comp Wtr | C111: -252052.79 | D111: 0 | E111: -252052.79 | I111: 0 | K111: -252052.79 | L111: 0 | M111: -252052.79 | O111: =MATCH(A111,'Linked TB'!A:A,0) -> 
A112: 142601 | B112: =VLOOKUP(VALUE(A112),'Linked TB'!A:B,2,FALSE) -> Acc Dep - Computer Software | C112: -8821.88 | D112: 0 | E112: -8821.88 | I112: 0 | K112: -8821.88 | L112: 0 | M112: -8821.88 | O112: =MATCH(A112,'Linked TB'!A:A,0) -> 
A113: 142602 | B113: =VLOOKUP(VALUE(A113),'Linked TB'!A:B,2,FALSE) -> Acc Dep - Comp Systems | C113: -667244.84 | D113: 0 | E113: -667244.84 | I113: 0 | K113: -667244.84 | L113: 0 | M113: -667244.84 | O113: =MATCH(A113,'Linked TB'!A:A,0) -> 
A114: 142603 | B114: =VLOOKUP(VALUE(A114),'Linked TB'!A:B,2,FALSE) -> Acc Dep - Micro Systems | C114: -15800.26 | D114: 0 | E114: -15800.26 | I114: 0 | K114: -15800.26 | L114: 0 | M114: -15800.26 | O114: =MATCH(A114,'Linked TB'!A:A,0) -> 
A115: 142901 | B115: =VLOOKUP(VALUE(A115),'Linked TB'!A:B,2,FALSE) -> Acc Dep - Purchase Acquisition Adjustments | C115: 72294.51 | D115: 0 | E115: 72294.51 | I115: 0 | K115: 72294.51 | L115: 0 | M115: 72294.51 | O115: =MATCH(A115,'Linked TB'!A:A,0) -> 
A116: 170002 | B116: =VLOOKUP(VALUE(A116),'Linked TB'!A:B,2,FALSE) -> RCIP - Attorney Fees | C116: 601700.28 | D116: 0 | E116: 601700.28 | I116: 0 | K116: 601700.28 | L116: 0 | M116: 601700.28 | O116: =MATCH(A116,'Linked TB'!A:A,0) -> 
A117: 170003 | B117: =VLOOKUP(VALUE(A117),'Linked TB'!A:B,2,FALSE) -> RCIP - Capitalized Time | C117: 274759.62 | D117: 0 | E117: 274759.62 | I117: 0 | K117: 274759.62 | L117: 0 | M117: 274759.62 | O117: =MATCH(A117,'Linked TB'!A:A,0) -> 
A118: 170004 | B118: =VLOOKUP(VALUE(A118),'Linked TB'!A:B,2,FALSE) -> RCIP - Administrative | C118: 20506.33 | D118: 0 | E118: 20506.33 | I118: 0 | K118: 20506.33 | L118: 0 | M118: 20506.33 | O118: =MATCH(A118,'Linked TB'!A:A,0) -> 
A119: 170005 | B119: =VLOOKUP(VALUE(A119),'Linked TB'!A:B,2,FALSE) -> RCIP - Travel | C119: 15896.32 | D119: 0 | E119: 15896.32 | I119: 0 | K119: 15896.32 | L119: 0 | M119: 15896.32 | O119: =MATCH(A119,'Linked TB'!A:A,0) -> 
A120: 170006 | B120: =VLOOKUP(VALUE(A120),'Linked TB'!A:B,2,FALSE) -> RCIP - Consulting Fees | C120: 152921.3 | D120: 0 | E120: 152921.3 | I120: 0 | K120: 152921.3 | L120: 0 | M120: 152921.3 | O120: =MATCH(A120,'Linked TB'!A:A,0) -> 
A121: 170007 | B121: =VLOOKUP(VALUE(A121),'Linked TB'!A:B,2,FALSE) -> RCIP - Transfer to DEF | C121: -886164.86 | D121: 0 | E121: -886164.86 | I121: 0 | K121: -886164.86 | L121: 0 | M121: -886164.86 | O121: =MATCH(A121,'Linked TB'!A:A,0) -> 
A122: 170009 | B122: =VLOOKUP(VALUE(A122),'Linked TB'!A:B,2,FALSE) -> Rate Case Being Amortized | C122: 717955.98 | D122: 0 | E122: 717955.98 | I122: 0 | K122: 717955.98 | L122: 0 | M122: 717955.98 | O122: =MATCH(A122,'Linked TB'!A:A,0) -> 
A123: 170011 | B123: =VLOOKUP(VALUE(A123),'Linked TB'!A:B,2,FALSE) -> Rate Case Accum Amort | C123: -635041.56 | D123: 0 | E123: -635041.56 | I123: 0 | K123: -635041.56 | L123: 0 | M123: -635041.56 | O123: =MATCH(A123,'Linked TB'!A:A,0) -> 
A124: 170099 | B124: =VLOOKUP(VALUE(A124),'Linked TB'!A:B,2,FALSE) -> Regulatory Asset Clearing | C124: 0 | D124: 0 | E124: 0 | I124: 0 | K124: 0 | L124: 0 | M124: 0 | O124: =MATCH(A124,'Linked TB'!A:A,0) -> 
A125: 181002 | B125: =VLOOKUP(VALUE(A125),'Linked TB'!A:B,2,FALSE) -> Def Chgs - Tank Maint and Repair | C125: 995863.17 | D125: 0 | E125: 995863.17 | I125: 0 | K125: 995863.17 | L125: 0 | M125: 995863.17 | O125: =MATCH(A125,'Linked TB'!A:A,0) -> 
A126: 181003 | B126: =VLOOKUP(VALUE(A126),'Linked TB'!A:B,2,FALSE) -> Def Chgs - Relocation | C126: 178.73 | D126: 0 | E126: 178.73 | I126: 0 | K126: 178.73 | L126: 0 | M126: 178.73 | O126: =MATCH(A126,'Linked TB'!A:A,0) -> 
A127: 181006 | B127: =VLOOKUP(VALUE(A127),'Linked TB'!A:B,2,FALSE) -> Def Chgs - Other Water and Sewer | C127: 5210.11 | D127: 0 | E127: 5210.11 | I127: 0 | K127: 5210.11 | L127: 0 | M127: 5210.11 | O127: =MATCH(A127,'Linked TB'!A:A,0) -> 
A128: 181007 | B128: =VLOOKUP(VALUE(A128),'Linked TB'!A:B,2,FALSE) -> Def Chgs - Multi Yr Testing | C128: 15139.29 | D128: 0 | E128: 15139.29 | I128: 0 | K128: 15139.29 | L128: 0 | M128: 15139.29 | O128: =MATCH(A128,'Linked TB'!A:A,0) -> 
A129: 181015 | B129: =VLOOKUP(VALUE(A129),'Linked TB'!A:B,2,FALSE) -> Def Chgs - Other | C129: 2750 | D129: 0 | E129: 2750 | I129: 0 | K129: 2750 | L129: 0 | M129: 2750 | O129: =MATCH(A129,'Linked TB'!A:A,0) -> 
A130: 181099 | B130: =VLOOKUP(VALUE(A130),'Linked TB'!A:B,2,FALSE) -> Def Chg-Clearing | C130: 0 | D130: 0 | E130: 0 | I130: 0 | K130: 0 | L130: 0 | M130: 0 | O130: =MATCH(A130,'Linked TB'!A:A,0) -> 
A131: 182002 | B131: =VLOOKUP(VALUE(A131),'Linked TB'!A:B,2,FALSE) -> Acc Amort - Def Chgs - Tank Maint and Repair | C131: -321914.85 | D131: 0 | E131: -321914.85 | I131: 0 | K131: -321914.85 | L131: 0 | M131: -321914.85 | O131: =MATCH(A131,'Linked TB'!A:A,0) -> 
A132: 182003 | B132: =VLOOKUP(VALUE(A132),'Linked TB'!A:B,2,FALSE) -> Acc Amort - Def Chgs - Relocation | C132: -178.73 | D132: 0 | E132: -178.73 | I132: 0 | K132: -178.73 | L132: 0 | M132: -178.73 | O132: =MATCH(A132,'Linked TB'!A:A,0) -> 
A133: 182006 | B133: =VLOOKUP(VALUE(A133),'Linked TB'!A:B,2,FALSE) -> Acc Amort - Def Chgs - Other Water and Sewer | C133: -2366.36 | D133: 0 | E133: -2366.36 | I133: 0 | K133: -2366.36 | L133: 0 | M133: -2366.36 | O133: =MATCH(A133,'Linked TB'!A:A,0) -> 
A134: 182007 | B134: =VLOOKUP(VALUE(A134),'Linked TB'!A:B,2,FALSE) -> Acc Amort - Def Chgs - Multi Yr Testing | C134: -15122.84 | D134: 0 | E134: =SUM(C134:D134) -> -15122.84 | I134: =SUM(G134:H134) -> 0 | K134: =SUM(C134,G134) -> -15122.84 | L134: =SUM(D134,H134) -> 0 | M134: =SUM(K134:L134) -> -15122.84 | O134: =MATCH(A134,'Linked TB'!A:A,0) -> 
A135: 182015 | B135: =VLOOKUP(VALUE(A135),'Linked TB'!A:B,2,FALSE) -> Acc Amort - Def Chgs - Other | C135: -2750 | D135: 0 | E135: -2750 | I135: 0 | K135: -2750 | L135: 0 | M135: -2750 | O135: =MATCH(A135,'Linked TB'!A:A,0) -> 
A136: 194006 | B136: =VLOOKUP(VALUE(A136),'Linked TB'!A:B,2,FALSE) -> Other Non-Current Assets | C136: 154919.54 | D136: 0 | E136: =SUM(C136:D136) -> 154919.54 | I136: =SUM(G136:H136) -> 0 | K136: =SUM(C136,G136) -> 154919.54 | L136: =SUM(D136,H136) -> 0 | M136: =SUM(K136:L136) -> 154919.54 | O136: =MATCH(A136,'Linked TB'!A:A,0) -> 
A137: 221102 | B137: =VLOOKUP(VALUE(A137),'Linked TB'!A:B,2,FALSE) -> Trade Accounts Payable - USD | C137: -306165.82 | D137: 0 | E137: -306165.82 | I137: 0 | K137: -306165.82 | L137: 0 | M137: -306165.82 | O137: =MATCH(A137,'Linked TB'!A:A,0) -> 
A138: 221103 | B138: =VLOOKUP(VALUE(A138),'Linked TB'!A:B,2,FALSE) -> Trade Accounts Payable RNV Clearing | C138: -0.24 | D138: 0 | E138: -0.24 | I138: 0 | K138: -0.24 | L138: 0 | M138: -0.24 | O138: =MATCH(A138,'Linked TB'!A:A,0) -> 
A139: 221104 | B139: =VLOOKUP(VALUE(A139),'Linked TB'!A:B,2,FALSE) -> Receipt Clearing | C139: 0 | D139: 0 | E139: 0 | I139: 0 | K139: 0 | L139: 0 | M139: 0 | O139: =MATCH(A139,'Linked TB'!A:A,0) -> 
A140: 221203 | B140: =VLOOKUP(VALUE(A140),'Linked TB'!A:B,2,FALSE) -> Accounts Payable - Other | C140: -746773.85 | D140: 0 | E140: -746773.85 | I140: 0 | K140: -746773.85 | L140: 0 | M140: -746773.85 | O140: =MATCH(A140,'Linked TB'!A:A,0) -> 
A141: 222101 | B141: =VLOOKUP(VALUE(A141),'Linked TB'!A:B,2,FALSE) -> Accrued Expenses | C141: -8303.7 | D141: 0 | E141: -8303.7 | I141: 0 | K141: -8303.7 | L141: 0 | M141: -8303.7 | O141: =MATCH(A141,'Linked TB'!A:A,0) -> 
A142: 222102 | B142: =VLOOKUP(VALUE(A142),'Linked TB'!A:B,2,FALSE) -> Accrued Electric | C142: 0 | D142: 0 | E142: 0 | I142: 0 | K142: 0 | L142: 0 | M142: 0 | O142: =MATCH(A142,'Linked TB'!A:A,0) -> 
A143: 222103 | B143: =VLOOKUP(VALUE(A143),'Linked TB'!A:B,2,FALSE) -> Accrued Water | C143: 0 | D143: 0 | E143: 0 | I143: 0 | K143: 0 | L143: 0 | M143: 0 | O143: =MATCH(A143,'Linked TB'!A:A,0) -> 
A144: 222202 | B144: =VLOOKUP(VALUE(A144),'Linked TB'!A:B,2,FALSE) -> Bonus Accrual | C144: 18717.91 | D144: 0 | E144: 18717.91 | I144: 0 | K144: 18717.91 | L144: 0 | M144: 18717.91 | O144: =MATCH(A144,'Linked TB'!A:A,0) -> 
A145: 222206 | B145: =VLOOKUP(VALUE(A145),'Linked TB'!A:B,2,FALSE) -> Accrued Payroll | C145: 0 | D145: 0 | E145: 0 | I145: 0 | K145: 0 | L145: 0 | M145: 0 | O145: =MATCH(A145,'Linked TB'!A:A,0) -> 
A146: 223101 | B146: =VLOOKUP(VALUE(A146),'Linked TB'!A:B,2,FALSE) -> Accrued Taxes General | C146: 22558.27 | D146: 0 | E146: 22558.27 | I146: 0 | K146: 22558.27 | L146: 0 | M146: 22558.27 | O146: =MATCH(A146,'Linked TB'!A:A,0) -> 
A147: 223103 | B147: =VLOOKUP(VALUE(A147),'Linked TB'!A:B,2,FALSE) -> Accrued Real Estate Property Tax | C147: -136213 | D147: 0 | E147: -136213 | I147: 0 | K147: -136213 | L147: 0 | M147: -136213 | O147: =MATCH(A147,'Linked TB'!A:A,0) -> 
A148: 223105 | B148: =VLOOKUP(VALUE(A148),'Linked TB'!A:B,2,FALSE) -> Accrued Franchise Tax A | C148: 0.04 | D148: 0 | E148: 0.04 | I148: 0 | K148: 0.04 | L148: 0 | M148: 0.04 | O148: =MATCH(A148,'Linked TB'!A:A,0) -> 
A149: 223106 | B149: =VLOOKUP(VALUE(A149),'Linked TB'!A:B,2,FALSE) -> Accrued Utility and Commission | C149: -1436.05 | D149: 0 | E149: -1436.05 | I149: 0 | K149: -1436.05 | L149: 0 | M149: -1436.05 | O149: =MATCH(A149,'Linked TB'!A:A,0) -> 
A150: 223205 | B150: =VLOOKUP(VALUE(A150),'Linked TB'!A:B,2,FALSE) -> Accrued Sales Tax | C150: -13412.05 | D150: 0 | E150: -13412.05 | I150: 0 | K150: -13412.05 | L150: 0 | M150: -13412.05 | O150: =MATCH(A150,'Linked TB'!A:A,0) -> 
A151: 223206 | B151: =VLOOKUP(VALUE(A151),'Linked TB'!A:B,2,FALSE) -> Accrued Use Tax | C151: -37.31 | D151: 0 | E151: -37.31 | I151: 0 | K151: -37.31 | L151: 0 | M151: -37.31 | O151: =MATCH(A151,'Linked TB'!A:A,0) -> 
A152: 223207 | B152: =VLOOKUP(VALUE(A152),'Linked TB'!A:B,2,FALSE) -> Accrued County Tax A | C152: -4002.57 | D152: 0 | E152: -4002.57 | I152: 0 | K152: -4002.57 | L152: 0 | M152: -4002.57 | O152: =MATCH(A152,'Linked TB'!A:A,0) -> 
A153: 223208 | B153: =VLOOKUP(VALUE(A153),'Linked TB'!A:B,2,FALSE) -> Accrued County Tax B | C153: 1264.58 | D153: 0 | E153: 1264.58 | I153: 0 | K153: 1264.58 | L153: 0 | M153: 1264.58 | O153: =MATCH(A153,'Linked TB'!A:A,0) -> 
A154: 223209 | B154: =VLOOKUP(VALUE(A154),'Linked TB'!A:B,2,FALSE) -> Accrued City Tax A | C154: -10573.71 | D154: 0 | E154: -10573.71 | I154: 0 | K154: -10573.71 | L154: 0 | M154: -10573.71 | O154: =MATCH(A154,'Linked TB'!A:A,0) -> 
A155: 223210 | B155: =VLOOKUP(VALUE(A155),'Linked TB'!A:B,2,FALSE) -> Accrued City Tax B | C155: -481.99 | D155: 0 | E155: -481.99 | I155: 0 | K155: -481.99 | L155: 0 | M155: -481.99 | O155: =MATCH(A155,'Linked TB'!A:A,0) -> 
A156: 223304 | B156: =VLOOKUP(VALUE(A156),'Linked TB'!A:B,2,FALSE) -> Accrued Employment FICA | C156: 67.1 | D156: 0 | E156: 67.1 | I156: 0 | K156: 67.1 | L156: 0 | M156: 67.1 | O156: =MATCH(A156,'Linked TB'!A:A,0) -> 
A157: 223305 | B157: =VLOOKUP(VALUE(A157),'Linked TB'!A:B,2,FALSE) -> Accrued Employment Medicare | C157: 15.69 | D157: 0 | E157: 15.69 | I157: 0 | K157: 15.69 | L157: 0 | M157: 15.69 | O157: =MATCH(A157,'Linked TB'!A:A,0) -> 
A158: 223306 | B158: =VLOOKUP(VALUE(A158),'Linked TB'!A:B,2,FALSE) -> Accrued Unemployment Tax - Federal | C158: 3.06 | D158: 0 | E158: 3.06 | I158: 0 | K158: 3.06 | L158: 0 | M158: 3.06 | O158: =MATCH(A158,'Linked TB'!A:A,0) -> 
A159: 223307 | B159: =VLOOKUP(VALUE(A159),'Linked TB'!A:B,2,FALSE) -> Accrued Unemployment Tax - State | C159: 13.74 | D159: 0 | E159: 13.74 | I159: 0 | K159: 13.74 | L159: 0 | M159: 13.74 | O159: =MATCH(A159,'Linked TB'!A:A,0) -> 
A160: 223502 | B160: =VLOOKUP(VALUE(A160),'Linked TB'!A:B,2,FALSE) -> Accrued State Income Tax | C160: 2072.26 | D160: 0 | E160: 2072.26 | I160: 0 | K160: 2072.26 | L160: 0 | M160: 2072.26 | O160: =MATCH(A160,'Linked TB'!A:A,0) -> 
A161: 224003 | B161: =VLOOKUP(VALUE(A161),'Linked TB'!A:B,2,FALSE) -> Accrued Interest - Customer Deposits | C161: -424.96 | D161: 0 | E161: -424.96 | I161: 0 | K161: -424.96 | L161: 0 | M161: -424.96 | O161: =MATCH(A161,'Linked TB'!A:A,0) -> 
A162: 231001 | B162: =VLOOKUP(VALUE(A162),'Linked TB'!A:B,2,FALSE) -> Customer Deposits | C162: -55682.87 | D162: 0 | E162: -55682.87 | I162: 0 | K162: -55682.87 | L162: 0 | M162: -55682.87 | O162: =MATCH(A162,'Linked TB'!A:A,0) -> 
A163: 231003 | B163: =VLOOKUP(VALUE(A163),'Linked TB'!A:B,2,FALSE) -> Customer Refunds | C163: -13938.85 | D163: 0 | E163: -13938.85 | I163: 0 | K163: -13938.85 | L163: 0 | M163: -13938.85 | O163: =MATCH(A163,'Linked TB'!A:A,0) -> 
A164: 233002 | B164: =VLOOKUP(VALUE(A164),'Linked TB'!A:B,2,FALSE) -> Intercompany Trade Accounts Payable - USD | C164: -3443359.49 | D164: 0 | E164: -3443359.49 | I164: 0 | K164: -3443359.49 | L164: 0 | M164: -3443359.49 | O164: =MATCH(A164,'Linked TB'!A:A,0) -> 
A165: 234001 | B165: =VLOOKUP(VALUE(A165),'Linked TB'!A:B,2,FALSE) -> Intercompany Non-Trade Accounts Payable | C165: 0 | D165: 0 | E165: 0 | I165: 0 | K165: 0 | L165: 0 | M165: 0 | O165: =MATCH(A165,'Linked TB'!A:A,0) -> 
A166: 255001 | B166: =VLOOKUP(VALUE(A166),'Linked TB'!A:B,2,FALSE) -> Deferred Federal Tax Liabilities | C166: -891216.7 | D166: 0 | E166: -891216.7 | I166: 0 | K166: -891216.7 | L166: 0 | M166: -891216.7 | O166: =MATCH(A166,'Linked TB'!A:A,0) -> 
A167: 255002 | B167: =VLOOKUP(VALUE(A167),'Linked TB'!A:B,2,FALSE) -> Deferred State Tax Liabilities | C167: 40570.7 | D167: 0 | E167: 40570.7 | I167: 0 | K167: 40570.7 | L167: 0 | M167: 40570.7 | O167: =MATCH(A167,'Linked TB'!A:A,0) -> 
A168: 260003 | B168: =VLOOKUP(VALUE(A168),'Linked TB'!A:B,2,FALSE) -> NonQual - Deferred Compensation | C168: -59906.12 | D168: 0 | E168: -59906.12 | I168: 0 | K168: -59906.12 | L168: 0 | M168: -59906.12 | O168: =MATCH(A168,'Linked TB'!A:A,0) -> 
A169: 260016 | B169: =VLOOKUP(VALUE(A169),'Linked TB'!A:B,2,FALSE) -> Due to Parent Deferred Credit | C169: -68742.23 | D169: 0 | E169: -68742.23 | I169: 0 | K169: -68742.23 | L169: 0 | M169: -68742.23 | O169: =MATCH(A169,'Linked TB'!A:A,0) -> 
A170: 260017 | B170: =VLOOKUP(VALUE(A170),'Linked TB'!A:B,2,FALSE) -> Deferred Credits Other | C170: -53745.07 | D170: 0 | E170: -53745.07 | I170: 0 | K170: -53745.07 | L170: 0 | M170: -53745.07 | O170: =MATCH(A170,'Linked TB'!A:A,0) -> 
A171: 260023 | B171: =VLOOKUP(VALUE(A171),'Linked TB'!A:B,2,FALSE) ->  | C171: 0 | D171: 0 | E171: 0 | I171: 0 | K171: 0 | L171: 0 | M171: 0 | O171: =MATCH(A171,'Linked TB'!A:A,0) -> 
A172: 271026 | B172: =VLOOKUP(VALUE(A172),'Linked TB'!A:B,2,FALSE) -> CIAC - Meters | C172: -83141 | D172: 0 | E172: -83141 | I172: 0 | K172: -83141 | L172: 0 | M172: -83141 | O172: =MATCH(A172,'Linked TB'!A:A,0) -> 
A173: 271035 | B173: =VLOOKUP(VALUE(A173),'Linked TB'!A:B,2,FALSE) -> CIAC - Other Tangible Plant | C173: -104818.69 | D173: 0 | E173: -104818.69 | I173: 0 | K173: -104818.69 | L173: 0 | M173: -104818.69 | O173: =MATCH(A173,'Linked TB'!A:A,0) -> 
A174: 271036 | B174: =VLOOKUP(VALUE(A174),'Linked TB'!A:B,2,FALSE) -> CIAC - Tap Fee | C174: -214509.9 | D174: 0 | E174: -214509.9 | I174: 0 | K174: -214509.9 | L174: 0 | M174: -214509.9 | O174: =MATCH(A174,'Linked TB'!A:A,0) -> 
A175: 271037 | B175: =VLOOKUP(VALUE(A175),'Linked TB'!A:B,2,FALSE) -> CIAC - Management Fee | C175: -1239.9 | D175: 0 | E175: -1239.9 | I175: 0 | K175: -1239.9 | L175: 0 | M175: -1239.9 | O175: =MATCH(A175,'Linked TB'!A:A,0) -> 
A176: 271041 | B176: =VLOOKUP(VALUE(A176),'Linked TB'!A:B,2,FALSE) -> CIAC - Plant Meter Fee | C176: -3752.5 | D176: 0 | E176: -3752.5 | I176: 0 | K176: -3752.5 | L176: 0 | M176: -3752.5 | O176: =MATCH(A176,'Linked TB'!A:A,0) -> 
A177: 272026 | B177: =VLOOKUP(VALUE(A177),'Linked TB'!A:B,2,FALSE) -> Acc Amort CIAC - Meters | C177: 15644.89 | D177: 0 | E177: 15644.89 | I177: 0 | K177: 15644.89 | L177: 0 | M177: 15644.89 | O177: =MATCH(A177,'Linked TB'!A:A,0) -> 
A178: 272035 | B178: =VLOOKUP(VALUE(A178),'Linked TB'!A:B,2,FALSE) -> Acc Amort CIAC - Other Tangible Plant | C178: 62893.65 | D178: 0 | E178: 62893.65 | I178: 0 | K178: 62893.65 | L178: 0 | M178: 62893.65 | O178: =MATCH(A178,'Linked TB'!A:A,0) -> 
A179: 272036 | B179: =VLOOKUP(VALUE(A179),'Linked TB'!A:B,2,FALSE) -> Acc Amort CIAC - Tap Fee | C179: 77572.49 | D179: 0 | E179: 77572.49 | I179: 0 | K179: 77572.49 | L179: 0 | M179: 77572.49 | O179: =MATCH(A179,'Linked TB'!A:A,0) -> 
A180: 272037 | B180: =VLOOKUP(VALUE(A180),'Linked TB'!A:B,2,FALSE) -> Acc Amort CIAC - Management Fee | C180: 100.65 | D180: 0 | E180: 100.65 | I180: 0 | K180: 100.65 | L180: 0 | M180: 100.65 | O180: =MATCH(A180,'Linked TB'!A:A,0) -> 
A181: 272041 | B181: =VLOOKUP(VALUE(A181),'Linked TB'!A:B,2,FALSE) -> Acc Amort CIAC - Plant Meter Fee | C181: 471.1 | D181: 0 | E181: 471.1 | I181: 0 | K181: 471.1 | L181: 0 | M181: 471.1 | O181: =MATCH(A181,'Linked TB'!A:A,0) -> 
A182: 311001 | B182: =VLOOKUP(VALUE(A182),'Linked TB'!A:B,2,FALSE) -> Common Stock | C182: -1000 | D182: 0 | E182: -1000 | I182: 0 | K182: -1000 | L182: 0 | M182: -1000 | O182: =MATCH(A182,'Linked TB'!A:A,0) -> 
A183: 320001 | B183: =VLOOKUP(VALUE(A183),'Linked TB'!A:B,2,FALSE) -> Paid-In Capital | C183: -2834076 | D183: 0 | E183: -2834076 | I183: 0 | K183: -2834076 | L183: 0 | M183: -2834076 | O183: =MATCH(A183,'Linked TB'!A:A,0) -> 
A184: 340001 | B184: =VLOOKUP(VALUE(A184),'Linked TB'!A:B,2,FALSE) -> Retained Earnings - Beginning balance | C184: -292102.27 | D184: 0 | E184: -292102.27 | I184: 0 | K184: -292102.27 | L184: 0 | M184: -292102.27 | O184: =MATCH(A184,'Linked TB'!A:A,0) -> 
A185: 340003 | B185: =VLOOKUP(VALUE(A185),'Linked TB'!A:B,2,FALSE) -> Net income for the year | C185: 182366.66 | D185: 0 | E185: 182366.66 | I185: 0 | K185: 182366.66 | L185: 0 | M185: 182366.66 | O185: =MATCH(A185,'Linked TB'!A:A,0) -> 
A186: 411001 | B186: =VLOOKUP(VALUE(A186),'Linked TB'!A:B,2,FALSE) -> Residential | C186: -3106708.15 | D186: 0 | E186: -3106708.15 | I186: 0 | K186: -3106708.15 | L186: 0 | M186: -3106708.15 | O186: =MATCH(A186,'Linked TB'!A:A,0) -> 
A187: 411002 | B187: =VLOOKUP(VALUE(A187),'Linked TB'!A:B,2,FALSE) -> Commercial | C187: -5089.34 | D187: 0 | E187: -5089.34 | I187: 0 | K187: -5089.34 | L187: 0 | M187: -5089.34 | O187: =MATCH(A187,'Linked TB'!A:A,0) -> 
A188: 411011 | B188: =VLOOKUP(VALUE(A188),'Linked TB'!A:B,2,FALSE) -> Public Authority | C188: -2710.53 | D188: 0 | E188: -2710.53 | I188: 0 | K188: -2710.53 | L188: 0 | M188: -2710.53 | O188: =MATCH(A188,'Linked TB'!A:A,0) -> 
A189: 411023 | B189: =VLOOKUP(VALUE(A189),'Linked TB'!A:B,2,FALSE) -> Residential - Measured | C189: 0 | D189: 0 | E189: 0 | I189: 0 | K189: 0 | L189: 0 | M189: 0 | O189: =MATCH(A189,'Linked TB'!A:A,0) -> 
A190: 411024 | B190: =VLOOKUP(VALUE(A190),'Linked TB'!A:B,2,FALSE) -> Commercial - Measured | C190: 0 | D190: 0 | E190: 0 | I190: 0 | K190: 0 | L190: 0 | M190: 0 | O190: =MATCH(A190,'Linked TB'!A:A,0) -> 
A191: 411032 | B191: =VLOOKUP(VALUE(A191),'Linked TB'!A:B,2,FALSE) -> Public Fire Protection | C191: -50338.52 | D191: 0 | E191: -50338.52 | I191: 0 | K191: -50338.52 | L191: 0 | M191: -50338.52 | O191: =MATCH(A191,'Linked TB'!A:A,0) -> 
A192: 411033 | B192: =VLOOKUP(VALUE(A192),'Linked TB'!A:B,2,FALSE) -> Private Fire Protection | C192: -10119.25 | D192: 0 | E192: -10119.25 | I192: 0 | K192: -10119.25 | L192: 0 | M192: -10119.25 | O192: =MATCH(A192,'Linked TB'!A:A,0) -> 
A193: 411038 | B193: =VLOOKUP(VALUE(A193),'Linked TB'!A:B,2,FALSE) -> Services - Misc | C193: -600 | D193: 0 | E193: -600 | I193: 0 | K193: -600 | L193: 0 | M193: -600 | O193: =MATCH(A193,'Linked TB'!A:A,0) -> 
A194: 411039 | B194: =VLOOKUP(VALUE(A194),'Linked TB'!A:B,2,FALSE) -> Other Revenue | C194: -203.25 | D194: 0 | E194: -203.25 | I194: 0 | K194: -203.25 | L194: 0 | M194: -203.25 | O194: =MATCH(A194,'Linked TB'!A:A,0) -> 
A195: 411040 | B195: =VLOOKUP(VALUE(A195),'Linked TB'!A:B,2,FALSE) -> Revenue Accrued | C195: -49965.76 | D195: 0 | E195: -49965.76 | I195: 0 | K195: -49965.76 | L195: 0 | M195: -49965.76 | O195: =MATCH(A195,'Linked TB'!A:A,0) -> 
A196: 411042 | B196: =VLOOKUP(VALUE(A196),'Linked TB'!A:B,2,FALSE) -> Forfeited Discounts | C196: 0 | D196: 0 | E196: 0 | I196: 0 | K196: 0 | L196: 0 | M196: 0 | O196: =MATCH(A196,'Linked TB'!A:A,0) -> 
A197: 411056 | B197: =VLOOKUP(VALUE(A197),'Linked TB'!A:B,2,FALSE) -> 3rd Party Billing Revenue | C197: 1046.88 | D197: 0 | E197: 1046.88 | I197: 0 | K197: 1046.88 | L197: 0 | M197: 1046.88 | O197: =MATCH(A197,'Linked TB'!A:A,0) -> 
A198: 411058 | B198: =VLOOKUP(VALUE(A198),'Linked TB'!A:B,2,FALSE) -> Management Service Revenue | C198: -41499.17 | D198: 0 | E198: -41499.17 | I198: 0 | K198: -41499.17 | L198: 0 | M198: -41499.17 | O198: =MATCH(A198,'Linked TB'!A:A,0) -> 
A199: 511001 | B199: =VLOOKUP(VALUE(A199),'Linked TB'!A:B,2,FALSE) -> Purchased Services-Water | C199: 124810.4 | D199: 0 | E199: =SUM(C199:D199) -> 124810.4 | I199: =SUM(G199:H199) -> 0 | K199: =SUM(C199,G199) -> 124810.4 | L199: =SUM(D199,H199) -> 0 | M199: =SUM(K199:L199) -> 124810.4 | O199: =MATCH(A199,'Linked TB'!A:A,0) -> 
A200: 512001 | B200: =VLOOKUP(VALUE(A200),'Linked TB'!A:B,2,FALSE) -> Shop Supplies and Tools | C200: 15051.66 | D200: 0 | E200: 15051.66 | I200: 0 | K200: 15051.66 | L200: 0 | M200: 15051.66 | O200: =MATCH(A200,'Linked TB'!A:A,0) -> 
... 193 more rows

Sheet Adaptive details
A1: Fusion Account
A3: BALANCE SHEET
A5: 141101 | B5: Land and Rights General
A6: 141102 | B6: Land and Rights Pump
A7: 141103 | B7: Land and Rights Water
A8: 141104 | B8: Land and Rights Trans
A9: 141105 | B9: Land and Rights Intangible
A10: 141106 | B10: Land and Rights Collections
A11: 141107 | B11: Land and Rights Treatment
A12: 141108 | B12: Land and Rights Reclaim
A13: 141199 | B13: Land Clearing
A14: 141201 | B14: Organization
A15: 141202 | B15: Franchises
A16: 141203 | B16: Struct and Improv General Plant
A17: 141204 | B17: Struct and Improv Service Supplies
A18: 141205 | B18: Struct and Improv Water Treat Plt
A19: 141206 | B19: Struct and Improv Trans Dist Plt
A20: 141207 | B20: Struct and Improv Collect Plant
A21: 141208 | B21: Struct and Improv Pump Plant
A22: 141209 | B22: Struct and Improv Treatment Plant
A23: 141210 | B23: Struct and Improv Reclaim WTP
A24: 141211 | B24: Struct and Improv Reclaim Wtr Dist
A25: 141212 | B25: Struct and Improv Production
A26: 141213 | B26: Struct and Improv Natural Gas
A27: 141214 | B27: Struct and Improv Transmissions
A28: 141215 | B28: Struct and Improv Distribution
A29: 141216 | B29: Struct and Improv Electrical
A30: 141217 | B30: Struct and Improv Propane
A31: 141218 | B31: Struct and Improv Municipal
A32: 141219 | B32: Struct and Improv Biomass
A33: 141220 | B33: Struct and Improv Office
A34: 141221 | B34: Collecting Reservoirs
A35: 141222 | B35: Lake, River, Other Intakes
A36: 141223 | B36: Wells and Springs
A37: 141224 | B37: Infiltration Gallery
A38: 141225 | B38: Supply Mains
A39: 141226 | B39: Power Generation Equipment
A40: 141227 | B40: Electric Pump Equip Src Pump
A41: 141228 | B41: Electric Pump Equip WTP
A42: 141229 | B42: Electric Pump Equip Trans Dist
A43: 141230 | B43: Water Treatment Equipment
A44: 141231 | B44: Dist Resv and Standpipes
A45: 141232 | B45: Trans and Distr Mains
A46: 141233 | B46: Service Lines
A47: 141234 | B47: Meters
A48: 141235 | B48: Meter Installations
A49: 141236 | B49: Hydrants
A50: 141237 | B50: Backflow Prevention Devices
A51: 141238 | B51: Power Gen Equip Coll Plt
A52: 141239 | B52: Power Gen Equip Pump Plt
A53: 141240 | B53: Power Gen Equip Treat Plt
A54: 141241 | B54: Sewer Force Main
A55: 141242 | B55: Sewer Gravity Main
A56: 141243 | B56: Manholes
A57: 141244 | B57: Special Collection Structures
A58: 141245 | B58: Service to Customers
A59: 141246 | B59: Flow Measure Devices
A60: 141247 | B60: Flow Measure Install
A61: 141248 | B61: Receiving Wells
A62: 141249 | B62: Pumping Equip Pump Plt
A63: 141250 | B63: Pumping Equip Reclaim WTP
A64: 141251 | B64: Pumping Equip Rcl Wtr Dist
A65: 141252 | B65: Treat/Disp Equip Lagoon
A66: 141253 | B66: Treat/Disp Equip Trt Plt
A67: 141254 | B67: Treat/Disp Equip Rclm Wtr
A68: 141255 | B68: Plant Sewers Treatment Plt
A69: 141256 | B69: Plant Sewers Reclaim Wtr
A70: 141257 | B70: Outfall Lines
A71: 141258 | B71: Reservoirs
A72: 141259 | B72: House Regulators
A73: 141260 | B73: House Regulatory Install
A74: 141261 | B74: Reuse Services
A75: 141262 | B75: Reuse Mtr/Installations
A76: 141263 | B76: Reuse Dist Reservoirs
A77: 141264 | B77: Reuse Transmission and Dist
A78: 141265 | B78: Processing Plant
A79: 141266 | B79: Maintenance Structure and Improv
A80: 141267 | B80: Other and Misc Equip Intangible Plt
A81: 141268 | B81: Other and Misc Equip Source Supply
A82: 141269 | B82: Other and Misc Equip WTP
A83: 141270 | B83: Other and Misc Equip Trans Dist
A84: 141271 | B84: Other Tangible Plant
A85: 141272 | B85: Other Plant Collection
A86: 141273 | B86: Other Plant Pump
A87: 141274 | B87: Other Plant Treatment
A88: 141275 | B88: Other Plant Reclaim Water Trt
A89: 141276 | B89: Other Plant Reclaim Water Dist
A90: 141277 | B90: Other Plant
A91: 141278 | B91: Plant Alloc
A92: 141279 | B92: Domestic Water
A93: 141280 | B93: Irrigation Water
A94: 141281 | B94: Geothermal
A95: 141282 | B95: District Energy System
A96: 141283 | B96: Concession
A97: 141284 | B97: DES - Startup Costs
A98: 141285 | B98: DES - Project Management
A99: 141286 | B99: DES - Temporary Energy Centre
A100: 141287 | B100: DES - Distribution Piping System
A101: 141288 | B101: DES - Energy Transfer Station
A102: 141289 | B102: DES - Project Development
A103: 141290 | B103: DES - Engineer
A104: 141291 | B104: DES - Low Rise Connection
A105: 141292 | B105: Non-Utility Property
A106: 141293 | B106: Plant Held for Future Use
A107: 141298 | B107: FA default
A108: 141299 | B108: Utility Plant Clearing
A109: 141301 | B109: Building
A110: 141302 | B110: Leasehold Improvement
A111: 141303 | B111: Office Furniture
A112: 141304 | B112: Office Equipment
A113: 141305 | B113: Stores Equipment
A114: 141306 | B114: Lab Equipment
A115: 141307 | B115: Rental Equipment
A116: 141308 | B116: Tool Shop Equipment
A117: 141309 | B117: Power Operated Equipment
A118: 141310 | B118: Communications Equipment
A119: 141311 | B119: Misc Equipment
A120: 141399 | B120: Building and Equipment Clearing
A121: TOTAL
A123: 141401 | B123: Vehicles
A124: 141499 | B124: Vehicles Clearing
A125: TOTAL
A127: 141501 | B127: Computer Hardware
A128: 141502 | B128: Desktop/Laptop Computers
A129: 141503 | B129: Mainframe Computers
A130: 141504 | B130: Mini Comp Wtr
A131: 141601 | B131: Computer Software
A132: 141602 | B132: Comp Systems
A133: 141603 | B133: Micro Systems
A134: 141699 | B134: Computer Clearing
A135: TOTAL | B135: COMPUTER EQUIPMENT
A137: 141701 | B137: CWIP - Beginning Balance
A138: 141702 | B138: CWIP - Captime
A139: 141703 | B139: CWIP - Interest During Construction
A140: 141704 | B140: CWIP - Engineering
A141: 141705 | B141: CWIP - Labor/Installation
A142: 141706 | B142: CWIP - Equipment
A143: 141707 | B143: CWIP - Material
A144: 141708 | B144: CWIP - Electrical
A145: 141709 | B145: CWIP - Piping
A146: 141710 | B146: CWIP - Site Work
A147: 141711 | B147: CWIP - Building Additions
A148: 141712 | B148: CWIP - Carpentry
A149: 141713 | B149: CWIP - Crane
A150: 141714 | B150: CWIP - Drilling Costs
A151: 141715 | B151: CWIP - Foundation
A152: 141716 | B152: CWIP - Land/Lease
A153: 141717 | B153: CWIP - Main Extension/Tie In
A154: 141718 | B154: CWIP - Permits
A155: 141719 | B155: CWIP - Plumbing
A156: 141720 | B156: CWIP - Pumps/Equipment
A157: 141721 | B157: CWIP - Relocation
A158: 141722 | B158: CWIP - Restoration
A159: 141723 | B159: CWIP - Soil Boring
A160: 141724 | B160: CWIP - Tank/Cost of
A161: 141725 | B161: CWIP - Tank/Detention Addition
A162: 141726 | B162: CWIP - Tank/Pneumatic
A163: 141727 | B163: CWIP - Tests/Drawdown
A164: 141728 | B164: CWIP - Well Abandonment
A165: 141729 | B165: CWIP - Well House
A166: 141732 | B166: CWIP - Transfer to Fixed Assets
A167: 141735 | B167: CWIP - Building/Blower
A168: 141736 | B168: CWIP - Concrete Contrac
A169: 141737 | B169: CWIP - Draining/Plant
A170: 141738 | B170: CWIP - Installation of Plant
A171: 141739 | B171: CWIP - Modification/Lift Stn
A172: 141740 | B172: CWIP - Package Plant Purchase
A173: 141741 | B173: CWIP - Pump Removal
A174: 141742 | B174: CWIP - Sand
A175: 141743 | B175: CWIP - Sludge/Disposal
A176: 141744 | B176: CWIP - Survey
A177: 141745 | B177: CWIP - Tests/Soil Bore
A178: 141746 | B178: CWIP - Vegitation/Remov
A179: 141748 | B179: CWIP - Contractor/Labour
A180: 141749 | B180: CWIP - Architect/Design
A181: 141750 | B181: CWIP - Furniture
A182: 141751 | B182: CWIP - Heating/Air Conditioning
A183: 141752 | B183: CWIP - Interior Finish
A184: 141753 | B184: CWIP - Modification/Con
A185: 141754 | B185: CWIP - Remodeling
A186: 141756 | B186: CWIP - Grouting/Sealing
A187: 141757 | B187: CWIP - Jet Cleaning
A188: 141758 | B188: CWIP - Pump and Haul Sludge
A189: 141759 | B189: CWIP - Rental/Machine
A190: 141760 | B190: CWIP - Repair
A191: 141761 | B191: CWIP - Construction
A192: 141762 | B192: CWIP - Other
A193: 141763 | B193: Deferred Plant in Process
A194: 141764 | B194: CWIP - Overhead
A195: 141765 | B195: CWIP - Cost of Removal
A196: 141798 | B196: CWIP Clearing-Fixed Asset
A197: 141799 | B197: CWIP Clearing
A198: TOTAL | B198: CONSTRUCTION WORK IN PROGRESS
A201: 142201 | B201: Acc Dep - Organization
A202: 142202 | B202: Acc Dep - Franchises
A203: 142203 | B203: Acc Dep - Struct and Improv General Plant
A204: 142204 | B204: Acc Dep - Struct and Improv Service Supplies
A205: 142205 | B205: Acc Dep - Struct and Improv Water Treat Plt
A206: 142206 | B206: Acc Dep - Struct and Improv Trans Dist Plt
A207: 142207 | B207: Acc Dep - Struct and Improv Collect Plant
... 1336 more rows

Sheet Forecasted from Adaptive (hidden)
A1: Water Service Company of Kentucky
A2: Case No. 2022-00147
A3: Rate Case Exhibits
A4: Base Year: September 30, 2022
A5: Test Year: Dec 31, 2023
A6: Post Test Year: December 31, 2024
A8: Combined Operations
A9: Pro-Forma Income Statement
A10: Line No. | C10: Description | D10: Ref | E10: April --> Sept 2022 | F10: Oct 22-> Dec 22 | G10: Fiscal 2023 | H10: Fiscal 2024 | I10: Fiscal 2025
E11: [A] | F11: [B] | G11: [C] | H11: [D]
A12: 1 | B12: Line No. | C12: Operating Revenues
A13: 2 | C13: Service Revenues - Water | D13: B-1 | E13: 1721707.027 | F13: 791723.1882 | G13: 3895484.122 | H13: 3877075.845 | I13: 3877075.845
A14: 3 | C14: Service Revenues - Sewer | D14: B-1 | H14: 0
A15: 4 | C15: Miscellaneous Revenues | D15: B-1 | H15: 0
A16: 5 | C16: Uncollectible Accounts | D16: B-2 | E16: =-'Adaptive details'!AY1281 -> -43734.52 | F16: =-'Adaptive details'!AZ1281 -> -5396.958303 | G16: =-'Adaptive details'!BA1281 -> -24121.06269 | H16: =-'Adaptive details'!BB1281 -> -24287.49021 | I16: =-'Adaptive details'!BC1281 -> -24308.61995
A18: 6 | C18: Total Operating Revenues | E18: 1710069.72 | F18: 786326.2299 | G18: 3871363.059 | H18: 3852788.355 | I18: 3852767.225
E19: 0
A20: 7 | C20: Maintenance Expenses
A21: 8 | C21: Salaries and Wages | D21: B-3 | E21: 383712.7636 | F21: 190792.1252 | G21: 858350.7121 | H21: 886277.1851 | I21: 910525.1731
A22: 9 | C22: Purchased Power | D22: B-5 | E22: 55149 | F22: 29840 | G22: 125767 | H22: 129145 | I22: 132616
A23: 10 | C23: Purchased Water / Sewer | D23: B-6 | E23: =10267*6 -> 61602 | F23: 36345 | G23: 145509 | H23: 149870 | I23: 154373
A24: 11 | C24: Maintenance and Repair | D24: B-7 | E24: 79901.5 | F24: 54747.25 | G24: 180449.6667 | H24: 174494.6667 | I24: 171417.6667
A25: 12 | C25: Maintenance Testing | D25: B-8 | E25: 17763 | F25: 7418 | G25: 26441 | H25: 27234 | I25: 28057
A26: 13 | C26: Meter Reading | D26: B-9 | E26: 0 | F26: 0 | G26: 0 | H26: 0 | I26: 0
A27: 14 | C27: Chemicals | D27: B-10 | E27: 61006.73 | F27: =E27/2 -> 30503.365 | G27: 103884.53 | H27: =G27*1.03 -> 107001.0659 | I27: =H27*1.03 -> 110211.0979
A28: 15 | C28: Transportation | D28: B-11 | E28: 18250 | F28: 8838 | G28: 36523 | H28: 37609 | I28: 38739
A29: 16 | C29: Operating Exp. Charged to Plant | D29: B-4 | E29: -22158.28401 | F29: -11079.142 | G29: -45000 | H29: -47272.83542 | I29: -48691.02048
A30: 17 | C30: Outside Services - Other | D30: B-12 | E30: 3805 | F30: 1977 | G30: 5939 | H30: 6115 | I30: 6299
A32: 18 | C32: Total | E32: =SUM(E21:E30) -> 659031.7096 | F32: =SUM(F21:F30) -> 349381.5982 | G32: 1437863.909 | H32: 1470473.082 | I32: 1503546.917
A34: 19 | C34: General Expenses
A35: 20 | C35: Salaries and Wages | D35: B-3
A36: 21 | C36: Office Supplies & Other Office Exp. | D36: B-13 | E36: 22409 | F36: 12234 | G36: 45155 | H36: 45344 | I36: 45529
A37: 22 | C37: Regulatory Commission Exp. | D37: B-14 | E37: 37542 | F37: 18771 | G37: 75084 | H37: 77340 | I37: 79656
A38: 23 | C38: Pension & Other Benefits | D38: B-15 | E38: 128558.4788 | F38: 64194.01442 | G38: 274012.6343 | H38: 293282.5493 | I38: 313447.8502
A39: 24 | C39: Rent | D39: B-16 | E39: 9838 | F39: 3576 | G39: 18121 | H39: 18668 | I39: 19225
A40: 25 | C40: Insurance | D40: B-17 | E40: 51875.61402 | F40: 27437.77511 | G40: 112214.1965 | H40: 118608.3393 | I40: 122171.5316
A41: 26 | C41: Office Utilities | D41: B-18 | E41: 13495 | F41: 3339 | G41: 17732 | H41: 18265 | I41: 18693
A42: 27 | C42: Miscellaneous | D42: B-19 | E42: 348814.6342 | F42: 166259.2978 | G42: 695470.265 | H42: 710806.4668 | I42: 709712.3288
A44: 28 | C44: Total | E44: 612532.727 | F44: 295811.0873 | G44: 1237789.096 | H44: 1282314.356 | I44: 1308434.711
A46: 29 | C46: Depreciation | D46: B-20 | E46: 199683.4069 | F46: 101162.1944 | G46: 422927.8155 | H46: 441785.7512 | I46: 441785.7512
A47: 30 | C47: Amortization of PAA | D47: B-21 | E47: -1830.24 | F47: -915.12 | G47: -3660.48 | H47: -3660.48 | I47: -3660.48
A48: 31 | C48: Payroll Taxes | D48: B-23 | E48: 27936.52754 | F48: 12876.60967 | G48: 58088.49114 | H48: 60124.71503 | I48: 61874.01376
A49: 32 | C49: Franchise Tax | D49: B-23 | E49: 0 | F49: 0 | G49: 0 | H49: 0
A50: 33 | C50: Gross Receipts Tax | D50: B-23 | E50: 0 | F50: 0 | G50: 0 | H50: 0
A51: 34 | C51: Property Taxes | D51: B-23 | E51: 56134.83975 | F51: 28067.41988 | G51: 111472.1943 | H51: 113585.5886 | I51: 113585.5886
A52: 35 | C52: Special Assessments | D52: B-23 | E52: 0 | F52: 0 | G52: 0 | H52: 0
A53: 36 | C53: Utility/Commission Tax | D53: B-23 | E53: 2738.928041 | F53: 1269.573784 | G53: 5397.628079 | H53: 5559.556922 | I53: 5559.556922
A54: 37 | C54: Other General Taxes | D54: B-23 | E54: 0 | F54: 0 | G54: 0 | H54: 0
A55: 38 | C55: Income Taxes - Federal | D55: B-24
A56: 39 | C56: Income Taxes - State | D56: B-24
A57: 40 | C57: Amortization of ITC | E57: 0 | F57: 0 | G57: 0 | H57: 0
A58: 40 | C58: Amortization of CIAC | D58: B-22 | E58: -4016.792137 | F58: -2008.396068 | G58: -8033.584273 | H58: -8033.584273 | I58: -8033.584273
A60: 41 | C60: Total | E60: 280646.6701 | F60: 140452.2817 | G60: 586192.0647 | H60: 609361.5474 | I60: 611110.8462
M61: Variance with adaptive 2023
A62: 42 | C62: Total Operating Expenses | E62: 1560459.377 | F62: 783789.6022 | G62: 3258014.539 | H62: 3355358.919 | I62: 3416954.376 | L62: 3249157.539 | M62: 8857
A64: 43 | C64: Net Operating Income | E64: 149610.3437 | F64: 2536.627723 | G64: 613348.5198 | H64: 497429.4357 | I64: 435812.8493
A67: Water Operations
A68: Pro-Forma Income Statement
A69: Line No. | C69: Description | D69: Ref | E69: Base Period - Actual | F69: Base Year- Allocated | G69: Total Base Period | H69: Pro-Forma Adjustment
E70: [A] | F70: [B] | G70: [C] | H70: [D]
A71: 1 | C71: Operating Revenues
A72: 2 | C72: Service Revenues - Water | D72: B-1 | E72: 3398721.42 | F72: 0 | G72: 3398721.42 | H72: 0
A73: 3 | C73: Service Revenues - Sewer | D73: B-1 | E73: 0 | F73: 0 | G73: 0 | H73: 0
A74: 4 | C74: Miscellaneous Revenues | D74: B-1 | E74: 7698.16 | F74: 0 | G74: 7698.16 | H74: 0
A75: 5 | C75: Uncollectible Accounts | D75: B-2 | E75: -202898.67 | F75: 0 | G75: -202898.67 | H75: 0
A77: 6 | C77: Total Operating Revenues | E77: 3203520.91 | F77: 0 | G77: 3203520.91 | H77: 0
A79: 7 | C79: Maintenance Expenses
A80: 8 | C80: Salaries and Wages | D80: B-3 | E80: 0 | F80: 0 | G80: 0 | H80: 0
A81: 9 | C81: Purchased Power | D81: B-5 | E81: 114472.87 | F81: 10.82 | G81: 114483.69 | H81: 0
A82: 10 | C82: Purchased Water / Sewer | D82: B-6 | E82: 133471 | F82: 0 | G82: 133471 | H82: 0
A83: 11 | C83: Maintenance and Repair | D83: B-7 | E83: 195931.6 | F83: 11538.79 | G83: 207470.39 | H83: 0
A84: 12 | C84: Maintenance Testing | D84: B-8 | E84: 36146.44 | F84: 1346.17 | G84: 37492.61 | H84: 0
A85: 13 | C85: Meter Reading | D85: B-9 | E85: 0 | F85: 0 | G85: 0 | H85: 0
A86: 14 | C86: Chemicals | D86: B-10 | E86: 121832.95 | F86: 0 | G86: 121832.95 | H86: 0
A87: 15 | C87: Transportation | D87: B-11 | E87: 4612.52 | F87: 39533.66 | G87: 44146.18 | H87: 0
A88: 16 | C88: Operating Exp. Charged to Plant | D88: B-4 | E88: -34273.1 | F88: -43.02 | G88: -34316.12 | H88: 0
A89: 17 | C89: Outside Services - Other | D89: B-12 | E89: 28637.75 | F89: 110.07 | G89: 28747.82 | H89: 0
A91: 18 | C91: Total | E91: 600832.03 | F91: 52496.49 | G91: 653328.52 | H91: 0
A93: 19 | C93: General Expenses
A94: 20 | C94: Salaries and Wages | D94: B-3 | E94: 343075.07 | F94: 426303.18 | G94: 769378.25 | H94: 0
A95: 21 | C95: Office Supplies & Other Office Exp. | D95: B-13 | E95: 5813.06 | F95: 41531.59 | G95: 47344.65 | H95: 0
A96: 22 | C96: Regulatory Commission Exp. | D96: B-14 | E96: 55594.11 | F96: 0 | G96: 55594.11 | H96: 0
A97: 23 | C97: Pension & Other Benefits | D97: B-15 | E97: 15655.23 | F97: 218339.49 | G97: 233994.72 | H97: 0
A98: 24 | C98: Rent | D98: B-16 | E98: 15653.53 | F98: 0 | G98: 15653.53 | H98: 0
A99: 25 | C99: Insurance | D99: B-17 | E99: 305.4 | F99: 67781.27 | G99: 68086.67 | H99: 0
A100: 26 | C100: Office Utilities | D100: B-18 | E100: 9839.67 | F100: 5064.53 | G100: 14904.2 | H100: 0
A101: 27 | C101: Miscellaneous | D101: B-19 | E101: 9544.07 | F101: 609305 | G101: 618849.07 | H101: 10818.17
A103: 28 | C103: Total | E103: 455480.14 | F103: 1368325.06 | G103: 1823805.2 | H103: 10818.17
A105: 29 | C105: Depreciation | D105: B-20 | E105: 313282.41 | F105: 26264.93 | G105: 339547.34 | H105: -73683.60742
A106: 30 | C106: Amortization of PAA | D106: B-21 | E106: -3660.49 | F106: 0 | G106: -3660.49 | H106: 0
A107: 31 | C107: Payroll Taxes | D107: B-23 | E107: 24092.86 | F107: 31908.03 | G107: 56000.89 | H107: 0
A108: 32 | C108: Franchise Tax | D108: B-23 | E108: 0 | F108: 0 | G108: 0 | H108: 0
A109: 33 | C109: Gross Receipts Tax | D109: B-23 | E109: 0 | F109: 0 | G109: 0 | H109: 0
A110: 34 | C110: Property Taxes | D110: B-23 | E110: 113522.92 | F110: 0 | G110: 113522.92 | H110: 0
A111: 35 | C111: Special Assessments | D111: B-23 | E111: 0 | F111: 0 | G111: 0 | H111: 0
A112: 36 | C112: Utility/Commission Tax | D112: B-23 | E112: 5727.86 | F112: 0 | G112: 5727.86 | H112: 0
A113: 37 | C113: Other General Taxes | D113: B-23 | E113: 0 | F113: 0 | G113: 0 | H113: 0
A114: 38 | C114: Income Taxes - Federal | D114: B-24 | E114: 0 | F114: 0 | G114: 0 | H114: -7950.654382
A115: 39 | C115: Income Taxes - State | D115: B-24 | E115: 0 | F115: 0 | G115: 0 | H115: 0
A116: 40 | C116: Amortization of ITC | E116: 0 | F116: 0 | G116: 0 | H116: 0
A117: 40 | C117: Amortization of CIAC | D117: B-22 | E117: -10290.55 | F117: 0 | G117: -10290.55 | H117: 0
A119: 41 | C119: Total | E119: 442675.01 | F119: 58172.96 | G119: 500847.97 | H119: -81634.2618
A121: 42 | C121: Total Operating Expenses | E121: 1498987.18 | F121: 1478994.51 | G121: 2977981.69 | H121: -70816.0918
A123: 43 | C123: Net Operating Income | E123: 1704533.73 | F123: -1478994.51 | G123: 225539.22 | H123: 70816.0918
A126: Sewer Operations
A127: Pro-Forma Income Statement
A128: Line No. | C128: Description | D128: Ref | E128: Base Period - Actual | F128: Base Year- Allocated | G128: Total Base Period | H128: Pro-Forma Adjustment
E129: [A] | F129: [B] | G129: [C] | H129: [D]
A130: 1 | C130: Operating Revenues
A131: 2 | C131: Service Revenues - Water | D131: B-1 | E131: 0 | F131: 0 | G131: 0 | H131: 0
A132: 3 | C132: Service Revenues - Sewer | D132: B-1 | E132: 0 | F132: 0 | G132: 0 | H132: 0
A133: 4 | C133: Miscellaneous Revenues | D133: B-1 | E133: 0 | F133: 0 | G133: 0 | H133: 0
A134: 5 | C134: Uncollectible Accounts | D134: B-2 | E134: 0 | F134: 0 | G134: 0 | H134: 0
A136: 6 | C136: Total Operating Revenues | E136: 0 | F136: 0 | G136: 0 | H136: 0
A138: 7 | C138: Maintenance Expenses
A139: 8 | C139: Salaries and Wages | D139: B-3 | E139: 0 | F139: 0 | G139: 0 | H139: 0
A140: 9 | C140: Purchased Power | D140: B-5 | E140: 0 | F140: 0 | G140: 0 | H140: 0
A141: 10 | C141: Purchased Water / Sewer | D141: B-6 | E141: 0 | F141: 0 | G141: 0 | H141: 0
A142: 11 | C142: Maintenance and Repair | D142: B-7 | E142: 0 | F142: 0 | G142: 0 | H142: 0
A143: 12 | C143: Maintenance Testing | D143: B-8 | E143: 0 | F143: 0 | G143: 0 | H143: 0
A144: 13 | C144: Meter Reading | D144: B-9 | E144: 0 | F144: 0 | G144: 0 | H144: 0
A145: 14 | C145: Chemicals | D145: B-10 | E145: 0 | F145: 0 | G145: 0 | H145: 0
A146: 15 | C146: Transportation | D146: B-11 | E146: 0 | F146: 0 | G146: 0 | H146: 0
A147: 16 | C147: Operating Exp. Charged to Plant | D147: B-4 | E147: 0 | F147: 0 | G147: 0 | H147: 0
A148: 17 | C148: Outside Services - Other | D148: B-12 | E148: 0 | F148: 0 | G148: 0 | H148: 0
A150: 18 | C150: Total | E150: 0 | F150: 0 | G150: 0 | H150: 0
A152: 19 | C152: General Expenses
A153: 20 | C153: Salaries and Wages | D153: B-3 | E153: 0 | F153: 0 | G153: 0 | H153: 0
A154: 21 | C154: Office Supplies & Other Office Exp. | D154: B-13 | E154: 0 | F154: 0 | G154: 0 | H154: 0
A155: 22 | C155: Regulatory Commission Exp. | D155: B-14 | E155: 0 | F155: 0 | G155: 0 | H155: 0
A156: 23 | C156: Pension & Other Benefits | D156: B-15 | E156: 0 | F156: 0 | G156: 0 | H156: 0
A157: 24 | C157: Rent | D157: B-16 | E157: 0 | F157: 0 | G157: 0 | H157: 0
A158: 25 | C158: Insurance | D158: B-17 | E158: 0 | F158: 0 | G158: 0 | H158: 0
A159: 26 | C159: Office Utilities | D159: B-18 | E159: 0 | F159: 0 | G159: 0 | H159: 0
A160: 27 | C160: Miscellaneous | D160: B-19 | E160: 0 | F160: 0 | G160: 0 | H160: 0
A162: 28 | C162: Total | E162: 0 | F162: 0 | G162: 0 | H162: 0
A164: 29 | C164: Depreciation | D164: B-20 | E164: 0 | F164: 0 | G164: 0 | H164: 0
A165: 30 | C165: Amortization of PAA | D165: B-21 | E165: 0 | F165: 0 | G165: 0 | H165: 0
A166: 31 | C166: Payroll Taxes | D166: B-23 | E166: 0 | F166: 0 | G166: 0 | H166: 0
A167: 32 | C167: Franchise Tax | D167: B-23 | E167: 0 | F167: 0 | G167: 0 | H167: 0
A168: 33 | C168: Gross Receipts Tax | D168: B-23 | E168: 0 | F168: 0 | G168: 0 | H168: 0
A169: 34 | C169: Property Taxes | D169: B-23 | E169: 0 | F169: 0 | G169: 0 | H169: 0
A170: 35 | C170: Special Assessments | D170: B-23 | E170: 0 | F170: 0 | G170: 0 | H170: 0
A171: 36 | C171: Utility/Commission Tax | D171: B-23 | E171: 0 | F171: 0 | G171: 0 | H171: 0
A172: 37 | C172: Other General Taxes | D172: B-23 | E172: 0 | F172: 0 | G172: 0 | H172: 0
A173: 38 | C173: Income Taxes - Federal | D173: B-24 | E173: 0 | F173: 0 | G173: 0 | H173: 0
A174: 39 | C174: Income Taxes - State | D174: B-24 | E174: 0 | F174: 0 | G174: 0 | H174: 0
A175: 40 | C175: Amortization of ITC | E175: 0 | F175: 0 | G175: 0 | H175: 0
A176: 40 | C176: Amortization of CIAC | D176: B-22 | E176: 0 | F176: 0 | G176: 0 | H176: 0
A178: 41 | C178: Total | E178: 0 | F178: 0 | G178: 0 | H178: 0
A180: 42 | C180: Total Operating Expenses | E180: 0 | F180: 0 | G180: 0 | H180: 0
A182: 43 | C182: Net Operating Income | E182: 0 | F182: 0 | G182: 0 | H182: 0
A184: Column Calculations:
A185: [A]- Company's direct ledger amounts for base year ended September 30, 2021
A186: [B]- Company's Allocated ledger amounts for base year ended September 30, 2021
A187: [C]- Sum of Columns [A] & [B]
A188: [D]- Amounts calculated based on company's supporting schedules
A189: [E]- Sum of Column [C] & [D]
A190: [F]- Amounts calculated based on company's supporting schedules
A191: [G]- Sum of Column [E] & [F]

Sheet Linked TB
A1: ='Cover Page'!B5 -> Water Service Corporation of Kentucky
A2: Case No. 2022-00147
A3: =+'Cover Page'!B7 -> Rate Case Exhibits
A4: =+'Cover Page'!B8 -> Base Period: September 30, 2022
A5: =+'Cover Page'!B9 -> Forecast Period: December 31, 2023
A6: =+'Cover Page'!B10 -> 0
A8: Trial Balance
C9: Direct | G9: Allocated | K9: Total
C10: G/L | D10: G/L | E10: G/L | G10: G/L | H10: G/L | I10: G/L | K10: G/L | L10: G/L | M10: G/L
C11: Water | D11: Sewer | E11: Total | G11: Water | H11: Sewer | I11: Total | K11: Water | L11: Sewer | M11: Total
A12: Fusion Account | B12: Account Name | C12: =$A$4 -> Base Period: September 30, 2022 | D12: =$C$12 -> Base Period: September 30, 2022 | E12: =$C$12 -> Base Period: September 30, 2022 | G12: =C12 -> Base Period: September 30, 2022 | H12: =$C$12 -> Base Period: September 30, 2022 | I12: =$C$12 -> Base Period: September 30, 2022 | K12: =G12 -> Base Period: September 30, 2022 | L12: =$C$12 -> Base Period: September 30, 2022 | M12: =$C$12 -> Base Period: September 30, 2022 | P12: Check
P13: =IFERROR(MATCH(A13,'Fusion TB Drop'!A:A,0),"") -> 
A14: BALANCE SHEET | P14: =IFERROR(MATCH(A14,'Fusion TB Drop'!A:A,0),"") -> 
P15: =IFERROR(MATCH(A15,'Fusion TB Drop'!A:A,0),"") -> 
A16: 141101 | B16: =IFERROR(INDEX('Fusion Chart of Accounts'!I:I,MATCH('Linked TB'!A16,'Fusion Chart of Accounts'!H:H,0),0),0) -> Land and Rights General | C16: =SUMIF('Fusion TB Drop'!$A:$A,'Linked TB'!$A16,'Fusion TB Drop'!C:C) -> 20044.05 | D16: =SUMIF('Fusion TB Drop'!$A:$A,'Linked TB'!$A16,'Fusion TB Drop'!D:D) -> 0 | G16: =SUMIF('Fusion TB Drop'!$A:$A,'Linked TB'!$A16,'Fusion TB Drop'!G:G) -> 0 | H16: =SUMIF('Fusion TB Drop'!$A:$A,'Linked TB'!$A16,'Fusion TB Drop'!H:H) -> 0 | I16: =SUM(G16:H16) -> 0 | K16: =C16+G16 -> 20044.05 | L16: =D16+H16 -> 0 | M16: =SUM(K16:L16) -> 20044.05 | P16: =IFERROR(MATCH(A16,'Fusion TB Drop'!A:A,0),"") -> 
A17: 141102 | B17: =IFERROR(INDEX('Fusion Chart of Accounts'!I:I,MATCH('Linked TB'!A17,'Fusion Chart of Accounts'!H:H,0),0),0) -> Land and Rights Pump | C17: =SUMIF('Fusion TB Drop'!$A:$A,'Linked TB'!$A17,'Fusion TB Drop'!C:C) -> 0 | D17: =SUMIF('Fusion TB Drop'!$A:$A,'Linked TB'!$A17,'Fusion TB Drop'!D:D) -> 0 | E17: =SUM(C17:D17) -> 0 | G17: =SUMIF('Fusion TB Drop'!$A:$A,'Linked TB'!$A17,'Fusion TB Drop'!G:G) -> 0 | H17: =SUMIF('Fusion TB Drop'!$A:$A,'Linked TB'!$A17,'Fusion TB Drop'!H:H) -> 0 | I17: =SUM(G17:H17) -> 0 | K17: =C17+G17 -> 0 | L17: =D17+H17 -> 0 | M17: =SUM(K17:L17) -> 0 | P17: =IFERROR(MATCH(A17,'Fusion TB Drop'!A:A,0),"") -> 
A18: 141103 | B18: =IFERROR(INDEX('Fusion Chart of Accounts'!I:I,MATCH('Linked TB'!A18,'Fusion Chart of Accounts'!H:H,0),0),0) -> Land and Rights Water | C18: =SUMIF('Fusion TB Drop'!$A:$A,'Linked TB'!$A18,'Fusion TB Drop'!C:C) -> 0 | D18: =SUMIF('Fusion TB Drop'!$A:$A,'Linked TB'!$A18,'Fusion TB Drop'!D:D) -> 0 | E18: 0 | G18: =SUMIF('Fusion TB Drop'!$A:$A,'Linked TB'!$A18,'Fusion TB Drop'!G:G) -> 0 | H18: =SUMIF('Fusion TB Drop'!$A:$A,'Linked TB'!$A18,'Fusion TB Drop'!H:H) -> 0 | I18: 0 | K18: 0 | L18: 0 | M18: 0 | P18: =IFERROR(MATCH(A18,'Fusion TB Drop'!A:A,0),"") -> 
A19: 141104 | B19: =IFERROR(INDEX('Fusion Chart of Accounts'!I:I,MATCH('Linked TB'!A19,'Fusion Chart of Accounts'!H:H,0),0),0) -> Land and Rights Trans | C19: =SUMIF('Fusion TB Drop'!$A:$A,'Linked TB'!$A19,'Fusion TB Drop'!C:C) -> 0 | D19: =SUMIF('Fusion TB Drop'!$A:$A,'Linked TB'!$A19,'Fusion TB Drop'!D:D) -> 0 | E19: 0 | G19: =SUMIF('Fusion TB Drop'!$A:$A,'Linked TB'!$A19,'Fusion TB Drop'!G:G) -> 0 | H19: =SUMIF('Fusion TB Drop'!$A:$A,'Linked TB'!$A19,'Fusion TB Drop'!H:H) -> 0 | I19: 0 | K19: 0 | L19: 0 | M19: 0 | P19: =IFERROR(MATCH(A19,'Fusion TB Drop'!A:A,0),"") -> 
A20: 141105 | B20: =IFERROR(INDEX('Fusion Chart of Accounts'!I:I,MATCH('Linked TB'!A20,'Fusion Chart of Accounts'!H:H,0),0),0) -> Land and Rights Intangible | C20: =SUMIF('Fusion TB Drop'!$A:$A,'Linked TB'!$A20,'Fusion TB Drop'!C:C) -> 0 | D20: =SUMIF('Fusion TB Drop'!$A:$A,'Linked TB'!$A20,'Fusion TB Drop'!D:D) -> 0 | E20: 0 | G20: =SUMIF('Fusion TB Drop'!$A:$A,'Linked TB'!$A20,'Fusion TB Drop'!G:G) -> 0 | H20: =SUMIF('Fusion TB Drop'!$A:$A,'Linked TB'!$A20,'Fusion TB Drop'!H:H) -> 0 | I20: 0 | K20: 0 | L20: 0 | M20: 0 | P20: =IFERROR(MATCH(A20,'Fusion TB Drop'!A:A,0),"") -> 
A21: 141106 | B21: =IFERROR(INDEX('Fusion Chart of Accounts'!I:I,MATCH('Linked TB'!A21,'Fusion Chart of Accounts'!H:H,0),0),0) -> Land and Rights Collections | C21: =SUMIF('Fusion TB Drop'!$A:$A,'Linked TB'!$A21,'Fusion TB Drop'!C:C) -> 0 | D21: =SUMIF('Fusion TB Drop'!$A:$A,'Linked TB'!$A21,'Fusion TB Drop'!D:D) -> 0 | E21: 0 | G21: =SUMIF('Fusion TB Drop'!$A:$A,'Linked TB'!$A21,'Fusion TB Drop'!G:G) -> 0 | H21: =SUMIF('Fusion TB Drop'!$A:$A,'Linked TB'!$A21,'Fusion TB Drop'!H:H) -> 0 | I21: 0 | K21: 0 | L21: 0 | M21: 0 | P21: =IFERROR(MATCH(A21,'Fusion TB Drop'!A:A,0),"") -> 
A22: 141107 | B22: =IFERROR(INDEX('Fusion Chart of Accounts'!I:I,MATCH('Linked TB'!A22,'Fusion Chart of Accounts'!H:H,0),0),0) -> Land and Rights Treatment | C22: =SUMIF('Fusion TB Drop'!$A:$A,'Linked TB'!$A22,'Fusion TB Drop'!C:C) -> 0 | D22: =SUMIF('Fusion TB Drop'!$A:$A,'Linked TB'!$A22,'Fusion TB Drop'!D:D) -> 0 | E22: 0 | G22: =SUMIF('Fusion TB Drop'!$A:$A,'Linked TB'!$A22,'Fusion TB Drop'!G:G) -> 0 | H22: =SUMIF('Fusion TB Drop'!$A:$A,'Linked TB'!$A22,'Fusion TB Drop'!H:H) -> 0 | I22: 0 | K22: 0 | L22: 0 | M22: 0 | P22: =IFERROR(MATCH(A22,'Fusion TB Drop'!A:A,0),"") -> 
A23: 141108 | B23: =IFERROR(INDEX('Fusion Chart of Accounts'!I:I,MATCH('Linked TB'!A23,'Fusion Chart of Accounts'!H:H,0),0),0) -> Land and Rights Reclaim | C23: =SUMIF('Fusion TB Drop'!$A:$A,'Linked TB'!$A23,'Fusion TB Drop'!C:C) -> 0 | D23: =SUMIF('Fusion TB Drop'!$A:$A,'Linked TB'!$A23,'Fusion TB Drop'!D:D) -> 0 | E23: 0 | G23: =SUMIF('Fusion TB Drop'!$A:$A,'Linked TB'!$A23,'Fusion TB Drop'!G:G) -> 0 | H23: =SUMIF('Fusion TB Drop'!$A:$A,'Linked TB'!$A23,'Fusion TB Drop'!H:H) -> 0 | I23: 0 | K23: 0 | L23: 0 | M23: 0 | P23: =IFERROR(MATCH(A23,'Fusion TB Drop'!A:A,0),"") -> 
A24: 141199 | B24: =IFERROR(INDEX('Fusion Chart of Accounts'!I:I,MATCH('Linked TB'!A24,'Fusion Chart of Accounts'!H:H,0),0),0) -> Land Clearing | C24: =SUMIF('Fusion TB Drop'!$A:$A,'Linked TB'!$A24,'Fusion TB Drop'!C:C) -> 0 | D24: =SUMIF('Fusion TB Drop'!$A:$A,'Linked TB'!$A24,'Fusion TB Drop'!D:D) -> 0 | E24: 0 | G24: =SUMIF('Fusion TB Drop'!$A:$A,'Linked TB'!$A24,'Fusion TB Drop'!G:G) -> 0 | H24: =SUMIF('Fusion TB Drop'!$A:$A,'Linked TB'!$A24,'Fusion TB Drop'!H:H) -> 0 | I24: 0 | K24: 0 | L24: 0 | M24: 0 | P24: =IFERROR(MATCH(A24,'Fusion TB Drop'!A:A,0),"") -> 
A25: 141201 | B25: =IFERROR(INDEX('Fusion Chart of Accounts'!I:I,MATCH('Linked TB'!A25,'Fusion Chart of Accounts'!H:H,0),0),0) -> Organization | C25: =SUMIF('Fusion TB Drop'!$A:$A,'Linked TB'!$A25,'Fusion TB Drop'!C:C) -> 164394.1 | D25: =SUMIF('Fusion TB Drop'!$A:$A,'Linked TB'!$A25,'Fusion TB Drop'!D:D) -> 0 | E25: 164394.1 | G25: =SUMIF('Fusion TB Drop'!$A:$A,'Linked TB'!$A25,'Fusion TB Drop'!G:G) -> 0 | H25: =SUMIF('Fusion TB Drop'!$A:$A,'Linked TB'!$A25,'Fusion TB Drop'!H:H) -> 0 | I25: 0 | K25: 164394.1 | L25: 0 | M25: 164394.1 | P25: =IFERROR(MATCH(A25,'Fusion TB Drop'!A:A,0),"") -> 
A26: 141202 | B26: =IFERROR(INDEX('Fusion Chart of Accounts'!I:I,MATCH('Linked TB'!A26,'Fusion Chart of Accounts'!H:H,0),0),0) -> Franchises | C26: =SUMIF('Fusion TB Drop'!$A:$A,'Linked TB'!$A26,'Fusion TB Drop'!C:C) -> 0 | D26: =SUMIF('Fusion TB Drop'!$A:$A,'Linked TB'!$A26,'Fusion TB Drop'!D:D) -> 0 | E26: =SUM(C26:D26) -> 0 | G26: =SUMIF('Fusion TB Drop'!$A:$A,'Linked TB'!$A26,'Fusion TB Drop'!G:G) -> 0 | H26: =SUMIF('Fusion TB Drop'!$A:$A,'Linked TB'!$A26,'Fusion TB Drop'!H:H) -> 0 | I26: =SUM(G26:H26) -> 0 | K26: =C26+G26 -> 0 | L26: =D26+H26 -> 0 | M26: =SUM(K26:L26) -> 0 | P26: =IFERROR(MATCH(A26,'Fusion TB Drop'!A:A,0),"") -> 
A27: 141203 | B27: =IFERROR(INDEX('Fusion Chart of Accounts'!I:I,MATCH('Linked TB'!A27,'Fusion Chart of Accounts'!H:H,0),0),0) -> Struct and Improv General Plant | C27: =SUMIF('Fusion TB Drop'!$A:$A,'Linked TB'!$A27,'Fusion TB Drop'!C:C) -> 131781.43 | D27: =SUMIF('Fusion TB Drop'!$A:$A,'Linked TB'!$A27,'Fusion TB Drop'!D:D) -> 0 | E27: 131781.43 | G27: =SUMIF('Fusion TB Drop'!$A:$A,'Linked TB'!$A27,'Fusion TB Drop'!G:G) -> 0 | H27: =SUMIF('Fusion TB Drop'!$A:$A,'Linked TB'!$A27,'Fusion TB Drop'!H:H) -> 0 | I27: 0 | K27: 131781.43 | L27: 0 | M27: 131781.43 | P27: =IFERROR(MATCH(A27,'Fusion TB Drop'!A:A,0),"") -> 
A28: 141204 | B28: =IFERROR(INDEX('Fusion Chart of Accounts'!I:I,MATCH('Linked TB'!A28,'Fusion Chart of Accounts'!H:H,0),0),0) -> Struct and Improv Service Supplies | C28: =SUMIF('Fusion TB Drop'!$A:$A,'Linked TB'!$A28,'Fusion TB Drop'!C:C) -> 0 | D28: =SUMIF('Fusion TB Drop'!$A:$A,'Linked TB'!$A28,'Fusion TB Drop'!D:D) -> 0 | E28: 0 | G28: =SUMIF('Fusion TB Drop'!$A:$A,'Linked TB'!$A28,'Fusion TB Drop'!G:G) -> 0 | H28: =SUMIF('Fusion TB Drop'!$A:$A,'Linked TB'!$A28,'Fusion TB Drop'!H:H) -> 0 | I28: 0 | K28: 0 | L28: 0 | M28: 0 | P28: =IFERROR(MATCH(A28,'Fusion TB Drop'!A:A,0),"") -> 
A29: 141205 | B29: =IFERROR(INDEX('Fusion Chart of Accounts'!I:I,MATCH('Linked TB'!A29,'Fusion Chart of Accounts'!H:H,0),0),0) -> Struct and Improv Water Treat Plt | C29: =SUMIF('Fusion TB Drop'!$A:$A,'Linked TB'!$A29,'Fusion TB Drop'!C:C) -> 540320.81 | D29: =SUMIF('Fusion TB Drop'!$A:$A,'Linked TB'!$A29,'Fusion TB Drop'!D:D) -> 0 | E29: 540320.81 | G29: =SUMIF('Fusion TB Drop'!$A:$A,'Linked TB'!$A29,'Fusion TB Drop'!G:G) -> 0 | H29: =SUMIF('Fusion TB Drop'!$A:$A,'Linked TB'!$A29,'Fusion TB Drop'!H:H) -> 0 | I29: 0 | K29: 540320.81 | L29: 0 | M29: 540320.81 | P29: =IFERROR(MATCH(A29,'Fusion TB Drop'!A:A,0),"") -> 
A30: 141206 | B30: =IFERROR(INDEX('Fusion Chart of Accounts'!I:I,MATCH('Linked TB'!A30,'Fusion Chart of Accounts'!H:H,0),0),0) -> Struct and Improv Trans Dist Plt | C30: =SUMIF('Fusion TB Drop'!$A:$A,'Linked TB'!$A30,'Fusion TB Drop'!C:C) -> 3097.42 | D30: =SUMIF('Fusion TB Drop'!$A:$A,'Linked TB'!$A30,'Fusion TB Drop'!D:D) -> 0 | E30: 3097.42 | G30: =SUMIF('Fusion TB Drop'!$A:$A,'Linked TB'!$A30,'Fusion TB Drop'!G:G) -> 0 | H30: =SUMIF('Fusion TB Drop'!$A:$A,'Linked TB'!$A30,'Fusion TB Drop'!H:H) -> 0 | I30: 0 | K30: 3097.42 | L30: 0 | M30: 3097.42 | P30: =IFERROR(MATCH(A30,'Fusion TB Drop'!A:A,0),"") -> 
A31: 141207 | B31: =IFERROR(INDEX('Fusion Chart of Accounts'!I:I,MATCH('Linked TB'!A31,'Fusion Chart of Accounts'!H:H,0),0),0) -> Struct and Improv Collect Plant | C31: =SUMIF('Fusion TB Drop'!$A:$A,'Linked TB'!$A31,'Fusion TB Drop'!C:C) -> 0 | D31: =SUMIF('Fusion TB Drop'!$A:$A,'Linked TB'!$A31,'Fusion TB Drop'!D:D) -> 0 | E31: 0 | G31: =SUMIF('Fusion TB Drop'!$A:$A,'Linked TB'!$A31,'Fusion TB Drop'!G:G) -> 0 | H31: =SUMIF('Fusion TB Drop'!$A:$A,'Linked TB'!$A31,'Fusion TB Drop'!H:H) -> 0 | I31: 0 | K31: 0 | L31: 0 | M31: 0 | P31: =IFERROR(MATCH(A31,'Fusion TB Drop'!A:A,0),"") -> 
A32: 141208 | B32: =IFERROR(INDEX('Fusion Chart of Accounts'!I:I,MATCH('Linked TB'!A32,'Fusion Chart of Accounts'!H:H,0),0),0) -> Struct and Improv Pump Plant | C32: =SUMIF('Fusion TB Drop'!$A:$A,'Linked TB'!$A32,'Fusion TB Drop'!C:C) -> 0 | D32: =SUMIF('Fusion TB Drop'!$A:$A,'Linked TB'!$A32,'Fusion TB Drop'!D:D) -> 0 | E32: 0 | G32: =SUMIF('Fusion TB Drop'!$A:$A,'Linked TB'!$A32,'Fusion TB Drop'!G:G) -> 0 | H32: =SUMIF('Fusion TB Drop'!$A:$A,'Linked TB'!$A32,'Fusion TB Drop'!H:H) -> 0 | I32: 0 | K32: 0 | L32: 0 | M32: 0 | P32: =IFERROR(MATCH(A32,'Fusion TB Drop'!A:A,0),"") -> 
A33: 141209 | B33: =IFERROR(INDEX('Fusion Chart of Accounts'!I:I,MATCH('Linked TB'!A33,'Fusion Chart of Accounts'!H:H,0),0),0) -> Struct and Improv Treatment Plant | C33: =SUMIF('Fusion TB Drop'!$A:$A,'Linked TB'!$A33,'Fusion TB Drop'!C:C) -> 0 | D33: =SUMIF('Fusion TB Drop'!$A:$A,'Linked TB'!$A33,'Fusion TB Drop'!D:D) -> 0 | E33: 0 | G33: =SUMIF('Fusion TB Drop'!$A:$A,'Linked TB'!$A33,'Fusion TB Drop'!G:G) -> 0 | H33: =SUMIF('Fusion TB Drop'!$A:$A,'Linked TB'!$A33,'Fusion TB Drop'!H:H) -> 0 | I33: 0 | K33: 0 | L33: 0 | M33: 0 | P33: =IFERROR(MATCH(A33,'Fusion TB Drop'!A:A,0),"") -> 
A34: 141210 | B34: =IFERROR(INDEX('Fusion Chart of Accounts'!I:I,MATCH('Linked TB'!A34,'Fusion Chart of Accounts'!H:H,0),0),0) -> Struct and Improv Reclaim WTP | C34: =SUMIF('Fusion TB Drop'!$A:$A,'Linked TB'!$A34,'Fusion TB Drop'!C:C) -> 0 | D34: =SUMIF('Fusion TB Drop'!$A:$A,'Linked TB'!$A34,'Fusion TB Drop'!D:D) -> 0 | E34: 0 | G34: =SUMIF('Fusion TB Drop'!$A:$A,'Linked TB'!$A34,'Fusion TB Drop'!G:G) -> 0 | H34: =SUMIF('Fusion TB Drop'!$A:$A,'Linked TB'!$A34,'Fusion TB Drop'!H:H) -> 0 | I34: 0 | K34: 0 | L34: 0 | M34: 0 | P34: =IFERROR(MATCH(A34,'Fusion TB Drop'!A:A,0),"") -> 
A35: 141211 | B35: =IFERROR(INDEX('Fusion Chart of Accounts'!I:I,MATCH('Linked TB'!A35,'Fusion Chart of Accounts'!H:H,0),0),0) -> Struct and Improv Reclaim Wtr Dist | C35: =SUMIF('Fusion TB Drop'!$A:$A,'Linked TB'!$A35,'Fusion TB Drop'!C:C) -> 128345.7 | D35: =SUMIF('Fusion TB Drop'!$A:$A,'Linked TB'!$A35,'Fusion TB Drop'!D:D) -> 0 | E35: 128345.7 | G35: =SUMIF('Fusion TB Drop'!$A:$A,'Linked TB'!$A35,'Fusion TB Drop'!G:G) -> 0 | H35: =SUMIF('Fusion TB Drop'!$A:$A,'Linked TB'!$A35,'Fusion TB Drop'!H:H) -> 0 | I35: 0 | K35: 128345.7 | L35: 0 | M35: 128345.7 | P35: =IFERROR(MATCH(A35,'Fusion TB Drop'!A:A,0),"") -> 
A36: 141212 | B36: =IFERROR(INDEX('Fusion Chart of Accounts'!I:I,MATCH('Linked TB'!A36,'Fusion Chart of Accounts'!H:H,0),0),0) -> Struct and Improv Production | C36: =SUMIF('Fusion TB Drop'!$A:$A,'Linked TB'!$A36,'Fusion TB Drop'!C:C) -> 0 | D36: =SUMIF('Fusion TB Drop'!$A:$A,'Linked TB'!$A36,'Fusion TB Drop'!D:D) -> 0 | E36: 0 | G36: =SUMIF('Fusion TB Drop'!$A:$A,'Linked TB'!$A36,'Fusion TB Drop'!G:G) -> 0 | H36: =SUMIF('Fusion TB Drop'!$A:$A,'Linked TB'!$A36,'Fusion TB Drop'!H:H) -> 0 | I36: 0 | K36: 0 | L36: 0 | M36: 0 | P36: =IFERROR(MATCH(A36,'Fusion TB Drop'!A:A,0),"") -> 
A37: 141213 | B37: =IFERROR(INDEX('Fusion Chart of Accounts'!I:I,MATCH('Linked TB'!A37,'Fusion Chart of Accounts'!H:H,0),0),0) -> Struct and Improv Natural Gas | C37: =SUMIF('Fusion TB Drop'!$A:$A,'Linked TB'!$A37,'Fusion TB Drop'!C:C) -> 0 | D37: =SUMIF('Fusion TB Drop'!$A:$A,'Linked TB'!$A37,'Fusion TB Drop'!D:D) -> 0 | E37: 0 | G37: =SUMIF('Fusion TB Drop'!$A:$A,'Linked TB'!$A37,'Fusion TB Drop'!G:G) -> 0 | H37: =SUMIF('Fusion TB Drop'!$A:$A,'Linked TB'!$A37,'Fusion TB Drop'!H:H) -> 0 | I37: 0 | K37: 0 | L37: 0 | M37: 0 | P37: =IFERROR(MATCH(A37,'Fusion TB Drop'!A:A,0),"") -> 
A38: 141214 | B38: =IFERROR(INDEX('Fusion Chart of Accounts'!I:I,MATCH('Linked TB'!A38,'Fusion Chart of Accounts'!H:H,0),0),0) -> Struct and Improv Transmissions | C38: =SUMIF('Fusion TB Drop'!$A:$A,'Linked TB'!$A38,'Fusion TB Drop'!C:C) -> 0 | D38: =SUMIF('Fusion TB Drop'!$A:$A,'Linked TB'!$A38,'Fusion TB Drop'!D:D) -> 0 | E38: 0 | G38: =SUMIF('Fusion TB Drop'!$A:$A,'Linked TB'!$A38,'Fusion TB Drop'!G:G) -> 0 | H38: =SUMIF('Fusion TB Drop'!$A:$A,'Linked TB'!$A38,'Fusion TB Drop'!H:H) -> 0 | I38: 0 | K38: 0 | L38: 0 | M38: 0 | P38: =IFERROR(MATCH(A38,'Fusion TB Drop'!A:A,0),"") -> 
A39: 141215 | B39: =IFERROR(INDEX('Fusion Chart of Accounts'!I:I,MATCH('Linked TB'!A39,'Fusion Chart of Accounts'!H:H,0),0),0) -> Struct and Improv Distribution | C39: =SUMIF('Fusion TB Drop'!$A:$A,'Linked TB'!$A39,'Fusion TB Drop'!C:C) -> 0 | D39: =SUMIF('Fusion TB Drop'!$A:$A,'Linked TB'!$A39,'Fusion TB Drop'!D:D) -> 0 | E39: 0 | G39: =SUMIF('Fusion TB Drop'!$A:$A,'Linked TB'!$A39,'Fusion TB Drop'!G:G) -> 0 | H39: =SUMIF('Fusion TB Drop'!$A:$A,'Linked TB'!$A39,'Fusion TB Drop'!H:H) -> 0 | I39: 0 | K39: 0 | L39: 0 | M39: 0 | P39: =IFERROR(MATCH(A39,'Fusion TB Drop'!A:A,0),"") -> 
A40: 141216 | B40: =IFERROR(INDEX('Fusion Chart of Accounts'!I:I,MATCH('Linked TB'!A40,'Fusion Chart of Accounts'!H:H,0),0),0) -> Struct and Improv Electrical | C40: =SUMIF('Fusion TB Drop'!$A:$A,'Linked TB'!$A40,'Fusion TB Drop'!C:C) -> 0 | D40: =SUMIF('Fusion TB Drop'!$A:$A,'Linked TB'!$A40,'Fusion TB Drop'!D:D) -> 0 | E40: 0 | G40: =SUMIF('Fusion TB Drop'!$A:$A,'Linked TB'!$A40,'Fusion TB Drop'!G:G) -> 0 | H40: =SUMIF('Fusion TB Drop'!$A:$A,'Linked TB'!$A40,'Fusion TB Drop'!H:H) -> 0 | I40: 0 | K40: 0 | L40: 0 | M40: 0 | P40: =IFERROR(MATCH(A40,'Fusion TB Drop'!A:A,0),"") -> 
A41: 141217 | B41: =IFERROR(INDEX('Fusion Chart of Accounts'!I:I,MATCH('Linked TB'!A41,'Fusion Chart of Accounts'!H:H,0),0),0) -> Struct and Improv Propane | C41: =SUMIF('Fusion TB Drop'!$A:$A,'Linked TB'!$A41,'Fusion TB Drop'!C:C) -> 0 | D41: =SUMIF('Fusion TB Drop'!$A:$A,'Linked TB'!$A41,'Fusion TB Drop'!D:D) -> 0 | E41: 0 | G41: =SUMIF('Fusion TB Drop'!$A:$A,'Linked TB'!$A41,'Fusion TB Drop'!G:G) -> 0 | H41: =SUMIF('Fusion TB Drop'!$A:$A,'Linked TB'!$A41,'Fusion TB Drop'!H:H) -> 0 | I41: 0 | K41: 0 | L41: 0 | M41: 0 | P41: =IFERROR(MATCH(A41,'Fusion TB Drop'!A:A,0),"") -> 
A42: 141218 | B42: =IFERROR(INDEX('Fusion Chart of Accounts'!I:I,MATCH('Linked TB'!A42,'Fusion Chart of Accounts'!H:H,0),0),0) -> Struct and Improv Municipal | C42: =SUMIF('Fusion TB Drop'!$A:$A,'Linked TB'!$A42,'Fusion TB Drop'!C:C) -> 0 | D42: =SUMIF('Fusion TB Drop'!$A:$A,'Linked TB'!$A42,'Fusion TB Drop'!D:D) -> 0 | E42: 0 | G42: =SUMIF('Fusion TB Drop'!$A:$A,'Linked TB'!$A42,'Fusion TB Drop'!G:G) -> 0 | H42: =SUMIF('Fusion TB Drop'!$A:$A,'Linked TB'!$A42,'Fusion TB Drop'!H:H) -> 0 | I42: 0 | K42: 0 | L42: 0 | M42: 0 | P42: =IFERROR(MATCH(A42,'Fusion TB Drop'!A:A,0),"") -> 
A43: 141219 | B43: =IFERROR(INDEX('Fusion Chart of Accounts'!I:I,MATCH('Linked TB'!A43,'Fusion Chart of Accounts'!H:H,0),0),0) -> Struct and Improv Biomass | C43: =SUMIF('Fusion TB Drop'!$A:$A,'Linked TB'!$A43,'Fusion TB Drop'!C:C) -> 0 | D43: =SUMIF('Fusion TB Drop'!$A:$A,'Linked TB'!$A43,'Fusion TB Drop'!D:D) -> 0 | E43: 0 | G43: =SUMIF('Fusion TB Drop'!$A:$A,'Linked TB'!$A43,'Fusion TB Drop'!G:G) -> 0 | H43: =SUMIF('Fusion TB Drop'!$A:$A,'Linked TB'!$A43,'Fusion TB Drop'!H:H) -> 0 | I43: 0 | K43: 0 | L43: 0 | M43: 0 | P43: =IFERROR(MATCH(A43,'Fusion TB Drop'!A:A,0),"") -> 
A44: 141220 | B44: =IFERROR(INDEX('Fusion Chart of Accounts'!I:I,MATCH('Linked TB'!A44,'Fusion Chart of Accounts'!H:H,0),0),0) -> Struct and Improv Office | C44: =SUMIF('Fusion TB Drop'!$A:$A,'Linked TB'!$A44,'Fusion TB Drop'!C:C) -> 158388.17 | D44: =SUMIF('Fusion TB Drop'!$A:$A,'Linked TB'!$A44,'Fusion TB Drop'!D:D) -> 0 | E44: 158388.17 | G44: =SUMIF('Fusion TB Drop'!$A:$A,'Linked TB'!$A44,'Fusion TB Drop'!G:G) -> 0 | H44: =SUMIF('Fusion TB Drop'!$A:$A,'Linked TB'!$A44,'Fusion TB Drop'!H:H) -> 0 | I44: 0 | K44: 158388.17 | L44: 0 | M44: 158388.17 | P44: =IFERROR(MATCH(A44,'Fusion TB Drop'!A:A,0),"") -> 
A45: 141221 | B45: =IFERROR(INDEX('Fusion Chart of Accounts'!I:I,MATCH('Linked TB'!A45,'Fusion Chart of Accounts'!H:H,0),0),0) -> Collecting Reservoirs | C45: =SUMIF('Fusion TB Drop'!$A:$A,'Linked TB'!$A45,'Fusion TB Drop'!C:C) -> 0 | D45: =SUMIF('Fusion TB Drop'!$A:$A,'Linked TB'!$A45,'Fusion TB Drop'!D:D) -> 0 | E45: 0 | G45: =SUMIF('Fusion TB Drop'!$A:$A,'Linked TB'!$A45,'Fusion TB Drop'!G:G) -> 0 | H45: =SUMIF('Fusion TB Drop'!$A:$A,'Linked TB'!$A45,'Fusion TB Drop'!H:H) -> 0 | I45: 0 | K45: 0 | L45: 0 | M45: 0 | P45: =IFERROR(MATCH(A45,'Fusion TB Drop'!A:A,0),"") -> 
A46: 141222 | B46: =IFERROR(INDEX('Fusion Chart of Accounts'!I:I,MATCH('Linked TB'!A46,'Fusion Chart of Accounts'!H:H,0),0),0) -> Lake, River, Other Intakes | C46: =SUMIF('Fusion TB Drop'!$A:$A,'Linked TB'!$A46,'Fusion TB Drop'!C:C) -> 0 | D46: =SUMIF('Fusion TB Drop'!$A:$A,'Linked TB'!$A46,'Fusion TB Drop'!D:D) -> 0 | E46: 0 | G46: =SUMIF('Fusion TB Drop'!$A:$A,'Linked TB'!$A46,'Fusion TB Drop'!G:G) -> 0 | H46: =SUMIF('Fusion TB Drop'!$A:$A,'Linked TB'!$A46,'Fusion TB Drop'!H:H) -> 0 | I46: 0 | K46: 0 | L46: 0 | M46: 0 | P46: =IFERROR(MATCH(A46,'Fusion TB Drop'!A:A,0),"") -> 
A47: 141223 | B47: =IFERROR(INDEX('Fusion Chart of Accounts'!I:I,MATCH('Linked TB'!A47,'Fusion Chart of Accounts'!H:H,0),0),0) -> Wells and Springs | C47: =SUMIF('Fusion TB Drop'!$A:$A,'Linked TB'!$A47,'Fusion TB Drop'!C:C) -> 477485.13 | D47: =SUMIF('Fusion TB Drop'!$A:$A,'Linked TB'!$A47,'Fusion TB Drop'!D:D) -> 0 | E47: 477485.13 | G47: =SUMIF('Fusion TB Drop'!$A:$A,'Linked TB'!$A47,'Fusion TB Drop'!G:G) -> 0 | H47: =SUMIF('Fusion TB Drop'!$A:$A,'Linked TB'!$A47,'Fusion TB Drop'!H:H) -> 0 | I47: 0 | K47: 477485.13 | L47: 0 | M47: 477485.13 | P47: =IFERROR(MATCH(A47,'Fusion TB Drop'!A:A,0),"") -> 
A48: 141224 | B48: =IFERROR(INDEX('Fusion Chart of Accounts'!I:I,MATCH('Linked TB'!A48,'Fusion Chart of Accounts'!H:H,0),0),0) -> Infiltration Gallery | C48: =SUMIF('Fusion TB Drop'!$A:$A,'Linked TB'!$A48,'Fusion TB Drop'!C:C) -> 0 | D48: =SUMIF('Fusion TB Drop'!$A:$A,'Linked TB'!$A48,'Fusion TB Drop'!D:D) -> 0 | E48: 0 | G48: =SUMIF('Fusion TB Drop'!$A:$A,'Linked TB'!$A48,'Fusion TB Drop'!G:G) -> 0 | H48: =SUMIF('Fusion TB Drop'!$A:$A,'Linked TB'!$A48,'Fusion TB Drop'!H:H) -> 0 | I48: 0 | K48: 0 | L48: 0 | M48: 0 | P48: =IFERROR(MATCH(A48,'Fusion TB Drop'!A:A,0),"") -> 
A49: 141225 | B49: =IFERROR(INDEX('Fusion Chart of Accounts'!I:I,MATCH('Linked TB'!A49,'Fusion Chart of Accounts'!H:H,0),0),0) -> Supply Mains | C49: =SUMIF('Fusion TB Drop'!$A:$A,'Linked TB'!$A49,'Fusion TB Drop'!C:C) -> 23207.33 | D49: =SUMIF('Fusion TB Drop'!$A:$A,'Linked TB'!$A49,'Fusion TB Drop'!D:D) -> 0 | E49: 23207.33 | G49: =SUMIF('Fusion TB Drop'!$A:$A,'Linked TB'!$A49,'Fusion TB Drop'!G:G) -> 0 | H49: =SUMIF('Fusion TB Drop'!$A:$A,'Linked TB'!$A49,'Fusion TB Drop'!H:H) -> 0 | I49: 0 | K49: 23207.33 | L49: 0 | M49: 23207.33 | P49: =IFERROR(MATCH(A49,'Fusion TB Drop'!A:A,0),"") -> 
A50: 141226 | B50: =IFERROR(INDEX('Fusion Chart of Accounts'!I:I,MATCH('Linked TB'!A50,'Fusion Chart of Accounts'!H:H,0),0),0) -> Power Generation Equipment | C50: =SUMIF('Fusion TB Drop'!$A:$A,'Linked TB'!$A50,'Fusion TB Drop'!C:C) -> 0 | D50: =SUMIF('Fusion TB Drop'!$A:$A,'Linked TB'!$A50,'Fusion TB Drop'!D:D) -> 0 | E50: 0 | G50: =SUMIF('Fusion TB Drop'!$A:$A,'Linked TB'!$A50,'Fusion TB Drop'!G:G) -> 0 | H50: =SUMIF('Fusion TB Drop'!$A:$A,'Linked TB'!$A50,'Fusion TB Drop'!H:H) -> 0 | I50: 0 | K50: 0 | L50: 0 | M50: 0 | P50: =IFERROR(MATCH(A50,'Fusion TB Drop'!A:A,0),"") -> 
A51: 141227 | B51: =IFERROR(INDEX('Fusion Chart of Accounts'!I:I,MATCH('Linked TB'!A51,'Fusion Chart of Accounts'!H:H,0),0),0) -> Electric Pump Equip Src Pump | C51: =SUMIF('Fusion TB Drop'!$A:$A,'Linked TB'!$A51,'Fusion TB Drop'!C:C) -> 44565.44 | D51: =SUMIF('Fusion TB Drop'!$A:$A,'Linked TB'!$A51,'Fusion TB Drop'!D:D) -> 0 | E51: 44565.44 | G51: =SUMIF('Fusion TB Drop'!$A:$A,'Linked TB'!$A51,'Fusion TB Drop'!G:G) -> 0 | H51: =SUMIF('Fusion TB Drop'!$A:$A,'Linked TB'!$A51,'Fusion TB Drop'!H:H) -> 0 | I51: 0 | K51: 44565.44 | L51: 0 | M51: 44565.44 | P51: =IFERROR(MATCH(A51,'Fusion TB Drop'!A:A,0),"") -> 
A52: 141228 | B52: =IFERROR(INDEX('Fusion Chart of Accounts'!I:I,MATCH('Linked TB'!A52,'Fusion Chart of Accounts'!H:H,0),0),0) -> Electric Pump Equip WTP | C52: =SUMIF('Fusion TB Drop'!$A:$A,'Linked TB'!$A52,'Fusion TB Drop'!C:C) -> 835583.34 | D52: =SUMIF('Fusion TB Drop'!$A:$A,'Linked TB'!$A52,'Fusion TB Drop'!D:D) -> 0 | E52: 835583.34 | G52: =SUMIF('Fusion TB Drop'!$A:$A,'Linked TB'!$A52,'Fusion TB Drop'!G:G) -> 0 | H52: =SUMIF('Fusion TB Drop'!$A:$A,'Linked TB'!$A52,'Fusion TB Drop'!H:H) -> 0 | I52: 0 | K52: 835583.34 | L52: 0 | M52: 835583.34 | P52: =IFERROR(MATCH(A52,'Fusion TB Drop'!A:A,0),"") -> 
A53: 141229 | B53: =IFERROR(INDEX('Fusion Chart of Accounts'!I:I,MATCH('Linked TB'!A53,'Fusion Chart of Accounts'!H:H,0),0),0) -> Electric Pump Equip Trans Dist | C53: =SUMIF('Fusion TB Drop'!$A:$A,'Linked TB'!$A53,'Fusion TB Drop'!C:C) -> 17225.49 | D53: =SUMIF('Fusion TB Drop'!$A:$A,'Linked TB'!$A53,'Fusion TB Drop'!D:D) -> 0 | E53: 17225.49 | G53: =SUMIF('Fusion TB Drop'!$A:$A,'Linked TB'!$A53,'Fusion TB Drop'!G:G) -> 0 | H53: =SUMIF('Fusion TB Drop'!$A:$A,'Linked TB'!$A53,'Fusion TB Drop'!H:H) -> 0 | I53: 0 | K53: 17225.49 | L53: 0 | M53: 17225.49 | P53: =IFERROR(MATCH(A53,'Fusion TB Drop'!A:A,0),"") -> 
A54: 141230 | B54: =IFERROR(INDEX('Fusion Chart of Accounts'!I:I,MATCH('Linked TB'!A54,'Fusion Chart of Accounts'!H:H,0),0),0) -> Water Treatment Equipment | C54: =SUMIF('Fusion TB Drop'!$A:$A,'Linked TB'!$A54,'Fusion TB Drop'!C:C) -> 1186653.11 | D54: =SUMIF('Fusion TB Drop'!$A:$A,'Linked TB'!$A54,'Fusion TB Drop'!D:D) -> 0 | E54: 1186653.11 | G54: =SUMIF('Fusion TB Drop'!$A:$A,'Linked TB'!$A54,'Fusion TB Drop'!G:G) -> 0 | H54: =SUMIF('Fusion TB Drop'!$A:$A,'Linked TB'!$A54,'Fusion TB Drop'!H:H) -> 0 | I54: 0 | K54: 1186653.11 | L54: 0 | M54: 1186653.11 | P54: =IFERROR(MATCH(A54,'Fusion TB Drop'!A:A,0),"") -> 
A55: 141231 | B55: =IFERROR(INDEX('Fusion Chart of Accounts'!I:I,MATCH('Linked TB'!A55,'Fusion Chart of Accounts'!H:H,0),0),0) -> Dist Resv and Standpipes | C55: =SUMIF('Fusion TB Drop'!$A:$A,'Linked TB'!$A55,'Fusion TB Drop'!C:C) -> 545326.33 | D55: =SUMIF('Fusion TB Drop'!$A:$A,'Linked TB'!$A55,'Fusion TB Drop'!D:D) -> 0 | E55: 545326.33 | G55: =SUMIF('Fusion TB Drop'!$A:$A,'Linked TB'!$A55,'Fusion TB Drop'!G:G) -> 0 | H55: =SUMIF('Fusion TB Drop'!$A:$A,'Linked TB'!$A55,'Fusion TB Drop'!H:H) -> 0 | I55: 0 | K55: 545326.33 | L55: 0 | M55: 545326.33 | P55: =IFERROR(MATCH(A55,'Fusion TB Drop'!A:A,0),"") -> 
A56: 141232 | B56: =IFERROR(INDEX('Fusion Chart of Accounts'!I:I,MATCH('Linked TB'!A56,'Fusion Chart of Accounts'!H:H,0),0),0) -> Trans and Distr Mains | C56: =SUMIF('Fusion TB Drop'!$A:$A,'Linked TB'!$A56,'Fusion TB Drop'!C:C) -> 3710694.08 | D56: =SUMIF('Fusion TB Drop'!$A:$A,'Linked TB'!$A56,'Fusion TB Drop'!D:D) -> 0 | E56: 3710694.08 | G56: =SUMIF('Fusion TB Drop'!$A:$A,'Linked TB'!$A56,'Fusion TB Drop'!G:G) -> 0 | H56: =SUMIF('Fusion TB Drop'!$A:$A,'Linked TB'!$A56,'Fusion TB Drop'!H:H) -> 0 | I56: 0 | K56: 3710694.08 | L56: 0 | M56: 3710694.08 | P56: =IFERROR(MATCH(A56,'Fusion TB Drop'!A:A,0),"") -> 
A57: 141233 | B57: =IFERROR(INDEX('Fusion Chart of Accounts'!I:I,MATCH('Linked TB'!A57,'Fusion Chart of Accounts'!H:H,0),0),0) -> Service Lines | C57: =SUMIF('Fusion TB Drop'!$A:$A,'Linked TB'!$A57,'Fusion TB Drop'!C:C) -> 1177976.67 | D57: =SUMIF('Fusion TB Drop'!$A:$A,'Linked TB'!$A57,'Fusion TB Drop'!D:D) -> 0 | E57: 1177976.67 | G57: =SUMIF('Fusion TB Drop'!$A:$A,'Linked TB'!$A57,'Fusion TB Drop'!G:G) -> 0 | H57: =SUMIF('Fusion TB Drop'!$A:$A,'Linked TB'!$A57,'Fusion TB Drop'!H:H) -> 0 | I57: 0 | K57: 1177976.67 | L57: 0 | M57: 1177976.67 | P57: =IFERROR(MATCH(A57,'Fusion TB Drop'!A:A,0),"") -> 
A58: 141234 | B58: =IFERROR(INDEX('Fusion Chart of Accounts'!I:I,MATCH('Linked TB'!A58,'Fusion Chart of Accounts'!H:H,0),0),0) -> Meters | C58: =SUMIF('Fusion TB Drop'!$A:$A,'Linked TB'!$A58,'Fusion TB Drop'!C:C) -> 784681.16 | D58: =SUMIF('Fusion TB Drop'!$A:$A,'Linked TB'!$A58,'Fusion TB Drop'!D:D) -> 0 | E58: 784681.16 | G58: =SUMIF('Fusion TB Drop'!$A:$A,'Linked TB'!$A58,'Fusion TB Drop'!G:G) -> 0 | H58: =SUMIF('Fusion TB Drop'!$A:$A,'Linked TB'!$A58,'Fusion TB Drop'!H:H) -> 0 | I58: 0 | K58: 784681.16 | L58: 0 | M58: 784681.16 | P58: =IFERROR(MATCH(A58,'Fusion TB Drop'!A:A,0),"") -> 
A59: 141235 | B59: =IFERROR(INDEX('Fusion Chart of Accounts'!I:I,MATCH('Linked TB'!A59,'Fusion Chart of Accounts'!H:H,0),0),0) -> Meter Installations | C59: =SUMIF('Fusion TB Drop'!$A:$A,'Linked TB'!$A59,'Fusion TB Drop'!C:C) -> 703273.95 | D59: =SUMIF('Fusion TB Drop'!$A:$A,'Linked TB'!$A59,'Fusion TB Drop'!D:D) -> 0 | E59: 703273.95 | G59: =SUMIF('Fusion TB Drop'!$A:$A,'Linked TB'!$A59,'Fusion TB Drop'!G:G) -> 0 | H59: =SUMIF('Fusion TB Drop'!$A:$A,'Linked TB'!$A59,'Fusion TB Drop'!H:H) -> 0 | I59: 0 | K59: 703273.95 | L59: 0 | M59: 703273.95 | P59: =IFERROR(MATCH(A59,'Fusion TB Drop'!A:A,0),"") -> 
A60: 141236 | B60: =IFERROR(INDEX('Fusion Chart of Accounts'!I:I,MATCH('Linked TB'!A60,'Fusion Chart of Accounts'!H:H,0),0),0) -> Hydrants | C60: =SUMIF('Fusion TB Drop'!$A:$A,'Linked TB'!$A60,'Fusion TB Drop'!C:C) -> 498712.33 | D60: =SUMIF('Fusion TB Drop'!$A:$A,'Linked TB'!$A60,'Fusion TB Drop'!D:D) -> 0 | E60: 498712.33 | G60: =SUMIF('Fusion TB Drop'!$A:$A,'Linked TB'!$A60,'Fusion TB Drop'!G:G) -> 0 | H60: =SUMIF('Fusion TB Drop'!$A:$A,'Linked TB'!$A60,'Fusion TB Drop'!H:H) -> 0 | I60: 0 | K60: 498712.33 | L60: 0 | M60: 498712.33 | P60: =IFERROR(MATCH(A60,'Fusion TB Drop'!A:A,0),"") -> 
A61: 141237 | B61: =IFERROR(INDEX('Fusion Chart of Accounts'!I:I,MATCH('Linked TB'!A61,'Fusion Chart of Accounts'!H:H,0),0),0) -> Backflow Prevention Devices | C61: =SUMIF('Fusion TB Drop'!$A:$A,'Linked TB'!$A61,'Fusion TB Drop'!C:C) -> 418.33 | D61: =SUMIF('Fusion TB Drop'!$A:$A,'Linked TB'!$A61,'Fusion TB Drop'!D:D) -> 0 | E61: 418.33 | G61: =SUMIF('Fusion TB Drop'!$A:$A,'Linked TB'!$A61,'Fusion TB Drop'!G:G) -> 0 | H61: =SUMIF('Fusion TB Drop'!$A:$A,'Linked TB'!$A61,'Fusion TB Drop'!H:H) -> 0 | I61: 0 | K61: 418.33 | L61: 0 | M61: 418.33 | P61: =IFERROR(MATCH(A61,'Fusion TB Drop'!A:A,0),"") -> 
A62: 141238 | B62: =IFERROR(INDEX('Fusion Chart of Accounts'!I:I,MATCH('Linked TB'!A62,'Fusion Chart of Accounts'!H:H,0),0),0) -> Power Gen Equip Coll Plt | C62: =SUMIF('Fusion TB Drop'!$A:$A,'Linked TB'!$A62,'Fusion TB Drop'!C:C) -> 0 | D62: =SUMIF('Fusion TB Drop'!$A:$A,'Linked TB'!$A62,'Fusion TB Drop'!D:D) -> 0 | E62: 0 | G62: =SUMIF('Fusion TB Drop'!$A:$A,'Linked TB'!$A62,'Fusion TB Drop'!G:G) -> 0 | H62: =SUMIF('Fusion TB Drop'!$A:$A,'Linked TB'!$A62,'Fusion TB Drop'!H:H) -> 0 | I62: 0 | K62: 0 | L62: 0 | M62: 0 | P62: =IFERROR(MATCH(A62,'Fusion TB Drop'!A:A,0),"") -> 
A63: 141239 | B63: =IFERROR(INDEX('Fusion Chart of Accounts'!I:I,MATCH('Linked TB'!A63,'Fusion Chart of Accounts'!H:H,0),0),0) -> Power Gen Equip Pump Plt | C63: =SUMIF('Fusion TB Drop'!$A:$A,'Linked TB'!$A63,'Fusion TB Drop'!C:C) -> 0 | D63: =SUMIF('Fusion TB Drop'!$A:$A,'Linked TB'!$A63,'Fusion TB Drop'!D:D) -> 0 | E63: 0 | G63: =SUMIF('Fusion TB Drop'!$A:$A,'Linked TB'!$A63,'Fusion TB Drop'!G:G) -> 0 | H63: =SUMIF('Fusion TB Drop'!$A:$A,'Linked TB'!$A63,'Fusion TB Drop'!H:H) -> 0 | I63: 0 | K63: 0 | L63: 0 | M63: 0 | P63: =IFERROR(MATCH(A63,'Fusion TB Drop'!A:A,0),"") -> 
A64: 141240 | B64: =IFERROR(INDEX('Fusion Chart of Accounts'!I:I,MATCH('Linked TB'!A64,'Fusion Chart of Accounts'!H:H,0),0),0) -> Power Gen Equip Treat Plt | C64: =SUMIF('Fusion TB Drop'!$A:$A,'Linked TB'!$A64,'Fusion TB Drop'!C:C) -> 0 | D64: =SUMIF('Fusion TB Drop'!$A:$A,'Linked TB'!$A64,'Fusion TB Drop'!D:D) -> 0 | E64: 0 | G64: =SUMIF('Fusion TB Drop'!$A:$A,'Linked TB'!$A64,'Fusion TB Drop'!G:G) -> 0 | H64: =SUMIF('Fusion TB Drop'!$A:$A,'Linked TB'!$A64,'Fusion TB Drop'!H:H) -> 0 | I64: 0 | K64: 0 | L64: 0 | M64: 0 | P64: =IFERROR(MATCH(A64,'Fusion TB Drop'!A:A,0),"") -> 
A65: 141241 | B65: =IFERROR(INDEX('Fusion Chart of Accounts'!I:I,MATCH('Linked TB'!A65,'Fusion Chart of Accounts'!H:H,0),0),0) -> Sewer Force Main | C65: =SUMIF('Fusion TB Drop'!$A:$A,'Linked TB'!$A65,'Fusion TB Drop'!C:C) -> 0 | D65: =SUMIF('Fusion TB Drop'!$A:$A,'Linked TB'!$A65,'Fusion TB Drop'!D:D) -> 0 | E65: 0 | G65: =SUMIF('Fusion TB Drop'!$A:$A,'Linked TB'!$A65,'Fusion TB Drop'!G:G) -> 0 | H65: =SUMIF('Fusion TB Drop'!$A:$A,'Linked TB'!$A65,'Fusion TB Drop'!H:H) -> 0 | I65: 0 | K65: 0 | L65: 0 | M65: 0 | P65: =IFERROR(MATCH(A65,'Fusion TB Drop'!A:A,0),"") -> 
A66: 141242 | B66: =IFERROR(INDEX('Fusion Chart of Accounts'!I:I,MATCH('Linked TB'!A66,'Fusion Chart of Accounts'!H:H,0),0),0) -> Sewer Gravity Main | C66: =SUMIF('Fusion TB Drop'!$A:$A,'Linked TB'!$A66,'Fusion TB Drop'!C:C) -> 0 | D66: =SUMIF('Fusion TB Drop'!$A:$A,'Linked TB'!$A66,'Fusion TB Drop'!D:D) -> 0 | E66: 0 | G66: =SUMIF('Fusion TB Drop'!$A:$A,'Linked TB'!$A66,'Fusion TB Drop'!G:G) -> 0 | H66: =SUMIF('Fusion TB Drop'!$A:$A,'Linked TB'!$A66,'Fusion TB Drop'!H:H) -> 0 | I66: 0 | K66: 0 | L66: 0 | M66: 0 | P66: =IFERROR(MATCH(A66,'Fusion TB Drop'!A:A,0),"") -> 
A67: 141243 | B67: =IFERROR(INDEX('Fusion Chart of Accounts'!I:I,MATCH('Linked TB'!A67,'Fusion Chart of Accounts'!H:H,0),0),0) -> Manholes | C67: =SUMIF('Fusion TB Drop'!$A:$A,'Linked TB'!$A67,'Fusion TB Drop'!C:C) -> 0 | D67: =SUMIF('Fusion TB Drop'!$A:$A,'Linked TB'!$A67,'Fusion TB Drop'!D:D) -> 0 | E67: 0 | G67: =SUMIF('Fusion TB Drop'!$A:$A,'Linked TB'!$A67,'Fusion TB Drop'!G:G) -> 0 | H67: =SUMIF('Fusion TB Drop'!$A:$A,'Linked TB'!$A67,'Fusion TB Drop'!H:H) -> 0 | I67: 0 | K67: 0 | L67: 0 | M67: 0 | P67: =IFERROR(MATCH(A67,'Fusion TB Drop'!A:A,0),"") -> 
A68: 141244 | B68: =IFERROR(INDEX('Fusion Chart of Accounts'!I:I,MATCH('Linked TB'!A68,'Fusion Chart of Accounts'!H:H,0),0),0) -> Special Collection Structures | C68: =SUMIF('Fusion TB Drop'!$A:$A,'Linked TB'!$A68,'Fusion TB Drop'!C:C) -> 0 | D68: =SUMIF('Fusion TB Drop'!$A:$A,'Linked TB'!$A68,'Fusion TB Drop'!D:D) -> 0 | E68: 0 | G68: =SUMIF('Fusion TB Drop'!$A:$A,'Linked TB'!$A68,'Fusion TB Drop'!G:G) -> 0 | H68: =SUMIF('Fusion TB Drop'!$A:$A,'Linked TB'!$A68,'Fusion TB Drop'!H:H) -> 0 | I68: 0 | K68: 0 | L68: 0 | M68: 0 | P68: =IFERROR(MATCH(A68,'Fusion TB Drop'!A:A,0),"") -> 
A69: 141245 | B69: =IFERROR(INDEX('Fusion Chart of Accounts'!I:I,MATCH('Linked TB'!A69,'Fusion Chart of Accounts'!H:H,0),0),0) -> Service to Customers | C69: =SUMIF('Fusion TB Drop'!$A:$A,'Linked TB'!$A69,'Fusion TB Drop'!C:C) -> 0 | D69: =SUMIF('Fusion TB Drop'!$A:$A,'Linked TB'!$A69,'Fusion TB Drop'!D:D) -> 0 | E69: 0 | G69: =SUMIF('Fusion TB Drop'!$A:$A,'Linked TB'!$A69,'Fusion TB Drop'!G:G) -> 0 | H69: =SUMIF('Fusion TB Drop'!$A:$A,'Linked TB'!$A69,'Fusion TB Drop'!H:H) -> 0 | I69: 0 | K69: 0 | L69: 0 | M69: 0 | P69: =IFERROR(MATCH(A69,'Fusion TB Drop'!A:A,0),"") -> 
A70: 141246 | B70: =IFERROR(INDEX('Fusion Chart of Accounts'!I:I,MATCH('Linked TB'!A70,'Fusion Chart of Accounts'!H:H,0),0),0) -> Flow Measure Devices | C70: =SUMIF('Fusion TB Drop'!$A:$A,'Linked TB'!$A70,'Fusion TB Drop'!C:C) -> 0 | D70: =SUMIF('Fusion TB Drop'!$A:$A,'Linked TB'!$A70,'Fusion TB Drop'!D:D) -> 0 | E70: 0 | G70: =SUMIF('Fusion TB Drop'!$A:$A,'Linked TB'!$A70,'Fusion TB Drop'!G:G) -> 0 | H70: =SUMIF('Fusion TB Drop'!$A:$A,'Linked TB'!$A70,'Fusion TB Drop'!H:H) -> 0 | I70: 0 | K70: 0 | L70: 0 | M70: 0 | P70: =IFERROR(MATCH(A70,'Fusion TB Drop'!A:A,0),"") -> 
A71: 141247 | B71: =IFERROR(INDEX('Fusion Chart of Accounts'!I:I,MATCH('Linked TB'!A71,'Fusion Chart of Accounts'!H:H,0),0),0) -> Flow Measure Install | C71: =SUMIF('Fusion TB Drop'!$A:$A,'Linked TB'!$A71,'Fusion TB Drop'!C:C) -> 0 | D71: =SUMIF('Fusion TB Drop'!$A:$A,'Linked TB'!$A71,'Fusion TB Drop'!D:D) -> 0 | E71: 0 | G71: =SUMIF('Fusion TB Drop'!$A:$A,'Linked TB'!$A71,'Fusion TB Drop'!G:G) -> 0 | H71: =SUMIF('Fusion TB Drop'!$A:$A,'Linked TB'!$A71,'Fusion TB Drop'!H:H) -> 0 | I71: 0 | K71: 0 | L71: 0 | M71: 0 | P71: =IFERROR(MATCH(A71,'Fusion TB Drop'!A:A,0),"") -> 
A72: 141248 | B72: =IFERROR(INDEX('Fusion Chart of Accounts'!I:I,MATCH('Linked TB'!A72,'Fusion Chart of Accounts'!H:H,0),0),0) -> Receiving Wells | C72: =SUMIF('Fusion TB Drop'!$A:$A,'Linked TB'!$A72,'Fusion TB Drop'!C:C) -> 0 | D72: =SUMIF('Fusion TB Drop'!$A:$A,'Linked TB'!$A72,'Fusion TB Drop'!D:D) -> 0 | E72: 0 | G72: =SUMIF('Fusion TB Drop'!$A:$A,'Linked TB'!$A72,'Fusion TB Drop'!G:G) -> 0 | H72: =SUMIF('Fusion TB Drop'!$A:$A,'Linked TB'!$A72,'Fusion TB Drop'!H:H) -> 0 | I72: 0 | K72: 0 | L72: 0 | M72: 0 | P72: =IFERROR(MATCH(A72,'Fusion TB Drop'!A:A,0),"") -> 
A73: 141249 | B73: =IFERROR(INDEX('Fusion Chart of Accounts'!I:I,MATCH('Linked TB'!A73,'Fusion Chart of Accounts'!H:H,0),0),0) -> Pumping Equip Pump Plt | C73: =SUMIF('Fusion TB Drop'!$A:$A,'Linked TB'!$A73,'Fusion TB Drop'!C:C) -> 0 | D73: =SUMIF('Fusion TB Drop'!$A:$A,'Linked TB'!$A73,'Fusion TB Drop'!D:D) -> 0 | E73: 0 | G73: =SUMIF('Fusion TB Drop'!$A:$A,'Linked TB'!$A73,'Fusion TB Drop'!G:G) -> 0 | H73: =SUMIF('Fusion TB Drop'!$A:$A,'Linked TB'!$A73,'Fusion TB Drop'!H:H) -> 0 | I73: 0 | K73: 0 | L73: 0 | M73: 0 | P73: =IFERROR(MATCH(A73,'Fusion TB Drop'!A:A,0),"") -> 
A74: 141250 | B74: =IFERROR(INDEX('Fusion Chart of Accounts'!I:I,MATCH('Linked TB'!A74,'Fusion Chart of Accounts'!H:H,0),0),0) -> Pumping Equip Reclaim WTP | C74: =SUMIF('Fusion TB Drop'!$A:$A,'Linked TB'!$A74,'Fusion TB Drop'!C:C) -> 0 | D74: =SUMIF('Fusion TB Drop'!$A:$A,'Linked TB'!$A74,'Fusion TB Drop'!D:D) -> 0 | E74: 0 | G74: =SUMIF('Fusion TB Drop'!$A:$A,'Linked TB'!$A74,'Fusion TB Drop'!G:G) -> 0 | H74: =SUMIF('Fusion TB Drop'!$A:$A,'Linked TB'!$A74,'Fusion TB Drop'!H:H) -> 0 | I74: 0 | K74: 0 | L74: 0 | M74: 0 | P74: =IFERROR(MATCH(A74,'Fusion TB Drop'!A:A,0),"") -> 
A75: 141251 | B75: =IFERROR(INDEX('Fusion Chart of Accounts'!I:I,MATCH('Linked TB'!A75,'Fusion Chart of Accounts'!H:H,0),0),0) -> Pumping Equip Rcl Wtr Dist | C75: =SUMIF('Fusion TB Drop'!$A:$A,'Linked TB'!$A75,'Fusion TB Drop'!C:C) -> 0 | D75: =SUMIF('Fusion TB Drop'!$A:$A,'Linked TB'!$A75,'Fusion TB Drop'!D:D) -> 0 | E75: 0 | G75: =SUMIF('Fusion TB Drop'!$A:$A,'Linked TB'!$A75,'Fusion TB Drop'!G:G) -> 0 | H75: =SUMIF('Fusion TB Drop'!$A:$A,'Linked TB'!$A75,'Fusion TB Drop'!H:H) -> 0 | I75: 0 | K75: 0 | L75: 0 | M75: 0 | P75: =IFERROR(MATCH(A75,'Fusion TB Drop'!A:A,0),"") -> 
A76: 141252 | B76: =IFERROR(INDEX('Fusion Chart of Accounts'!I:I,MATCH('Linked TB'!A76,'Fusion Chart of Accounts'!H:H,0),0),0) -> Treat/Disp Equip Lagoon | C76: =SUMIF('Fusion TB Drop'!$A:$A,'Linked TB'!$A76,'Fusion TB Drop'!C:C) -> 0 | D76: =SUMIF('Fusion TB Drop'!$A:$A,'Linked TB'!$A76,'Fusion TB Drop'!D:D) -> 0 | E76: 0 | G76: =SUMIF('Fusion TB Drop'!$A:$A,'Linked TB'!$A76,'Fusion TB Drop'!G:G) -> 0 | H76: =SUMIF('Fusion TB Drop'!$A:$A,'Linked TB'!$A76,'Fusion TB Drop'!H:H) -> 0 | I76: 0 | K76: 0 | L76: 0 | M76: 0 | P76: =IFERROR(MATCH(A76,'Fusion TB Drop'!A:A,0),"") -> 
A77: 141253 | B77: =IFERROR(INDEX('Fusion Chart of Accounts'!I:I,MATCH('Linked TB'!A77,'Fusion Chart of Accounts'!H:H,0),0),0) -> Treat/Disp Equip Trt Plt | C77: =SUMIF('Fusion TB Drop'!$A:$A,'Linked TB'!$A77,'Fusion TB Drop'!C:C) -> 0 | D77: =SUMIF('Fusion TB Drop'!$A:$A,'Linked TB'!$A77,'Fusion TB Drop'!D:D) -> 0 | E77: 0 | G77: =SUMIF('Fusion TB Drop'!$A:$A,'Linked TB'!$A77,'Fusion TB Drop'!G:G) -> 0 | H77: =SUMIF('Fusion TB Drop'!$A:$A,'Linked TB'!$A77,'Fusion TB Drop'!H:H) -> 0 | I77: 0 | K77: 0 | L77: 0 | M77: 0 | P77: =IFERROR(MATCH(A77,'Fusion TB Drop'!A:A,0),"") -> 
A78: 141254 | B78: =IFERROR(INDEX('Fusion Chart of Accounts'!I:I,MATCH('Linked TB'!A78,'Fusion Chart of Accounts'!H:H,0),0),0) -> Treat/Disp Equip Rclm Wtr | C78: =SUMIF('Fusion TB Drop'!$A:$A,'Linked TB'!$A78,'Fusion TB Drop'!C:C) -> 0 | D78: =SUMIF('Fusion TB Drop'!$A:$A,'Linked TB'!$A78,'Fusion TB Drop'!D:D) -> 0 | E78: 0 | G78: =SUMIF('Fusion TB Drop'!$A:$A,'Linked TB'!$A78,'Fusion TB Drop'!G:G) -> 0 | H78: =SUMIF('Fusion TB Drop'!$A:$A,'Linked TB'!$A78,'Fusion TB Drop'!H:H) -> 0 | I78: 0 | K78: 0 | L78: 0 | M78: 0 | P78: =IFERROR(MATCH(A78,'Fusion TB Drop'!A:A,0),"") -> 
A79: 141255 | B79: =IFERROR(INDEX('Fusion Chart of Accounts'!I:I,MATCH('Linked TB'!A79,'Fusion Chart of Accounts'!H:H,0),0),0) -> Plant Sewers Treatment Plt | C79: =SUMIF('Fusion TB Drop'!$A:$A,'Linked TB'!$A79,'Fusion TB Drop'!C:C) -> 0 | D79: =SUMIF('Fusion TB Drop'!$A:$A,'Linked TB'!$A79,'Fusion TB Drop'!D:D) -> 0 | E79: 0 | G79: =SUMIF('Fusion TB Drop'!$A:$A,'Linked TB'!$A79,'Fusion TB Drop'!G:G) -> 0 | H79: =SUMIF('Fusion TB Drop'!$A:$A,'Linked TB'!$A79,'Fusion TB Drop'!H:H) -> 0 | I79: 0 | K79: 0 | L79: 0 | M79: 0 | P79: =IFERROR(MATCH(A79,'Fusion TB Drop'!A:A,0),"") -> 
A80: 141256 | B80: =IFERROR(INDEX('Fusion Chart of Accounts'!I:I,MATCH('Linked TB'!A80,'Fusion Chart of Accounts'!H:H,0),0),0) -> Plant Sewers Reclaim Wtr | C80: =SUMIF('Fusion TB Drop'!$A:$A,'Linked TB'!$A80,'Fusion TB Drop'!C:C) -> 0 | D80: =SUMIF('Fusion TB Drop'!$A:$A,'Linked TB'!$A80,'Fusion TB Drop'!D:D) -> 0 | E80: 0 | G80: =SUMIF('Fusion TB Drop'!$A:$A,'Linked TB'!$A80,'Fusion TB Drop'!G:G) -> 0 | H80: =SUMIF('Fusion TB Drop'!$A:$A,'Linked TB'!$A80,'Fusion TB Drop'!H:H) -> 0 | I80: 0 | K80: 0 | L80: 0 | M80: 0 | P80: =IFERROR(MATCH(A80,'Fusion TB Drop'!A:A,0),"") -> 
A81: 141257 | B81: =IFERROR(INDEX('Fusion Chart of Accounts'!I:I,MATCH('Linked TB'!A81,'Fusion Chart of Accounts'!H:H,0),0),0) -> Outfall Lines | C81: =SUMIF('Fusion TB Drop'!$A:$A,'Linked TB'!$A81,'Fusion TB Drop'!C:C) -> 0 | D81: =SUMIF('Fusion TB Drop'!$A:$A,'Linked TB'!$A81,'Fusion TB Drop'!D:D) -> 0 | E81: 0 | G81: =SUMIF('Fusion TB Drop'!$A:$A,'Linked TB'!$A81,'Fusion TB Drop'!G:G) -> 0 | H81: =SUMIF('Fusion TB Drop'!$A:$A,'Linked TB'!$A81,'Fusion TB Drop'!H:H) -> 0 | I81: 0 | K81: 0 | L81: 0 | M81: 0 | P81: =IFERROR(MATCH(A81,'Fusion TB Drop'!A:A,0),"") -> 
A82: 141258 | B82: =IFERROR(INDEX('Fusion Chart of Accounts'!I:I,MATCH('Linked TB'!A82,'Fusion Chart of Accounts'!H:H,0),0),0) -> Reservoirs | C82: =SUMIF('Fusion TB Drop'!$A:$A,'Linked TB'!$A82,'Fusion TB Drop'!C:C) -> 0 | D82: =SUMIF('Fusion TB Drop'!$A:$A,'Linked TB'!$A82,'Fusion TB Drop'!D:D) -> 0 | E82: 0 | G82: =SUMIF('Fusion TB Drop'!$A:$A,'Linked TB'!$A82,'Fusion TB Drop'!G:G) -> 0 | H82: =SUMIF('Fusion TB Drop'!$A:$A,'Linked TB'!$A82,'Fusion TB Drop'!H:H) -> 0 | I82: 0 | K82: 0 | L82: 0 | M82: 0 | P82: =IFERROR(MATCH(A82,'Fusion TB Drop'!A:A,0),"") -> 
A83: 141259 | B83: =IFERROR(INDEX('Fusion Chart of Accounts'!I:I,MATCH('Linked TB'!A83,'Fusion Chart of Accounts'!H:H,0),0),0) -> House Regulators | C83: =SUMIF('Fusion TB Drop'!$A:$A,'Linked TB'!$A83,'Fusion TB Drop'!C:C) -> 0 | D83: =SUMIF('Fusion TB Drop'!$A:$A,'Linked TB'!$A83,'Fusion TB Drop'!D:D) -> 0 | E83: 0 | G83: =SUMIF('Fusion TB Drop'!$A:$A,'Linked TB'!$A83,'Fusion TB Drop'!G:G) -> 0 | H83: =SUMIF('Fusion TB Drop'!$A:$A,'Linked TB'!$A83,'Fusion TB Drop'!H:H) -> 0 | I83: 0 | K83: 0 | L83: 0 | M83: 0 | P83: =IFERROR(MATCH(A83,'Fusion TB Drop'!A:A,0),"") -> 
A84: 141260 | B84: =IFERROR(INDEX('Fusion Chart of Accounts'!I:I,MATCH('Linked TB'!A84,'Fusion Chart of Accounts'!H:H,0),0),0) -> House Regulatory Install | C84: =SUMIF('Fusion TB Drop'!$A:$A,'Linked TB'!$A84,'Fusion TB Drop'!C:C) -> 0 | D84: =SUMIF('Fusion TB Drop'!$A:$A,'Linked TB'!$A84,'Fusion TB Drop'!D:D) -> 0 | E84: 0 | G84: =SUMIF('Fusion TB Drop'!$A:$A,'Linked TB'!$A84,'Fusion TB Drop'!G:G) -> 0 | H84: =SUMIF('Fusion TB Drop'!$A:$A,'Linked TB'!$A84,'Fusion TB Drop'!H:H) -> 0 | I84: 0 | K84: 0 | L84: 0 | M84: 0 | P84: =IFERROR(MATCH(A84,'Fusion TB Drop'!A:A,0),"") -> 
A85: 141261 | B85: =IFERROR(INDEX('Fusion Chart of Accounts'!I:I,MATCH('Linked TB'!A85,'Fusion Chart of Accounts'!H:H,0),0),0) -> Reuse Services | C85: =SUMIF('Fusion TB Drop'!$A:$A,'Linked TB'!$A85,'Fusion TB Drop'!C:C) -> 0 | D85: =SUMIF('Fusion TB Drop'!$A:$A,'Linked TB'!$A85,'Fusion TB Drop'!D:D) -> 0 | E85: 0 | G85: =SUMIF('Fusion TB Drop'!$A:$A,'Linked TB'!$A85,'Fusion TB Drop'!G:G) -> 0 | H85: =SUMIF('Fusion TB Drop'!$A:$A,'Linked TB'!$A85,'Fusion TB Drop'!H:H) -> 0 | I85: 0 | K85: 0 | L85: 0 | M85: 0 | P85: =IFERROR(MATCH(A85,'Fusion TB Drop'!A:A,0),"") -> 
A86: 141262 | B86: =IFERROR(INDEX('Fusion Chart of Accounts'!I:I,MATCH('Linked TB'!A86,'Fusion Chart of Accounts'!H:H,0),0),0) -> Reuse Mtr/Installations | C86: =SUMIF('Fusion TB Drop'!$A:$A,'Linked TB'!$A86,'Fusion TB Drop'!C:C) -> 0 | D86: =SUMIF('Fusion TB Drop'!$A:$A,'Linked TB'!$A86,'Fusion TB Drop'!D:D) -> 0 | E86: 0 | G86: =SUMIF('Fusion TB Drop'!$A:$A,'Linked TB'!$A86,'Fusion TB Drop'!G:G) -> 0 | H86: =SUMIF('Fusion TB Drop'!$A:$A,'Linked TB'!$A86,'Fusion TB Drop'!H:H) -> 0 | I86: 0 | K86: 0 | L86: 0 | M86: 0 | P86: =IFERROR(MATCH(A86,'Fusion TB Drop'!A:A,0),"") -> 
A87: 141263 | B87: =IFERROR(INDEX('Fusion Chart of Accounts'!I:I,MATCH('Linked TB'!A87,'Fusion Chart of Accounts'!H:H,0),0),0) -> Reuse Dist Reservoirs | C87: =SUMIF('Fusion TB Drop'!$A:$A,'Linked TB'!$A87,'Fusion TB Drop'!C:C) -> 0 | D87: =SUMIF('Fusion TB Drop'!$A:$A,'Linked TB'!$A87,'Fusion TB Drop'!D:D) -> 0 | E87: 0 | G87: =SUMIF('Fusion TB Drop'!$A:$A,'Linked TB'!$A87,'Fusion TB Drop'!G:G) -> 0 | H87: =SUMIF('Fusion TB Drop'!$A:$A,'Linked TB'!$A87,'Fusion TB Drop'!H:H) -> 0 | I87: 0 | K87: 0 | L87: 0 | M87: 0 | P87: =IFERROR(MATCH(A87,'Fusion TB Drop'!A:A,0),"") -> 
A88: 141264 | B88: =IFERROR(INDEX('Fusion Chart of Accounts'!I:I,MATCH('Linked TB'!A88,'Fusion Chart of Accounts'!H:H,0),0),0) -> Reuse Transmission and Dist | C88: =SUMIF('Fusion TB Drop'!$A:$A,'Linked TB'!$A88,'Fusion TB Drop'!C:C) -> 0 | D88: =SUMIF('Fusion TB Drop'!$A:$A,'Linked TB'!$A88,'Fusion TB Drop'!D:D) -> 0 | E88: 0 | G88: =SUMIF('Fusion TB Drop'!$A:$A,'Linked TB'!$A88,'Fusion TB Drop'!G:G) -> 0 | H88: =SUMIF('Fusion TB Drop'!$A:$A,'Linked TB'!$A88,'Fusion TB Drop'!H:H) -> 0 | I88: 0 | K88: 0 | L88: 0 | M88: 0 | P88: =IFERROR(MATCH(A88,'Fusion TB Drop'!A:A,0),"") -> 
A89: 141265 | B89: =IFERROR(INDEX('Fusion Chart of Accounts'!I:I,MATCH('Linked TB'!A89,'Fusion Chart of Accounts'!H:H,0),0),0) -> Processing Plant | C89: =SUMIF('Fusion TB Drop'!$A:$A,'Linked TB'!$A89,'Fusion TB Drop'!C:C) -> 0 | D89: =SUMIF('Fusion TB Drop'!$A:$A,'Linked TB'!$A89,'Fusion TB Drop'!D:D) -> 0 | E89: 0 | G89: =SUMIF('Fusion TB Drop'!$A:$A,'Linked TB'!$A89,'Fusion TB Drop'!G:G) -> 0 | H89: =SUMIF('Fusion TB Drop'!$A:$A,'Linked TB'!$A89,'Fusion TB Drop'!H:H) -> 0 | I89: 0 | K89: 0 | L89: 0 | M89: 0 | P89: =IFERROR(MATCH(A89,'Fusion TB Drop'!A:A,0),"") -> 
A90: 141266 | B90: =IFERROR(INDEX('Fusion Chart of Accounts'!I:I,MATCH('Linked TB'!A90,'Fusion Chart of Accounts'!H:H,0),0),0) -> Maintenance Structure and Improv | C90: =SUMIF('Fusion TB Drop'!$A:$A,'Linked TB'!$A90,'Fusion TB Drop'!C:C) -> 0 | D90: =SUMIF('Fusion TB Drop'!$A:$A,'Linked TB'!$A90,'Fusion TB Drop'!D:D) -> 0 | E90: =SUM(C90:D90) -> 0 | G90: =SUMIF('Fusion TB Drop'!$A:$A,'Linked TB'!$A90,'Fusion TB Drop'!G:G) -> 0 | H90: =SUMIF('Fusion TB Drop'!$A:$A,'Linked TB'!$A90,'Fusion TB Drop'!H:H) -> 0 | I90: =SUM(G90:H90) -> 0 | K90: =C90+G90 -> 0 | L90: =D90+H90 -> 0 | M90: =SUM(K90:L90) -> 0 | P90: =IFERROR(MATCH(A90,'Fusion TB Drop'!A:A,0),"") -> 
A91: 141267 | B91: =IFERROR(INDEX('Fusion Chart of Accounts'!I:I,MATCH('Linked TB'!A91,'Fusion Chart of Accounts'!H:H,0),0),0) -> Other and Misc Equip Intangible Plt | C91: =SUMIF('Fusion TB Drop'!$A:$A,'Linked TB'!$A91,'Fusion TB Drop'!C:C) -> 0 | D91: =SUMIF('Fusion TB Drop'!$A:$A,'Linked TB'!$A91,'Fusion TB Drop'!D:D) -> 0 | E91: 0 | G91: =SUMIF('Fusion TB Drop'!$A:$A,'Linked TB'!$A91,'Fusion TB Drop'!G:G) -> 0 | H91: =SUMIF('Fusion TB Drop'!$A:$A,'Linked TB'!$A91,'Fusion TB Drop'!H:H) -> 0 | I91: 0 | K91: 0 | L91: 0 | M91: 0 | P91: =IFERROR(MATCH(A91,'Fusion TB Drop'!A:A,0),"") -> 
A92: 141268 | B92: =IFERROR(INDEX('Fusion Chart of Accounts'!I:I,MATCH('Linked TB'!A92,'Fusion Chart of Accounts'!H:H,0),0),0) -> Other and Misc Equip Source Supply | C92: =SUMIF('Fusion TB Drop'!$A:$A,'Linked TB'!$A92,'Fusion TB Drop'!C:C) -> 0 | D92: =SUMIF('Fusion TB Drop'!$A:$A,'Linked TB'!$A92,'Fusion TB Drop'!D:D) -> 0 | E92: 0 | G92: =SUMIF('Fusion TB Drop'!$A:$A,'Linked TB'!$A92,'Fusion TB Drop'!G:G) -> 0 | H92: =SUMIF('Fusion TB Drop'!$A:$A,'Linked TB'!$A92,'Fusion TB Drop'!H:H) -> 0 | I92: 0 | K92: 0 | L92: 0 | M92: 0 | P92: =IFERROR(MATCH(A92,'Fusion TB Drop'!A:A,0),"") -> 
A93: 141269 | B93: =IFERROR(INDEX('Fusion Chart of Accounts'!I:I,MATCH('Linked TB'!A93,'Fusion Chart of Accounts'!H:H,0),0),0) -> Other and Misc Equip WTP | C93: =SUMIF('Fusion TB Drop'!$A:$A,'Linked TB'!$A93,'Fusion TB Drop'!C:C) -> 233.19 | D93: =SUMIF('Fusion TB Drop'!$A:$A,'Linked TB'!$A93,'Fusion TB Drop'!D:D) -> 0 | E93: 233.19 | G93: =SUMIF('Fusion TB Drop'!$A:$A,'Linked TB'!$A93,'Fusion TB Drop'!G:G) -> 0 | H93: =SUMIF('Fusion TB Drop'!$A:$A,'Linked TB'!$A93,'Fusion TB Drop'!H:H) -> 0 | I93: 0 | K93: 233.19 | L93: 0 | M93: 233.19 | P93: =IFERROR(MATCH(A93,'Fusion TB Drop'!A:A,0),"") -> 
A94: 141270 | B94: =IFERROR(INDEX('Fusion Chart of Accounts'!I:I,MATCH('Linked TB'!A94,'Fusion Chart of Accounts'!H:H,0),0),0) -> Other and Misc Equip Trans Dist | C94: =SUMIF('Fusion TB Drop'!$A:$A,'Linked TB'!$A94,'Fusion TB Drop'!C:C) -> 0 | D94: =SUMIF('Fusion TB Drop'!$A:$A,'Linked TB'!$A94,'Fusion TB Drop'!D:D) -> 0 | E94: 0 | G94: =SUMIF('Fusion TB Drop'!$A:$A,'Linked TB'!$A94,'Fusion TB Drop'!G:G) -> 0 | H94: =SUMIF('Fusion TB Drop'!$A:$A,'Linked TB'!$A94,'Fusion TB Drop'!H:H) -> 0 | I94: 0 | K94: 0 | L94: 0 | M94: 0 | P94: =IFERROR(MATCH(A94,'Fusion TB Drop'!A:A,0),"") -> 
A95: 141271 | B95: =IFERROR(INDEX('Fusion Chart of Accounts'!I:I,MATCH('Linked TB'!A95,'Fusion Chart of Accounts'!H:H,0),0),0) -> Other Tangible Plant | C95: =SUMIF('Fusion TB Drop'!$A:$A,'Linked TB'!$A95,'Fusion TB Drop'!C:C) -> 0 | D95: =SUMIF('Fusion TB Drop'!$A:$A,'Linked TB'!$A95,'Fusion TB Drop'!D:D) -> 0 | E95: 0 | G95: =SUMIF('Fusion TB Drop'!$A:$A,'Linked TB'!$A95,'Fusion TB Drop'!G:G) -> 0 | H95: =SUMIF('Fusion TB Drop'!$A:$A,'Linked TB'!$A95,'Fusion TB Drop'!H:H) -> 0 | I95: 0 | K95: 0 | L95: 0 | M95: 0 | P95: =IFERROR(MATCH(A95,'Fusion TB Drop'!A:A,0),"") -> 
A96: 141272 | B96: =IFERROR(INDEX('Fusion Chart of Accounts'!I:I,MATCH('Linked TB'!A96,'Fusion Chart of Accounts'!H:H,0),0),0) -> Other Plant Collection | C96: =SUMIF('Fusion TB Drop'!$A:$A,'Linked TB'!$A96,'Fusion TB Drop'!C:C) -> 0 | D96: =SUMIF('Fusion TB Drop'!$A:$A,'Linked TB'!$A96,'Fusion TB Drop'!D:D) -> 0 | E96: 0 | G96: =SUMIF('Fusion TB Drop'!$A:$A,'Linked TB'!$A96,'Fusion TB Drop'!G:G) -> 0 | H96: =SUMIF('Fusion TB Drop'!$A:$A,'Linked TB'!$A96,'Fusion TB Drop'!H:H) -> 0 | I96: 0 | K96: 0 | L96: 0 | M96: 0 | P96: =IFERROR(MATCH(A96,'Fusion TB Drop'!A:A,0),"") -> 
A97: 141273 | B97: =IFERROR(INDEX('Fusion Chart of Accounts'!I:I,MATCH('Linked TB'!A97,'Fusion Chart of Accounts'!H:H,0),0),0) -> Other Plant Pump | C97: =SUMIF('Fusion TB Drop'!$A:$A,'Linked TB'!$A97,'Fusion TB Drop'!C:C) -> 0 | D97: =SUMIF('Fusion TB Drop'!$A:$A,'Linked TB'!$A97,'Fusion TB Drop'!D:D) -> 0 | E97: 0 | G97: =SUMIF('Fusion TB Drop'!$A:$A,'Linked TB'!$A97,'Fusion TB Drop'!G:G) -> 0 | H97: =SUMIF('Fusion TB Drop'!$A:$A,'Linked TB'!$A97,'Fusion TB Drop'!H:H) -> 0 | I97: 0 | K97: 0 | L97: 0 | M97: 0 | P97: =IFERROR(MATCH(A97,'Fusion TB Drop'!A:A,0),"") -> 
A98: 141274 | B98: =IFERROR(INDEX('Fusion Chart of Accounts'!I:I,MATCH('Linked TB'!A98,'Fusion Chart of Accounts'!H:H,0),0),0) -> Other Plant Treatment | C98: =SUMIF('Fusion TB Drop'!$A:$A,'Linked TB'!$A98,'Fusion TB Drop'!C:C) -> 82.6 | D98: =SUMIF('Fusion TB Drop'!$A:$A,'Linked TB'!$A98,'Fusion TB Drop'!D:D) -> 0 | E98: 82.6 | G98: =SUMIF('Fusion TB Drop'!$A:$A,'Linked TB'!$A98,'Fusion TB Drop'!G:G) -> 0 | H98: =SUMIF('Fusion TB Drop'!$A:$A,'Linked TB'!$A98,'Fusion TB Drop'!H:H) -> 0 | I98: 0 | K98: 82.6 | L98: 0 | M98: 82.6 | P98: =IFERROR(MATCH(A98,'Fusion TB Drop'!A:A,0),"") -> 
A99: 141275 | B99: =IFERROR(INDEX('Fusion Chart of Accounts'!I:I,MATCH('Linked TB'!A99,'Fusion Chart of Accounts'!H:H,0),0),0) -> Other Plant Reclaim Water Trt | C99: =SUMIF('Fusion TB Drop'!$A:$A,'Linked TB'!$A99,'Fusion TB Drop'!C:C) -> 0 | D99: =SUMIF('Fusion TB Drop'!$A:$A,'Linked TB'!$A99,'Fusion TB Drop'!D:D) -> 0 | E99: 0 | G99: =SUMIF('Fusion TB Drop'!$A:$A,'Linked TB'!$A99,'Fusion TB Drop'!G:G) -> 0 | H99: =SUMIF('Fusion TB Drop'!$A:$A,'Linked TB'!$A99,'Fusion TB Drop'!H:H) -> 0 | I99: 0 | K99: 0 | L99: 0 | M99: 0 | P99: =IFERROR(MATCH(A99,'Fusion TB Drop'!A:A,0),"") -> 
A100: 141276 | B100: =IFERROR(INDEX('Fusion Chart of Accounts'!I:I,MATCH('Linked TB'!A100,'Fusion Chart of Accounts'!H:H,0),0),0) -> Other Plant Reclaim Water Dist | C100: =SUMIF('Fusion TB Drop'!$A:$A,'Linked TB'!$A100,'Fusion TB Drop'!C:C) -> 0 | D100: =SUMIF('Fusion TB Drop'!$A:$A,'Linked TB'!$A100,'Fusion TB Drop'!D:D) -> 0 | E100: 0 | G100: =SUMIF('Fusion TB Drop'!$A:$A,'Linked TB'!$A100,'Fusion TB Drop'!G:G) -> 0 | H100: =SUMIF('Fusion TB Drop'!$A:$A,'Linked TB'!$A100,'Fusion TB Drop'!H:H) -> 0 | I100: 0 | K100: 0 | L100: 0 | M100: 0 | P100: =IFERROR(MATCH(A100,'Fusion TB Drop'!A:A,0),"") -> 
A101: 141277 | B101: =IFERROR(INDEX('Fusion Chart of Accounts'!I:I,MATCH('Linked TB'!A101,'Fusion Chart of Accounts'!H:H,0),0),0) -> Other Plant | C101: =SUMIF('Fusion TB Drop'!$A:$A,'Linked TB'!$A101,'Fusion TB Drop'!C:C) -> 0 | D101: =SUMIF('Fusion TB Drop'!$A:$A,'Linked TB'!$A101,'Fusion TB Drop'!D:D) -> 0 | E101: 0 | G101: =SUMIF('Fusion TB Drop'!$A:$A,'Linked TB'!$A101,'Fusion TB Drop'!G:G) -> 0 | H101: =SUMIF('Fusion TB Drop'!$A:$A,'Linked TB'!$A101,'Fusion TB Drop'!H:H) -> 0 | I101: 0 | K101: 0 | L101: 0 | M101: 0 | P101: =IFERROR(MATCH(A101,'Fusion TB Drop'!A:A,0),"") -> 
A102: 141278 | B102: =IFERROR(INDEX('Fusion Chart of Accounts'!I:I,MATCH('Linked TB'!A102,'Fusion Chart of Accounts'!H:H,0),0),0) -> Plant Alloc | C102: =SUMIF('Fusion TB Drop'!$A:$A,'Linked TB'!$A102,'Fusion TB Drop'!C:C) -> 69976 | D102: =SUMIF('Fusion TB Drop'!$A:$A,'Linked TB'!$A102,'Fusion TB Drop'!D:D) -> 0 | E102: 69976 | G102: =SUMIF('Fusion TB Drop'!$A:$A,'Linked TB'!$A102,'Fusion TB Drop'!G:G) -> 0 | H102: =SUMIF('Fusion TB Drop'!$A:$A,'Linked TB'!$A102,'Fusion TB Drop'!H:H) -> 0 | I102: 0 | K102: 69976 | L102: 0 | M102: 69976 | P102: =IFERROR(MATCH(A102,'Fusion TB Drop'!A:A,0),"") -> 
A103: 141279 | B103: =IFERROR(INDEX('Fusion Chart of Accounts'!I:I,MATCH('Linked TB'!A103,'Fusion Chart of Accounts'!H:H,0),0),0) -> Domestic Water | C103: =SUMIF('Fusion TB Drop'!$A:$A,'Linked TB'!$A103,'Fusion TB Drop'!C:C) -> 0 | D103: =SUMIF('Fusion TB Drop'!$A:$A,'Linked TB'!$A103,'Fusion TB Drop'!D:D) -> 0 | E103: 0 | G103: =SUMIF('Fusion TB Drop'!$A:$A,'Linked TB'!$A103,'Fusion TB Drop'!G:G) -> 0 | H103: =SUMIF('Fusion TB Drop'!$A:$A,'Linked TB'!$A103,'Fusion TB Drop'!H:H) -> 0 | I103: 0 | K103: 0 | L103: 0 | M103: 0 | P103: =IFERROR(MATCH(A103,'Fusion TB Drop'!A:A,0),"") -> 
A104: 141280 | B104: =IFERROR(INDEX('Fusion Chart of Accounts'!I:I,MATCH('Linked TB'!A104,'Fusion Chart of Accounts'!H:H,0),0),0) -> Irrigation Water | C104: =SUMIF('Fusion TB Drop'!$A:$A,'Linked TB'!$A104,'Fusion TB Drop'!C:C) -> 0 | D104: =SUMIF('Fusion TB Drop'!$A:$A,'Linked TB'!$A104,'Fusion TB Drop'!D:D) -> 0 | E104: 0 | G104: =SUMIF('Fusion TB Drop'!$A:$A,'Linked TB'!$A104,'Fusion TB Drop'!G:G) -> 0 | H104: =SUMIF('Fusion TB Drop'!$A:$A,'Linked TB'!$A104,'Fusion TB Drop'!H:H) -> 0 | I104: 0 | K104: 0 | L104: 0 | M104: 0 | P104: =IFERROR(MATCH(A104,'Fusion TB Drop'!A:A,0),"") -> 
A105: 141281 | B105: =IFERROR(INDEX('Fusion Chart of Accounts'!I:I,MATCH('Linked TB'!A105,'Fusion Chart of Accounts'!H:H,0),0),0) -> Geothermal | C105: =SUMIF('Fusion TB Drop'!$A:$A,'Linked TB'!$A105,'Fusion TB Drop'!C:C) -> 0 | D105: =SUMIF('Fusion TB Drop'!$A:$A,'Linked TB'!$A105,'Fusion TB Drop'!D:D) -> 0 | E105: 0 | G105: =SUMIF('Fusion TB Drop'!$A:$A,'Linked TB'!$A105,'Fusion TB Drop'!G:G) -> 0 | H105: =SUMIF('Fusion TB Drop'!$A:$A,'Linked TB'!$A105,'Fusion TB Drop'!H:H) -> 0 | I105: 0 | K105: 0 | L105: 0 | M105: 0 | P105: =IFERROR(MATCH(A105,'Fusion TB Drop'!A:A,0),"") -> 
A106: 141282 | B106: =IFERROR(INDEX('Fusion Chart of Accounts'!I:I,MATCH('Linked TB'!A106,'Fusion Chart of Accounts'!H:H,0),0),0) -> District Energy System | C106: =SUMIF('Fusion TB Drop'!$A:$A,'Linked TB'!$A106,'Fusion TB Drop'!C:C) -> 0 | D106: =SUMIF('Fusion TB Drop'!$A:$A,'Linked TB'!$A106,'Fusion TB Drop'!D:D) -> 0 | E106: 0 | G106: =SUMIF('Fusion TB Drop'!$A:$A,'Linked TB'!$A106,'Fusion TB Drop'!G:G) -> 0 | H106: =SUMIF('Fusion TB Drop'!$A:$A,'Linked TB'!$A106,'Fusion TB Drop'!H:H) -> 0 | I106: 0 | K106: 0 | L106: 0 | M106: 0 | P106: =IFERROR(MATCH(A106,'Fusion TB Drop'!A:A,0),"") -> 
A107: 141283 | B107: =IFERROR(INDEX('Fusion Chart of Accounts'!I:I,MATCH('Linked TB'!A107,'Fusion Chart of Accounts'!H:H,0),0),0) -> Concession | C107: =SUMIF('Fusion TB Drop'!$A:$A,'Linked TB'!$A107,'Fusion TB Drop'!C:C) -> 0 | D107: =SUMIF('Fusion TB Drop'!$A:$A,'Linked TB'!$A107,'Fusion TB Drop'!D:D) -> 0 | E107: 0 | G107: =SUMIF('Fusion TB Drop'!$A:$A,'Linked TB'!$A107,'Fusion TB Drop'!G:G) -> 0 | H107: =SUMIF('Fusion TB Drop'!$A:$A,'Linked TB'!$A107,'Fusion TB Drop'!H:H) -> 0 | I107: 0 | K107: 0 | L107: 0 | M107: 0 | P107: =IFERROR(MATCH(A107,'Fusion TB Drop'!A:A,0),"") -> 
A108: 141284 | B108: =IFERROR(INDEX('Fusion Chart of Accounts'!I:I,MATCH('Linked TB'!A108,'Fusion Chart of Accounts'!H:H,0),0),0) -> DES - Startup Costs | C108: =SUMIF('Fusion TB Drop'!$A:$A,'Linked TB'!$A108,'Fusion TB Drop'!C:C) -> 0 | D108: =SUMIF('Fusion TB Drop'!$A:$A,'Linked TB'!$A108,'Fusion TB Drop'!D:D) -> 0 | E108: 0 | G108: =SUMIF('Fusion TB Drop'!$A:$A,'Linked TB'!$A108,'Fusion TB Drop'!G:G) -> 0 | H108: =SUMIF('Fusion TB Drop'!$A:$A,'Linked TB'!$A108,'Fusion TB Drop'!H:H) -> 0 | I108: 0 | K108: 0 | L108: 0 | M108: 0 | P108: =IFERROR(MATCH(A108,'Fusion TB Drop'!A:A,0),"") -> 
A109: 141285 | B109: =IFERROR(INDEX('Fusion Chart of Accounts'!I:I,MATCH('Linked TB'!A109,'Fusion Chart of Accounts'!H:H,0),0),0) -> DES - Project Management | C109: =SUMIF('Fusion TB Drop'!$A:$A,'Linked TB'!$A109,'Fusion TB Drop'!C:C) -> 0 | D109: =SUMIF('Fusion TB Drop'!$A:$A,'Linked TB'!$A109,'Fusion TB Drop'!D:D) -> 0 | E109: 0 | G109: =SUMIF('Fusion TB Drop'!$A:$A,'Linked TB'!$A109,'Fusion TB Drop'!G:G) -> 0 | H109: =SUMIF('Fusion TB Drop'!$A:$A,'Linked TB'!$A109,'Fusion TB Drop'!H:H) -> 0 | I109: 0 | K109: 0 | L109: 0 | M109: 0 | P109: =IFERROR(MATCH(A109,'Fusion TB Drop'!A:A,0),"") -> 
A110: 141286 | B110: =IFERROR(INDEX('Fusion Chart of Accounts'!I:I,MATCH('Linked TB'!A110,'Fusion Chart of Accounts'!H:H,0),0),0) -> DES - Temporary Energy Centre | C110: =SUMIF('Fusion TB Drop'!$A:$A,'Linked TB'!$A110,'Fusion TB Drop'!C:C) -> 0 | D110: =SUMIF('Fusion TB Drop'!$A:$A,'Linked TB'!$A110,'Fusion TB Drop'!D:D) -> 0 | E110: 0 | G110: =SUMIF('Fusion TB Drop'!$A:$A,'Linked TB'!$A110,'Fusion TB Drop'!G:G) -> 0 | H110: =SUMIF('Fusion TB Drop'!$A:$A,'Linked TB'!$A110,'Fusion TB Drop'!H:H) -> 0 | I110: 0 | K110: 0 | L110: 0 | M110: 0 | P110: =IFERROR(MATCH(A110,'Fusion TB Drop'!A:A,0),"") -> 
A111: 141287 | B111: =IFERROR(INDEX('Fusion Chart of Accounts'!I:I,MATCH('Linked TB'!A111,'Fusion Chart of Accounts'!H:H,0),0),0) -> DES - Distribution Piping System | C111: =SUMIF('Fusion TB Drop'!$A:$A,'Linked TB'!$A111,'Fusion TB Drop'!C:C) -> 0 | D111: =SUMIF('Fusion TB Drop'!$A:$A,'Linked TB'!$A111,'Fusion TB Drop'!D:D) -> 0 | E111: 0 | G111: =SUMIF('Fusion TB Drop'!$A:$A,'Linked TB'!$A111,'Fusion TB Drop'!G:G) -> 0 | H111: =SUMIF('Fusion TB Drop'!$A:$A,'Linked TB'!$A111,'Fusion TB Drop'!H:H) -> 0 | I111: 0 | K111: 0 | L111: 0 | M111: 0 | P111: =IFERROR(MATCH(A111,'Fusion TB Drop'!A:A,0),"") -> 
A112: 141288 | B112: =IFERROR(INDEX('Fusion Chart of Accounts'!I:I,MATCH('Linked TB'!A112,'Fusion Chart of Accounts'!H:H,0),0),0) -> DES - Energy Transfer Station | C112: =SUMIF('Fusion TB Drop'!$A:$A,'Linked TB'!$A112,'Fusion TB Drop'!C:C) -> 0 | D112: =SUMIF('Fusion TB Drop'!$A:$A,'Linked TB'!$A112,'Fusion TB Drop'!D:D) -> 0 | E112: 0 | G112: =SUMIF('Fusion TB Drop'!$A:$A,'Linked TB'!$A112,'Fusion TB Drop'!G:G) -> 0 | H112: =SUMIF('Fusion TB Drop'!$A:$A,'Linked TB'!$A112,'Fusion TB Drop'!H:H) -> 0 | I112: 0 | K112: 0 | L112: 0 | M112: 0 | P112: =IFERROR(MATCH(A112,'Fusion TB Drop'!A:A,0),"") -> 
A113: 141289 | B113: =IFERROR(INDEX('Fusion Chart of Accounts'!I:I,MATCH('Linked TB'!A113,'Fusion Chart of Accounts'!H:H,0),0),0) -> DES - Project Development | C113: =SUMIF('Fusion TB Drop'!$A:$A,'Linked TB'!$A113,'Fusion TB Drop'!C:C) -> 0 | D113: =SUMIF('Fusion TB Drop'!$A:$A,'Linked TB'!$A113,'Fusion TB Drop'!D:D) -> 0 | E113: 0 | G113: =SUMIF('Fusion TB Drop'!$A:$A,'Linked TB'!$A113,'Fusion TB Drop'!G:G) -> 0 | H113: =SUMIF('Fusion TB Drop'!$A:$A,'Linked TB'!$A113,'Fusion TB Drop'!H:H) -> 0 | I113: 0 | K113: 0 | L113: 0 | M113: 0 | P113: =IFERROR(MATCH(A113,'Fusion TB Drop'!A:A,0),"") -> 
A114: 141290 | B114: =IFERROR(INDEX('Fusion Chart of Accounts'!I:I,MATCH('Linked TB'!A114,'Fusion Chart of Accounts'!H:H,0),0),0) -> DES - Engineer | C114: =SUMIF('Fusion TB Drop'!$A:$A,'Linked TB'!$A114,'Fusion TB Drop'!C:C) -> 0 | D114: =SUMIF('Fusion TB Drop'!$A:$A,'Linked TB'!$A114,'Fusion TB Drop'!D:D) -> 0 | E114: 0 | G114: =SUMIF('Fusion TB Drop'!$A:$A,'Linked TB'!$A114,'Fusion TB Drop'!G:G) -> 0 | H114: =SUMIF('Fusion TB Drop'!$A:$A,'Linked TB'!$A114,'Fusion TB Drop'!H:H) -> 0 | I114: 0 | K114: 0 | L114: 0 | M114: 0 | P114: =IFERROR(MATCH(A114,'Fusion TB Drop'!A:A,0),"") -> 
A115: 141291 | B115: =IFERROR(INDEX('Fusion Chart of Accounts'!I:I,MATCH('Linked TB'!A115,'Fusion Chart of Accounts'!H:H,0),0),0) -> DES - Low Rise Connection | C115: =SUMIF('Fusion TB Drop'!$A:$A,'Linked TB'!$A115,'Fusion TB Drop'!C:C) -> 0 | D115: =SUMIF('Fusion TB Drop'!$A:$A,'Linked TB'!$A115,'Fusion TB Drop'!D:D) -> 0 | E115: 0 | G115: =SUMIF('Fusion TB Drop'!$A:$A,'Linked TB'!$A115,'Fusion TB Drop'!G:G) -> 0 | H115: =SUMIF('Fusion TB Drop'!$A:$A,'Linked TB'!$A115,'Fusion TB Drop'!H:H) -> 0 | I115: 0 | K115: 0 | L115: 0 | M115: 0 | P115: =IFERROR(MATCH(A115,'Fusion TB Drop'!A:A,0),"") -> 
A116: 141292 | B116: =IFERROR(INDEX('Fusion Chart of Accounts'!I:I,MATCH('Linked TB'!A116,'Fusion Chart of Accounts'!H:H,0),0),0) -> Non-Utility Property | C116: =SUMIF('Fusion TB Drop'!$A:$A,'Linked TB'!$A116,'Fusion TB Drop'!C:C) -> 0 | D116: =SUMIF('Fusion TB Drop'!$A:$A,'Linked TB'!$A116,'Fusion TB Drop'!D:D) -> 0 | E116: 0 | G116: =SUMIF('Fusion TB Drop'!$A:$A,'Linked TB'!$A116,'Fusion TB Drop'!G:G) -> 0 | H116: =SUMIF('Fusion TB Drop'!$A:$A,'Linked TB'!$A116,'Fusion TB Drop'!H:H) -> 0 | I116: 0 | K116: 0 | L116: 0 | M116: 0 | P116: =IFERROR(MATCH(A116,'Fusion TB Drop'!A:A,0),"") -> 
A117: 141293 | B117: =IFERROR(INDEX('Fusion Chart of Accounts'!I:I,MATCH('Linked TB'!A117,'Fusion Chart of Accounts'!H:H,0),0),0) -> Plant Held for Future Use | C117: =SUMIF('Fusion TB Drop'!$A:$A,'Linked TB'!$A117,'Fusion TB Drop'!C:C) -> 0 | D117: =SUMIF('Fusion TB Drop'!$A:$A,'Linked TB'!$A117,'Fusion TB Drop'!D:D) -> 0 | E117: 0 | G117: =SUMIF('Fusion TB Drop'!$A:$A,'Linked TB'!$A117,'Fusion TB Drop'!G:G) -> 0 | H117: =SUMIF('Fusion TB Drop'!$A:$A,'Linked TB'!$A117,'Fusion TB Drop'!H:H) -> 0 | I117: 0 | K117: 0 | L117: 0 | M117: 0 | P117: =IFERROR(MATCH(A117,'Fusion TB Drop'!A:A,0),"") -> 
A118: 141298 | B118: =IFERROR(INDEX('Fusion Chart of Accounts'!I:I,MATCH('Linked TB'!A118,'Fusion Chart of Accounts'!H:H,0),0),0) -> FA default | C118: =SUMIF('Fusion TB Drop'!$A:$A,'Linked TB'!$A118,'Fusion TB Drop'!C:C) -> 0 | D118: =SUMIF('Fusion TB Drop'!$A:$A,'Linked TB'!$A118,'Fusion TB Drop'!D:D) -> 0 | E118: 0 | G118: =SUMIF('Fusion TB Drop'!$A:$A,'Linked TB'!$A118,'Fusion TB Drop'!G:G) -> 0 | H118: =SUMIF('Fusion TB Drop'!$A:$A,'Linked TB'!$A118,'Fusion TB Drop'!H:H) -> 0 | I118: 0 | K118: 0 | L118: 0 | M118: 0 | P118: =IFERROR(MATCH(A118,'Fusion TB Drop'!A:A,0),"") -> 
A119: 141299 | B119: =IFERROR(INDEX('Fusion Chart of Accounts'!I:I,MATCH('Linked TB'!A119,'Fusion Chart of Accounts'!H:H,0),0),0) -> Utility Plant Clearing | C119: =SUMIF('Fusion TB Drop'!$A:$A,'Linked TB'!$A119,'Fusion TB Drop'!C:C) -> 0 | D119: =SUMIF('Fusion TB Drop'!$A:$A,'Linked TB'!$A119,'Fusion TB Drop'!D:D) -> 0 | E119: 0 | G119: =SUMIF('Fusion TB Drop'!$A:$A,'Linked TB'!$A119,'Fusion TB Drop'!G:G) -> 0 | H119: =SUMIF('Fusion TB Drop'!$A:$A,'Linked TB'!$A119,'Fusion TB Drop'!H:H) -> 0 | I119: 0 | K119: 0 | L119: 0 | M119: 0 | P119: =IFERROR(MATCH(A119,'Fusion TB Drop'!A:A,0),"") -> 
A120: 141301 | B120: =IFERROR(INDEX('Fusion Chart of Accounts'!I:I,MATCH('Linked TB'!A120,'Fusion Chart of Accounts'!H:H,0),0),0) -> Building | C120: =SUMIF('Fusion TB Drop'!$A:$A,'Linked TB'!$A120,'Fusion TB Drop'!C:C) -> 0 | D120: =SUMIF('Fusion TB Drop'!$A:$A,'Linked TB'!$A120,'Fusion TB Drop'!D:D) -> 0 | E120: 0 | G120: =SUMIF('Fusion TB Drop'!$A:$A,'Linked TB'!$A120,'Fusion TB Drop'!G:G) -> 0 | H120: =SUMIF('Fusion TB Drop'!$A:$A,'Linked TB'!$A120,'Fusion TB Drop'!H:H) -> 0 | I120: 0 | K120: 0 | L120: 0 | M120: 0 | P120: =IFERROR(MATCH(A120,'Fusion TB Drop'!A:A,0),"") -> 
A121: 141302 | B121: =IFERROR(INDEX('Fusion Chart of Accounts'!I:I,MATCH('Linked TB'!A121,'Fusion Chart of Accounts'!H:H,0),0),0) -> Leasehold Improvement | C121: =SUMIF('Fusion TB Drop'!$A:$A,'Linked TB'!$A121,'Fusion TB Drop'!C:C) -> 0 | D121: =SUMIF('Fusion TB Drop'!$A:$A,'Linked TB'!$A121,'Fusion TB Drop'!D:D) -> 0 | E121: 0 | G121: =SUMIF('Fusion TB Drop'!$A:$A,'Linked TB'!$A121,'Fusion TB Drop'!G:G) -> 0 | H121: =SUMIF('Fusion TB Drop'!$A:$A,'Linked TB'!$A121,'Fusion TB Drop'!H:H) -> 0 | I121: 0 | K121: 0 | L121: 0 | M121: 0 | P121: =IFERROR(MATCH(A121,'Fusion TB Drop'!A:A,0),"") -> 
A122: 141303 | B122: =IFERROR(INDEX('Fusion Chart of Accounts'!I:I,MATCH('Linked TB'!A122,'Fusion Chart of Accounts'!H:H,0),0),0) -> Office Furniture | C122: =SUMIF('Fusion TB Drop'!$A:$A,'Linked TB'!$A122,'Fusion TB Drop'!C:C) -> 125510.68 | D122: =SUMIF('Fusion TB Drop'!$A:$A,'Linked TB'!$A122,'Fusion TB Drop'!D:D) -> 0 | E122: 125510.68 | G122: =SUMIF('Fusion TB Drop'!$A:$A,'Linked TB'!$A122,'Fusion TB Drop'!G:G) -> 0 | H122: =SUMIF('Fusion TB Drop'!$A:$A,'Linked TB'!$A122,'Fusion TB Drop'!H:H) -> 0 | I122: 0 | K122: 125510.68 | L122: 0 | M122: 125510.68 | P122: =IFERROR(MATCH(A122,'Fusion TB Drop'!A:A,0),"") -> 
A123: 141304 | B123: =IFERROR(INDEX('Fusion Chart of Accounts'!I:I,MATCH('Linked TB'!A123,'Fusion Chart of Accounts'!H:H,0),0),0) -> Office Equipment | C123: =SUMIF('Fusion TB Drop'!$A:$A,'Linked TB'!$A123,'Fusion TB Drop'!C:C) -> 0 | D123: =SUMIF('Fusion TB Drop'!$A:$A,'Linked TB'!$A123,'Fusion TB Drop'!D:D) -> 0 | E123: 0 | G123: =SUMIF('Fusion TB Drop'!$A:$A,'Linked TB'!$A123,'Fusion TB Drop'!G:G) -> 0 | H123: =SUMIF('Fusion TB Drop'!$A:$A,'Linked TB'!$A123,'Fusion TB Drop'!H:H) -> 0 | I123: 0 | K123: 0 | L123: 0 | M123: 0 | P123: =IFERROR(MATCH(A123,'Fusion TB Drop'!A:A,0),"") -> 
A124: 141305 | B124: =IFERROR(INDEX('Fusion Chart of Accounts'!I:I,MATCH('Linked TB'!A124,'Fusion Chart of Accounts'!H:H,0),0),0) -> Stores Equipment | C124: =SUMIF('Fusion TB Drop'!$A:$A,'Linked TB'!$A124,'Fusion TB Drop'!C:C) -> 1855.14 | D124: =SUMIF('Fusion TB Drop'!$A:$A,'Linked TB'!$A124,'Fusion TB Drop'!D:D) -> 0 | E124: 1855.14 | G124: =SUMIF('Fusion TB Drop'!$A:$A,'Linked TB'!$A124,'Fusion TB Drop'!G:G) -> 0 | H124: =SUMIF('Fusion TB Drop'!$A:$A,'Linked TB'!$A124,'Fusion TB Drop'!H:H) -> 0 | I124: 0 | K124: 1855.14 | L124: 0 | M124: 1855.14 | P124: =IFERROR(MATCH(A124,'Fusion TB Drop'!A:A,0),"") -> 
A125: 141306 | B125: =IFERROR(INDEX('Fusion Chart of Accounts'!I:I,MATCH('Linked TB'!A125,'Fusion Chart of Accounts'!H:H,0),0),0) -> Lab Equipment | C125: =SUMIF('Fusion TB Drop'!$A:$A,'Linked TB'!$A125,'Fusion TB Drop'!C:C) -> 110637.17 | D125: =SUMIF('Fusion TB Drop'!$A:$A,'Linked TB'!$A125,'Fusion TB Drop'!D:D) -> 0 | E125: 110637.17 | G125: =SUMIF('Fusion TB Drop'!$A:$A,'Linked TB'!$A125,'Fusion TB Drop'!G:G) -> 0 | H125: =SUMIF('Fusion TB Drop'!$A:$A,'Linked TB'!$A125,'Fusion TB Drop'!H:H) -> 0 | I125: 0 | K125: 110637.17 | L125: 0 | M125: 110637.17 | P125: =IFERROR(MATCH(A125,'Fusion TB Drop'!A:A,0),"") -> 
A126: 141307 | B126: =IFERROR(INDEX('Fusion Chart of Accounts'!I:I,MATCH('Linked TB'!A126,'Fusion Chart of Accounts'!H:H,0),0),0) -> Rental Equipment | C126: =SUMIF('Fusion TB Drop'!$A:$A,'Linked TB'!$A126,'Fusion TB Drop'!C:C) -> 0 | D126: =SUMIF('Fusion TB Drop'!$A:$A,'Linked TB'!$A126,'Fusion TB Drop'!D:D) -> 0 | E126: 0 | G126: =SUMIF('Fusion TB Drop'!$A:$A,'Linked TB'!$A126,'Fusion TB Drop'!G:G) -> 0 | H126: =SUMIF('Fusion TB Drop'!$A:$A,'Linked TB'!$A126,'Fusion TB Drop'!H:H) -> 0 | I126: 0 | K126: 0 | L126: 0 | M126: 0 | P126: =IFERROR(MATCH(A126,'Fusion TB Drop'!A:A,0),"") -> 
A127: 141308 | B127: =IFERROR(INDEX('Fusion Chart of Accounts'!I:I,MATCH('Linked TB'!A127,'Fusion Chart of Accounts'!H:H,0),0),0) -> Tool Shop Equipment | C127: =SUMIF('Fusion TB Drop'!$A:$A,'Linked TB'!$A127,'Fusion TB Drop'!C:C) -> 346951.66 | D127: =SUMIF('Fusion TB Drop'!$A:$A,'Linked TB'!$A127,'Fusion TB Drop'!D:D) -> 0 | E127: 346951.66 | G127: =SUMIF('Fusion TB Drop'!$A:$A,'Linked TB'!$A127,'Fusion TB Drop'!G:G) -> 0 | H127: =SUMIF('Fusion TB Drop'!$A:$A,'Linked TB'!$A127,'Fusion TB Drop'!H:H) -> 0 | I127: 0 | K127: 346951.66 | L127: 0 | M127: 346951.66 | P127: =IFERROR(MATCH(A127,'Fusion TB Drop'!A:A,0),"") -> 
A128: 141309 | B128: =IFERROR(INDEX('Fusion Chart of Accounts'!I:I,MATCH('Linked TB'!A128,'Fusion Chart of Accounts'!H:H,0),0),0) -> Power Operated Equipment | C128: =SUMIF('Fusion TB Drop'!$A:$A,'Linked TB'!$A128,'Fusion TB Drop'!C:C) -> 75102.73 | D128: =SUMIF('Fusion TB Drop'!$A:$A,'Linked TB'!$A128,'Fusion TB Drop'!D:D) -> 0 | E128: 75102.73 | G128: =SUMIF('Fusion TB Drop'!$A:$A,'Linked TB'!$A128,'Fusion TB Drop'!G:G) -> 0 | H128: =SUMIF('Fusion TB Drop'!$A:$A,'Linked TB'!$A128,'Fusion TB Drop'!H:H) -> 0 | I128: 0 | K128: 75102.73 | L128: 0 | M128: 75102.73 | P128: =IFERROR(MATCH(A128,'Fusion TB Drop'!A:A,0),"") -> 
A129: 141310 | B129: =IFERROR(INDEX('Fusion Chart of Accounts'!I:I,MATCH('Linked TB'!A129,'Fusion Chart of Accounts'!H:H,0),0),0) -> Communications Equipment | C129: =SUMIF('Fusion TB Drop'!$A:$A,'Linked TB'!$A129,'Fusion TB Drop'!C:C) -> 110946.8 | D129: =SUMIF('Fusion TB Drop'!$A:$A,'Linked TB'!$A129,'Fusion TB Drop'!D:D) -> 0 | E129: 110946.8 | G129: =SUMIF('Fusion TB Drop'!$A:$A,'Linked TB'!$A129,'Fusion TB Drop'!G:G) -> 0 | H129: =SUMIF('Fusion TB Drop'!$A:$A,'Linked TB'!$A129,'Fusion TB Drop'!H:H) -> 0 | I129: 0 | K129: 110946.8 | L129: 0 | M129: 110946.8 | P129: =IFERROR(MATCH(A129,'Fusion TB Drop'!A:A,0),"") -> 
A130: 141311 | B130: =IFERROR(INDEX('Fusion Chart of Accounts'!I:I,MATCH('Linked TB'!A130,'Fusion Chart of Accounts'!H:H,0),0),0) -> Misc Equipment | C130: =SUMIF('Fusion TB Drop'!$A:$A,'Linked TB'!$A130,'Fusion TB Drop'!C:C) -> 0 | D130: =SUMIF('Fusion TB Drop'!$A:$A,'Linked TB'!$A130,'Fusion TB Drop'!D:D) -> 0 | E130: 0 | G130: =SUMIF('Fusion TB Drop'!$A:$A,'Linked TB'!$A130,'Fusion TB Drop'!G:G) -> 0 | H130: =SUMIF('Fusion TB Drop'!$A:$A,'Linked TB'!$A130,'Fusion TB Drop'!H:H) -> 0 | I130: 0 | K130: 0 | L130: 0 | M130: 0 | P130: =IFERROR(MATCH(A130,'Fusion TB Drop'!A:A,0),"") -> 
A131: 141399 | B131: =IFERROR(INDEX('Fusion Chart of Accounts'!I:I,MATCH('Linked TB'!A131,'Fusion Chart of Accounts'!H:H,0),0),0) -> Building and Equipment Clearing | C131: =SUMIF('Fusion TB Drop'!$A:$A,'Linked TB'!$A131,'Fusion TB Drop'!C:C) -> 0 | D131: =SUMIF('Fusion TB Drop'!$A:$A,'Linked TB'!$A131,'Fusion TB Drop'!D:D) -> 0 | E131: 0 | G131: =SUMIF('Fusion TB Drop'!$A:$A,'Linked TB'!$A131,'Fusion TB Drop'!G:G) -> 0 | H131: =SUMIF('Fusion TB Drop'!$A:$A,'Linked TB'!$A131,'Fusion TB Drop'!H:H) -> 0 | I131: 0 | K131: 0 | L131: 0 | M131: 0 | P131: =IFERROR(MATCH(A131,'Fusion TB Drop'!A:A,0),"") -> 
A132: TOTAL | C132: =SUM(C16:C131) -> 11993470.34 | D132: =SUM(D16:D131) -> 0 | E132: 11973426.29 | G132: 0 | H132: 0 | I132: 0 | K132: 11993470.34 | L132: 0 | M132: 11993470.34 | P132: =IFERROR(MATCH(A132,'Fusion TB Drop'!A:A,0),"") -> 
P133: =IFERROR(MATCH(A133,'Fusion TB Drop'!A:A,0),"") -> 
A134: 141401 | B134: =IFERROR(INDEX('Fusion Chart of Accounts'!I:I,MATCH('Linked TB'!A134,'Fusion Chart of Accounts'!H:H,0),0),0) -> Vehicles | C134: =SUMIF('Fusion TB Drop'!$A:$A,'Linked TB'!$A134,'Fusion TB Drop'!C:C) -> 467040.6 | D134: =SUMIF('Fusion TB Drop'!$A:$A,'Linked TB'!$A134,'Fusion TB Drop'!D:D) -> 0 | E134: =SUM(C134:D134) -> 467040.6 | G134: =SUMIF('Fusion TB Drop'!$A:$A,'Linked TB'!$A134,'Fusion TB Drop'!G:G) -> 0 | H134: =SUMIF('Fusion TB Drop'!$A:$A,'Linked TB'!$A134,'Fusion TB Drop'!H:H) -> 0 | I134: =SUM(G134:H134) -> 0 | K134: =C134+G134 -> 467040.6 | L134: =D134+H134 -> 0 | M134: =SUM(K134:L134) -> 467040.6 | P134: =IFERROR(MATCH(A134,'Fusion TB Drop'!A:A,0),"") -> 
A135: 141499 | B135: =IFERROR(INDEX('Fusion Chart of Accounts'!I:I,MATCH('Linked TB'!A135,'Fusion Chart of Accounts'!H:H,0),0),0) -> Vehicles Clearing | C135: =SUMIF('Fusion TB Drop'!$A:$A,'Linked TB'!$A135,'Fusion TB Drop'!C:C) -> 0 | D135: =SUMIF('Fusion TB Drop'!$A:$A,'Linked TB'!$A135,'Fusion TB Drop'!D:D) -> 0 | E135: =SUM(C135:D135) -> 0 | G135: =SUMIF('Fusion TB Drop'!$A:$A,'Linked TB'!$A135,'Fusion TB Drop'!G:G) -> 0 | H135: =SUMIF('Fusion TB Drop'!$A:$A,'Linked TB'!$A135,'Fusion TB Drop'!H:H) -> 0 | I135: =SUM(G135:H135) -> 0 | K135: =C135+G135 -> 0 | L135: =D135+H135 -> 0 | M135: =SUM(K135:L135) -> 0 | P135: =IFERROR(MATCH(A135,'Fusion TB Drop'!A:A,0),"") -> 
A136: TOTAL | C136: =SUM(C134:C135) -> 467040.6 | D136: =SUM(D134:D135) -> 0 | E136: =SUM(E134:E135) -> 467040.6 | G136: =SUM(G134:G135) -> 0 | H136: =SUM(H134:H135) -> 0 | I136: 0 | K136: 467040.6 | L136: 0 | M136: 467040.6 | P136: =IFERROR(MATCH(A136,'Fusion TB Drop'!A:A,0),"") -> 
P137: =IFERROR(MATCH(A137,'Fusion TB Drop'!A:A,0),"") -> 
A138: 141501 | B138: =IFERROR(INDEX('Fusion Chart of Accounts'!I:I,MATCH('Linked TB'!A138,'Fusion Chart of Accounts'!H:H,0),0),0) -> Computer Hardware | C138: =SUMIF('Fusion TB Drop'!$A:$A,'Linked TB'!$A138,'Fusion TB Drop'!C:C) -> 158.92 | D138: =SUMIF('Fusion TB Drop'!$A:$A,'Linked TB'!$A138,'Fusion TB Drop'!D:D) -> 0 | E138: =SUM(C138:D138) -> 158.92 | G138: =SUMIF('Fusion TB Drop'!$A:$A,'Linked TB'!$A138,'Fusion TB Drop'!G:G) -> 0 | H138: =SUMIF('Fusion TB Drop'!$A:$A,'Linked TB'!$A138,'Fusion TB Drop'!H:H) -> 0 | I138: =SUM(G138:H138) -> 0 | K138: =C138+G138 -> 158.92 | L138: =D138+H138 -> 0 | M138: =SUM(K138:L138) -> 158.92 | P138: =IFERROR(MATCH(A138,'Fusion TB Drop'!A:A,0),"") -> 
A139: 141502 | B139: =IFERROR(INDEX('Fusion Chart of Accounts'!I:I,MATCH('Linked TB'!A139,'Fusion Chart of Accounts'!H:H,0),0),0) -> Desktop/Laptop Computers | C139: =SUMIF('Fusion TB Drop'!$A:$A,'Linked TB'!$A139,'Fusion TB Drop'!C:C) -> 12958.54 | D139: =SUMIF('Fusion TB Drop'!$A:$A,'Linked TB'!$A139,'Fusion TB Drop'!D:D) -> 0 | E139: 12958.54 | G139: =SUMIF('Fusion TB Drop'!$A:$A,'Linked TB'!$A139,'Fusion TB Drop'!G:G) -> 0 | H139: =SUMIF('Fusion TB Drop'!$A:$A,'Linked TB'!$A139,'Fusion TB Drop'!H:H) -> 0 | I139: 0 | K139: 12958.54 | L139: 0 | M139: 12958.54 | P139: =IFERROR(MATCH(A139,'Fusion TB Drop'!A:A,0),"") -> 
A140: 141503 | B140: =IFERROR(INDEX('Fusion Chart of Accounts'!I:I,MATCH('Linked TB'!A140,'Fusion Chart of Accounts'!H:H,0),0),0) -> Mainframe Computers | C140: =SUMIF('Fusion TB Drop'!$A:$A,'Linked TB'!$A140,'Fusion TB Drop'!C:C) -> 24283.33 | D140: =SUMIF('Fusion TB Drop'!$A:$A,'Linked TB'!$A140,'Fusion TB Drop'!D:D) -> 0 | E140: 24283.33 | G140: =SUMIF('Fusion TB Drop'!$A:$A,'Linked TB'!$A140,'Fusion TB Drop'!G:G) -> 0 | H140: =SUMIF('Fusion TB Drop'!$A:$A,'Linked TB'!$A140,'Fusion TB Drop'!H:H) -> 0 | I140: 0 | K140: 24283.33 | L140: 0 | M140: 24283.33 | P140: =IFERROR(MATCH(A140,'Fusion TB Drop'!A:A,0),"") -> 
A141: 141504 | B141: =IFERROR(INDEX('Fusion Chart of Accounts'!I:I,MATCH('Linked TB'!A141,'Fusion Chart of Accounts'!H:H,0),0),0) -> Mini Comp Wtr | C141: =SUMIF('Fusion TB Drop'!$A:$A,'Linked TB'!$A141,'Fusion TB Drop'!C:C) -> 274885.83 | D141: =SUMIF('Fusion TB Drop'!$A:$A,'Linked TB'!$A141,'Fusion TB Drop'!D:D) -> 0 | E141: 274885.83 | G141: =SUMIF('Fusion TB Drop'!$A:$A,'Linked TB'!$A141,'Fusion TB Drop'!G:G) -> 0 | H141: =SUMIF('Fusion TB Drop'!$A:$A,'Linked TB'!$A141,'Fusion TB Drop'!H:H) -> 0 | I141: 0 | K141: 274885.83 | L141: 0 | M141: 274885.83 | P141: =IFERROR(MATCH(A141,'Fusion TB Drop'!A:A,0),"") -> 
A142: 141601 | B142: =IFERROR(INDEX('Fusion Chart of Accounts'!I:I,MATCH('Linked TB'!A142,'Fusion Chart of Accounts'!H:H,0),0),0) -> Computer Software | C142: =SUMIF('Fusion TB Drop'!$A:$A,'Linked TB'!$A142,'Fusion TB Drop'!C:C) -> 26903.73 | D142: =SUMIF('Fusion TB Drop'!$A:$A,'Linked TB'!$A142,'Fusion TB Drop'!D:D) -> 0 | E142: 26903.73 | G142: =SUMIF('Fusion TB Drop'!$A:$A,'Linked TB'!$A142,'Fusion TB Drop'!G:G) -> 0 | H142: =SUMIF('Fusion TB Drop'!$A:$A,'Linked TB'!$A142,'Fusion TB Drop'!H:H) -> 0 | I142: 0 | K142: 26903.73 | L142: 0 | M142: 26903.73 | P142: =IFERROR(MATCH(A142,'Fusion TB Drop'!A:A,0),"") -> 
A143: 141602 | B143: =IFERROR(INDEX('Fusion Chart of Accounts'!I:I,MATCH('Linked TB'!A143,'Fusion Chart of Accounts'!H:H,0),0),0) -> Comp Systems | C143: =SUMIF('Fusion TB Drop'!$A:$A,'Linked TB'!$A143,'Fusion TB Drop'!C:C) -> 768784.82 | D143: =SUMIF('Fusion TB Drop'!$A:$A,'Linked TB'!$A143,'Fusion TB Drop'!D:D) -> 0 | E143: 768784.82 | G143: =SUMIF('Fusion TB Drop'!$A:$A,'Linked TB'!$A143,'Fusion TB Drop'!G:G) -> 0 | H143: =SUMIF('Fusion TB Drop'!$A:$A,'Linked TB'!$A143,'Fusion TB Drop'!H:H) -> 0 | I143: 0 | K143: 768784.82 | L143: 0 | M143: 768784.82 | P143: =IFERROR(MATCH(A143,'Fusion TB Drop'!A:A,0),"") -> 
A144: 141603 | B144: =IFERROR(INDEX('Fusion Chart of Accounts'!I:I,MATCH('Linked TB'!A144,'Fusion Chart of Accounts'!H:H,0),0),0) -> Micro Systems | C144: =SUMIF('Fusion TB Drop'!$A:$A,'Linked TB'!$A144,'Fusion TB Drop'!C:C) -> 15800.26 | D144: =SUMIF('Fusion TB Drop'!$A:$A,'Linked TB'!$A144,'Fusion TB Drop'!D:D) -> 0 | E144: 15800.26 | G144: =SUMIF('Fusion TB Drop'!$A:$A,'Linked TB'!$A144,'Fusion TB Drop'!G:G) -> 0 | H144: =SUMIF('Fusion TB Drop'!$A:$A,'Linked TB'!$A144,'Fusion TB Drop'!H:H) -> 0 | I144: 0 | K144: 15800.26 | L144: 0 | M144: 15800.26 | P144: =IFERROR(MATCH(A144,'Fusion TB Drop'!A:A,0),"") -> 
A145: 141699 | B145: =IFERROR(INDEX('Fusion Chart of Accounts'!I:I,MATCH('Linked TB'!A145,'Fusion Chart of Accounts'!H:H,0),0),0) -> Computer Clearing | C145: =SUMIF('Fusion TB Drop'!$A:$A,'Linked TB'!$A145,'Fusion TB Drop'!C:C) -> 0 | D145: =SUMIF('Fusion TB Drop'!$A:$A,'Linked TB'!$A145,'Fusion TB Drop'!D:D) -> 0 | E145: 0 | G145: =SUMIF('Fusion TB Drop'!$A:$A,'Linked TB'!$A145,'Fusion TB Drop'!G:G) -> 0 | H145: =SUMIF('Fusion TB Drop'!$A:$A,'Linked TB'!$A145,'Fusion TB Drop'!H:H) -> 0 | I145: 0 | K145: 0 | L145: 0 | M145: 0 | P145: =IFERROR(MATCH(A145,'Fusion TB Drop'!A:A,0),"") -> 
A146: TOTAL | B146: COMPUTER EQUIPMENT | C146: =SUM(C138:C145) -> 1123775.43 | D146: =SUM(D138:D145) -> 0 | E146: =SUM(E138:E145) -> 1123775.43 | G146: =SUM(G138:G145) -> 0 | H146: =SUM(H138:H145) -> 0 | I146: 0 | K146: =SUM(K138:K145) -> 1123775.43 | L146: 0 | M146: 1123775.43 | P146: =IFERROR(MATCH(A146,'Fusion TB Drop'!A:A,0),"") -> 
P147: =IFERROR(MATCH(A147,'Fusion TB Drop'!A:A,0),"") -> 
A148: 141701 | B148: =IFERROR(INDEX('Fusion Chart of Accounts'!I:I,MATCH('Linked TB'!A148,'Fusion Chart of Accounts'!H:H,0),0),0) -> CWIP - Beginning Balance | C148: =SUMIF('Fusion TB Drop'!$A:$A,'Linked TB'!$A148,'Fusion TB Drop'!C:C) -> 0 | D148: =SUMIF('Fusion TB Drop'!$A:$A,'Linked TB'!$A148,'Fusion TB Drop'!D:D) -> 0 | E148: =SUM(C148:D148) -> 0 | G148: =SUMIF('Fusion TB Drop'!$A:$A,'Linked TB'!$A148,'Fusion TB Drop'!G:G) -> 0 | H148: =SUMIF('Fusion TB Drop'!$A:$A,'Linked TB'!$A148,'Fusion TB Drop'!H:H) -> 0 | I148: =SUM(G148:H148) -> 0 | K148: =C148+G148 -> 0 | L148: =D148+H148 -> 0 | M148: =SUM(K148:L148) -> 0 | P148: =IFERROR(MATCH(A148,'Fusion TB Drop'!A:A,0),"") -> 
A149: 141702 | B149: =IFERROR(INDEX('Fusion Chart of Accounts'!I:I,MATCH('Linked TB'!A149,'Fusion Chart of Accounts'!H:H,0),0),0) -> CWIP - Captime | C149: =SUMIF('Fusion TB Drop'!$A:$A,'Linked TB'!$A149,'Fusion TB Drop'!C:C) -> 229265.4 | D149: =SUMIF('Fusion TB Drop'!$A:$A,'Linked TB'!$A149,'Fusion TB Drop'!D:D) -> 0 | E149: 229265.4 | G149: =SUMIF('Fusion TB Drop'!$A:$A,'Linked TB'!$A149,'Fusion TB Drop'!G:G) -> 0 | H149: =SUMIF('Fusion TB Drop'!$A:$A,'Linked TB'!$A149,'Fusion TB Drop'!H:H) -> 0 | I149: 0 | K149: 229265.4 | L149: 0 | M149: 229265.4 | P149: =IFERROR(MATCH(A149,'Fusion TB Drop'!A:A,0),"") -> 
A150: 141703 | B150: =IFERROR(INDEX('Fusion Chart of Accounts'!I:I,MATCH('Linked TB'!A150,'Fusion Chart of Accounts'!H:H,0),0),0) -> CWIP - Interest During Construction | C150: =SUMIF('Fusion TB Drop'!$A:$A,'Linked TB'!$A150,'Fusion TB Drop'!C:C) -> 21330.32 | D150: =SUMIF('Fusion TB Drop'!$A:$A,'Linked TB'!$A150,'Fusion TB Drop'!D:D) -> 0 | E150: 21330.32 | G150: =SUMIF('Fusion TB Drop'!$A:$A,'Linked TB'!$A150,'Fusion TB Drop'!G:G) -> 0 | H150: =SUMIF('Fusion TB Drop'!$A:$A,'Linked TB'!$A150,'Fusion TB Drop'!H:H) -> 0 | I150: 0 | K150: 21330.32 | L150: 0 | M150: 21330.32 | P150: =IFERROR(MATCH(A150,'Fusion TB Drop'!A:A,0),"") -> 
A151: 141704 | B151: =IFERROR(INDEX('Fusion Chart of Accounts'!I:I,MATCH('Linked TB'!A151,'Fusion Chart of Accounts'!H:H,0),0),0) -> CWIP - Engineering | C151: =SUMIF('Fusion TB Drop'!$A:$A,'Linked TB'!$A151,'Fusion TB Drop'!C:C) -> 25063.24 | D151: =SUMIF('Fusion TB Drop'!$A:$A,'Linked TB'!$A151,'Fusion TB Drop'!D:D) -> 0 | E151: 25063.24 | G151: =SUMIF('Fusion TB Drop'!$A:$A,'Linked TB'!$A151,'Fusion TB Drop'!G:G) -> 0 | H151: =SUMIF('Fusion TB Drop'!$A:$A,'Linked TB'!$A151,'Fusion TB Drop'!H:H) -> 0 | I151: 0 | K151: 25063.24 | L151: 0 | M151: 25063.24 | P151: =IFERROR(MATCH(A151,'Fusion TB Drop'!A:A,0),"") -> 
A152: 141705 | B152: =IFERROR(INDEX('Fusion Chart of Accounts'!I:I,MATCH('Linked TB'!A152,'Fusion Chart of Accounts'!H:H,0),0),0) -> CWIP - Labor/Installation | C152: =SUMIF('Fusion TB Drop'!$A:$A,'Linked TB'!$A152,'Fusion TB Drop'!C:C) -> 365830.26 | D152: =SUMIF('Fusion TB Drop'!$A:$A,'Linked TB'!$A152,'Fusion TB Drop'!D:D) -> 0 | E152: 365830.26 | G152: =SUMIF('Fusion TB Drop'!$A:$A,'Linked TB'!$A152,'Fusion TB Drop'!G:G) -> 0 | H152: =SUMIF('Fusion TB Drop'!$A:$A,'Linked TB'!$A152,'Fusion TB Drop'!H:H) -> 0 | I152: 0 | K152: 365830.26 | L152: 0 | M152: 365830.26 | P152: =IFERROR(MATCH(A152,'Fusion TB Drop'!A:A,0),"") -> 
A153: 141706 | B153: =IFERROR(INDEX('Fusion Chart of Accounts'!I:I,MATCH('Linked TB'!A153,'Fusion Chart of Accounts'!H:H,0),0),0) -> CWIP - Equipment | C153: =SUMIF('Fusion TB Drop'!$A:$A,'Linked TB'!$A153,'Fusion TB Drop'!C:C) -> 204363.17 | D153: =SUMIF('Fusion TB Drop'!$A:$A,'Linked TB'!$A153,'Fusion TB Drop'!D:D) -> 0 | E153: 204363.17 | G153: =SUMIF('Fusion TB Drop'!$A:$A,'Linked TB'!$A153,'Fusion TB Drop'!G:G) -> 0 | H153: =SUMIF('Fusion TB Drop'!$A:$A,'Linked TB'!$A153,'Fusion TB Drop'!H:H) -> 0 | I153: 0 | K153: 204363.17 | L153: 0 | M153: 204363.17 | P153: =IFERROR(MATCH(A153,'Fusion TB Drop'!A:A,0),"") -> 
A154: 141707 | B154: =IFERROR(INDEX('Fusion Chart of Accounts'!I:I,MATCH('Linked TB'!A154,'Fusion Chart of Accounts'!H:H,0),0),0) -> CWIP - Material | C154: =SUMIF('Fusion TB Drop'!$A:$A,'Linked TB'!$A154,'Fusion TB Drop'!C:C) -> 260785.58 | D154: =SUMIF('Fusion TB Drop'!$A:$A,'Linked TB'!$A154,'Fusion TB Drop'!D:D) -> 0 | E154: 260785.58 | G154: =SUMIF('Fusion TB Drop'!$A:$A,'Linked TB'!$A154,'Fusion TB Drop'!G:G) -> 0 | H154: =SUMIF('Fusion TB Drop'!$A:$A,'Linked TB'!$A154,'Fusion TB Drop'!H:H) -> 0 | I154: 0 | K154: 260785.58 | L154: 0 | M154: 260785.58 | P154: =IFERROR(MATCH(A154,'Fusion TB Drop'!A:A,0),"") -> 
A155: 141708 | B155: =IFERROR(INDEX('Fusion Chart of Accounts'!I:I,MATCH('Linked TB'!A155,'Fusion Chart of Accounts'!H:H,0),0),0) -> CWIP - Electrical | C155: =SUMIF('Fusion TB Drop'!$A:$A,'Linked TB'!$A155,'Fusion TB Drop'!C:C) -> 0 | D155: =SUMIF('Fusion TB Drop'!$A:$A,'Linked TB'!$A155,'Fusion TB Drop'!D:D) -> 0 | E155: 0 | G155: =SUMIF('Fusion TB Drop'!$A:$A,'Linked TB'!$A155,'Fusion TB Drop'!G:G) -> 0 | H155: =SUMIF('Fusion TB Drop'!$A:$A,'Linked TB'!$A155,'Fusion TB Drop'!H:H) -> 0 | I155: 0 | K155: 0 | L155: 0 | M155: 0 | P155: =IFERROR(MATCH(A155,'Fusion TB Drop'!A:A,0),"") -> 
A156: 141709 | B156: =IFERROR(INDEX('Fusion Chart of Accounts'!I:I,MATCH('Linked TB'!A156,'Fusion Chart of Accounts'!H:H,0),0),0) -> CWIP - Piping | C156: =SUMIF('Fusion TB Drop'!$A:$A,'Linked TB'!$A156,'Fusion TB Drop'!C:C) -> 193298.13 | D156: =SUMIF('Fusion TB Drop'!$A:$A,'Linked TB'!$A156,'Fusion TB Drop'!D:D) -> 0 | E156: 193298.13 | G156: =SUMIF('Fusion TB Drop'!$A:$A,'Linked TB'!$A156,'Fusion TB Drop'!G:G) -> 0 | H156: =SUMIF('Fusion TB Drop'!$A:$A,'Linked TB'!$A156,'Fusion TB Drop'!H:H) -> 0 | I156: 0 | K156: 193298.13 | L156: 0 | M156: 193298.13 | P156: =IFERROR(MATCH(A156,'Fusion TB Drop'!A:A,0),"") -> 
A157: 141710 | B157: =IFERROR(INDEX('Fusion Chart of Accounts'!I:I,MATCH('Linked TB'!A157,'Fusion Chart of Accounts'!H:H,0),0),0) -> CWIP - Site Work | C157: =SUMIF('Fusion TB Drop'!$A:$A,'Linked TB'!$A157,'Fusion TB Drop'!C:C) -> 1410 | D157: =SUMIF('Fusion TB Drop'!$A:$A,'Linked TB'!$A157,'Fusion TB Drop'!D:D) -> 0 | E157: 1410 | G157: =SUMIF('Fusion TB Drop'!$A:$A,'Linked TB'!$A157,'Fusion TB Drop'!G:G) -> 0 | H157: =SUMIF('Fusion TB Drop'!$A:$A,'Linked TB'!$A157,'Fusion TB Drop'!H:H) -> 0 | I157: 0 | K157: 1410 | L157: 0 | M157: 1410 | P157: =IFERROR(MATCH(A157,'Fusion TB Drop'!A:A,0),"") -> 
A158: 141711 | B158: =IFERROR(INDEX('Fusion Chart of Accounts'!I:I,MATCH('Linked TB'!A158,'Fusion Chart of Accounts'!H:H,0),0),0) -> CWIP - Building Additions | C158: =SUMIF('Fusion TB Drop'!$A:$A,'Linked TB'!$A158,'Fusion TB Drop'!C:C) -> 0 | D158: =SUMIF('Fusion TB Drop'!$A:$A,'Linked TB'!$A158,'Fusion TB Drop'!D:D) -> 0 | E158: 0 | G158: =SUMIF('Fusion TB Drop'!$A:$A,'Linked TB'!$A158,'Fusion TB Drop'!G:G) -> 0 | H158: =SUMIF('Fusion TB Drop'!$A:$A,'Linked TB'!$A158,'Fusion TB Drop'!H:H) -> 0 | I158: 0 | K158: 0 | L158: 0 | M158: 0 | P158: =IFERROR(MATCH(A158,'Fusion TB Drop'!A:A,0),"") -> 
A159: 141712 | B159: =IFERROR(INDEX('Fusion Chart of Accounts'!I:I,MATCH('Linked TB'!A159,'Fusion Chart of Accounts'!H:H,0),0),0) -> CWIP - Carpentry | C159: =SUMIF('Fusion TB Drop'!$A:$A,'Linked TB'!$A159,'Fusion TB Drop'!C:C) -> 0 | D159: =SUMIF('Fusion TB Drop'!$A:$A,'Linked TB'!$A159,'Fusion TB Drop'!D:D) -> 0 | E159: 0 | G159: =SUMIF('Fusion TB Drop'!$A:$A,'Linked TB'!$A159,'Fusion TB Drop'!G:G) -> 0 | H159: =SUMIF('Fusion TB Drop'!$A:$A,'Linked TB'!$A159,'Fusion TB Drop'!H:H) -> 0 | I159: 0 | K159: 0 | L159: 0 | M159: 0 | P159: =IFERROR(MATCH(A159,'Fusion TB Drop'!A:A,0),"") -> 
A160: 141713 | B160: =IFERROR(INDEX('Fusion Chart of Accounts'!I:I,MATCH('Linked TB'!A160,'Fusion Chart of Accounts'!H:H,0),0),0) -> CWIP - Crane | C160: =SUMIF('Fusion TB Drop'!$A:$A,'Linked TB'!$A160,'Fusion TB Drop'!C:C) -> 0 | D160: =SUMIF('Fusion TB Drop'!$A:$A,'Linked TB'!$A160,'Fusion TB Drop'!D:D) -> 0 | E160: 0 | G160: =SUMIF('Fusion TB Drop'!$A:$A,'Linked TB'!$A160,'Fusion TB Drop'!G:G) -> 0 | H160: =SUMIF('Fusion TB Drop'!$A:$A,'Linked TB'!$A160,'Fusion TB Drop'!H:H) -> 0 | I160: 0 | K160: 0 | L160: 0 | M160: 0 | P160: =IFERROR(MATCH(A160,'Fusion TB Drop'!A:A,0),"") -> 
A161: 141714 | B161: =IFERROR(INDEX('Fusion Chart of Accounts'!I:I,MATCH('Linked TB'!A161,'Fusion Chart of Accounts'!H:H,0),0),0) -> CWIP - Drilling Costs | C161: =SUMIF('Fusion TB Drop'!$A:$A,'Linked TB'!$A161,'Fusion TB Drop'!C:C) -> 0 | D161: =SUMIF('Fusion TB Drop'!$A:$A,'Linked TB'!$A161,'Fusion TB Drop'!D:D) -> 0 | E161: 0 | G161: =SUMIF('Fusion TB Drop'!$A:$A,'Linked TB'!$A161,'Fusion TB Drop'!G:G) -> 0 | H161: =SUMIF('Fusion TB Drop'!$A:$A,'Linked TB'!$A161,'Fusion TB Drop'!H:H) -> 0 | I161: 0 | K161: 0 | L161: 0 | M161: 0 | P161: =IFERROR(MATCH(A161,'Fusion TB Drop'!A:A,0),"") -> 
A162: 141715 | B162: =IFERROR(INDEX('Fusion Chart of Accounts'!I:I,MATCH('Linked TB'!A162,'Fusion Chart of Accounts'!H:H,0),0),0) -> CWIP - Foundation | C162: =SUMIF('Fusion TB Drop'!$A:$A,'Linked TB'!$A162,'Fusion TB Drop'!C:C) -> 0 | D162: =SUMIF('Fusion TB Drop'!$A:$A,'Linked TB'!$A162,'Fusion TB Drop'!D:D) -> 0 | E162: 0 | G162: =SUMIF('Fusion TB Drop'!$A:$A,'Linked TB'!$A162,'Fusion TB Drop'!G:G) -> 0 | H162: =SUMIF('Fusion TB Drop'!$A:$A,'Linked TB'!$A162,'Fusion TB Drop'!H:H) -> 0 | I162: 0 | K162: 0 | L162: 0 | M162: 0 | P162: =IFERROR(MATCH(A162,'Fusion TB Drop'!A:A,0),"") -> 
A163: 141716 | B163: =IFERROR(INDEX('Fusion Chart of Accounts'!I:I,MATCH('Linked TB'!A163,'Fusion Chart of Accounts'!H:H,0),0),0) -> CWIP - Land/Lease | C163: =SUMIF('Fusion TB Drop'!$A:$A,'Linked TB'!$A163,'Fusion TB Drop'!C:C) -> 0 | D163: =SUMIF('Fusion TB Drop'!$A:$A,'Linked TB'!$A163,'Fusion TB Drop'!D:D) -> 0 | E163: 0 | G163: =SUMIF('Fusion TB Drop'!$A:$A,'Linked TB'!$A163,'Fusion TB Drop'!G:G) -> 0 | H163: =SUMIF('Fusion TB Drop'!$A:$A,'Linked TB'!$A163,'Fusion TB Drop'!H:H) -> 0 | I163: 0 | K163: 0 | L163: 0 | M163: 0 | P163: =IFERROR(MATCH(A163,'Fusion TB Drop'!A:A,0),"") -> 
A164: 141717 | B164: =IFERROR(INDEX('Fusion Chart of Accounts'!I:I,MATCH('Linked TB'!A164,'Fusion Chart of Accounts'!H:H,0),0),0) -> CWIP - Main Extension/Tie In | C164: =SUMIF('Fusion TB Drop'!$A:$A,'Linked TB'!$A164,'Fusion TB Drop'!C:C) -> 0 | D164: =SUMIF('Fusion TB Drop'!$A:$A,'Linked TB'!$A164,'Fusion TB Drop'!D:D) -> 0 | E164: 0 | G164: =SUMIF('Fusion TB Drop'!$A:$A,'Linked TB'!$A164,'Fusion TB Drop'!G:G) -> 0 | H164: =SUMIF('Fusion TB Drop'!$A:$A,'Linked TB'!$A164,'Fusion TB Drop'!H:H) -> 0 | I164: 0 | K164: 0 | L164: 0 | M164: 0 | P164: =IFERROR(MATCH(A164,'Fusion TB Drop'!A:A,0),"") -> 
A165: 141718 | B165: =IFERROR(INDEX('Fusion Chart of Accounts'!I:I,MATCH('Linked TB'!A165,'Fusion Chart of Accounts'!H:H,0),0),0) -> CWIP - Permits | C165: =SUMIF('Fusion TB Drop'!$A:$A,'Linked TB'!$A165,'Fusion TB Drop'!C:C) -> 0 | D165: =SUMIF('Fusion TB Drop'!$A:$A,'Linked TB'!$A165,'Fusion TB Drop'!D:D) -> 0 | E165: 0 | G165: =SUMIF('Fusion TB Drop'!$A:$A,'Linked TB'!$A165,'Fusion TB Drop'!G:G) -> 0 | H165: =SUMIF('Fusion TB Drop'!$A:$A,'Linked TB'!$A165,'Fusion TB Drop'!H:H) -> 0 | I165: 0 | K165: 0 | L165: 0 | M165: 0 | P165: =IFERROR(MATCH(A165,'Fusion TB Drop'!A:A,0),"") -> 
A166: 141719 | B166: =IFERROR(INDEX('Fusion Chart of Accounts'!I:I,MATCH('Linked TB'!A166,'Fusion Chart of Accounts'!H:H,0),0),0) -> CWIP - Plumbing | C166: =SUMIF('Fusion TB Drop'!$A:$A,'Linked TB'!$A166,'Fusion TB Drop'!C:C) -> 0 | D166: =SUMIF('Fusion TB Drop'!$A:$A,'Linked TB'!$A166,'Fusion TB Drop'!D:D) -> 0 | E166: 0 | G166: =SUMIF('Fusion TB Drop'!$A:$A,'Linked TB'!$A166,'Fusion TB Drop'!G:G) -> 0 | H166: =SUMIF('Fusion TB Drop'!$A:$A,'Linked TB'!$A166,'Fusion TB Drop'!H:H) -> 0 | I166: 0 | K166: 0 | L166: 0 | M166: 0 | P166: =IFERROR(MATCH(A166,'Fusion TB Drop'!A:A,0),"") -> 
A167: 141720 | B167: =IFERROR(INDEX('Fusion Chart of Accounts'!I:I,MATCH('Linked TB'!A167,'Fusion Chart of Accounts'!H:H,0),0),0) -> CWIP - Pumps/Equipment | C167: =SUMIF('Fusion TB Drop'!$A:$A,'Linked TB'!$A167,'Fusion TB Drop'!C:C) -> 331861.62 | D167: =SUMIF('Fusion TB Drop'!$A:$A,'Linked TB'!$A167,'Fusion TB Drop'!D:D) -> 0 | E167: 331861.62 | G167: =SUMIF('Fusion TB Drop'!$A:$A,'Linked TB'!$A167,'Fusion TB Drop'!G:G) -> 0 | H167: =SUMIF('Fusion TB Drop'!$A:$A,'Linked TB'!$A167,'Fusion TB Drop'!H:H) -> 0 | I167: 0 | K167: 331861.62 | L167: 0 | M167: 331861.62 | P167: =IFERROR(MATCH(A167,'Fusion TB Drop'!A:A,0),"") -> 
A168: 141721 | B168: =IFERROR(INDEX('Fusion Chart of Accounts'!I:I,MATCH('Linked TB'!A168,'Fusion Chart of Accounts'!H:H,0),0),0) -> CWIP - Relocation | C168: =SUMIF('Fusion TB Drop'!$A:$A,'Linked TB'!$A168,'Fusion TB Drop'!C:C) -> 0 | D168: =SUMIF('Fusion TB Drop'!$A:$A,'Linked TB'!$A168,'Fusion TB Drop'!D:D) -> 0 | E168: 0 | G168: =SUMIF('Fusion TB Drop'!$A:$A,'Linked TB'!$A168,'Fusion TB Drop'!G:G) -> 0 | H168: =SUMIF('Fusion TB Drop'!$A:$A,'Linked TB'!$A168,'Fusion TB Drop'!H:H) -> 0 | I168: 0 | K168: 0 | L168: 0 | M168: 0 | P168: =IFERROR(MATCH(A168,'Fusion TB Drop'!A:A,0),"") -> 
A169: 141722 | B169: =IFERROR(INDEX('Fusion Chart of Accounts'!I:I,MATCH('Linked TB'!A169,'Fusion Chart of Accounts'!H:H,0),0),0) -> CWIP - Restoration | C169: =SUMIF('Fusion TB Drop'!$A:$A,'Linked TB'!$A169,'Fusion TB Drop'!C:C) -> 0 | D169: =SUMIF('Fusion TB Drop'!$A:$A,'Linked TB'!$A169,'Fusion TB Drop'!D:D) -> 0 | E169: 0 | G169: =SUMIF('Fusion TB Drop'!$A:$A,'Linked TB'!$A169,'Fusion TB Drop'!G:G) -> 0 | H169: =SUMIF('Fusion TB Drop'!$A:$A,'Linked TB'!$A169,'Fusion TB Drop'!H:H) -> 0 | I169: 0 | K169: 0 | L169: 0 | M169: 0 | P169: =IFERROR(MATCH(A169,'Fusion TB Drop'!A:A,0),"") -> 
A170: 141723 | B170: =IFERROR(INDEX('Fusion Chart of Accounts'!I:I,MATCH('Linked TB'!A170,'Fusion Chart of Accounts'!H:H,0),0),0) -> CWIP - Soil Boring | C170: =SUMIF('Fusion TB Drop'!$A:$A,'Linked TB'!$A170,'Fusion TB Drop'!C:C) -> 0 | D170: =SUMIF('Fusion TB Drop'!$A:$A,'Linked TB'!$A170,'Fusion TB Drop'!D:D) -> 0 | E170: 0 | G170: =SUMIF('Fusion TB Drop'!$A:$A,'Linked TB'!$A170,'Fusion TB Drop'!G:G) -> 0 | H170: =SUMIF('Fusion TB Drop'!$A:$A,'Linked TB'!$A170,'Fusion TB Drop'!H:H) -> 0 | I170: 0 | K170: 0 | L170: 0 | M170: 0 | P170: =IFERROR(MATCH(A170,'Fusion TB Drop'!A:A,0),"") -> 
A171: 141724 | B171: =IFERROR(INDEX('Fusion Chart of Accounts'!I:I,MATCH('Linked TB'!A171,'Fusion Chart of Accounts'!H:H,0),0),0) -> CWIP - Tank/Cost of | C171: =SUMIF('Fusion TB Drop'!$A:$A,'Linked TB'!$A171,'Fusion TB Drop'!C:C) -> 0 | D171: =SUMIF('Fusion TB Drop'!$A:$A,'Linked TB'!$A171,'Fusion TB Drop'!D:D) -> 0 | E171: 0 | G171: =SUMIF('Fusion TB Drop'!$A:$A,'Linked TB'!$A171,'Fusion TB Drop'!G:G) -> 0 | H171: =SUMIF('Fusion TB Drop'!$A:$A,'Linked TB'!$A171,'Fusion TB Drop'!H:H) -> 0 | I171: 0 | K171: 0 | L171: 0 | M171: 0 | P171: =IFERROR(MATCH(A171,'Fusion TB Drop'!A:A,0),"") -> 
A172: 141725 | B172: =IFERROR(INDEX('Fusion Chart of Accounts'!I:I,MATCH('Linked TB'!A172,'Fusion Chart of Accounts'!H:H,0),0),0) -> CWIP - Tank/Detention Addition | C172: =SUMIF('Fusion TB Drop'!$A:$A,'Linked TB'!$A172,'Fusion TB Drop'!C:C) -> 0 | D172: =SUMIF('Fusion TB Drop'!$A:$A,'Linked TB'!$A172,'Fusion TB Drop'!D:D) -> 0 | E172: 0 | G172: =SUMIF('Fusion TB Drop'!$A:$A,'Linked TB'!$A172,'Fusion TB Drop'!G:G) -> 0 | H172: =SUMIF('Fusion TB Drop'!$A:$A,'Linked TB'!$A172,'Fusion TB Drop'!H:H) -> 0 | I172: 0 | K172: 0 | L172: 0 | M172: 0 | P172: =IFERROR(MATCH(A172,'Fusion TB Drop'!A:A,0),"") -> 
A173: 141726 | B173: =IFERROR(INDEX('Fusion Chart of Accounts'!I:I,MATCH('Linked TB'!A173,'Fusion Chart of Accounts'!H:H,0),0),0) -> CWIP - Tank/Pneumatic | C173: =SUMIF('Fusion TB Drop'!$A:$A,'Linked TB'!$A173,'Fusion TB Drop'!C:C) -> 0 | D173: =SUMIF('Fusion TB Drop'!$A:$A,'Linked TB'!$A173,'Fusion TB Drop'!D:D) -> 0 | E173: 0 | G173: =SUMIF('Fusion TB Drop'!$A:$A,'Linked TB'!$A173,'Fusion TB Drop'!G:G) -> 0 | H173: =SUMIF('Fusion TB Drop'!$A:$A,'Linked TB'!$A173,'Fusion TB Drop'!H:H) -> 0 | I173: 0 | K173: 0 | L173: 0 | M173: 0 | P173: =IFERROR(MATCH(A173,'Fusion TB Drop'!A:A,0),"") -> 
A174: 141727 | B174: =IFERROR(INDEX('Fusion Chart of Accounts'!I:I,MATCH('Linked TB'!A174,'Fusion Chart of Accounts'!H:H,0),0),0) -> CWIP - Tests/Drawdown | C174: =SUMIF('Fusion TB Drop'!$A:$A,'Linked TB'!$A174,'Fusion TB Drop'!C:C) -> 0 | D174: =SUMIF('Fusion TB Drop'!$A:$A,'Linked TB'!$A174,'Fusion TB Drop'!D:D) -> 0 | E174: 0 | G174: =SUMIF('Fusion TB Drop'!$A:$A,'Linked TB'!$A174,'Fusion TB Drop'!G:G) -> 0 | H174: =SUMIF('Fusion TB Drop'!$A:$A,'Linked TB'!$A174,'Fusion TB Drop'!H:H) -> 0 | I174: 0 | K174: 0 | L174: 0 | M174: 0 | P174: =IFERROR(MATCH(A174,'Fusion TB Drop'!A:A,0),"") -> 
A175: 141728 | B175: =IFERROR(INDEX('Fusion Chart of Accounts'!I:I,MATCH('Linked TB'!A175,'Fusion Chart of Accounts'!H:H,0),0),0) -> CWIP - Well Abandonment | C175: =SUMIF('Fusion TB Drop'!$A:$A,'Linked TB'!$A175,'Fusion TB Drop'!C:C) -> 0 | D175: =SUMIF('Fusion TB Drop'!$A:$A,'Linked TB'!$A175,'Fusion TB Drop'!D:D) -> 0 | E175: 0 | G175: =SUMIF('Fusion TB Drop'!$A:$A,'Linked TB'!$A175,'Fusion TB Drop'!G:G) -> 0 | H175: =SUMIF('Fusion TB Drop'!$A:$A,'Linked TB'!$A175,'Fusion TB Drop'!H:H) -> 0 | I175: 0 | K175: 0 | L175: 0 | M175: 0 | P175: =IFERROR(MATCH(A175,'Fusion TB Drop'!A:A,0),"") -> 
A176: 141729 | B176: =IFERROR(INDEX('Fusion Chart of Accounts'!I:I,MATCH('Linked TB'!A176,'Fusion Chart of Accounts'!H:H,0),0),0) -> CWIP - Well House | C176: =SUMIF('Fusion TB Drop'!$A:$A,'Linked TB'!$A176,'Fusion TB Drop'!C:C) -> 0 | D176: =SUMIF('Fusion TB Drop'!$A:$A,'Linked TB'!$A176,'Fusion TB Drop'!D:D) -> 0 | E176: 0 | G176: =SUMIF('Fusion TB Drop'!$A:$A,'Linked TB'!$A176,'Fusion TB Drop'!G:G) -> 0 | H176: =SUMIF('Fusion TB Drop'!$A:$A,'Linked TB'!$A176,'Fusion TB Drop'!H:H) -> 0 | I176: 0 | K176: 0 | L176: 0 | M176: 0 | P176: =IFERROR(MATCH(A176,'Fusion TB Drop'!A:A,0),"") -> 
A177: 141732 | B177: =IFERROR(INDEX('Fusion Chart of Accounts'!I:I,MATCH('Linked TB'!A177,'Fusion Chart of Accounts'!H:H,0),0),0) -> CWIP - Transfer to Fixed Assets | C177: =SUMIF('Fusion TB Drop'!$A:$A,'Linked TB'!$A177,'Fusion TB Drop'!C:C) -> -1830772.96 | D177: =SUMIF('Fusion TB Drop'!$A:$A,'Linked TB'!$A177,'Fusion TB Drop'!D:D) -> 0 | E177: -1830772.96 | G177: =SUMIF('Fusion TB Drop'!$A:$A,'Linked TB'!$A177,'Fusion TB Drop'!G:G) -> 0 | H177: =SUMIF('Fusion TB Drop'!$A:$A,'Linked TB'!$A177,'Fusion TB Drop'!H:H) -> 0 | I177: 0 | K177: -1830772.96 | L177: 0 | M177: -1830772.96 | P177: =IFERROR(MATCH(A177,'Fusion TB Drop'!A:A,0),"") -> 
A178: 141735 | B178: =IFERROR(INDEX('Fusion Chart of Accounts'!I:I,MATCH('Linked TB'!A178,'Fusion Chart of Accounts'!H:H,0),0),0) -> CWIP - Building/Blower | C178: =SUMIF('Fusion TB Drop'!$A:$A,'Linked TB'!$A178,'Fusion TB Drop'!C:C) -> 0 | D178: =SUMIF('Fusion TB Drop'!$A:$A,'Linked TB'!$A178,'Fusion TB Drop'!D:D) -> 0 | E178: 0 | G178: =SUMIF('Fusion TB Drop'!$A:$A,'Linked TB'!$A178,'Fusion TB Drop'!G:G) -> 0 | H178: =SUMIF('Fusion TB Drop'!$A:$A,'Linked TB'!$A178,'Fusion TB Drop'!H:H) -> 0 | I178: 0 | K178: 0 | L178: 0 | M178: 0 | P178: =IFERROR(MATCH(A178,'Fusion TB Drop'!A:A,0),"") -> 
A179: 141736 | B179: =IFERROR(INDEX('Fusion Chart of Accounts'!I:I,MATCH('Linked TB'!A179,'Fusion Chart of Accounts'!H:H,0),0),0) -> CWIP - Concrete Contrac | C179: =SUMIF('Fusion TB Drop'!$A:$A,'Linked TB'!$A179,'Fusion TB Drop'!C:C) -> 0 | D179: =SUMIF('Fusion TB Drop'!$A:$A,'Linked TB'!$A179,'Fusion TB Drop'!D:D) -> 0 | E179: 0 | G179: =SUMIF('Fusion TB Drop'!$A:$A,'Linked TB'!$A179,'Fusion TB Drop'!G:G) -> 0 | H179: =SUMIF('Fusion TB Drop'!$A:$A,'Linked TB'!$A179,'Fusion TB Drop'!H:H) -> 0 | I179: 0 | K179: 0 | L179: 0 | M179: 0 | P179: =IFERROR(MATCH(A179,'Fusion TB Drop'!A:A,0),"") -> 
A180: 141737 | B180: =IFERROR(INDEX('Fusion Chart of Accounts'!I:I,MATCH('Linked TB'!A180,'Fusion Chart of Accounts'!H:H,0),0),0) -> CWIP - Draining/Plant | C180: =SUMIF('Fusion TB Drop'!$A:$A,'Linked TB'!$A180,'Fusion TB Drop'!C:C) -> 0 | D180: =SUMIF('Fusion TB Drop'!$A:$A,'Linked TB'!$A180,'Fusion TB Drop'!D:D) -> 0 | E180: 0 | G180: =SUMIF('Fusion TB Drop'!$A:$A,'Linked TB'!$A180,'Fusion TB Drop'!G:G) -> 0 | H180: =SUMIF('Fusion TB Drop'!$A:$A,'Linked TB'!$A180,'Fusion TB Drop'!H:H) -> 0 | I180: 0 | K180: 0 | L180: 0 | M180: 0 | P180: =IFERROR(MATCH(A180,'Fusion TB Drop'!A:A,0),"") -> 
A181: 141738 | B181: =IFERROR(INDEX('Fusion Chart of Accounts'!I:I,MATCH('Linked TB'!A181,'Fusion Chart of Accounts'!H:H,0),0),0) -> CWIP - Installation of Plant | C181: =SUMIF('Fusion TB Drop'!$A:$A,'Linked TB'!$A181,'Fusion TB Drop'!C:C) -> 0 | D181: =SUMIF('Fusion TB Drop'!$A:$A,'Linked TB'!$A181,'Fusion TB Drop'!D:D) -> 0 | E181: 0 | G181: =SUMIF('Fusion TB Drop'!$A:$A,'Linked TB'!$A181,'Fusion TB Drop'!G:G) -> 0 | H181: =SUMIF('Fusion TB Drop'!$A:$A,'Linked TB'!$A181,'Fusion TB Drop'!H:H) -> 0 | I181: 0 | K181: 0 | L181: 0 | M181: 0 | P181: =IFERROR(MATCH(A181,'Fusion TB Drop'!A:A,0),"") -> 
A182: 141739 | B182: =IFERROR(INDEX('Fusion Chart of Accounts'!I:I,MATCH('Linked TB'!A182,'Fusion Chart of Accounts'!H:H,0),0),0) -> CWIP - Modification/Lift Stn | C182: =SUMIF('Fusion TB Drop'!$A:$A,'Linked TB'!$A182,'Fusion TB Drop'!C:C) -> 0 | D182: =SUMIF('Fusion TB Drop'!$A:$A,'Linked TB'!$A182,'Fusion TB Drop'!D:D) -> 0 | E182: 0 | G182: =SUMIF('Fusion TB Drop'!$A:$A,'Linked TB'!$A182,'Fusion TB Drop'!G:G) -> 0 | H182: =SUMIF('Fusion TB Drop'!$A:$A,'Linked TB'!$A182,'Fusion TB Drop'!H:H) -> 0 | I182: 0 | K182: 0 | L182: 0 | M182: 0 | P182: =IFERROR(MATCH(A182,'Fusion TB Drop'!A:A,0),"") -> 
A183: 141740 | B183: =IFERROR(INDEX('Fusion Chart of Accounts'!I:I,MATCH('Linked TB'!A183,'Fusion Chart of Accounts'!H:H,0),0),0) -> CWIP - Package Plant Purchase | C183: =SUMIF('Fusion TB Drop'!$A:$A,'Linked TB'!$A183,'Fusion TB Drop'!C:C) -> 0 | D183: =SUMIF('Fusion TB Drop'!$A:$A,'Linked TB'!$A183,'Fusion TB Drop'!D:D) -> 0 | E183: 0 | G183: =SUMIF('Fusion TB Drop'!$A:$A,'Linked TB'!$A183,'Fusion TB Drop'!G:G) -> 0 | H183: =SUMIF('Fusion TB Drop'!$A:$A,'Linked TB'!$A183,'Fusion TB Drop'!H:H) -> 0 | I183: 0 | K183: 0 | L183: 0 | M183: 0 | P183: =IFERROR(MATCH(A183,'Fusion TB Drop'!A:A,0),"") -> 
A184: 141741 | B184: =IFERROR(INDEX('Fusion Chart of Accounts'!I:I,MATCH('Linked TB'!A184,'Fusion Chart of Accounts'!H:H,0),0),0) -> CWIP - Pump Removal | C184: =SUMIF('Fusion TB Drop'!$A:$A,'Linked TB'!$A184,'Fusion TB Drop'!C:C) -> 0 | D184: =SUMIF('Fusion TB Drop'!$A:$A,'Linked TB'!$A184,'Fusion TB Drop'!D:D) -> 0 | E184: 0 | G184: =SUMIF('Fusion TB Drop'!$A:$A,'Linked TB'!$A184,'Fusion TB Drop'!G:G) -> 0 | H184: =SUMIF('Fusion TB Drop'!$A:$A,'Linked TB'!$A184,'Fusion TB Drop'!H:H) -> 0 | I184: 0 | K184: 0 | L184: 0 | M184: 0 | P184: =IFERROR(MATCH(A184,'Fusion TB Drop'!A:A,0),"") -> 
A185: 141742 | B185: =IFERROR(INDEX('Fusion Chart of Accounts'!I:I,MATCH('Linked TB'!A185,'Fusion Chart of Accounts'!H:H,0),0),0) -> CWIP - Sand | C185: =SUMIF('Fusion TB Drop'!$A:$A,'Linked TB'!$A185,'Fusion TB Drop'!C:C) -> 0 | D185: =SUMIF('Fusion TB Drop'!$A:$A,'Linked TB'!$A185,'Fusion TB Drop'!D:D) -> 0 | E185: 0 | G185: =SUMIF('Fusion TB Drop'!$A:$A,'Linked TB'!$A185,'Fusion TB Drop'!G:G) -> 0 | H185: =SUMIF('Fusion TB Drop'!$A:$A,'Linked TB'!$A185,'Fusion TB Drop'!H:H) -> 0 | I185: 0 | K185: 0 | L185: 0 | M185: 0 | P185: =IFERROR(MATCH(A185,'Fusion TB Drop'!A:A,0),"") -> 
A186: 141743 | B186: =IFERROR(INDEX('Fusion Chart of Accounts'!I:I,MATCH('Linked TB'!A186,'Fusion Chart of Accounts'!H:H,0),0),0) -> CWIP - Sludge/Disposal | C186: =SUMIF('Fusion TB Drop'!$A:$A,'Linked TB'!$A186,'Fusion TB Drop'!C:C) -> 0 | D186: =SUMIF('Fusion TB Drop'!$A:$A,'Linked TB'!$A186,'Fusion TB Drop'!D:D) -> 0 | E186: 0 | G186: =SUMIF('Fusion TB Drop'!$A:$A,'Linked TB'!$A186,'Fusion TB Drop'!G:G) -> 0 | H186: =SUMIF('Fusion TB Drop'!$A:$A,'Linked TB'!$A186,'Fusion TB Drop'!H:H) -> 0 | I186: 0 | K186: 0 | L186: 0 | M186: 0 | P186: =IFERROR(MATCH(A186,'Fusion TB Drop'!A:A,0),"") -> 
A187: 141744 | B187: =IFERROR(INDEX('Fusion Chart of Accounts'!I:I,MATCH('Linked TB'!A187,'Fusion Chart of Accounts'!H:H,0),0),0) -> CWIP - Survey | C187: =SUMIF('Fusion TB Drop'!$A:$A,'Linked TB'!$A187,'Fusion TB Drop'!C:C) -> 0 | D187: =SUMIF('Fusion TB Drop'!$A:$A,'Linked TB'!$A187,'Fusion TB Drop'!D:D) -> 0 | E187: 0 | G187: =SUMIF('Fusion TB Drop'!$A:$A,'Linked TB'!$A187,'Fusion TB Drop'!G:G) -> 0 | H187: =SUMIF('Fusion TB Drop'!$A:$A,'Linked TB'!$A187,'Fusion TB Drop'!H:H) -> 0 | I187: 0 | K187: 0 | L187: 0 | M187: 0 | P187: =IFERROR(MATCH(A187,'Fusion TB Drop'!A:A,0),"") -> 
A188: 141745 | B188: =IFERROR(INDEX('Fusion Chart of Accounts'!I:I,MATCH('Linked TB'!A188,'Fusion Chart of Accounts'!H:H,0),0),0) -> CWIP - Tests/Soil Bore | C188: =SUMIF('Fusion TB Drop'!$A:$A,'Linked TB'!$A188,'Fusion TB Drop'!C:C) -> 0 | D188: =SUMIF('Fusion TB Drop'!$A:$A,'Linked TB'!$A188,'Fusion TB Drop'!D:D) -> 0 | E188: 0 | G188: =SUMIF('Fusion TB Drop'!$A:$A,'Linked TB'!$A188,'Fusion TB Drop'!G:G) -> 0 | H188: =SUMIF('Fusion TB Drop'!$A:$A,'Linked TB'!$A188,'Fusion TB Drop'!H:H) -> 0 | I188: 0 | K188: 0 | L188: 0 | M188: 0 | P188: =IFERROR(MATCH(A188,'Fusion TB Drop'!A:A,0),"") -> 
A189: 141746 | B189: =IFERROR(INDEX('Fusion Chart of Accounts'!I:I,MATCH('Linked TB'!A189,'Fusion Chart of Accounts'!H:H,0),0),0) -> CWIP - Vegitation/Remov | C189: =SUMIF('Fusion TB Drop'!$A:$A,'Linked TB'!$A189,'Fusion TB Drop'!C:C) -> 0 | D189: =SUMIF('Fusion TB Drop'!$A:$A,'Linked TB'!$A189,'Fusion TB Drop'!D:D) -> 0 | E189: 0 | G189: =SUMIF('Fusion TB Drop'!$A:$A,'Linked TB'!$A189,'Fusion TB Drop'!G:G) -> 0 | H189: =SUMIF('Fusion TB Drop'!$A:$A,'Linked TB'!$A189,'Fusion TB Drop'!H:H) -> 0 | I189: 0 | K189: 0 | L189: 0 | M189: 0 | P189: =IFERROR(MATCH(A189,'Fusion TB Drop'!A:A,0),"") -> 
A190: 141748 | B190: =IFERROR(INDEX('Fusion Chart of Accounts'!I:I,MATCH('Linked TB'!A190,'Fusion Chart of Accounts'!H:H,0),0),0) -> CWIP - Contractor/Labour | C190: =SUMIF('Fusion TB Drop'!$A:$A,'Linked TB'!$A190,'Fusion TB Drop'!C:C) -> 198835.58 | D190: =SUMIF('Fusion TB Drop'!$A:$A,'Linked TB'!$A190,'Fusion TB Drop'!D:D) -> 0 | E190: 198835.58 | G190: =SUMIF('Fusion TB Drop'!$A:$A,'Linked TB'!$A190,'Fusion TB Drop'!G:G) -> 0 | H190: =SUMIF('Fusion TB Drop'!$A:$A,'Linked TB'!$A190,'Fusion TB Drop'!H:H) -> 0 | I190: 0 | K190: 198835.58 | L190: 0 | M190: 198835.58 | P190: =IFERROR(MATCH(A190,'Fusion TB Drop'!A:A,0),"") -> 
A191: 141749 | B191: =IFERROR(INDEX('Fusion Chart of Accounts'!I:I,MATCH('Linked TB'!A191,'Fusion Chart of Accounts'!H:H,0),0),0) -> CWIP - Architect/Design | C191: =SUMIF('Fusion TB Drop'!$A:$A,'Linked TB'!$A191,'Fusion TB Drop'!C:C) -> 0 | D191: =SUMIF('Fusion TB Drop'!$A:$A,'Linked TB'!$A191,'Fusion TB Drop'!D:D) -> 0 | E191: 0 | G191: =SUMIF('Fusion TB Drop'!$A:$A,'Linked TB'!$A191,'Fusion TB Drop'!G:G) -> 0 | H191: =SUMIF('Fusion TB Drop'!$A:$A,'Linked TB'!$A191,'Fusion TB Drop'!H:H) -> 0 | I191: 0 | K191: 0 | L191: 0 | M191: 0 | P191: =IFERROR(MATCH(A191,'Fusion TB Drop'!A:A,0),"") -> 
A192: 141750 | B192: =IFERROR(INDEX('Fusion Chart of Accounts'!I:I,MATCH('Linked TB'!A192,'Fusion Chart of Accounts'!H:H,0),0),0) -> CWIP - Furniture | C192: =SUMIF('Fusion TB Drop'!$A:$A,'Linked TB'!$A192,'Fusion TB Drop'!C:C) -> 0 | D192: =SUMIF('Fusion TB Drop'!$A:$A,'Linked TB'!$A192,'Fusion TB Drop'!D:D) -> 0 | E192: 0 | G192: =SUMIF('Fusion TB Drop'!$A:$A,'Linked TB'!$A192,'Fusion TB Drop'!G:G) -> 0 | H192: =SUMIF('Fusion TB Drop'!$A:$A,'Linked TB'!$A192,'Fusion TB Drop'!H:H) -> 0 | I192: 0 | K192: 0 | L192: 0 | M192: 0 | P192: =IFERROR(MATCH(A192,'Fusion TB Drop'!A:A,0),"") -> 
A193: 141751 | B193: =IFERROR(INDEX('Fusion Chart of Accounts'!I:I,MATCH('Linked TB'!A193,'Fusion Chart of Accounts'!H:H,0),0),0) -> CWIP - Heating/Air Conditioning | C193: =SUMIF('Fusion TB Drop'!$A:$A,'Linked TB'!$A193,'Fusion TB Drop'!C:C) -> 0 | D193: =SUMIF('Fusion TB Drop'!$A:$A,'Linked TB'!$A193,'Fusion TB Drop'!D:D) -> 0 | E193: 0 | G193: =SUMIF('Fusion TB Drop'!$A:$A,'Linked TB'!$A193,'Fusion TB Drop'!G:G) -> 0 | H193: =SUMIF('Fusion TB Drop'!$A:$A,'Linked TB'!$A193,'Fusion TB Drop'!H:H) -> 0 | I193: 0 | K193: 0 | L193: 0 | M193: 0 | P193: =IFERROR(MATCH(A193,'Fusion TB Drop'!A:A,0),"") -> 
A194: 141752 | B194: =IFERROR(INDEX('Fusion Chart of Accounts'!I:I,MATCH('Linked TB'!A194,'Fusion Chart of Accounts'!H:H,0),0),0) -> CWIP - Interior Finish | C194: =SUMIF('Fusion TB Drop'!$A:$A,'Linked TB'!$A194,'Fusion TB Drop'!C:C) -> 0 | D194: =SUMIF('Fusion TB Drop'!$A:$A,'Linked TB'!$A194,'Fusion TB Drop'!D:D) -> 0 | E194: 0 | G194: =SUMIF('Fusion TB Drop'!$A:$A,'Linked TB'!$A194,'Fusion TB Drop'!G:G) -> 0 | H194: =SUMIF('Fusion TB Drop'!$A:$A,'Linked TB'!$A194,'Fusion TB Drop'!H:H) -> 0 | I194: 0 | K194: 0 | L194: 0 | M194: 0 | P194: =IFERROR(MATCH(A194,'Fusion TB Drop'!A:A,0),"") -> 
A195: 141753 | B195: =IFERROR(INDEX('Fusion Chart of Accounts'!I:I,MATCH('Linked TB'!A195,'Fusion Chart of Accounts'!H:H,0),0),0) -> CWIP - Modification/Con | C195: =SUMIF('Fusion TB Drop'!$A:$A,'Linked TB'!$A195,'Fusion TB Drop'!C:C) -> 113840 | D195: =SUMIF('Fusion TB Drop'!$A:$A,'Linked TB'!$A195,'Fusion TB Drop'!D:D) -> 0 | E195: 113840 | G195: =SUMIF('Fusion TB Drop'!$A:$A,'Linked TB'!$A195,'Fusion TB Drop'!G:G) -> 0 | H195: =SUMIF('Fusion TB Drop'!$A:$A,'Linked TB'!$A195,'Fusion TB Drop'!H:H) -> 0 | I195: 0 | K195: 113840 | L195: 0 | M195: 113840 | P195: =IFERROR(MATCH(A195,'Fusion TB Drop'!A:A,0),"") -> 
A196: 141754 | B196: =IFERROR(INDEX('Fusion Chart of Accounts'!I:I,MATCH('Linked TB'!A196,'Fusion Chart of Accounts'!H:H,0),0),0) -> CWIP - Remodeling | C196: =SUMIF('Fusion TB Drop'!$A:$A,'Linked TB'!$A196,'Fusion TB Drop'!C:C) -> 0 | D196: =SUMIF('Fusion TB Drop'!$A:$A,'Linked TB'!$A196,'Fusion TB Drop'!D:D) -> 0 | E196: 0 | G196: =SUMIF('Fusion TB Drop'!$A:$A,'Linked TB'!$A196,'Fusion TB Drop'!G:G) -> 0 | H196: =SUMIF('Fusion TB Drop'!$A:$A,'Linked TB'!$A196,'Fusion TB Drop'!H:H) -> 0 | I196: 0 | K196: 0 | L196: 0 | M196: 0 | P196: =IFERROR(MATCH(A196,'Fusion TB Drop'!A:A,0),"") -> 
A197: 141756 | B197: =IFERROR(INDEX('Fusion Chart of Accounts'!I:I,MATCH('Linked TB'!A197,'Fusion Chart of Accounts'!H:H,0),0),0) -> CWIP - Grouting/Sealing | C197: =SUMIF('Fusion TB Drop'!$A:$A,'Linked TB'!$A197,'Fusion TB Drop'!C:C) -> 0 | D197: =SUMIF('Fusion TB Drop'!$A:$A,'Linked TB'!$A197,'Fusion TB Drop'!D:D) -> 0 | E197: 0 | G197: =SUMIF('Fusion TB Drop'!$A:$A,'Linked TB'!$A197,'Fusion TB Drop'!G:G) -> 0 | H197: =SUMIF('Fusion TB Drop'!$A:$A,'Linked TB'!$A197,'Fusion TB Drop'!H:H) -> 0 | I197: 0 | K197: 0 | L197: 0 | M197: 0 | P197: =IFERROR(MATCH(A197,'Fusion TB Drop'!A:A,0),"") -> 
A198: 141757 | B198: =IFERROR(INDEX('Fusion Chart of Accounts'!I:I,MATCH('Linked TB'!A198,'Fusion Chart of Accounts'!H:H,0),0),0) -> CWIP - Jet Cleaning | C198: =SUMIF('Fusion TB Drop'!$A:$A,'Linked TB'!$A198,'Fusion TB Drop'!C:C) -> 0 | D198: =SUMIF('Fusion TB Drop'!$A:$A,'Linked TB'!$A198,'Fusion TB Drop'!D:D) -> 0 | E198: 0 | G198: =SUMIF('Fusion TB Drop'!$A:$A,'Linked TB'!$A198,'Fusion TB Drop'!G:G) -> 0 | H198: =SUMIF('Fusion TB Drop'!$A:$A,'Linked TB'!$A198,'Fusion TB Drop'!H:H) -> 0 | I198: 0 | K198: 0 | L198: 0 | M198: 0 | P198: =IFERROR(MATCH(A198,'Fusion TB Drop'!A:A,0),"") -> 
A199: 141758 | B199: =IFERROR(INDEX('Fusion Chart of Accounts'!I:I,MATCH('Linked TB'!A199,'Fusion Chart of Accounts'!H:H,0),0),0) -> CWIP - Pump and Haul Sludge | C199: =SUMIF('Fusion TB Drop'!$A:$A,'Linked TB'!$A199,'Fusion TB Drop'!C:C) -> 0 | D199: =SUMIF('Fusion TB Drop'!$A:$A,'Linked TB'!$A199,'Fusion TB Drop'!D:D) -> 0 | E199: 0 | G199: =SUMIF('Fusion TB Drop'!$A:$A,'Linked TB'!$A199,'Fusion TB Drop'!G:G) -> 0 | H199: =SUMIF('Fusion TB Drop'!$A:$A,'Linked TB'!$A199,'Fusion TB Drop'!H:H) -> 0 | I199: 0 | K199: 0 | L199: 0 | M199: 0 | P199: =IFERROR(MATCH(A199,'Fusion TB Drop'!A:A,0),"") -> 
A200: 141759 | B200: =IFERROR(INDEX('Fusion Chart of Accounts'!I:I,MATCH('Linked TB'!A200,'Fusion Chart of Accounts'!H:H,0),0),0) -> CWIP - Rental/Machine | C200: =SUMIF('Fusion TB Drop'!$A:$A,'Linked TB'!$A200,'Fusion TB Drop'!C:C) -> 0 | D200: =SUMIF('Fusion TB Drop'!$A:$A,'Linked TB'!$A200,'Fusion TB Drop'!D:D) -> 0 | E200: 0 | G200: =SUMIF('Fusion TB Drop'!$A:$A,'Linked TB'!$A200,'Fusion TB Drop'!G:G) -> 0 | H200: =SUMIF('Fusion TB Drop'!$A:$A,'Linked TB'!$A200,'Fusion TB Drop'!H:H) -> 0 | I200: 0 | K200: 0 | L200: 0 | M200: 0 | P200: =IFERROR(MATCH(A200,'Fusion TB Drop'!A:A,0),"") -> 
A201: 141760 | B201: =IFERROR(INDEX('Fusion Chart of Accounts'!I:I,MATCH('Linked TB'!A201,'Fusion Chart of Accounts'!H:H,0),0),0) -> CWIP - Repair | C201: =SUMIF('Fusion TB Drop'!$A:$A,'Linked TB'!$A201,'Fusion TB Drop'!C:C) -> 0 | D201: =SUMIF('Fusion TB Drop'!$A:$A,'Linked TB'!$A201,'Fusion TB Drop'!D:D) -> 0 | E201: 0 | G201: =SUMIF('Fusion TB Drop'!$A:$A,'Linked TB'!$A201,'Fusion TB Drop'!G:G) -> 0 | H201: =SUMIF('Fusion TB Drop'!$A:$A,'Linked TB'!$A201,'Fusion TB Drop'!H:H) -> 0 | I201: 0 | K201: 0 | L201: 0 | M201: 0 | P201: =IFERROR(MATCH(A201,'Fusion TB Drop'!A:A,0),"") -> 
... 1389 more rows

Sheet Lead Exhibits >>
B5: ='Cover Page'!B5 -> Water Service Corporation of Kentucky
B6: ='Cover Page'!B6 -> 0
B7: ='Cover Page'!B7 -> Rate Case Exhibits
B8: ='Cover Page'!B9 -> Forecast Period: December 31, 2023
B9: Lead Financial Exhibits

Sheet Balance Sheet (2) (hidden)
A1: ='Linked TB'!A1 -> Water Service Corporation of Kentucky | G1: Schedule C
A2: ='Linked TB'!A2 -> Case No. 2022-00147
A3: Historic Year Ended September 30, 2021
A5: Balance Sheet | G5: Page 1 of 3
A7: ASSETS: | C7: $ | E7: LIABILITIES AND OTHER CREDITS | G7: $
A8: Plant In Service: | E8: Capital Stock and Retained Earnings:
A9: Water | C9: ='Linked TB'!K132+'Linked TB'!K136+'Linked TB'!K146 -> 13584286.37 | E9: Common Stock and Paid In Capital | G9: =-(+'Linked TB'!M939+'Linked TB'!M940+'Linked TB'!M938+'Linked TB'!M942) -> 2835076
A10: Sewer | C10: ='Linked TB'!L132+'Linked TB'!L136+'Linked TB'!L146 -> 0 | E10: Retained Earnings | G10: =-(+'Linked TB'!M948+'Linked TB'!C1586) -> -485790.56
A12: Total | C12: =SUM(C8:C11) -> 13584286.37 | E12: Total | G12: =SUM(G9:G11) -> 2349285.44
A14: Accumulated Depreciation-Water | C14: ='Linked TB'!K328 -> -6964941.41 | E14: Current and Accrued Liabilities:
A15: Accumulated Depreciation-Sewer | C15: ='Linked TB'!L328 -> 0 | E15: Accounts Payable | G15: =-'Linked TB'!M578 -> 1052939.91
E16: Accrued Liabilities | G16: =-'Linked TB'!M596 -> -10414.21
A17: Total | C17: =SUM(C14:C16) -> -6964941.41 | E17: Taxes Accrued | G17: =-'Linked TB'!M639-'Linked TB'!M644 -> 140161.94
E18: Customer Deposits | G18: =-'Linked TB'!M655 -> 69621.72
A19: Net Utility Plant | C19: =C12+C17 -> 6619344.96 | E19: Customer Deposits - Interest | G19: =-(+'Linked TB'!M650) -> 424.96
E20: A/P - Assoc. Companies | G20: =-'Linked TB'!M677 -> 3443359.49
A21: Plant Acquisition Adjustment-Water | C21: ='Linked TB'!K333 -> -110730.05 | E21: Deferred Revenue | G21: =-'Linked TB'!M657 -> 0
A22: Plant Acquisition Adjustment-Sewer | C22: ='Linked TB'!L333 -> 0
E23: Total | G23: =SUM(G15:G21) -> 4696093.81
A24: Total | C24: =SUM(C21:C23) -> -110730.05
E25: Advances In Aid of Construction:
E26: Water | G26: =-'Linked TB'!K933 -> 0
A27: Construction Work In Process-Water | C27: ='Linked TB'!K209 -> 140075.76 | E27: Sewer | G27: =-'Linked TB'!L933 -> 0
A28: Construction Work In Process-Sewer | C28: ='Linked TB'!L209 -> 0
E29: Total | G29: =SUM(G26:G28) -> 0
A30: Total | C30: =SUM(C27:C29) -> 140075.76
E31: Contributions In Aid of Construction:
A32: Current Assets: | E32: Water | G32: =-'Linked TB'!K929 -> 250779.21
A33: Cash | C33: ='Linked TB'!M413 -> 605179.68 | E33: Sewer | G33: =-'Linked TB'!L929 -> 0
A34: Accounts Receivable - Net | C34: ='Linked TB'!M429 -> 854777.46
A35: Other Current Assets | C35: =SUM('Linked TB'!M435,'Linked TB'!M438,'Linked TB'!M450,'Linked TB'!M483,'Linked TB'!M504) -> 230575.16 | E35: Total | G35: =SUM(G32:G34) -> 250779.21
A37: Total | C37: =SUM(C33:C36) -> 1690532.3 | E37: Other Liabilities:
E38: Unamortized ITC | G38: =-'Linked TB'!M745 -> 0
A39: Non-Current Assets: | E39: Deferred Tax - Federal | G39: =-'Linked TB'!M727 -> 891216.7
A40: Deferred Charges | C40: ='Linked TB'!M539 -> 676808.52 | E40: Deferred Tax - State | G40: =-(+'Linked TB'!M742) -> -40570.7
A41: Other Non-Current Assets | C41: =+'Linked TB'!M566 -> 154919.54 | E41: Other Non Current Liabilities | G41: =-'Linked TB'!M768 -> 182393.42
A43: Total | C43: =+C40+C41 -> 831728.06 | E43: Total | G43: =SUM(G37:G41) -> 1033039.42
A45: TOTAL ASSETS | C45: =C19+C24+C30+C37+C43 -> 9170951.03 | E45: TOTAL LIABILITIES AND OTHER CREDITS | G45: =G12+G23+G29+G35+G43 -> 8329197.88 | I45: =+G45-C45 -> -841753.15 | J45: check

Sheet BP Update
A1: ='Linked TB'!$A$1 -> Water Service Corporation of Kentucky | I1: Summary of Updates
A2: ='Linked TB'!$A$2 -> Case No. 2022-00147 | I2: Updated thru 9/30/2022
A3: ='Linked TB'!$A$3 -> Rate Case Exhibits
A4: ='Linked TB'!$A$4 -> Base Period: September 30, 2022
A5: ='Linked TB'!$A$5 -> Forecast Period: December 31, 2023
A8: Revenue Deficiency Calculation | N8: As-filed
A9: Line No. | C9: Description | D9: Reference | E9: Base Period | G9: Forecast Period | I9: Comments | K9: updated gross up BP | M9: updated gross up FP | N9: Base Period | P9: Forecast Period | Q9: As Filed gross up BP | S9: As Filed gross up FP
E10: [A] | G10: [A] | I10: [B]
A12: 1 | C12: As-Filed Filing Revenue Requirement | D12: As-Filed Exh 27, 28 | E12: =3254466+786145+297 -> 4040908 | G12: =4309579+297 -> 4309876 | N12: =+E12 -> 4040908 | P12: =+G12 -> 4309876 | T12: =+E12-799191+767799 -> 4009516 | V12: 4140300 | W12: w/o BD
A14: =+A12+1 -> 2 | B14: Line No. | C14: Present Rate Revenues: | D14: Exh 29.1 | E14: =-(+'Income Statement'!I72+'Income Statement'!I74-'BP Update'!N14) -> -11424.09 | G14: =-('Income Statement'!M72+'Income Statement'!M74-'BP Update'!P14) -> 100622.75 | I14: Updated base period actual billings | N14: =3254466+297 -> 3254763 | P14: =3261891+297 -> 3262188
C16: O&M: | U16: @ pres rev | V16: as-filed | W16: update
A17: =+A14+1 -> 3 | C17: Uncollectible Accounts | D17: Exh 29.2 | E17: =((T12/(1+$W$17))-(T12/(1-$V$17)))+(SUM(E$18:E$58)*(1-$V$17)*(-$W$17-$V$17)) -> -52719.99157 | G17: =((V12/(1+$W$17))-(V12/(1-$V$17)))+((SUM(G$18:G$58)*(1-$V$17)*(-$W$17-$V$17)))+12 -> -51836.49332 | I17: Updated base period actuals | K17: =1/(1-'Cap Structure & Cost of Debt'!$E$28+'Service Revenue Requirement'!$E$14) -> 1.030217068 | M17: =+K17 -> 1.030217068 | N17: 127833.9724 | P17: 169278.3333 | Q17: =+S17 -> 1.043056975 | S17: =1/(1-0.0392796-0.002) -> 1.043056975 | T17: =+(SUM(G$18:G$58)*(1-$V$17)*(-$W$17-$V$17)) -> 1080.465172 | U17: 128125.62 | V17: =+P17/G12 -> 0.03927684539 | W17: =Uncollectibles!H18 -> -0.02733077775
A18: =+A17+1 -> 4 | C18: Purchased Power | D18: Exh 29.5 | E18: ='Income Statement'!I81*'BP Update'!Q18-('BP Update'!N18*'BP Update'!Q18) -> 2544.704379 | G18: ='Income Statement'!Q81*'BP Update'!S18-('BP Update'!P18*'BP Update'!S18) -> 2544.704379 | I18: Updated base period actuals | K18: =1/(1-'Cap Structure & Cost of Debt'!$E$28+'Service Revenue Requirement'!$E$14) -> 1.030217068 | M18: =+K18 -> 1.030217068 | N18: 114865.31 | P18: 114865.31 | Q18: =+S18 -> 1.043056975 | S18: =1/(1-0.0392796-0.002) -> 1.043056975
A19: =+A18+1 -> 5 | C19: Purchased Water / Sewer | D19: Exh 29.6 | E19: ='Income Statement'!I82*'BP Update'!Q19-('BP Update'!N19*'BP Update'!Q19) -> 502.0859053 | G19: ='Income Statement'!Q82*'BP Update'!S19-('BP Update'!P19*'BP Update'!S19) -> 72.34643176 | I19: Updated base period actuals | K19: =1/(1-'Cap Structure & Cost of Debt'!$E$28+'Service Revenue Requirement'!$E$14) -> 1.030217068 | M19: 1.030217068 | N19: 124398.4 | P19: 123204 | Q19: 1.043056975 | S19: 1.043056975
A20: 6 | C20: Maintenance and Repair | D20: Exh 29.7 | E20: ='Income Statement'!I83*'BP Update'!Q20-('BP Update'!N20*'BP Update'!Q20) -> -5287.271451 | G20: ='Income Statement'!Q83*'BP Update'!S20-('BP Update'!P20*'BP Update'!S20) -> -9972.897208 | I20: Updated base period actuals, Removed Clinton WW expenses | K20: =1/(1-'Cap Structure & Cost of Debt'!$E$28+'Service Revenue Requirement'!$E$14) -> 1.030217068 | M20: 1.030217068 | N20: 182935.135 | P20: 176217.5568 | Q20: 1.043056975 | S20: 1.043056975
A21: 7 | C21: Maintenance Testing | D21: Exh 29.8 | E21: ='Income Statement'!I84*'BP Update'!Q21-('BP Update'!N21*'BP Update'!Q21) -> -1103.02232 | G21: ='Income Statement'!Q84*'BP Update'!S21-('BP Update'!P21*'BP Update'!S21) -> -1103.02232 | I21: Forecast based on Base period | K21: =1/(1-'Cap Structure & Cost of Debt'!$E$28+'Service Revenue Requirement'!$E$14) -> 1.030217068 | M21: 1.030217068 | N21: 25027.75 | P21: 25027.75 | Q21: 1.043056975 | S21: 1.043056975
A22: 8 | C22: Chemicals | D22: Exh 29.9 | E22: ='Income Statement'!I86*'BP Update'!Q22-('BP Update'!N22*'BP Update'!Q22) -> 5570.487496 | G22: ='Income Statement'!Q86*'BP Update'!S22-('BP Update'!P22*'BP Update'!S22) -> 0 | K22: =1/(1-'Cap Structure & Cost of Debt'!$E$28+'Service Revenue Requirement'!$E$14) -> 1.030217068 | M22: 1.030217068 | N22: 100857.51 | P22: 103884.53 | Q22: 1.043056975 | S22: 1.043056975
A23: 9 | C23: Transportation | D23: Exh 29.10 | E23: ='Income Statement'!I87*'BP Update'!Q23-('BP Update'!N23*'BP Update'!Q23) -> 5146.20321 | G23: ='Income Statement'!Q87*'BP Update'!S23-('BP Update'!P23*'BP Update'!S23) -> 397.1335125 | I23: Updated base period actuals | K23: =1/(1-'Cap Structure & Cost of Debt'!$E$28+'Service Revenue Requirement'!$E$14) -> 1.030217068 | M23: 1.030217068 | N23: 43118.51 | P23: 48835.23 | Q23: 1.043056975 | S23: 1.043056975
A24: 10 | C24: Operating Exp. Charged to Plant | D24: Exh 29.4 | E24: ='Income Statement'!I88*'BP Update'!Q24-('BP Update'!N24*'BP Update'!Q24) -> 19906.88839 | G24: ='Income Statement'!Q88*'BP Update'!S24-('BP Update'!P24*'BP Update'!S24) -> 0 | K24: =1/(1-'Cap Structure & Cost of Debt'!$E$28+'Service Revenue Requirement'!$E$14) -> 1.030217068 | M24: 1.030217068 | N24: -46677 | P24: -138212 | Q24: 1.043056975 | S24: 1.043056975
A25: 11 | C25: Outside Services - Other | D25: Exh 29.11 | E25: ='Income Statement'!I89*'BP Update'!Q25-('BP Update'!N25*'BP Update'!Q25) -> 22388.70686 | G25: ='Income Statement'!Q89*'BP Update'!S25-('BP Update'!P25*'BP Update'!S25) -> -5457.555717 | I25: Removed City of Clinton AP service cost | K25: =1/(1-'Cap Structure & Cost of Debt'!$E$28+'Service Revenue Requirement'!$E$14) -> 1.030217068 | M25: 1.030217068 | N25: 36285.25 | P25: 23411.25 | Q25: 1.043056975 | S25: 1.043056975
A26: 12 | C26: Salaries and Wages | D26: Exh 29.3 | E26: ='Income Statement'!I94*'BP Update'!Q26-('BP Update'!N26*'BP Update'!Q26) -> -11000.04756 | G26: ='Income Statement'!Q94*'BP Update'!S26-('BP Update'!P26*'BP Update'!S26) -> -10911.33035 | I26: Updated for actual positions at base period end | K26: =1/(1-'Cap Structure & Cost of Debt'!$E$28+'Service Revenue Requirement'!$E$14) -> 1.030217068 | M26: 1.030217068 | N26: 881239.91 | P26: 936693.5388 | Q26: 1.043056975 | S26: 1.043056975
A27: 13 | C27: Office Supplies & Other Office Exp. | D27: Exh 29.12 | E27: ='Income Statement'!I95*'BP Update'!Q27-('BP Update'!N27*'BP Update'!Q27) -> 11775.08062 | G27: ='Income Statement'!Q95*'BP Update'!S27-('BP Update'!P27*'BP Update'!S27) -> 111.4714989 | I27: Updated base period actuals | K27: =1/(1-'Cap Structure & Cost of Debt'!$E$28+'Service Revenue Requirement'!$E$14) -> 1.030217068 | M27: 1.030217068 | N27: 52741.88 | P27: 51491.88 | Q27: 1.043056975 | S27: 1.043056975
A28: 14 | C28: Regulatory Commission Exp. | D28: Exh 29.13 | E28: ='Income Statement'!I96*'BP Update'!Q28-('BP Update'!N28*'BP Update'!Q28) -> 0 | G28: ='Income Statement'!Q96*'BP Update'!S28-('BP Update'!P28*'BP Update'!S28) -> 83.67403051 | I28: Updated base period actuals | K28: =1/(1-'Cap Structure & Cost of Debt'!$E$28+'Service Revenue Requirement'!$E$14) -> 1.030217068 | M28: 1.030217068 | N28: 51317.64 | P28: 160706.4233 | Q28: 1.043056975 | S28: 1.043056975
A29: 15 | C29: Pension & Other Benefits | D29: Exh 29.14 | E29: ='Income Statement'!I97*'BP Update'!Q29-('BP Update'!N29*'BP Update'!Q29) -> -19230.1312 | G29: ='Income Statement'!Q97*'BP Update'!S29-('BP Update'!P29*'BP Update'!S29) -> -16872.50176 | I29: Updated actual positions at base period end, use actual 401k elections | K29: =1/(1-'Cap Structure & Cost of Debt'!$E$28+'Service Revenue Requirement'!$E$14) -> 1.030217068 | M29: 1.030217068 | N29: 253008.5991 | P29: 309783.203 | Q29: 1.043056975 | S29: 1.043056975
A30: 16 | C30: Rent | D30: Exh 29.15 | E30: ='Income Statement'!I98*'BP Update'!Q30-('BP Update'!N30*'BP Update'!Q30) -> -2644.994307 | G30: ='Income Statement'!Q98*'BP Update'!S30-('BP Update'!P30*'BP Update'!S30) -> 0 | K30: =1/(1-'Cap Structure & Cost of Debt'!$E$28+'Service Revenue Requirement'!$E$14) -> 1.030217068 | M30: 1.030217068 | N30: 18778.34 | P30: 20025.24396 | Q30: 1.043056975 | S30: 1.043056975
A31: 17 | C31: Insurance | D31: Exh 29.16 | E31: ='Income Statement'!I99*'BP Update'!Q31-('BP Update'!N31*'BP Update'!Q31) -> -14695.95841 | G31: ='Income Statement'!Q99*'BP Update'!S31-('BP Update'!P31*'BP Update'!S31) -> 0 | K31: =1/(1-'Cap Structure & Cost of Debt'!$E$28+'Service Revenue Requirement'!$E$14) -> 1.030217068 | M31: 1.030217068 | N31: 104264.5051 | P31: 113400.9119 | Q31: 1.043056975 | S31: 1.043056975
A32: 18 | C32: Office Utilities | D32: Exh 29.17 | E32: ='Income Statement'!I100*'BP Update'!Q32-('BP Update'!N32*'BP Update'!Q32) -> -1032.678558 | G32: ='Income Statement'!Q100*'BP Update'!S32-('BP Update'!P32*'BP Update'!S32) -> 2816.890096 | I32: Updated base period actuals | K32: =1/(1-'Cap Structure & Cost of Debt'!$E$28+'Service Revenue Requirement'!$E$14) -> 1.030217068 | M32: 1.030217068 | N32: 24537.62 | P32: 20708.24 | Q32: 1.043056975 | S32: 1.043056975
A33: 19 | C33: Miscellaneous | D33: Exh 29.18 | E33: ='Income Statement'!I101*'BP Update'!Q33-('BP Update'!N33*'BP Update'!Q33) -> 96229.38266 | G33: ='Income Statement'!Q101*'BP Update'!S33-('BP Update'!P33*'BP Update'!S33) -> -418.8290976 | I33: Updated base period actuals | K33: =1/(1-'Cap Structure & Cost of Debt'!$E$28+'Service Revenue Requirement'!$E$14) -> 1.030217068 | M33: 1.030217068 | N33: 643136.5078 | P33: 667561.2217 | Q33: 1.043056975 | S33: 1.043056975
A34: 20 | C34: Depreciation | D34: Exh 29.19 | E34: ='Income Statement'!I105*'BP Update'!Q34-('BP Update'!N34*'BP Update'!Q34) -> -5484.777164 | G34: ='Income Statement'!Q105*'BP Update'!S34-('BP Update'!P34*'BP Update'!S34)+5 -> -59051.94345 | I34: Updated base period actuals, correct formula error | K34: =1/(1-'Cap Structure & Cost of Debt'!$E$28+'Service Revenue Requirement'!$E$14) -> 1.030217068 | M34: 1.030217068 | N34: 392355.1802 | P34: 474204.7381 | Q34: 1.043056975 | S34: 1.043056975
A35: 21 | C35: Amortization of PAA | D35: Exh 29.20 | E35: ='Income Statement'!I106*'BP Update'!Q35-('BP Update'!N35*'BP Update'!Q35) -> 0 | G35: ='Income Statement'!Q106*'BP Update'!S35-('BP Update'!P35*'BP Update'!S35) -> 0 | K35: =1/(1-'Cap Structure & Cost of Debt'!$E$28+'Service Revenue Requirement'!$E$14) -> 1.030217068 | M35: 1.030217068 | N35: -3660.49 | P35: -3660.49 | Q35: 1.043056975 | S35: 1.043056975
A36: 22 | C36: Payroll Taxes | D36: Exh 29.22 | E36: ='Income Statement'!I107*'BP Update'!Q36-('BP Update'!N36*'BP Update'!Q36) -> -12241.5559 | G36: ='Income Statement'!Q107*'BP Update'!S36-('BP Update'!P36*'BP Update'!S36) -> -904.5817383 | I36: Updated for actual wages in base period | K36: =1/(1-'Cap Structure & Cost of Debt'!$E$28+'Service Revenue Requirement'!$E$14) -> 1.030217068 | M36: 1.030217068 | N36: 66296.61936 | P36: 71972.15594 | Q36: 1.043056975 | S36: 1.043056975
A37: 23 | C37: Franchise Tax | D37: Exh 29.22 | E37: ='Income Statement'!I108*'BP Update'!Q37-('BP Update'!N37*'BP Update'!Q37) -> 0 | G37: ='Income Statement'!Q108*'BP Update'!S37-('BP Update'!P37*'BP Update'!S37) -> 0 | K37: =1/(1-'Cap Structure & Cost of Debt'!$E$28+'Service Revenue Requirement'!$E$14) -> 1.030217068 | M37: 1.030217068 | N37: 0 | P37: 0 | Q37: 1.043056975 | S37: 1.043056975
A38: 24 | C38: Gross Receipts Tax | D38: Exh 29.22 | E38: ='Income Statement'!I109*'BP Update'!Q38-('BP Update'!N38*'BP Update'!Q38) -> 0 | G38: ='Income Statement'!Q109*'BP Update'!S38-('BP Update'!P38*'BP Update'!S38) -> 0 | K38: =1/(1-'Cap Structure & Cost of Debt'!$E$28+'Service Revenue Requirement'!$E$14) -> 1.030217068 | M38: 1.030217068 | N38: 0 | P38: 0 | Q38: 1.043056975 | S38: 1.043056975
A39: 25 | C39: Property Taxes | D39: Exh 29.22 | E39: ='Income Statement'!I110*'BP Update'!Q39-('BP Update'!N39*'BP Update'!Q39) -> -5304.208144 | G39: ='Income Statement'!Q110*'BP Update'!S39-('BP Update'!P39*'BP Update'!S39) -> -28.55105004 | I39: Updated base period actuals | K39: =1/(1-'Cap Structure & Cost of Debt'!$E$28+'Service Revenue Requirement'!$E$14) -> 1.030217068 | M39: 1.030217068 | N39: 113255.6326 | P39: 116621.2146 | Q39: 1.043056975 | S39: 1.043056975
A40: 26 | C40: Special Assessments | D40: Exh 29.22 | E40: ='Income Statement'!I111*'BP Update'!Q40-('BP Update'!N40*'BP Update'!Q40) -> 0 | G40: ='Income Statement'!Q111*'BP Update'!S40-('BP Update'!P40*'BP Update'!S40) -> 0 | K40: =1/(1-'Cap Structure & Cost of Debt'!$E$28+'Service Revenue Requirement'!$E$14) -> 1.030217068 | M40: 1.030217068 | N40: 0 | P40: 0 | Q40: 1.043056975 | S40: 1.043056975
A41: 27 | C41: Utility/Commission Tax | D41: Exh 29.22 | K41: =1/(1-'Cap Structure & Cost of Debt'!$E$28+'Service Revenue Requirement'!$E$14) -> 1.030217068 | M41: 1.030217068 | N41: 6623.532 | P41: 8281.2 | Q41: 1.043056975 | S41: 1.043056975
A42: 28 | C42: Other General Taxes | D42: Exh 29.22 | E42: ='Income Statement'!I113*'BP Update'!Q42-('BP Update'!N42*'BP Update'!Q42) -> 20058.56974 | G42: ='Income Statement'!Q113*'BP Update'!S42-('BP Update'!P42*'BP Update'!S42) -> 0 | K42: =1/(1-'Cap Structure & Cost of Debt'!$E$28+'Service Revenue Requirement'!$E$14) -> 1.030217068 | M42: 1.030217068 | N42: 0 | P42: 0 | Q42: 1.043056975 | S42: 1.043056975
A43: 29 | C43: Income Taxes - Federal | D43: Exh 29.23 | K43: =1/(1-'Cap Structure & Cost of Debt'!$E$28+'Service Revenue Requirement'!$E$14) -> 1.030217068 | M43: 1.030217068 | N43: -43185.87771 | P43: 108275.063 | Q43: 1.043056975 | S43: 1.043056975
A44: 30 | C44: Income Taxes - State | D44: Exh 29.23 | K44: =1/(1-'Cap Structure & Cost of Debt'!$E$28+'Service Revenue Requirement'!$E$14) -> 1.030217068 | M44: 1.030217068 | N44: -10823.52825 | P44: 27136.60727 | Q44: 1.043056975 | S44: 1.043056975
A45: 31 | C45: Amortization of CIAC | D45: Exh 29.21 | E45: ='Income Statement'!I117*'BP Update'!Q45-('BP Update'!N45*'BP Update'!Q45) -> 0 | G45: ='Income Statement'!Q117*'BP Update'!S45-('BP Update'!P45*'BP Update'!S45) -> 0 | K45: =1/(1-'Cap Structure & Cost of Debt'!$E$28+'Service Revenue Requirement'!$E$14) -> 1.030217068 | M45: 1.030217068 | N45: -10356.01328 | P45: -10356.01328 | Q45: 1.043056975 | S45: 1.043056975
N46: =N14-SUM(N17:N45) -> 6588.105686 | P46: =P12-SUM(P17:P45) -> 590518.9015
C47: Rate Base:
A48: =+A45+1 -> 32 | C48: Gross Plant In Service | D48: Exh 28.1 | E48: ='Rate Base'!I48*'BP Update'!Q48-('BP Update'!N48*'BP Update'!Q48) -> -2765.984589 | G48: ='Rate Base'!Q48*'BP Update'!S48-('BP Update'!P48*'BP Update'!S48) -> -2060.154522 | I48: Updated base period actuals, lower forecasted vehicle purchase price | K48: =+'Cap Structure & Cost of Debt'!$L$16 -> 0.09960495877 | M48: =+'Cap Structure & Cost of Debt'!$L$21 -> 0.09861002855 | N48: 13633676.26 | P48: 14205984.22 | Q48: 0.096768 | S48: 0.09794543312
A49: =+A48+1 -> 33 | C49: Accumulated Depreciation | D49: Exh 28.2 | E49: ='Rate Base'!I49*'BP Update'!Q49-('BP Update'!N49*'BP Update'!Q49) -> 1373.181231 | G49: ='Rate Base'!Q49*'BP Update'!S49-('BP Update'!P49*'BP Update'!S49) -> 1980.272145 | I49: Updated base period actuals, lower forecasted vehicle purchase price | K49: =+'Cap Structure & Cost of Debt'!$L$16 -> 0.09960495877 | M49: =+'Cap Structure & Cost of Debt'!$L$21 -> 0.09861002855 | N49: -6491858.695 | P49: -6775935.704 | Q49: 0.096768 | S49: 0.09794543312
A50: =+A49+1 -> 34 | C50: Cash Working Capital | D50: Exh 28.3 | E50: ='Rate Base'!I52*'BP Update'!Q50-('BP Update'!N50*'BP Update'!Q50) -> 1264.843557 | G50: ='Rate Base'!Q52*'BP Update'!S50-('BP Update'!P50*'BP Update'!S50) -> -454.3687006 | I50: Updated base period actuals | K50: =+'Cap Structure & Cost of Debt'!$L$16 -> 0.09960495877 | M50: =+'Cap Structure & Cost of Debt'!$L$21 -> 0.09861002855 | N50: 326229.4834 | P50: 344700.5362 | Q50: 0.096768 | S50: 0.09794543312
A51: 35 | C51: Contributions In Aid of Construction | D51: Exh 28.4 | E51: ='Rate Base'!I53*'BP Update'!Q51-('BP Update'!N51*'BP Update'!Q51) -> 0 | G51: ='Rate Base'!Q53*'BP Update'!S51-('BP Update'!P51*'BP Update'!S51) -> 0 | K51: =+'Cap Structure & Cost of Debt'!$L$16 -> 0.09960495877 | M51: =+'Cap Structure & Cost of Debt'!$L$21 -> 0.09861002855 | N51: -250777.96 | P51: -243012.13 | Q51: 0.096768 | S51: 0.09794543312
A52: 36 | C52: Accumulated Deferred Income Taxes | D52: Exh 28.5 | E52: ='Rate Base'!I55*'BP Update'!Q52-('BP Update'!N52*'BP Update'!Q52) -> -129.7974611 | G52: ='Rate Base'!Q55*'BP Update'!S52-('BP Update'!P52*'BP Update'!S52) -> -270.2271467 | I52: Updated base period actuals | K52: =+'Cap Structure & Cost of Debt'!$L$16 -> 0.09960495877 | M52: =+'Cap Structure & Cost of Debt'!$L$21 -> 0.09861002855 | N52: -873598 | P52: -887728.4296 | Q52: 0.096768 | S52: 0.09794543312
A53: 37 | C53: Net Plant Acquisition Adjustment | D53: Exh 28.6 | E53: ='Rate Base'!I56*'BP Update'!Q53-('BP Update'!N53*'BP Update'!Q53) -> 0 | G53: ='Rate Base'!Q56*'BP Update'!S53-('BP Update'!P53*'BP Update'!S53) -> 0 | K53: =+'Cap Structure & Cost of Debt'!$L$16 -> 0.09960495877 | M53: =+'Cap Structure & Cost of Debt'!$L$21 -> 0.09861002855 | N53: -110730.05 | P53: -107984.69 | Q53: 0.096768 | S53: 0.09794543312
A54: 38 | C54: Oracle Fusion Asset | D54: Exh 28.7 | E54: ='Rate Base'!I58*'BP Update'!Q54-('BP Update'!N54*'BP Update'!Q54) -> 0 | G54: ='Rate Base'!Q58*'BP Update'!S54-('BP Update'!P54*'BP Update'!S54) -> 0 | K54: =+'Cap Structure & Cost of Debt'!$L$16 -> 0.09960495877 | M54: =+'Cap Structure & Cost of Debt'!$L$21 -> 0.09861002855 | N54: 162590.5756 | P54: 143830.1246 | Q54: 0.096768 | S54: 0.09794543312
A55: 39 | C55: Deferred Charges | D55: Exh 28.8 | E55: ='Rate Base'!I63*'BP Update'!Q55-('BP Update'!N55*'BP Update'!Q55) -> 33.84105984 | G55: ='Rate Base'!Q63*'BP Update'!S55-('BP Update'!P55*'BP Update'!S55) -> 219.7546181 | I55: Updated base period actuals | K55: =+'Cap Structure & Cost of Debt'!$L$16 -> 0.09960495877 | M55: =+'Cap Structure & Cost of Debt'!$L$21 -> 0.09861002855 | N55: 1219312.287 | P55: 1050848.984 | Q55: 0.096768 | S55: 0.09794543312
C57: Rate of Return:
A58: =+A55+1 -> 40 | C58: Capital Structure (Ratios and Cost of Debt) | D58: Exh 28 | E58: =+(K55-Q55)*'Rate Base'!I66 -> 21596.43363 | G58: =+(M55-S55)*'Rate Base'!Q66+3 -> 5136.822292 | I58: Base Period Actuals, updated Forecast Period | N58: =SUM(N48:N57) -> 7614843.904 | P58: =SUM(P48:P57) -> 7730702.907
A60: =+A58+1 -> 41 | C60: Other/Rounding | G60: 38
A62: =+A60+1 -> 42 | C62: Difference to As-Filed | E62: =SUM(E14:E61) -> 63325.90011 | G62: =SUM(G14:G61) -> -45318.63738 | P62: =+'Income Statement'!Q72+'Income Statement'!Q74-'BP Update'!G12 -> -145941.8401 | Q62: recalc diff
P63: =+P62+'Rev Deficiency'!M42 -> -100622.75 | Q63: pres rev diff
P64: =+P62-P63 -> -45319.09014 | Q64: =+-P64+'Rev Deficiency'!G41 -> 1047688
P65: FP Check
P66: =+G62-P62+P63 -> 0.4527570326
C134: =#REF!&" "&#REF! -> 
C136: =C102&" "&#REF! -> 

Sheet Rev Deficiency
A1: ='Linked TB'!$A$1 -> Water Service Corporation of Kentucky | I1: Exhibit 27
A2: ='Linked TB'!$A$2 -> Case No. 2022-00147 | I2: Updated thru 9/30/2022
A3: ='Linked TB'!$A$3 -> Rate Case Exhibits
A4: ='Linked TB'!$A$4 -> Base Period: September 30, 2022
A5: ='Linked TB'!$A$5 -> Forecast Period: December 31, 2023
A8: Revenue Deficiency Calculation
A9: Line No. | C9: Description | D9: Reference | E9: Base Period | G9: Forecast Period | I9: Comments
E10: [A] | G10: [B] | I10: [C]
A11: 1 | B11: Line No. | C11: Present Rate Operating Income:
A13: =+A11+1 -> 2 | C13: Total Operating Revenues at Present Rates | D13: Exh 29 | E13: =+'Income Statement'!I18 -> 3176941.61 | G13: =+'Income Statement'!M18 -> 3075179.166 | I13: Line 6
A15: =A13+1 -> 3 | C15: Less: Deductions:
A16: =A15+1 -> 4 | C16: Operations and Maintenance Expenses | D16: Exh 29 | E16: =+'Income Statement'!I44+'Income Statement'!I32 -> 2714402.96 | G16: =+'Income Statement'!M32+'Income Statement'!M44 -> 2720492.303 | I16: Line 18 + Line 28
A17: =A16+1 -> 5 | C17: Depreciation and Amortization | D17: Exh 29 | E17: =+'Income Statement'!I46+'Income Statement'!I47+'Income Statement'!I58 -> 373080.3092 | G17: =+'Income Statement'!M46+'Income Statement'!M47+'Income Statement'!M58 -> 403569.1384 | I17: Line 29 + Line 30 + Line 40
A18: 6 | C18: Taxes Other than Income | D18: Exh 29 | E18: =+'Income Statement'!I48+'Income Statement'!I49+'Income Statement'!I50+'Income Statement'!I51+'Income Statement'!I52+'Income Statement'!I53+'Income Statement'!I54 -> 186956.42 | G18: =+'Income Statement'!M48+'Income Statement'!M49+'Income Statement'!M50+'Income Statement'!M51+'Income Statement'!M52+'Income Statement'!M53+'Income Statement'!M54 -> 199015.3711 | I18: Lines 31 to 37
A19: =A18+1 -> 7 | C19: Income Taxes | D19: Exh 29 | E19: =+'Income Statement'!I55+'Income Statement'!I56 -> -69909.60014 | G19: =+'Income Statement'!M56+'Income Statement'!M55 -> -107415.547 | I19: Line 38 + Line 39
A20: =A19+1 -> 8 | C20: Total Deductions | E20: =SUM(E16:E19) -> 3204530.089 | G20: =SUM(G16:G19) -> 3215661.265
A22: =+A20+1 -> 9 | C22: Present Rate Operating Income | E22: =+E13-E20 -> -27588.47907 | G22: =+G13-G20 -> -140482.0991
C24: Revenue Requirement Deficiency Calculation:
A26: =+A22+1 -> 10 | C26: Rate Base | D26: Exh 28 | E26: =+'Rate Base'!I66 -> 7612529.955 | G26: =+'Rate Base'!M66 -> 7724733.015 | I26: Line 12
A27: =+A26+1 -> 11 | C27: Rate of Return | D27: Exh 36 | E27: =+'Rate Base'!Q69 -> 0.07685045729 | G27: =+E27 -> 0.07685045729 | I27: Line 13
A29: =+A27+1 -> 12 | C29: Operating Income Requirement | E29: =+E26*E27 -> 585026.4082 | G29: =+G26*G27 -> 593649.2647
A31: =+A29+1 -> 13 | C31: Less: Present Rate Operating Income | E31: =+E22 -> -27588.47907 | G31: =+G22 -> -140482.0991
A33: =+A31+1 -> 14 | C33: Operating Income Deficiency | E33: =+E29-E31 -> 612614.8873 | G33: =+G29-G31 -> 734131.3638
A35: =+A33+1 -> 15 | C35: Gross Revenue Conversion Factor | D35: Exh 35 | E35: =+'Cap Structure & Cost of Debt'!E33 -> 0.748999 | G35: =+E35 -> 0.748999 | I35: Line 18
A37: =+A35+1 -> 16 | C37: Gross Revenue Deficiency at Present Rates | E37: =+E33/E35 -> 817911.4889 | G37: =+'Income Statement'!O77 -> 974973.388
A39: =+A37+1 -> 17 | C39: Service Revenue Conversion Factor | D39: Exh 37 | E39: =+'Service Revenue Requirement'!E15 -> 0.9726692222 | G39: =+E39 -> 0.9726692222 | I39: Line 3
A41: =+A39+1 -> 18 | C41: Service Revenue Deficiency at Present Rates | E41: =+E37/E39 -> 840893.7696 | G41: =+G37/G39 -> 1002368.91 | J41: =+G41-'Income Statement'!O72 -> 0 | M41: 1047688
M42: =+M41-G41 -> 45319.09014
A44: Column Calculations:
A45: [A]- Company's Base Period Ended September 30, 2022
A46: [B]- Company's Forecast Period Ended December 31, 2023
A47: [C]- Comments to reference location of amounts
C113: =#REF!&" "&#REF! -> 
C115: =C81&" "&#REF! -> 

Sheet Rate Base
A1: ='Linked TB'!A1 -> Water Service Corporation of Kentucky | Q1: =+Index!B7 -> Exhibit 28
A2: ='Linked TB'!A2 -> Case No. 2022-00147 | Q2: Updated thru 9/30/2022
A3: ='Linked TB'!A3 -> Rate Case Exhibits
A4: ='Linked TB'!A4 -> Base Period: September 30, 2022
A5: ='Linked TB'!A5 -> Forecast Period: December 31, 2023
A8: Combined Operations | Q8: Page 1 of 3
A9: Rate Base and Rate of Return
A10: Line No. | C10: Description | D10: Ref | E10: Base Period - Starting Balance | G10: Base Period - Activity | I10: Base Period - Ending Balance | K10: Forecast Period Adjustment | M10: Forecast Period - Present Rates | O10: ='Income Statement'!O10 -> Proposed Increase | Q10: ='Income Statement'!Q10 -> Forecast Period After Increase
E11: [A] | G11: [B] | I11: [C] | K11: [D] | M11: [E] | O11: [F] | Q11: [G]
A12: 1 | C12: Net Operating Income | D12: B | E12: =+'Income Statement'!E64 -> -156417.89 | G12: =+'Income Statement'!G64 -> 128829.4109 | I12: =SUM(E12+G12) -> -27588.47907 | K12: =+'Income Statement'!K64 -> -112893.62 | M12: =+I12+K12 -> -140482.0991 | O12: =+'Income Statement'!O64 -> 734131.3638 | Q12: =M12+O12 -> 593649.2647
A14: =A12+1 -> 2 | C14: Gross Plant In Service | D14: A-1 | E14: =E48+E81 -> 13441523.14 | G14: =G48+G81 -> 163569.4565 | I14: =SUM(E14+G14) -> 13605092.59 | K14: =K48+K81 -> 579857.9261 | M14: =+I14+K14 -> 14184950.52 | O14: =O48+O81 -> 0 | Q14: =M14+O14 -> 14184950.52
A15: =A14+1 -> 3 | C15: Accumulated Depreciation | D15: A-2 | E15: =E49+E82 -> -6619227.424 | G15: =G49+G82 -> 141559.1762 | I15: =SUM(E15+G15) -> -6477668.247 | K15: =K49+K82 -> -278049.3409 | M15: -6755717.588 | O15: =O49+O82 -> 0 | Q15: =M15+O15 -> -6755717.588
A16: =A15+1 -> 4 | C16: Net Plant In Service | E16: =SUM(E14:E15) -> 6822295.713 | G16: =SUM(G14:G15) -> 305128.6328 | I16: =SUM(E16+G16) -> 7127424.346 | K16: =SUM(K14:K15) -> 301808.5851 | M16: 7429232.931 | O16: =SUM(O14:O15) -> 0 | Q16: =+M16+O16 -> 7429232.931
A18: =A16+1 -> 5 | C18: Cash Working Capital | D18: A-3 | E18: =E52+E85 -> 0 | G18: =G52+G85 -> 339300.37 | I18: =SUM(E18+G18) -> 339300.37 | K18: =K52+K85 -> 761.1678577 | M18: =+I18+K18 -> 340061.5379 | O18: =O52+O85 -> 0 | Q18: =M18+O18 -> 340061.5379
A19: =A18+1 -> 6 | C19: Contributions In Aid of Construction | D19: A-4 | E19: =E53+E86 -> -258948.29 | G19: =G53+G86 -> 8170.33 | I19: -250777.96 | K19: =K53+K86 -> 7765.83 | M19: -243012.13 | O19: =O53+O86 -> 0 | Q19: =M19+O19 -> -243012.13
A20: =A19+1 -> 7 | C20: Consolidated Tax Adjustment | D20: A-5 | E20: =E54+E87 -> 0 | G20: =G54+G87 -> 0 | I20: =SUM(E20+G20) -> 0 | K20: =K54+K87 -> 0 | M20: =+I20+K20 -> 0 | O20: =O54+O87 -> 0 | Q20: =M20+O20 -> 0
A21: 8 | C21: Accumulated Deferred Income Taxes | D21: A-6 | E21: =E55+E88 -> -718319 | G21: =G55+G88 -> -156620.3263 | I21: =SUM(E21+G21) -> -874939.3263 | K21: =K55+K88 -> -15548.05938 | M21: -890487.3857 | O21: =O55+O88 -> 0 | Q21: -890487.3857
A22: 9 | C22: Customer Deposits
A23: 10 | C23: Inventory
A24: =+A21+1 -> 9 | C24: Oracle Fusion Asset | D24: A-7 | E24: =E58+E91 -> 187604.5103 | G24: =G58+G91 -> -25013.93471 | I24: 162590.5756 | K24: =K58+K91 -> -18760.45103 | M24: 143830.1246 | O24: =O58+O91 -> 0 | Q24: 143830.1246
A25: 10 | C25: Net Plant Acquisition Adjustment | D25: A-8 | E25: =E56+E92 -> -114390.54 | G25: =G56+G92 -> 3660.49 | I25: -110730.05 | K25: =K56+K92 -> 2745.36 | M25: -107984.69 | O25: =O56+O92 -> 0 | Q25: -107984.69
A26: 11 | C26: Excess Book Value
A27: 12 | C27: Cost Free Capital
A28: 13 | C28: Average Tax accruals
A29: 14 | C29: Excess Deferred Taxes
A30: 15 | C30: Deferred Charges
A33: =+A25+1 -> 11 | C33: Total Rate Base | E33: =SUM(E16:E31) -> 5918242.394 | G33: =SUM(G16:G31) -> 474625.5618 | I33: =SUM(I16:I31) -> 6392867.955 | K33: =SUM(K16:K31) -> 278772.4326 | M33: =+I33+K33 -> 6671640.388 | O33: =SUM(O16:O31) -> 0 | Q33: =SUM(Q16:Q31) -> 6671640.388
A36: =A33+1 -> 12 | C36: Return on Rate Base | I36: =(ROUND(I12/I33,4)) -> -0.0043 | M36: =M12/M33 -> -0.02105660542 | Q36: =(ROUND(Q12/Q33,4)) -> 0.089
A42: Water Operations
A43: Rate Base and Rate of Return
A44: Line No. | C44: =C10 -> Description | D44: Ref | E44: Base Period - Starting Balance | G44: Base Period - Activity | I44: Base Period - Ending Balance | K44: Forecast Period Adjustment | M44: Forecast Period - Present Rates | O44: Proposed Increase | Q44: Forecast Period After Increase
E45: =E11 -> [A] | G45: =G11 -> [B] | I45: =I11 -> [C] | K45: =K11 -> [D] | M45: =M11 -> [E] | O45: =O11 -> [F] | Q45: =Q11 -> [G]
A46: 1 | C46: Net Operating Income | D46: Exh 29 | I46: =+'Income Statement'!I123 -> -27588.47907 | K46: =+'Income Statement'!K123 -> -112893.62 | M46: =+I46+K46 -> -140482.0991 | O46: =+'Income Statement'!O123 -> 734131.3638 | Q46: =M46+O46 -> 593649.2647
A48: =A46+1 -> 2 | C48: Gross Plant In Service | D48: Exh 28.1 | E48: ='Plant in Service'!G139 -> 13441523.14 | G48: ='Plant in Service'!I139 -> 163569.4565 | I48: ='Plant in Service'!K139 -> 13605092.59 | K48: ='Plant in Service'!M139 -> 579857.9261 | M48: ='Plant in Service'!O139 -> 14184950.52 | O48: 0 | Q48: =M48+O48 -> 14184950.52
A49: =A48+1 -> 3 | C49: Accumulated Depreciation | D49: Exh 28.2 | E49: ='Accum Depr'!G130 -> -6619227.424 | G49: ='Accum Depr'!I130 -> 141559.1762 | I49: ='Accum Depr'!K130 -> -6477668.247 | K49: ='Accum Depr'!M130 -> -278049.3409 | M49: ='Accum Depr'!O130 -> -6755717.588 | O49: 0 | Q49: =M49+O49 -> -6755717.588
A50: =A49+1 -> 4 | C50: Net Plant In Service | E50: =SUM(E48:E49) -> 6822295.713 | G50: =SUM(G48:G49) -> 305128.6328 | I50: =SUM(I48:I49) -> 7127424.346 | K50: =SUM(K48:K49) -> 301808.5851 | M50: =+I50+K50 -> 7429232.931 | O50: =SUM(O48:O49) -> 0 | Q50: =SUM(Q48:Q49) -> 7429232.931
A52: =A50+1 -> 5 | C52: Cash Working Capital | D52: Exh 28.3 | E52: 0 | G52: =+I52-E52 -> 339300.37 | I52: =+'Cash Working Capital'!I21 -> 339300.37 | K52: ='Cash Working Capital'!K21 -> 761.1678577 | M52: =+I52+K52 -> 340061.5379 | O52: 0 | Q52: =M52+O52 -> 340061.5379
A53: =A52+1 -> 6 | C53: Contributions In Aid of Construction | D53: Exh 28.4 | E53: =+CIAC!G176 -> -258948.29 | G53: =+CIAC!I176 -> 8170.33 | I53: =+CIAC!K176 -> -250777.96 | K53: =+CIAC!M176 -> 7765.83 | M53: =+CIAC!O176 -> -243012.13 | O53: 0 | Q53: =M53+O53 -> -243012.13
A54: =A53+1 -> 7 | C54: Consolidated Tax Adjustment | D54: Exh 28.1 | E54: 0 | G54: 0 | I54: =SUM(E54+G54) -> 0 | K54: =+CTA!M15 -> 0 | M54: 0 | O54: 0 | Q54: 0
A55: 8 | C55: Accumulated Deferred Income Taxes | D55: Exh 28.5 | E55: =+ADIT!G16 -> -718319 | G55: =+ADIT!I16 -> -156620.3263 | I55: =+ADIT!K16 -> -874939.3263 | K55: =+ADIT!M16 -> -15548.05938 | M55: =+ADIT!O16 -> -890487.3857 | O55: 0 | Q55: -890487.3857
A56: =+A55+1 -> 9 | C56: Net Plant Acquisition Adjustment | D56: Exh 28.6 | E56: =+PAA!G21 -> -114390.54 | G56: =+PAA!I21 -> 3660.49 | I56: =+PAA!K21 -> -110730.05 | K56: =+PAA!M21 -> 2745.36 | M56: =+PAA!O21 -> -107984.69 | O56: 0 | Q56: =M56+O56 -> -107984.69
A57: =#REF!+1 ->  | C57: Inventory
A58: =+A56+1 -> 10 | C58: Oracle Fusion Asset | D58: Exh 28.7 | E58: =+'Oracle Fusion Asset'!G15 -> 187604.5103 | G58: =+'Oracle Fusion Asset'!I15 -> -25013.93471 | I58: =+'Oracle Fusion Asset'!K15 -> 162590.5756 | K58: =+'Oracle Fusion Asset'!M15 -> -18760.45103 | M58: =+'Oracle Fusion Asset'!O15 -> 143830.1246 | O58: 0 | Q58: 143830.1246
A59: =A56+1 -> 10 | C59: Excess Book Value
A60: 11 | C60: Cost Free Capital
A61: 12 | C61: Average Tax accruals
A62: 13 | C62: Excess Deferred Taxes
A63: =+A58+1 -> 11 | C63: Deferred charges | D63: Exh 28.8 | E63: =+'Deferred Charges'!G60 -> 857655.34 | G63: =+'Deferred Charges'!I60 -> 362006.66 | I63: =+'Deferred Charges'!K60 -> 1219662 | K63: =+'Deferred Charges'!M60 -> -166569.3724 | M63: =+'Deferred Charges'!O60 -> 1053092.628 | O63: 0 | Q63: =M63+O63 -> 1053092.628
A66: =+A63+1 -> 12 | C66: Total Rate Base | E66: =SUM(E50:E64) -> 6775897.734 | G66: =SUM(G50:G64) -> 836632.2218 | I66: =SUM(I50:I64) -> 7612529.955 | K66: =SUM(K50:K64) -> 112203.0602 | M66: =+I66+K66 -> 7724733.015 | O66: =SUM(O50:O64) -> 0 | Q66: =M66+O66 -> 7724733.015
A69: =A66+1 -> 13 | C69: Return on Rate Base (Line 1 / Line 12) | I69: =(ROUND(I46/I66,4)) -> -0.0036 | M69: =(ROUND(M46/M66,4)) -> -0.0182 | Q69: =Q46/Q66 -> 0.07685045729
A75: Sewer Operations | Q75: Page 3 of 3
A76: Rate Base and Rate of Return
A77: Line No. | C77: =C44 -> Description | D77: Ref | E77: =E44 -> Base Period - Starting Balance | G77: =G10 -> Base Period - Activity | I77: =I10 -> Base Period - Ending Balance | K77: =K10 -> Forecast Period Adjustment | M77: =M10 -> Forecast Period - Present Rates | O77: =O10 -> Proposed Increase | Q77: =Q10 -> Forecast Period After Increase
E78: =E11 -> [A] | G78: =G11 -> [B] | I78: =I11 -> [C] | K78: =K11 -> [D] | M78: =M11 -> [E] | O78: =O11 -> [F] | Q78: =Q11 -> [G]
A79: 1 | C79: Net Operating Income | D79: B | E79: 0 | G79: 0 | I79: =SUM(E79+G79) -> 0 | K79: 0 | M79: =+I79+K79 -> 0 | O79: 0 | Q79: =M79+O79 -> 0
A81: =A79+1 -> 2 | C81: Gross Plant In Service | D81: A-1 | E81: =SUM('Linked TB'!D132,'Linked TB'!D136,'Linked TB'!D146) -> 0 | G81: =SUM('Linked TB'!H132,'Linked TB'!H136,'Linked TB'!H146) -> 0 | I81: =SUM(E81+G81) -> 0 | K81: ='Plant in Service'!M271 -> 0 | M81: =+I81+K81 -> 0 | O81: 0 | Q81: =M81+O81 -> 0
A82: =A81+1 -> 3 | C82: Accumulated Depreciation | D82: A-2 | E82: =SUM('Linked TB'!D328) -> 0 | G82: =SUM('Linked TB'!H328) -> 0 | I82: =SUM(E82+G82) -> 0 | K82: ='Accum Depr'!M252 -> 0 | M82: 0 | O82: 0 | Q82: =M82+O82 -> 0
A83: =A82+1 -> 4 | C83: Net Plant In Service | E83: =SUM(E81:E82) -> 0 | G83: =SUM(G81:G82) -> 0 | I83: =SUM(I81:I82) -> 0 | K83: =SUM(K81:K82) -> 0 | M83: 0 | O83: 0 | Q83: =SUM(Q81:Q82) -> 0
A85: =A83+1 -> 5 | C85: Cash Working Capital | D85: A-3 | E85: ='Cash Working Capital'!E32 -> 0 | G85: ='Cash Working Capital'!G32 -> 0 | I85: =SUM(E85+G85) -> 0 | K85: ='Cash Working Capital'!K32 -> 0 | M85: =+I85+K85 -> 0 | O85: 0 | Q85: =M85+O85 -> 0
A86: =A85+1 -> 6 | C86: Contributions In Aid of Construction | D86: A-4 | E86: ='Linked TB'!D929 -> 0 | G86: ='Linked TB'!H929 -> 0 | I86: 0 | K86: =CIAC!M345 -> 0 | M86: 0 | O86: 0 | Q86: =M86+O86 -> 0
A87: =A86+1 -> 7 | C87: Consolidated Tax Adjustment | D87: A-5 | E87: 0 | G87: 0 | I87: 0 | K87: =+CTA!M23 -> 0 | M87: 0 | O87: 0 | Q87: 0
A88: 8 | C88: Accumulated Deferred Income Taxes | D88: A-6 | E88: =SUM('Linked TB'!D727,'Linked TB'!D742) -> 0 | G88: =SUM('Linked TB'!H727,'Linked TB'!H742) -> 0 | I88: 0 | K88: =ADIT!M25 -> 0 | M88: 0 | O88: 0 | Q88: 0
A89: =A88+1 -> 9
A90: 10 | C90: Inventory
A91: =+A88+1 -> 9 | C91: Oracle Fusion Asset | D91: A-7 | E91: =+'Linked TB'!D565 -> 0 | G91: =+'Linked TB'!H565 -> 0 | I91: 0 | K91: ='Oracle Fusion Asset'!M24 -> 0 | M91: 0 | O91: 0 | Q91: 0
A92: 10 | C92: Net Plant Acquisition Adjustment | D92: A-8 | E92: ='Linked TB'!D333 -> 0 | G92: ='Linked TB'!H333 -> 0 | I92: 0 | K92: =PAA!M35 -> 0 | M92: 0 | O92: 0 | Q92: 0
A93: 11 | C93: Excess Book Value
A94: 12 | C94: Cost Free Capital
A95: 13 | C95: Average Tax accruals
A96: 14 | C96: Excess Deferred Taxes
A97: 15 | C97: Deferred Charges
A100: =+A92+1 -> 11 | C100: Total Rate Base | E100: =SUM(E83:E98) -> 0 | G100: =SUM(G83:G98) -> 0 | I100: =SUM(I83:I98) -> 0 | K100: =SUM(K83:K98) -> 0 | M100: =+I100+K100 -> 0 | O100: 0 | Q100: =SUM(Q83:Q98) -> 0
A103: =A100+1 -> 12 | C103: Return on Rate Base | I103: =I79/I100 ->  | M103: =M79/M100 ->  | Q103: =(ROUND(Q79/Q100,4)) -> 
A105: Column Calculations:
A106: [A]- Company's ledger amounts for Base Period start, September 30, 2021
A107: [B]- Difference of Columns [A] & [C]
A108: [C]- Amounts calculated based on Company's supporting schedules, balance as of September 30, 2022
A109: [D]- Difference of Columns [C] & [E]
A110: [E]- Amounts calculated based on Company's supporting schedules, 13-month average balance as of December 31, 2023
A111: [F]- Amounts calculated based on Company's supporting schedules
A112: [G]- Sum of Column [E] & [F]

Sheet Income Statement
A1: ='Linked TB'!$A$1 -> Water Service Corporation of Kentucky | Q1: =+Index!B8 -> Exhibit 29
A2: ='Linked TB'!$A$2 -> Case No. 2022-00147 | Q2: Updated thru 9/30/2022
A3: ='Linked TB'!$A$3 -> Rate Case Exhibits
A4: ='Linked TB'!$A$4 -> Base Period: September 30, 2022
A5: ='Linked TB'!$A$5 -> Forecast Period: December 31, 2023
A8: Combined Operations
A9: Pro-Forma Income Statement | E9: Oct-> Mar 22 | G9: Apr -> Sept 22 | M9: 2023
A10: Line No. | C10: Description | D10: Ref | E10: Base Period - Actuals | G10: Base Period - Estimated | I10: Total Base Period | K10: Forecast Period Adjustment | M10: Total Forecast Period - Present Rates | O10: Proposed Increase | Q10: Forecast Period After Increase
E11: [A] | G11: [B] | I11: [C] | K11: [D] | M11: [E] | O11: [F] | Q11: [G]
A12: 1 | B12: Line No. | C12: Operating Revenues
A13: =A12+1 -> 2 | C13: Service Revenues - Water | D13: B-1 | E13: =E72 -> 3265383.84 | G13: =G72 -> 0 | I13: =E13+G13 -> 3265383.84 | K13: =K72 -> -104621.84 | M13: =+I13+K13 -> 3160762 | O13: =O72 -> 1002368.91 | Q13: =+M13+O13 -> 4163130.91 | T13: =O13/M13 -> 0.317128879
A14: =A13+1 -> 3 | C14: Service Revenues - Sewer | D14: B-1 | E14: =E73 -> 0 | G14: 0 | I14: =E14+G14 -> 0 | K14: =K73 -> 0 | M14: =+I14+K14 -> 0 | O14: =O73 -> 0 | Q14: =+M14+O14 -> 0 | T14: =O14/M14 -> 
A15: =A14+1 -> 4 | C15: Miscellaneous Revenues | D15: B-1 | E15: 803.25 | G15: 0 | I15: =E15+G15 -> 803.25 | K15: =K74 -> 0 | M15: 803.25 | O15: =O74 -> 0 | Q15: =+M15+O15 -> 803.25 | T15: =SUM(O13:O14)/(SUM(M13:M14)) -> 0.317128879
A16: =A15+1 -> 5 | C16: Uncollectible Accounts | D16: B-2 | E16: -89245.48 | G16: 0 | I16: =E16+G16 -> -89245.48 | K16: =K75 -> 2859.396257 | M16: -86386.08374 | O16: =O75 -> -27395.5219 | Q16: =+M16+O16 -> -113781.6056
A18: =A16+1 -> 6 | C18: Total Operating Revenues | E18: =SUM(E11:E16) -> 3176941.61 | G18: =SUM(G11:G16) -> 0 | I18: =SUM(I11:I16) -> 3176941.61 | K18: =SUM(K11:K16) -> -101762.4437 | M18: =+I18+K18 -> 3075179.166 | O18: =SUM(O13:O16) -> 974973.388 | Q18: =SUM(Q13:Q16) -> 4050152.554 | T18: =O18/M18 -> 0.3170460436 | U18: increase
A20: =A18+1 -> 7 | C20: Maintenance Expenses
A21: =A20+1 -> 8 | C21: Salaries and Wages | D21: B-3 | E21: =E80 -> 0 | G21: =G80 -> 0 | I21: =E21+G21 -> 0 | K21: =K80 -> 0 | M21: =+I21+K21 -> 0 | O21: =O80 -> 0 | Q21: =M21+O21 -> 0
A22: =A21+1 -> 9 | C22: Purchased Power | D22: B-5 | E22: =E81 -> 117304.97 | G22: 0 | I22: 117304.97 | K22: =K81 -> 0 | M22: 117304.97 | O22: =O81 -> 0 | Q22: =M22+O22 -> 117304.97
A23: 10 | C23: Purchased Water / Sewer | D23: B-6 | E23: 124879.76 | G23: 0 | I23: 124879.76 | K23: =K82 -> -1606.4 | M23: 123273.36 | O23: =O82 -> 0 | Q23: 123273.36
A24: 11 | C24: Maintenance and Repair | D24: B-7 | E24: 177866.12 | G24: 0 | I24: 177866.12 | K24: =K83 -> -11209.78318 | M24: 166656.3368 | O24: =O83 -> 0 | Q24: 166656.3368
A25: 12 | C25: Maintenance Testing | D25: B-8 | E25: 23970.26 | G25: 0 | I25: 23970.26 | K25: =K84 -> 0 | M25: 23970.26 | O25: =O84 -> 0 | Q25: 23970.26
A26: 13 | C26: Meter Reading | D26: B-9 | E26: 0 | G26: 0 | I26: 0 | K26: =K85 -> 0 | M26: 0 | O26: =O85 -> 0 | Q26: 0
A27: 14 | C27: Chemicals | D27: B-10 | E27: 106198.05 | G27: 0 | I27: 106198.05 | K27: =K86 -> -2313.52 | M27: 103884.53 | O27: =O86 -> 0 | Q27: 103884.53
A28: 15 | C28: Transportation | D28: B-11 | E28: 48052.28 | G28: 0 | I28: 48052.28 | K28: =K87 -> 1163.69 | M28: 49215.97 | O28: =O87 -> 0 | Q28: 49215.97
A29: 16 | C29: Operating Exp. Charged to Plant | D29: B-4 | E29: -27591.86 | G29: 0 | I29: -27591.86 | K29: =K88 -> -110620.14 | M29: -138212 | O29: =O88 -> 0 | Q29: -138212
A30: 17 | C30: Outside Services - Other | D30: B-12 | E30: 57749.76 | G30: 0 | I30: 57749.76 | K30: =K89 -> -39570.78 | M30: 18178.98 | O30: =O89 -> 0 | Q30: 18178.98
A32: =A30+1 -> 18 | C32: Total | E32: =SUM(E21:E30) -> 628429.34 | G32: =SUM(G21:G30) -> 0 | I32: =SUM(I21:I30) -> 628429.34 | K32: =SUM(K21:K30) -> -164156.9332 | M32: =+I32+K32 -> 464272.4068 | O32: =SUM(O21:O30) -> 0 | Q32: =M32+O32 -> 464272.4068
A34: =+A32+1 -> 19 | C34: General Expenses
A35: =+A34+1 -> 20 | C35: Salaries and Wages | D35: B-3 | E35: =E94 -> 870693.94 | G35: 0 | I35: =E35+G35 -> 870693.94 | K35: =K94 -> 55538.68377 | M35: =+I35+K35 -> 926232.6238 | O35: =O94 -> 0 | Q35: =M35+O35 -> 926232.6238
A36: =+A35+1 -> 21 | C36: Office Supplies & Other Office Exp. | D36: B-13 | E36: 64030.89 | G36: 0 | I36: 64030.89 | K36: =K95 -> -12432.14 | M36: 51598.75 | O36: =O95 -> 0 | Q36: =M36+O36 -> 51598.75
A37: 22 | C37: Regulatory Commission Exp. | D37: B-14 | E37: 51317.64 | G37: 0 | I37: 51317.64 | K37: =K96 -> 109469.0033 | M37: 160786.6433 | O37: =O96 -> 0 | Q37: 160786.6433
A38: 23 | C38: Pension & Other Benefits | D38: B-15 | E38: 234572.28 | G38: 0 | I38: 234572.28 | K38: =K97 -> 59034.91137 | M38: 293607.1914 | O38: =O97 -> 0 | Q38: 293607.1914
A39: 24 | C39: Rent | D39: B-16 | E39: 16242.53 | G39: 0 | I39: 16242.53 | K39: =K98 -> 3782.713955 | M39: 20025.24396 | O39: =O98 -> 0 | Q39: 20025.24396
A40: 25 | C40: Insurance | D40: B-17 | E40: 90175.19 | G40: 0 | I40: 90175.19 | K40: =K99 -> 23225.72191 | M40: 113400.9119 | O40: =O99 -> 0 | Q40: 113400.9119
A41: 26 | C41: Office Utilities | D41: B-18 | E41: 23547.57 | G41: 0 | I41: 23547.57 | K41: =K100 -> -138.72 | M41: 23408.85 | O41: =O100 -> 0 | Q41: 23408.85
A42: 27 | C42: Miscellaneous | D42: B-19 | E42: 735393.58 | G42: 0 | I42: 735393.58 | K42: =K101 -> -68233.8983 | M42: 667159.6817 | O42: =O101 -> 0 | Q42: 667159.6817
A44: =A42+1 -> 28 | C44: Total | E44: =SUM(E35:E43) -> 2085973.62 | G44: =SUM(G35:G43) -> 0 | I44: =SUM(I35:I43) -> 2085973.62 | K44: =SUM(K35:K43) -> 170246.276 | M44: =+I44+K44 -> 2256219.896 | O44: =SUM(O35:O43) -> 0 | Q44: =SUM(Q35:Q43) -> 2256219.896
A46: =A44+1 -> 29 | C46: Depreciation | D46: B-20 | E46: =E105 -> 346696.59 | G46: 40400.22249 | I46: =E46+G46 -> 387096.8125 | K46: =K105 -> 30488.82916 | M46: =+I46+K46 -> 417585.6417 | O46: =O105 -> 0 | Q46: =M46+O46 -> 417585.6417
A47: =A46+1 -> 30 | C47: Amortization of PAA | D47: B-21 | E47: -3660.49 | G47: =G106 -> 0 | I47: -3660.49 | K47: 0 | M47: -3660.49 | O47: 0 | Q47: =M47+O47 -> -3660.49
A48: =A47+1 -> 31 | C48: Payroll Taxes | D48: B-23 | E48: 54560.39 | G48: =G107 -> 0 | I48: 54560.39 | K48: 16544.52498 | M48: 71104.91498 | O48: 0 | Q48: 71104.91498
A49: 32 | C49: Franchise Tax | D49: B-23 | E49: 0 | G49: =G108 -> 0 | I49: 0 | K49: 0 | M49: 0 | O49: 0 | Q49: 0
A50: 33 | C50: Gross Receipts Tax | D50: B-23 | E50: 0 | G50: =G109 -> 0 | I50: 0 | K50: 0 | M50: 0 | O50: 0 | Q50: 0
A51: 34 | C51: Property Taxes | D51: B-23 | E51: 108170.38 | G51: =G110 -> 0 | I51: 108170.38 | K51: 8423.462141 | M51: 116593.8421 | O51: 0 | Q51: 116593.8421
A52: 35 | C52: Special Assessments | D52: B-23 | E52: 0 | G52: =G111 -> 0 | I52: 0 | K52: 0 | M52: 0 | O52: 0 | Q52: 0
A53: 36 | C53: Utility/Commission Tax | D53: B-23 | E53: 4995.09 | G53: =G112 -> 0 | I53: 4995.09 | K53: 6321.524 | M53: 11316.614 | O53: -3216.304 | Q53: =M53+O53 -> 8100.31
A54: 37 | C54: Other General Taxes | D54: B-23 | E54: 19230.56 | G54: =G113 -> 0 | I54: =E54+G54 -> 19230.56 | K54: -19230.56 | M54: 0 | O54: 0 | Q54: 0
A55: 38 | C55: Income Taxes - Federal | D55: B-24 | E55: 71221 | G55: =G114 -> -127120.6602 | I55: =E55+G55 -> -55899.66023 | K55: -29989.72503 | M55: -85889.38526 | O55: 195148.8435 | Q55: 109259.4583
A56: 39 | C56: Income Taxes - State | D56: B-24 | E56: 28074 | G56: =G115 -> -42083.93991 | I56: =E56+G56 -> -14009.93991 | K56: -7516.221811 | M56: -21526.16172 | O56: 48909.4846 | Q56: 27383.32288
A57: 40 | C57: Amortization of ITC | E57: 0 | G57: =G116 -> 0 | I57: =E57+G57 -> 0 | K57: 0 | M57: 0 | O57: 0 | Q57: 0
A58: =+A56+1 -> 40 | C58: Amortization of CIAC | D58: B-22 | E58: -10330.98 | G58: =G117 -> -25.033284 | I58: =E58+G58 -> -10356.01328 | K58: 0 | M58: -10356.01328 | O58: 0 | Q58: -10356.01328
A60: =A58+1 -> 41 | C60: Total | E60: =SUM(E46:E59) -> 618956.54 | G60: =SUM(G46:G59) -> -128829.4109 | I60: =SUM(I46:I59) -> 490127.1291 | K60: =SUM(K46:K59) -> 5041.833444 | M60: =+I60+K60 -> 495168.9625 | O60: =SUM(O46:O59) -> 240842.0241 | Q60: =M60+O60 -> 736010.9867
A62: =A60+1 -> 42 | C62: Total Operating Expenses | E62: =E60+E44+E32 -> 3333359.5 | G62: =G60+G44+G32 -> -128829.4109 | I62: =I60+I44+I32 -> 3204530.089 | K62: =K60+K44+K32 -> 11131.17631 | M62: =+I62+K62 -> 3215661.265 | O62: =O60+O44+O32 -> 240842.0241 | Q62: =M62+O62 -> 3456503.29
A64: =A62+1 -> 43 | C64: Net Operating Income | E64: =+E18-E62 -> -156417.89 | G64: =+G18-G62 -> 128829.4109 | I64: =+I18-I62 -> -27588.47907 | K64: =+K18-K62 -> -112893.62 | M64: =+I64+K64 -> -140482.0991 | O64: =+O18-O62 -> 734131.3638 | Q64: =M64+O64 -> 593649.2647
A67: Water Operations
A68: Pro-Forma Income Statement
A69: Line No. | C69: Description | D69: Ref | E69: =E10 -> Base Period - Actuals | G69: =G10 -> Base Period - Estimated | I69: =I10 -> Total Base Period | K69: =K10 -> Forecast Period Adjustment | M69: =M10 -> Total Forecast Period - Present Rates | O69: =O10 -> Proposed Increase | Q69: =Q10 -> Forecast Period After Increase
E70: =E11 -> [A] | G70: =G11 -> [B] | I70: =I11 -> [C] | K70: [D] | M70: [E] | O70: [F] | Q70: [G]
A71: 1 | C71: Operating Revenues
A72: =A71+1 -> 2 | C72: Service Revenues - Water | D72: Exh 29.1 | E72: ='Linked TB'!C1024-E74 -> 3265383.84 | G72: =+Revenue!G14 -> 0 | I72: =E72+G72 -> 3265383.84 | K72: =+Revenue!K14 -> -104621.84 | M72: =+I72+K72 -> 3160762 | O72: =Q72-M72 -> 1002368.91 | Q72: ='Service Revenue Requirement'!E21 -> 4163130.91 | S72: =+Q72/M72-1 -> 0.317128879
A73: =A72+1 -> 3 | C73: Service Revenues - Sewer | E73: 0 | G73: ='Forecasted from Adaptive'!E14 -> 0 | I73: =E73+G73 -> 0 | K73: 0 | M73: 0 | O73: 0 | Q73: =M73+O73 -> 0
A74: =A73+1 -> 4 | C74: Miscellaneous Revenues | D74: Exh 29.1 | E74: ='Linked TB'!C997+'Linked TB'!C991+'Linked TB'!C993+'Linked TB'!C994 -> 803.25 | G74: ='Forecasted from Adaptive'!E15 -> 0 | I74: =E74+G74 -> 803.25 | K74: =+Revenue!K15 -> 0 | M74: 803.25 | O74: ='Forfeited Discounts'!E33 -> 0 | Q74: =M74+O74 -> 803.25 | S74: =+M72+M73+M74 -> 3161565.25 | U74: =+O72+O73+O74 -> 1002368.91 | V74: =+O72/(SUM(M72:M74)) -> 0.317048307 | W74: =+Q72+Q73+Q74 -> 4163934.16
A75: =A74+1 -> 5 | C75: Uncollectible Accounts | D75: Exh 29.2 | E75: =-'Linked TB'!C1282 -> -89245.48 | G75: =Revenue!G16 -> 0 | I75: =E75+G75 -> -89245.48 | K75: =+Uncollectibles!E26 -> 2859.396257 | M75: -86386.08374 | O75: =+Uncollectibles!E34 -> -27395.5219 | Q75: =M75+O75 -> -113781.6056
A77: =A75+1 -> 6 | C77: Total Operating Revenues | E77: =SUM(E72:E75) -> 3176941.61 | G77: =SUM(G72:G75) -> 0 | I77: =SUM(I72:I75) -> 3176941.61 | K77: =SUM(K72:K75) -> -101762.4437 | M77: =+I77+K77 -> 3075179.166 | O77: =SUM(O72:O75) -> 974973.388 | Q77: =M77+O77 -> 4050152.554 | S77: =+Q77/M77-1 -> 0.3170460436 | T77: =O77/M77 -> 0.3170460436
A79: =A77+1 -> 7 | C79: Maintenance Expenses
A80: =A79+1 -> 8 | C80: Salaries and Wages | D80: Exh 29.3 | E80: 0 | G80: 0 | I80: =E80+G80 -> 0 | K80: ='Salary & Wages'!K13 -> 0 | M80: =+I80+K80 -> 0 | O80: 0 | Q80: =M80+O80 -> 0
A81: =A80+1 -> 9 | C81: Purchased Power | D81: Exh 29.5 | E81: ='Linked TB'!C1105 -> 117304.97 | G81: ='Purchase Power'!I15 -> 0 | I81: 117304.97 | K81: ='Purchase Power'!M15 -> 0 | M81: 117304.97 | O81: 0 | Q81: =M81+O81 -> 117304.97
A82: 10 | C82: Purchased Water / Sewer | D82: Exh 29.6 | E82: ='Linked TB'!C1034 -> 124879.76 | G82: ='Purchased Water & Sewer'!I13 -> 0 | I82: 124879.76 | K82: ='Purchased Water & Sewer'!M15 -> -1606.4 | M82: 123273.36 | O82: 0 | Q82: =M82+O82 -> 123273.36
A83: 11 | C83: Maintenance and Repair | D83: Exh 29.7 | E83: ='Linked TB'!C1076 -> 177866.12 | G83: ='Maintenance & Repair'!I54 -> 0 | I83: 177866.12 | K83: ='Maintenance & Repair'!M54 -> -11209.78318 | M83: 166656.3368 | O83: 0 | Q83: 166656.3368
A84: 12 | C84: Maintenance Testing | D84: Exh 29.8 | E84: ='Linked TB'!C1087 -> 23970.26 | G84: ='Maintenance Testing'!I17 -> 0 | I84: 23970.26 | K84: ='Maintenance Testing'!M17 -> 0 | M84: 23970.26 | O84: 0 | Q84: 23970.26
A85: 13 | C85: Meter Reading | E85: ='Linked TB'!C1090 -> 0 | G85: ='Forecasted from Adaptive'!E26 -> 0 | I85: 0 | K85: ='Meter Reading'!M15 -> 0 | M85: 0 | O85: 0 | Q85: 0
A86: 14 | C86: Chemicals | D86: Exh 29.9 | E86: ='Linked TB'!C1081 -> 106198.05 | G86: =Chemicals!I17 -> 0 | I86: 106198.05 | K86: =Chemicals!M17 -> -2313.52 | M86: 103884.53 | O86: 0 | Q86: 103884.53
A87: 15 | C87: Transportation | D87: Exh 29.10 | E87: ='Linked TB'!C1239 -> 48052.28 | G87: ='Transportation Expense'!I22 -> 0 | I87: 48052.28 | K87: ='Transportation Expense'!M22 -> 1163.69 | M87: 49215.97 | O87: 0 | Q87: 49215.97
A88: 16 | C88: Operating Exp. Charged to Plant | D88: Exh 29.4 | E88: ='Linked TB'!C1121 -> -27591.86 | G88: ='Salary Captime'!I15 -> 0 | I88: -27591.86 | K88: =+'Salary Captime'!M15 -> -110620.14 | M88: -138212 | O88: 0 | Q88: -138212
A89: 17 | C89: Outside Services - Other | D89: Exh 29.11 | E89: ='Linked TB'!C1166 -> 57749.76 | G89: ='Outside Service'!I28 -> 0 | I89: 57749.76 | K89: ='Outside Service'!M28 -> -39570.78 | M89: 18178.98 | O89: 0 | Q89: 18178.98
A91: =A89+1 -> 18 | C91: Total | E91: =SUM(E80:E89) -> 628429.34 | G91: =SUM(G80:G89) -> 0 | I91: =SUM(I80:I89) -> 628429.34 | K91: =SUM(K80:K89) -> -164156.9332 | M91: =+I91+K91 -> 464272.4068 | O91: =SUM(O80:O89) -> 0 | Q91: =M91+O91 -> 464272.4068
A93: =+A91+1 -> 19 | C93: General Expenses
A94: =+A93+1 -> 20 | C94: Salaries and Wages | D94: Exh 29.3 | E94: ='Linked TB'!C1118 -> 870693.94 | G94: ='Salary & Wages'!G14 -> 0 | I94: =E94+G94 -> 870693.94 | K94: ='Salary & Wages'!K14 -> 55538.68377 | M94: =+I94+K94 -> 926232.6238 | O94: 0 | Q94: =M94+O94 -> 926232.6238
A95: =+A94+1 -> 21 | C95: Office Supplies & Other Office Exp. | D95: Exh 29.12 | E95: ='Linked TB'!C1200+'Linked TB'!C1176+'Linked TB'!C1289 -> 64030.89 | G95: ='Office Supplies & Other Exp'!I42 -> 0 | I95: 64030.89 | K95: ='Office Supplies & Other Exp'!M42 -> -12432.14 | M95: 51598.75 | O95: 0 | Q95: =M95+O95 -> 51598.75
A96: 22 | C96: Regulatory Commission Exp. | D96: Exh 29.13 | E96: ='Linked TB'!C1249 -> 51317.64 | G96: ='Regulatory Commission Exp'!I21 -> 0 | I96: 51317.64 | K96: ='Regulatory Commission Exp'!M21 -> 109469.0033 | M96: 160786.6433 | O96: 0 | Q96: 160786.6433
A97: 23 | C97: Pension & Other Benefits | D97: Exh 29.14 | E97: ='Linked TB'!C1150 -> 234572.28 | G97: ='Pension & Other Benefits '!I40 -> 0 | I97: 234572.28 | K97: ='Pension & Other Benefits '!M40 -> 59034.91137 | M97: 293607.1914 | O97: 0 | Q97: 293607.1914
A98: 24 | C98: Rent | D98: Exh 29.15 | E98: ='Linked TB'!C1188 -> 16242.53 | G98: =Rent!I16 -> 0 | I98: 16242.53 | K98: =Rent!M16 -> 3782.713955 | M98: 20025.24396 | O98: 0 | Q98: 20025.24396
A99: 25 | C99: Insurance | D99: Exh 29.16 | E99: ='Linked TB'!C1183 -> 90175.19 | G99: =Insurance!I18 -> 0 | I99: 90175.19 | K99: =Insurance!M18 -> 23225.72191 | M99: 113400.9119 | O99: 0 | Q99: 113400.9119
A100: 26 | C100: Office Utilities | D100: Exh 29.17 | E100: ='Linked TB'!C1220 -> 23547.57 | G100: ='Office Utilities'!I31 -> 0 | I100: 23547.57 | K100: ='Office Utilities'!M31 -> -138.72 | M100: 23408.85 | O100: 0 | Q100: 23408.85
A101: 27 | C101: Miscellaneous | D101: Exh 29.18 | E101: =SUM('Linked TB'!C1277,'Linked TB'!C1318,'Linked TB'!C1229,'Linked TB'!C1293) -> 735393.58 | G101: ='Miscellaneous & Travel'!I56 -> 0 | I101: 735393.58 | K101: ='Miscellaneous & Travel'!M56 -> -68233.8983 | M101: 667159.6817 | O101: 0 | Q101: 667159.6817
A103: =A101+1 -> 28 | C103: Total | E103: =SUM(E94:E102) -> 2085973.62 | G103: =SUM(G94:G102) -> 0 | I103: =SUM(I94:I102) -> 2085973.62 | K103: =SUM(K94:K102) -> 170246.276 | M103: =+I103+K103 -> 2256219.896 | O103: =SUM(O94:O102) -> 0 | Q103: =SUM(Q94:Q102) -> 2256219.896
A105: =A103+1 -> 29 | C105: Depreciation | D105: Exh 29.19 | E105: =SUM('Linked TB'!C1436) -> 346696.59 | G105: ='Depreciation Expense'!I129 -> 40400.22249 | I105: =E105+G105 -> 387096.8125 | K105: ='Depreciation Expense'!M129 -> 30488.82916 | M105: =+I105+K105 -> 417585.6417 | O105: 0 | Q105: =M105+O105 -> 417585.6417
A106: =A105+1 -> 30 | C106: Amortization of PAA | D106: Exh 29.20 | E106: ='Linked TB'!C1438 -> -3660.49 | G106: ='PAA Amortization'!I15 -> 0 | I106: -3660.49 | K106: ='PAA Amortization'!M15 -> 0 | M106: -3660.49 | O106: 0 | Q106: =M106+O106 -> -3660.49
A107: =A106+1 -> 31 | C107: Payroll Taxes | D107: Exh 29.22 | E107: ='Linked TB'!C1301 -> 54560.39 | G107: =TOTI!I19 -> 0 | I107: 54560.39 | K107: =TOTI!M19 -> 16544.52498 | M107: 71104.91498 | O107: 0 | Q107: 71104.91498
A108: 32 | C108: Franchise Tax | D108: Exh 29.22 | E108: ='Linked TB'!C1303 -> 0 | G108: ='Forecasted from Adaptive'!E49 -> 0 | I108: 0 | K108: =TOTI!M21 -> 0 | M108: 0 | O108: ='Gross Revenue Requirement'!$K$28*'Cap Structure & Cost of Debt'!M29-M108 -> 0 | Q108: 0
A109: 33 | C109: Gross Receipts Tax | D109: Exh 29.22 | E109: ='Linked TB'!C1304 -> 0 | G109: ='Forecasted from Adaptive'!E50 -> 0 | I109: 0 | K109: =TOTI!M22 -> 0 | M109: 0 | O109: ='Gross Revenue Requirement'!$K$28*'Cap Structure & Cost of Debt'!M28-M109 -> 0 | Q109: 0
A110: 34 | C110: Property Taxes | D110: Exh 29.22 | E110: =SUM('Linked TB'!C1305:C1306) -> 108170.38 | G110: =TOTI!I23+TOTI!I24 -> 0 | I110: 108170.38 | K110: =TOTI!M23+TOTI!M24 -> 8423.462141 | M110: 116593.8421 | O110: 0 | Q110: 116593.8421
A111: 35 | C111: Special Assessments | D111: Exh 29.22 | E111: =SUM('Linked TB'!C1307) -> 0 | G111: ='Forecasted from Adaptive'!E52 -> 0 | I111: 0 | K111: =TOTI!M25 -> 0 | M111: 0 | O111: 0 | Q111: 0
A112: 36 | C112: Utility/Commission Tax | D112: Exh 29.22 | E112: ='Linked TB'!C1308 -> 4995.09 | G112: =TOTI!I26 -> 0 | I112: 4995.09 | K112: =TOTI!M26 -> 6321.524 | M112: 11316.614 | O112: ='Gross Revenue Requirement'!$K$28-M112 -> -3216.304 | Q112: 8100.31 | T112: =+Q108+Q109+Q112-'Gross Revenue Requirement'!K28 -> 0
A113: 37 | C113: Other General Taxes | D113: Exh 29.22 | E113: ='Linked TB'!C1309 -> 19230.56 | G113: =TOTI!I27 -> 0 | I113: 19230.56 | K113: =TOTI!M27 -> -19230.56 | M113: 0 | O113: 0 | Q113: =M113+O113 -> 0
A114: 38 | C114: Income Taxes - Federal | D114: Exh 29.23 | E114: =SUM('Linked TB'!C1571,'Linked TB'!C1575) -> 71221 | G114: =+'Income Taxes'!E30-'Income Statement'!E114 -> -127120.6602 | I114: -55899.66023 | K114: =+M114-I114 -> -29989.72503 | M114: =+'Income Taxes'!I30 -> -85889.38526 | O114: ='Income Taxes'!K30 -> 195148.8435 | Q114: =M114+O114 -> 109259.4583
A115: 39 | C115: Income Taxes - State | D115: Exh 29.23 | E115: =SUM('Linked TB'!C1572,'Linked TB'!C1576) -> 28074 | G115: =-E115+'Income Taxes'!E27 -> -42083.93991 | I115: -14009.93991 | K115: =+M115-I115 -> -7516.221811 | M115: =+'Income Taxes'!I27 -> -21526.16172 | O115: =+'Income Taxes'!K27 -> 48909.4846 | Q115: =M115+O115 -> 27383.32288
A116: 40 | C116: Amortization of ITC | E116: ='Linked TB'!C1577 -> 0 | G116: ='Forecasted from Adaptive'!E57 -> 0 | I116: 0 | K116: 0 | M116: 0 | O116: 0 | Q116: 0
A117: =+A115+1 -> 40 | C117: Amortization of CIAC | D117: Exh 29.21 | E117: ='Linked TB'!C1521-E106 -> -10330.98 | G117: ='CIAC Amortization'!I92 -> -25.033284 | I117: -10356.01328 | K117: ='CIAC Amortization'!M92 -> 0 | M117: -10356.01328 | O117: 0 | Q117: -10356.01328
A119: =A117+1 -> 41 | C119: Total | E119: =SUM(E105:E118) -> 618956.54 | G119: =SUM(G105:G118) -> -128829.4109 | I119: =SUM(I105:I118) -> 490127.1291 | K119: =SUM(K105:K118) -> 5041.833444 | M119: =SUM(M105:M118) -> 495168.9625 | O119: =SUM(O105:O118) -> 240842.0241 | Q119: =SUM(Q105:Q118) -> 736010.9867
A121: =A119+1 -> 42 | C121: Total Operating Expenses | E121: =E119+E103+E91 -> 3333359.5 | G121: =G119+G103+G91 -> -128829.4109 | I121: =I119+I103+I91 -> 3204530.089 | K121: =K119+K103+K91 -> 11131.17631 | M121: =+I121+K121 -> 3215661.265 | O121: =O119+O103+O91 -> 240842.0241 | Q121: =M121+O121 -> 3456503.29
A123: =A121+1 -> 43 | C123: Net Operating Income | E123: =+E77-E121 -> -156417.89 | G123: =+G77-G121 -> 128829.4109 | I123: =+I77-I121 -> -27588.47907 | K123: =+K77-K121 -> -112893.62 | M123: =+I123+K123 -> -140482.0991 | O123: =+O77-O121 -> 734131.3638 | Q123: =M123+O123 -> 593649.2647
A127: Column Calculations:
A128: =+'Cash Working Capital'!$A$37 -> [A]- Company's ledger amounts for Base Period through September 30, 2022
A129: =+'Cash Working Capital'!$A$38 -> [B]- Company's adjustments for Base Period at September 30, 2022
A130: =+'Cash Working Capital'!$A$39 -> [C]- Sum of Column [A] & [B]
A131: =+'Cash Working Capital'!$A$40 -> [D]- Difference of Columns [C] & [E]
A132: =+'Cash Working Capital'!$A$41 -> [E]- Company's forecast for the twelve months ended December 31, 2023
A133: [F]- Amounts calculated based on Company's supporting schedules
A134: [G]- Sum of Column [E] & [F]
C196: =#REF!&" "&#REF! -> 
C198: =C164&" "&#REF! -> 

Sheet 7+5 (hidden)
A1: ='Linked TB'!$A$1 -> Water Service Corporation of Kentucky | G1: Exhibit D
A2: ='Linked TB'!$A$2 -> Case No. 2022-00147
A3: ='Linked TB'!$A$3 -> Rate Case Exhibits
A4: ='Linked TB'!$A4 -> Base Period: September 30, 2022
A5: ='Linked TB'!$A$5 -> Forecast Period: December 31, 2023
A6: ='Linked TB'!$A6 -> 0
A8: Combined Operations
A9: Test Year Income Statement (Actuals through November 30, 2021)
A10: Line No. | C10: Description | E10: 7 + 5 | I10: paste from Adaptive
A12: 1 | B12: Line No. | C12: Operating Revenues
A13: =A12+1 -> 2 | C13: Service Revenues - Water | E13: =+I13 -> 417892.49 | I13: 417892.49
A14: =A13+1 -> 3 | C14: Service Revenues - Sewer | E14: =+I14 -> 223732.61 | I14: 223732.61
A15: =A14+1 -> 4 | C15: Miscellaneous Revenues | E15: =+I15 -> 501.3652415 | I15: 501.3652415
A16: =A15+1 -> 5 | C16: Uncollectible Accounts | E16: =+I16 -> -34655.47305 | I16: -34655.47305
A18: =A16+1 -> 6 | C18: Total Operating Revenues | E18: =SUM(E11:E16) -> 607470.9922 | I18: 607470.9931
A20: =A18+1 -> 7 | C20: Maintenance Expenses
A21: =A20+1 -> 8 | C21: Salaries and Wages | E21: =+I21 -> 0 | I21: 0
A22: =A21+1 -> 9 | C22: Purchased Power | E22: 23510.94523 | I22: 23510.94523
A23: 10 | C23: Purchased Water / Sewer | E23: 740.4 | I23: 740.4
A24: 11 | C24: Maintenance and Repair | E24: 97587.13467 | I24: 97587.13467
A25: 12 | C25: Maintenance Testing | E25: 18913.39 | I25: 18913.39
A26: 13 | C26: Meter Reading | E26: 8346.32 | I26: 8346.32
A27: 14 | C27: Chemicals | E27: 2989.63 | I27: 2989.63
A28: 15 | C28: Transportation | E28: 8932.4168 | I28: 8932.4168
A29: 16 | C29: Operating Exp. Charged to Plant | E29: -1981.720605 | I29: -1981.720605
A30: 17 | C30: Outside Services - Other | E30: 4832.53 | I30: 4832.53
A32: =A30+1 -> 18 | C32: Total | E32: =SUM(E21:E30) -> 163871.0461 | I32: 163871.0461
A34: =+A32+1 -> 19 | C34: General Expenses
A35: =+A34+1 -> 20 | C35: Salaries and Wages | E35: =+I35 -> 179664.1452 | I35: 179664.1452
A36: =+A35+1 -> 21 | C36: Office Supplies & Other Office Exp. | E36: 7728.940544 | I36: 7728.940544
A37: 22 | C37: Regulatory Commission Exp. | E37: 34000 | I37: 34000
A38: 23 | C38: Pension & Other Benefits | E38: 48631.14077 | I38: 48631.14077
A39: 24 | C39: Rent | E39: 11299.14 | I39: 11299.14
A40: 25 | C40: Insurance | E40: 18063.7315 | I40: 18063.7315
A41: 26 | C41: Office Utilities | E41: 18521.328 | I41: 18521.328
A42: 27 | C42: Miscellaneous | E42: 101843.4438 | I42: 101843.4438
A44: =A42+1 -> 28 | C44: Total | E44: =SUM(E35:E43) -> 419751.8698 | I44: 419751.8698
A46: =A44+1 -> 29 | C46: Depreciation | E46: =+I46 -> 127475.9411 | I46: 127475.9411
A47: =A46+1 -> 30 | C47: Amortization of PAA | E47: -4715.62 | I47: -4715.62
A48: =A47+1 -> 31 | C48: Payroll Taxes | E48: 12822.4831 | I48: 12822.4831
A49: 32 | C49: Franchise Tax | E49: 38840.2112 | I49: 38840.2112
A50: 33 | C50: Gross Receipts Tax | E50: 51533.5216 | I50: 51533.5216
A51: 34 | C51: Property Taxes | E51: 7558.181311 | I51: 7558.181311
A52: 35 | C52: Special Assessments | E52: 0 | I52: 0
A53: 36 | C53: Utility/Commission Tax | E53: -408.550377 | I53: -408.550377
A54: 37 | C54: Other General Taxes | E54: 1879.55 | I54: 1879.55
A55: 38 | C55: Income Taxes - Federal | E55: -60498.061 | I55: -60498.061
A56: 39 | C56: Income Taxes - State | E56: 0 | I56: 0
A57: 40 | C57: Amortization of ITC | E57: 0 | I57: 0
A58: 41 | C58: Amortization of CIAC | E58: -10956.96 | I58: -10956.96
A60: =A58+1 -> 42 | C60: Total | E60: =SUM(E46:E59) -> 163530.6969 | I60: 163530.6969
A62: =A60+1 -> 43 | C62: Total Operating Expenses | E62: =E60+E44+E32 -> 747153.6128 | I62: 747153.6128
A64: =A62+1 -> 44 | C64: Net Operating Income | E64: =+E18-E62 -> -139682.6206 | I64: -139682.6197
A66: =A64+1 -> 45 | C66: Other Income | E66: 0
A67: =A66+1 -> 46 | C67: Interest During Construction | E67: -15968.69
A68: =A67+1 -> 47 | C68: Interest on Debt | E68: 87905.32
A70: =A68+1 -> 48 | C70: Net Income | E70: =ROUND(E64-E67-E68-E66,0) -> -211619
A71: =A70+1 -> 49 | C71: Add: Interest Expense | E71: =+E68 -> 87905.32
A72: =+A71+1 -> 50 | C72: Net Income for Return | E72: =SUM(E70:E71) -> -123713.68

Sheet Balance Sheet (hidden)
A1: ='Linked TB'!A1 -> Water Service Corporation of Kentucky | G1: Exhibit E-1
A2: ='Linked TB'!A2 -> Case No. 2022-00147
A3: ='Linked TB'!A3 -> Rate Case Exhibits
A4: Twelve Months Ended December 31, 2020
A6: Combined Operations | G6: Page 1 of 3
A7: Balance Sheet
A8: ASSETS: | C8: $ | E8: LIABILITIES AND OTHER CREDITS | G8: $
A9: Plant In Service: | E9: Capital Stock and Retained Earnings:
A10: Water | C10: =3774598-C28 -> 3413445 | E10: Common Stock and Paid In Capital | G10: =5000+5000 -> 10000
A11: Sewer | C11: 1820300 | E11: Retained Earnings | G11: =371266-5000-1274267+904571 -> -3430
A13: Total | C13: =SUM(C9:C12) -> 5233745 | E13: Total | G13: =SUM(G10:G12) -> 6570
A15: Accumulated Depreciation-Water | C15: =-1628075-C22 -> -1431243 | E15: Current and Accrued Liabilities:
A16: Accumulated Depreciation-Sewer | C16: -623429 | E16: Accounts Payable | G16: =5400+13501+7471 -> 26372
E17: Accrued Liabilities | G17: =2529+678 -> 3207
A18: Total | C18: =SUM(C15:C17) -> -2054672 | E18: Taxes Accrued | G18: =12329+36422 -> 48751
E19: Customer Deposits | G19: =11098+3757 -> 14855
A20: Net Utility Plant | C20: =C13+C18 -> 3179073 | E20: Customer Deposits - Interest | G20: =78+232 -> 310
E21: A/P - Assoc. Companies | G21: =559382+1675911-13501-678-7471 -> 2213643
A22: Plant Acquisition Adjustment-Water | C22: -196832 | E22: Deferred Revenue | G22: 0
A23: Plant Acquisition Adjustment-Sewer | C23: 0
E24: Total | G24: =SUM(G16:G22) -> 2307138
A25: Total | C25: =SUM(C22:C24) -> -196832
E26: Advances In Aid of Construction:
E27: Water | G27: 0
A28: Construction Work In Process-Water | C28: 361153 | E28: Sewer | G28: 0
A29: Construction Work In Process-Sewer | C29: 17759
E30: Total | G30: =SUM(G27:G29) -> 0
A31: Total | C31: =SUM(C28:C30) -> 378912
E32: Contributions In Aid of Construction:
A33: Current Assets: | E33: Water | G33: 214136
A34: Cash | C34: 1345 | E34: Sewer | G34: 65781
A35: Accounts Receivable - Net | C35: =36871-7254+108922-21430 -> 117109
A36: Other Current Assets | C36: =-99086-29617+359-381911 -> -510255 | E36: Total | G36: =SUM(G33:G35) -> 279917
A38: Total | C38: =SUM(C34:C37) -> -391801 | E38: Other Liabilities:
E39: Unamortized ITC | G39: 0
A40: Non-Current Assets: | E40: Deferred Tax - Federal | G40: =93406.52+275935.19 -> 369341.71
A41: Deferred Charges | C41: =5980+17667 -> 23647 | E41: Deferred Tax - State | G41: =4361.29+12883.84 -> 17245.13
A42: Other Non-Current Assets | C42: 0 | E42: Other Non Current Liabilities | G42: =83.7+3150.01+9306+247 -> 12786.71
A44: Total | C44: =+C41+C42 -> 23647 | E44: Total | G44: =SUM(G38:G42) -> 399373.55
A46: TOTAL ASSETS | C46: =C20+C25+C31+C38+C44 -> 2992999 | E46: TOTAL LIABILITIES AND OTHER CREDITS | G46: =G13+G24+G30+G36+G44 -> 2992998.55 | I46: =+G46-C46 -> -0.4500000002 | J46: check
A49: =+A1 -> Water Service Corporation of Kentucky | G49: Exhibit E-1
A50: =+A2 -> Case No. 2022-00147
A51: =+A3 -> Rate Case Exhibits
A52: Twelve Months Ended December 31, 2019
A54: Combined Operations | G54: Page 2 of 3
A55: Balance Sheet
A56: ASSETS: | C56: $ | E56: LIABILITIES AND OTHER CREDITS | G56: $
A57: Plant In Service: | E57: Capital Stock and Retained Earnings:
A58: Water | C58: =3389703-C76 -> 3343140 | E58: Common Stock and Paid In Capital | G58: =5000+5000 -> 10000
A59: Sewer | C59: 1739966 | E59: Retained Earnings | G59: =755840-5000+1518675-1245246 -> 1024269
A61: Total | C61: =SUM(C57:C60) -> 5083106 | E61: Total | G61: =SUM(G58:G60) -> 1034269
A63: Accumulated Depreciation-Water | C63: =-1569234-C70 -> -1367686 | E63: Current and Accrued Liabilities:
A64: Accumulated Depreciation-Sewer | C64: -589981 | E64: Accounts Payable | G64: =9769+27032+7489 -> 44290
E65: Accrued Liabilities | G65: 2511
A66: Total | C66: =SUM(C63:C65) -> -1957667 | E66: Taxes Accrued | G66: =11654+34757 -> 46411
E67: Customer Deposits | G67: =3323+9911 -> 13234
A68: Net Utility Plant | C68: =C61+C66 -> 3125439 | E68: Customer Deposits - Interest | G68: =25+76 -> 101
E69: A/P - Assoc. Companies | G69: =371164+614601 -> 985765
A70: Plant Acquisition Adjustment-Water | C70: -201548 | E70: Deferred Revenue | G70: 0
A71: Plant Acquisition Adjustment-Sewer | C71: 0
E72: Total | G72: =SUM(G64:G70) -> 1092312
A73: Total | C73: =SUM(C70:C72) -> -201548
E74: Advances In Aid of Construction:
E75: Water | G75: 0
A76: Construction Work In Process-Water | C76: 46563 | E76: Sewer | G76: 0
A77: Construction Work In Process-Sewer | C77: 282373
E78: Total | G78: =SUM(G75:G77) -> 0
A79: Total | C79: =SUM(C76:C78) -> 328936
E80: Contributions In Aid of Construction:
A81: Current Assets: | E81: Water | G81: 222562.6
A82: Cash | C82: 1348 | E82: Sewer | G82: 68311
A83: Accounts Receivable - Net | C83: =23305-1785+69508-5326 -> 85702
A84: Other Current Assets | C84: =-60206-21519-245093 -> -326818 | E84: Total | G84: =SUM(G81:G83) -> 290873.6
A86: Total | C86: =SUM(C82:C85) -> -239768 | E86: Other Liabilities:
E87: Unamortized ITC | G87: 0
A88: Non-Current Assets: | E88: Deferred Tax - Federal | G88: =77089+229917 -> 307006
A89: Deferred Charges | C89: =5173+15428 -> 20601 | E89: Deferred Tax - State | G89: =4279+12761 -> 17040
A90: Other Non-Current Assets | C90: 0 | E90: Other Non Current Liabilities | G90: =73361+218798 -> 292159
A92: Total | C92: =+C89+C90 -> 20601 | E92: Total | G92: =SUM(G86:G91) -> 616205
A94: TOTAL ASSETS | C94: =C68+C73+C79+C86+C92 -> 3033660 | E94: TOTAL LIABILITIES AND OTHER CREDITS | G94: =G61+G72+G78+G84+G92 -> 3033659.6 | I94: =+G94-C94 -> -0.3999999999 | J94: check
A97: =+A1 -> Water Service Corporation of Kentucky | G97: Exhibit E-1
A98: =+A2 -> Case No. 2022-00147
A99: =+A3 -> Rate Case Exhibits
A100: Twelve Months Ended December 31, 2018
A102: Combined Operations | G102: Page 3 of 3
A103: Balance Sheet
A104: ASSETS: | C104: $ | E104: LIABILITIES AND OTHER CREDITS | G104: $
A105: Plant In Service: | E105: Capital Stock and Retained Earnings:
A106: Water | C106: =3206292-C124 -> 3199276 | E106: Common Stock and Paid In Capital | G106: =5000+5000 -> 10000
A107: Sewer | C107: 1690378 | E107: Retained Earnings | G107: =589466-5000+1518675-1004326+2086 -> 1100901
A109: Total | C109: =SUM(C105:C108) -> 4889654 | E109: Total | G109: =SUM(G106:G108) -> 1110901
A111: Accumulated Depreciation-Water | C111: =-1547203-C118 -> -1340943 | E111: Current and Accrued Liabilities:
A112: Accumulated Depreciation-Sewer | C112: -563809 | E112: Accounts Payable | G112: =6072+17327+7405 -> 30804
E113: Accrued Liabilities | G113: 2595
A114: Total | C114: =SUM(C111:C113) -> -1904752 | E114: Taxes Accrued | G114: =11520+32874 -> 44394
E115: Customer Deposits | G115: =4109+11725 -> 15834
A116: Net Utility Plant | C116: =C109+C114 -> 2984902 | E116: Customer Deposits - Interest | G116: =-8-23 -> -31
E117: A/P - Assoc. Companies | G117: =364982+618680 -> 983662
A118: Plant Acquisition Adjustment-Water | C118: -206260 | E118: Deferred Revenue
A119: Plant Acquisition Adjustment-Sewer | C119: 0
E120: Total | G120: =SUM(G112:G118) -> 1077258
A121: Total | C121: =SUM(C118:C120) -> -206260
E122: Advances In Aid of Construction:
E123: Water | G123: 0
A124: Construction Work In Process-Water | C124: 7016 | E124: Sewer | G124: 0
A125: Construction Work In Process-Sewer | C125: 2459
E126: Total | G126: =SUM(G123:G125) -> 0
A127: Total | C127: =SUM(C124:C126) -> 9475
E128: Contributions In Aid of Construction:
A129: Current Assets: | E129: Water | G129: 230990
A130: Cash | C130: 1333 | E130: Sewer | G130: 70841
A131: Accounts Receivable - Net | C131: =23223-1412+66268-4029 -> 84050
A132: Other Current Assets | C132: =79670-21811+127+163645 -> 221631 | E132: Total | G132: =SUM(G129:G131) -> 301831
A134: Total | C134: =SUM(C130:C133) -> 307014 | E134: Other Liabilities:
E135: Unamortized ITC | G135: 0
A136: Non-Current Assets: | E136: Deferred Tax - Federal | G136: =76766.73+219059 -> 295825.73
A137: Deferred Charges | C137: =48+141 -> 189 | E137: Deferred Tax - State | G137: =4501.14+12844 -> 17345.14
A138: Other Non-Current Assets | C138: 0 | E138: Other Non Current Liabilities | G138: =75815+216344 -> 292159
A140: Total | C140: =+C137+C138 -> 189 | E140: Total | G140: =SUM(G134:G138) -> 605329.87
A142: TOTAL ASSETS | C142: =C116+C121+C127+C134+C140 -> 3095320 | E142: TOTAL LIABILITIES AND OTHER CREDITS | G142: =G109+G120+G126+G132+G140 -> 3095319.87 | I142: =+G142-C142 -> -0.1299999999 | J142: check

Sheet BP Balance Sheet (hidden)
A1: ='Linked TB'!A1 -> Water Service Corporation of Kentucky | G1: Exhibit E-2
A2: ='Linked TB'!A2 -> Case No. 2022-00147
A3: ='Linked TB'!A3 -> Rate Case Exhibits
A4: Twelve Months Ended September 30, 2022
A6: Combined Operations
A7: Balance Sheet
A8: ASSETS: | C8: $ | E8: LIABILITIES AND OTHER CREDITS | G8: $
A9: Plant In Service: | E9: Capital Stock and Retained Earnings:
A10: Water | C10: =+'Linked TB'!K132+'Linked TB'!K136+'Linked TB'!K146 -> 13584286.37 | E10: Common Stock and Paid In Capital | G10: ='Linked TB'!M938 -> -1000
A11: Sewer | C11: =+'Linked TB'!L132+'Linked TB'!L136+'Linked TB'!L146 -> 0 | E11: Retained Earnings | G11: =-'Linked TB'!M949+'Linked TB'!M952-G10 -> 3192038.59
A13: Total | C13: =SUM(C9:C12) -> 13584286.37 | E13: Total | G13: =SUM(G10:G12) -> 3191038.59
A15: Accumulated Depreciation-Water | C15: =+'Linked TB'!K328 -> -6964941.41 | E15: Current and Accrued Liabilities:
A16: Accumulated Depreciation-Sewer | C16: =+'Linked TB'!L328 -> 0 | E16: Accounts Payable | G16: =-'Linked TB'!M578 -> 1052939.91
E17: Accrued Liabilities | G17: =-'Linked TB'!M596 -> -10414.21
A18: Total | C18: =SUM(C15:C17) -> -6964941.41 | E18: Taxes Accrued | G18: =-'Linked TB'!M639-'Linked TB'!M644 -> 140161.94
E19: Customer Deposits | G19: =-'Linked TB'!M655 -> 69621.72
A20: Net Utility Plant | C20: =C13+C18 -> 6619344.96 | E20: Customer Deposits - Interest | G20: =-'Linked TB'!M650 -> 424.96
E21: A/P - Assoc. Companies | G21: =-'Linked TB'!M677 -> 3443359.49
A22: Plant Acquisition Adjustment-Water | C22: =+'Linked TB'!K333 -> -110730.05 | E22: Deferred Revenue | G22: =-'Linked TB'!M658 -> 0
A23: Plant Acquisition Adjustment-Sewer | C23: 0
E24: Total | G24: =SUM(G16:G22) -> 4696093.81
A25: Total | C25: =SUM(C22:C24) -> -110730.05
E26: Advances In Aid of Construction:
E27: Water | G27: 0
A28: Construction Work In Process-Water | C28: =+'Linked TB'!K209 -> 140075.76 | E28: Sewer | G28: 0
A29: Construction Work In Process-Sewer | C29: =+'Linked TB'!L209 -> 0
E30: Total | G30: =SUM(G27:G29) -> 0
A31: Total | C31: =SUM(C28:C30) -> 140075.76
E32: Contributions In Aid of Construction:
A33: Current Assets: | E33: Water | G33: =-'Linked TB'!K929 -> 250779.21
A34: Cash | C34: =+'Linked TB'!M413 -> 605179.68 | E34: Sewer | G34: =-'Linked TB'!L929 -> 0
A35: Accounts Receivable - Net | C35: =+'Linked TB'!M429 -> 854777.46
A36: Other Current Assets | C36: =+'Linked TB'!M435+'Linked TB'!M438+'Linked TB'!M450+'Linked TB'!M483 -> -31958.25 | E36: Total | G36: =SUM(G33:G35) -> 250779.21
A38: Total | C38: =SUM(C34:C37) -> 1427998.89 | E38: Other Liabilities:
E39: Unamortized ITC | G39: 0
A40: Non-Current Assets: | E40: Deferred Tax - Federal | G40: =-'Linked TB'!M727 -> 891216.7
A41: Deferred Charges | C41: =+'Linked TB'!M504+'Linked TB'!M539 -> 939341.93 | E41: Deferred Tax - State | G41: =-'Linked TB'!M742 -> -40570.7
A42: Other Non-Current Assets | C42: =+'Linked TB'!M566 -> 154919.54 | E42: Other Non Current Liabilities | G42: =-'Linked TB'!M768 -> 182393.42
A44: Total | C44: =+C41+C42 -> 1094261.47 | E44: Total | G44: =SUM(G38:G42) -> 1033039.42
A46: TOTAL ASSETS | C46: =C20+C25+C31+C38+C44 -> 9170951.03 | E46: TOTAL LIABILITIES AND OTHER CREDITS | G46: =G13+G24+G30+G36+G44 -> 9170951.03 | I46: =+G46-C46 -> 0 | J46: check

Sheet Adjustment Work Papers >>

Sheet RB Support >>
B5: ='Cover Page'!B5 -> Water Service Corporation of Kentucky
B7: Rate Case Schedules
B8: Exhibit 28: Supporting Schedules

Sheet Plant in Service
A1: ='Linked TB'!A1 -> Water Service Corporation of Kentucky | Q1: =+Index!B16 -> Exhibit 28.1
A2: ='Linked TB'!A2 -> Case No. 2022-00147 | Q2: Updated thru 9/30/2022
A3: Rate Case Schedules
A4: ='Linked TB'!A4 -> Base Period: September 30, 2022
A5: ='Linked TB'!A5 -> Forecast Period: December 31, 2023
A8: Plant in Service
A10: Line No. | C10: Account | E10: Description | G10: =+'Rate Base'!E44 -> Base Period - Starting Balance | I10: =+'Rate Base'!G44 -> Base Period - Activity | K10: =+'Rate Base'!I44 -> Base Period - Ending Balance | M10: =+'Rate Base'!K44 -> Forecast Period Adjustment | O10: =+'Rate Base'!M44 -> Forecast Period - Present Rates | Q10: Depreciation Rate | S10: A/D Account | T10: Depr Acccount | U10: CIAC Account | V10: CIAC A/A Account | W10: CIAC Amort Account
G11: [A] | I11: [B] | K11: [C] | M11: [D] | O11: [E]
A12: 1 | C12: 141101 | E12: =IFERROR(INDEX('Linked TB'!B:B,MATCH(C12,'Linked TB'!A:A,0),0),0) -> Land and Rights General | G12: 20044.05 | I12: =+K12-G12 -> 0 | K12: 20044.05 | M12: =+O12-K12 -> 0 | O12: 20044.05 | Q12: =+_xlfn.XLOOKUP(T12,'[2]Exh 28 UPIS-AD-ADIT-Depr'!$A$266:$A$381,'[2]Exh 28 UPIS-AD-ADIT-Depr'!$E$266:$E$381) -> 0 | S12: 142299 | T12: 710299 | U12: 0 | V12: 0 | W12: 0
A13: =A12+1 -> 2 | C13: 141102 | E13: =IFERROR(INDEX('Linked TB'!B:B,MATCH(C13,'Linked TB'!A:A,0),0),0) -> Land and Rights Pump | G13: 0 | I13: =+K13-G13 -> 0 | K13: 0 | M13: 0 | O13: 0 | Q13: =+_xlfn.XLOOKUP(T13,'[2]Exh 28 UPIS-AD-ADIT-Depr'!$A$266:$A$381,'[2]Exh 28 UPIS-AD-ADIT-Depr'!$E$266:$E$381) -> 0 | S13: 142299 | T13: 710299 | U13: 0 | V13: 0 | W13: 0
A14: =A13+1 -> 3 | C14: 141103 | E14: =IFERROR(INDEX('Linked TB'!B:B,MATCH(C14,'Linked TB'!A:A,0),0),0) -> Land and Rights Water | G14: 0 | I14: 0 | K14: 0 | M14: 0 | O14: 0 | Q14: =+_xlfn.XLOOKUP(T14,'[2]Exh 28 UPIS-AD-ADIT-Depr'!$A$266:$A$381,'[2]Exh 28 UPIS-AD-ADIT-Depr'!$E$266:$E$381) -> 0 | S14: 142299 | T14: 710299 | U14: 0 | V14: 0 | W14: 0
A15: 4 | C15: 141104 | E15: =IFERROR(INDEX('Linked TB'!B:B,MATCH(C15,'Linked TB'!A:A,0),0),0) -> Land and Rights Trans | G15: 0 | I15: 0 | K15: 0 | M15: 0 | O15: 0 | Q15: =+_xlfn.XLOOKUP(T15,'[2]Exh 28 UPIS-AD-ADIT-Depr'!$A$266:$A$381,'[2]Exh 28 UPIS-AD-ADIT-Depr'!$E$266:$E$381) -> 0 | S15: 142299 | T15: 710299 | U15: 0 | V15: 0 | W15: 0
A16: 5 | C16: 141105 | E16: =IFERROR(INDEX('Linked TB'!B:B,MATCH(C16,'Linked TB'!A:A,0),0),0) -> Land and Rights Intangible | G16: 0 | I16: 0 | K16: 0 | M16: 0 | O16: 0 | Q16: =+_xlfn.XLOOKUP(T16,'[2]Exh 28 UPIS-AD-ADIT-Depr'!$A$266:$A$381,'[2]Exh 28 UPIS-AD-ADIT-Depr'!$E$266:$E$381) -> 0 | S16: 142299 | T16: 710299 | U16: 0 | V16: 0 | W16: 0
A17: 6 | C17: 141106 | E17: =IFERROR(INDEX('Linked TB'!B:B,MATCH(C17,'Linked TB'!A:A,0),0),0) -> Land and Rights Collections | G17: 0 | I17: 0 | K17: 0 | M17: 0 | O17: 0 | Q17: =+_xlfn.XLOOKUP(T17,'[2]Exh 28 UPIS-AD-ADIT-Depr'!$A$266:$A$381,'[2]Exh 28 UPIS-AD-ADIT-Depr'!$E$266:$E$381) -> 0 | S17: 142299 | T17: 710299 | U17: 0 | V17: 0 | W17: 0
A18: 7 | C18: 141107 | E18: =IFERROR(INDEX('Linked TB'!B:B,MATCH(C18,'Linked TB'!A:A,0),0),0) -> Land and Rights Treatment | G18: 0 | I18: 0 | K18: 0 | M18: 0 | O18: 0 | Q18: =+_xlfn.XLOOKUP(T18,'[2]Exh 28 UPIS-AD-ADIT-Depr'!$A$266:$A$381,'[2]Exh 28 UPIS-AD-ADIT-Depr'!$E$266:$E$381) -> 0 | S18: 142299 | T18: 710299 | U18: 0 | V18: 0 | W18: 0
A19: 8 | C19: 141108 | E19: =IFERROR(INDEX('Linked TB'!B:B,MATCH(C19,'Linked TB'!A:A,0),0),0) -> Land and Rights Reclaim | G19: 0 | I19: 0 | K19: 0 | M19: 0 | O19: 0 | Q19: =+_xlfn.XLOOKUP(T19,'[2]Exh 28 UPIS-AD-ADIT-Depr'!$A$266:$A$381,'[2]Exh 28 UPIS-AD-ADIT-Depr'!$E$266:$E$381) -> 0 | S19: 142299 | T19: 710299 | U19: 0 | V19: 0 | W19: 0
A20: 9 | C20: 141199 | E20: =IFERROR(INDEX('Linked TB'!B:B,MATCH(C20,'Linked TB'!A:A,0),0),0) -> Land Clearing | G20: 0 | I20: 0 | K20: 0 | M20: 0 | O20: 0 | T20: 0 | U20: 0 | V20: 0 | W20: 0
A21: 10 | C21: 141201 | E21: =IFERROR(INDEX('Linked TB'!B:B,MATCH(C21,'Linked TB'!A:A,0),0),0) -> Organization | G21: 164394.1 | I21: 0 | K21: 164394.1 | M21: 0 | O21: 164394.1 | Q21: =+_xlfn.XLOOKUP(T21,'[2]Exh 28 UPIS-AD-ADIT-Depr'!$A$266:$A$381,'[2]Exh 28 UPIS-AD-ADIT-Depr'!$E$266:$E$381) -> 0.04 | S21: 142201 | T21: 710201 | U21: 271001 | V21: 272001 | W21: 720001
A22: 11 | C22: 141202 | E22: =IFERROR(INDEX('Linked TB'!B:B,MATCH(C22,'Linked TB'!A:A,0),0),0) -> Franchises | G22: 0 | I22: 0 | K22: 0 | M22: 0 | O22: 0 | Q22: =+_xlfn.XLOOKUP(T22,'[2]Exh 28 UPIS-AD-ADIT-Depr'!$A$266:$A$381,'[2]Exh 28 UPIS-AD-ADIT-Depr'!$E$266:$E$381) -> 0.04 | S22: 142202 | T22: 710202 | U22: 271002 | V22: 272002 | W22: 720002
A23: 12 | C23: 141203 | E23: =IFERROR(INDEX('Linked TB'!B:B,MATCH(C23,'Linked TB'!A:A,0),0),0) -> Struct and Improv General Plant | G23: 129602.66 | I23: 2178.77 | K23: 131781.43 | M23: 799.9510451 | O23: 132581.381 | Q23: =+_xlfn.XLOOKUP(T23,'[2]Exh 28 UPIS-AD-ADIT-Depr'!$A$266:$A$381,'[2]Exh 28 UPIS-AD-ADIT-Depr'!$E$266:$E$381) -> 0.0267 | S23: 142203 | T23: 710203 | U23: 271011 | V23: 272011 | W23: 720011
A24: 13 | C24: 141204 | E24: =IFERROR(INDEX('Linked TB'!B:B,MATCH(C24,'Linked TB'!A:A,0),0),0) -> Struct and Improv Service Supplies | G24: 0 | I24: 0 | K24: 0 | M24: 0 | O24: 0 | Q24: =+_xlfn.XLOOKUP(T24,'[2]Exh 28 UPIS-AD-ADIT-Depr'!$A$266:$A$381,'[2]Exh 28 UPIS-AD-ADIT-Depr'!$E$266:$E$381) -> 0.0267 | S24: 142204 | T24: 710204 | U24: 271003 | V24: 272003 | W24: 720003
A25: 14 | C25: 141205 | E25: =IFERROR(INDEX('Linked TB'!B:B,MATCH(C25,'Linked TB'!A:A,0),0),0) -> Struct and Improv Water Treat Plt | G25: 523073.81 | I25: 17247 | K25: 540320.81 | M25: 60.57811096 | O25: 540381.3881 | Q25: =+_xlfn.XLOOKUP(T25,'[2]Exh 28 UPIS-AD-ADIT-Depr'!$A$266:$A$381,'[2]Exh 28 UPIS-AD-ADIT-Depr'!$E$266:$E$381) -> 0.0267 | S25: 142205 | T25: 710205 | U25: 271004 | V25: 272004 | W25: 720004
A26: 15 | C26: 141206 | E26: =IFERROR(INDEX('Linked TB'!B:B,MATCH(C26,'Linked TB'!A:A,0),0),0) -> Struct and Improv Trans Dist Plt | G26: 3097.42 | I26: 0 | K26: 3097.42 | M26: 1512.998318 | O26: 4610.418318 | Q26: =+_xlfn.XLOOKUP(T26,'[2]Exh 28 UPIS-AD-ADIT-Depr'!$A$266:$A$381,'[2]Exh 28 UPIS-AD-ADIT-Depr'!$E$266:$E$381) -> 0.0267 | S26: 142206 | T26: 710206 | U26: 271005 | V26: 272005 | W26: 720005
A27: 16 | C27: 141207 | E27: =IFERROR(INDEX('Linked TB'!B:B,MATCH(C27,'Linked TB'!A:A,0),0),0) -> Struct and Improv Collect Plant | G27: 0 | I27: 0 | K27: 0 | M27: 0 | O27: 0 | Q27: =+_xlfn.XLOOKUP(T27,'[2]Exh 28 UPIS-AD-ADIT-Depr'!$A$266:$A$381,'[2]Exh 28 UPIS-AD-ADIT-Depr'!$E$266:$E$381) -> 0.0267 | S27: 142207 | T27: 710207 | U27: 271006 | V27: 272006 | W27: 720006
A28: 17 | C28: 141208 | E28: =IFERROR(INDEX('Linked TB'!B:B,MATCH(C28,'Linked TB'!A:A,0),0),0) -> Struct and Improv Pump Plant | G28: 0 | I28: 0 | K28: 0 | M28: 0 | O28: 0 | Q28: =+_xlfn.XLOOKUP(T28,'[2]Exh 28 UPIS-AD-ADIT-Depr'!$A$266:$A$381,'[2]Exh 28 UPIS-AD-ADIT-Depr'!$E$266:$E$381) -> 0.0267 | S28: 142208 | T28: 710208 | U28: 271007 | V28: 272007 | W28: 720007
A29: 18 | C29: 141209 | E29: =IFERROR(INDEX('Linked TB'!B:B,MATCH(C29,'Linked TB'!A:A,0),0),0) -> Struct and Improv Treatment Plant | G29: 0 | I29: 0 | K29: 0 | M29: 0 | O29: 0 | Q29: =+_xlfn.XLOOKUP(T29,'[2]Exh 28 UPIS-AD-ADIT-Depr'!$A$266:$A$381,'[2]Exh 28 UPIS-AD-ADIT-Depr'!$E$266:$E$381) -> 0.0267 | S29: 142209 | T29: 710209 | U29: 271008 | V29: 272008 | W29: 720008
A30: 19 | C30: 141210 | E30: =IFERROR(INDEX('Linked TB'!B:B,MATCH(C30,'Linked TB'!A:A,0),0),0) -> Struct and Improv Reclaim WTP | G30: 0 | I30: 0 | K30: 0 | M30: 0 | O30: 0 | Q30: =+_xlfn.XLOOKUP(T30,'[2]Exh 28 UPIS-AD-ADIT-Depr'!$A$266:$A$381,'[2]Exh 28 UPIS-AD-ADIT-Depr'!$E$266:$E$381) -> 0.0267 | S30: 142210 | T30: 710210 | U30: 271010 | V30: 272010 | W30: 720010
A31: 20 | C31: 141211 | E31: =IFERROR(INDEX('Linked TB'!B:B,MATCH(C31,'Linked TB'!A:A,0),0),0) -> Struct and Improv Reclaim Wtr Dist | G31: 128345.7 | I31: 0 | K31: 128345.7 | M31: 0 | O31: 128345.7 | Q31: =+_xlfn.XLOOKUP(T31,'[2]Exh 28 UPIS-AD-ADIT-Depr'!$A$266:$A$381,'[2]Exh 28 UPIS-AD-ADIT-Depr'!$E$266:$E$381) -> 0.0267 | S31: 142211 | T31: 710211 | U31: 271009 | V31: 272009 | W31: 720009
A32: 21 | C32: 141212 | E32: =IFERROR(INDEX('Linked TB'!B:B,MATCH(C32,'Linked TB'!A:A,0),0),0) -> Struct and Improv Production | G32: 0 | I32: 0 | K32: 0 | M32: 0 | O32: 0 | T32: 0 | U32: 0 | V32: 0 | W32: 0
A33: 22 | C33: 141213 | E33: =IFERROR(INDEX('Linked TB'!B:B,MATCH(C33,'Linked TB'!A:A,0),0),0) -> Struct and Improv Natural Gas | G33: 0 | I33: 0 | K33: 0 | M33: 0 | O33: 0 | T33: 0 | U33: 0 | V33: 0 | W33: 0
A34: 23 | C34: 141214 | E34: =IFERROR(INDEX('Linked TB'!B:B,MATCH(C34,'Linked TB'!A:A,0),0),0) -> Struct and Improv Transmissions | G34: 0 | I34: 0 | K34: 0 | M34: 0 | O34: 0 | T34: 0 | U34: 0 | V34: 0 | W34: 0
A35: 24 | C35: 141215 | E35: =IFERROR(INDEX('Linked TB'!B:B,MATCH(C35,'Linked TB'!A:A,0),0),0) -> Struct and Improv Distribution | G35: 0 | I35: 0 | K35: 0 | M35: 0 | O35: 0 | T35: 0 | U35: 0 | V35: 0 | W35: 0
A36: 25 | C36: 141216 | E36: =IFERROR(INDEX('Linked TB'!B:B,MATCH(C36,'Linked TB'!A:A,0),0),0) -> Struct and Improv Electrical | G36: 0 | I36: 0 | K36: 0 | M36: 0 | O36: 0 | T36: 0 | U36: 0 | V36: 0 | W36: 0
A37: 26 | C37: 141217 | E37: =IFERROR(INDEX('Linked TB'!B:B,MATCH(C37,'Linked TB'!A:A,0),0),0) -> Struct and Improv Propane | G37: 0 | I37: 0 | K37: 0 | M37: 0 | O37: 0 | T37: 0 | U37: 0 | V37: 0 | W37: 0
